Workbook

Sheet LevelDifficultyConfig
B1: Id | C1: Name | D1: Precondition | E1: LevelLimit | F1: PicShow | G1: MonsterGroup | H1: Cost | I1: PreLevelCost | J1: Exp | K1: FirstReward | L1: RandomReward | M1: Show | N1: RankTime | O1: MaxCountPerDay | P1: RecommendFightAbility | Q1: NoUse
B2: int | C2: string | D2: int | E2: int | F2: int | G2: int | H2: mut,int#int,2 | I2: mut,int#int,2 | J2: int | K2: mut,int#int,1 | L2: mut,int#int,1 | M2: mut,int#int,2 | N2: int | O2: int | P2: int | Q2: string
B3: 2 | C3: 3 | D3: 2 | E3: 2 | F3: 3 | G3: 2 | H3: 2 | I3: 2 | J3: 2 | K3: 4 | L3: 4 | M3: 3 | N3: 2 | O3: 2 | P3: 2 | Q3: 0
B4: 关卡ID | C4: 关卡名称 | D4: 前置关卡 | E4: 需要等级 | F4: 新关卡开启拍脸图 | G4: 关联的怪物组id | H4: 关卡结束扣除体力 关卡消耗体力=预扣除+结束扣除 | I4: 进入关卡预先扣除的体力 | J4: 关卡经验奖励 | K4: 首次通关奖励 | L4: 关卡道具奖励组 --每一次 | M4: 显示 | N4: 时间需求 | O4: 每天最大可玩次数： 0就是无限 | P4: 推荐战力 | Q4: 备注
A5: 默认值 | B5: 0 | D5: 0 | E5: 0 | F5: 0 | G5: 0 | H5: null | I5: null | J5: 0 | K5: 0 | L5: 0 | M5: null | N5: 0 | O5: 0 | P5: 0
A6: 正确性校对
A7: 校对值
B8: 1011 | C8: 简单-1-1 | D8: 0 | E8: 0 | F8: 0 | G8: 51011 | H8: 2#7 | I8: 2#1 | J8: 8 | K8: 5001 | L8: 3001#401001 | M8: 70101#1|14#100|3#10 | N8: 180 | O8: 0 | P8: 300 | Q8: 1
B9: 1021 | C9: 简单-1-2 | D9: =B8 -> 1011 | E9: 0 | F9: 0 | G9: 51012 | H9: 2#7 | I9: 2#1 | J9: 8 | K9: 5002 | L9: 3002#401002 | M9: 70201#1|14#100|3#10 | N9: 180 | O9: 0 | P9: 300 | Q9: 2
B10: 1031 | C10: 简单-1-3 | D10: =B9 -> 1021 | E10: 0 | F10: 0 | G10: 51013 | H10: =H8 -> 2#7 | I10: 2#1 | J10: 8 | K10: 5003 | L10: 3003#401003 | M10: 70301#1|14#100|3#10 | N10: 180 | O10: 0 | P10: 300 | Q10: 3
B11: 1041 | C11: 简单-1-4 | D11: 1031 | E11: 0 | F11: 0 | G11: 51014 | H11: =H9 -> 2#7 | I11: 2#1 | J11: 8 | K11: 5004 | L11: 3004#401004 | M11: 70401#1|14#100|3#10 | N11: 180 | O11: 0 | P11: 300 | Q11: 4
B12: 1051 | C12: 简单-1-5 | D12: 1041 | E12: 0 | F12: 0 | G12: 51015 | H12: =H10 -> 2#7 | I12: 2#1 | J12: 8 | K12: 5005 | L12: 3005#401005 | M12: 70501#1|14#100|3#10 | N12: 180 | O12: 0 | P12: 300 | Q12: 5
B13: 2011 | C13: 简单-2-1 | D13: 1051 | E13: 0 | F13: 1 | G13: 51016 | H13: =H11 -> 2#7 | I13: 2#1 | J13: 8 | K13: 5006 | L13: 3006#401006 | M13: 70102#1|14#120|3#12 | N13: 90 | O13: 0 | P13: 5369 | Q13: =Q8 -> 1
B14: 2021 | C14: 简单-2-2 | D14: 2011 | E14: 0 | F14: 0 | G14: 51017 | H14: =H12 -> 2#7 | I14: 2#1 | J14: 8 | K14: 5007 | L14: 3007#401007 | M14: 70202#1|14#120|3#12 | N14: 90 | O14: 0 | P14: 5369 | Q14: =Q9 -> 2
B15: 2031 | C15: 简单-2-3 | D15: 2021 | E15: 0 | F15: 0 | G15: 51018 | H15: =H13 -> 2#7 | I15: 2#1 | J15: 8 | K15: 5008 | L15: 3008#401008 | M15: 70302#1|14#120|3#12 | N15: 120 | O15: 0 | P15: 5369 | Q15: 3
B16: 2041 | C16: 简单-2-4 | D16: 2031 | E16: 0 | F16: 0 | G16: 51019 | H16: =H14 -> 2#7 | I16: 2#1 | J16: 8 | K16: 5009#401009 | L16: 3009#401009 | M16: 70402#1|14#120|3#12 | N16: 90 | O16: 0 | P16: 8054 | Q16: 4
B17: 2051 | C17: 简单-2-5 | D17: 2041 | E17: 0 | F17: 0 | G17: 51020 | H17: =H15 -> 2#7 | I17: 2#1 | J17: 8 | K17: 5010#401010 | L17: 3010#401010 | M17: 70502#1|14#120|3#12 | N17: 180 | O17: 0 | P17: 8054 | Q17: 5
B18: 3011 | C18: 简单-3-1 | D18: 2051 | E18: 13 | F18: 1 | G18: 51021 | H18: =H16 -> 2#7 | I18: 2#1 | J18: 8 | K18: 5011#401011 | L18: 3011#401011 | M18: 70103#1|14#140|3#14 | N18: 90 | O18: 0 | P18: 8054 | Q18: 1
B19: 3021 | C19: 简单-3-2 | D19: 3011 | E19: 0 | F19: 0 | G19: 51022 | H19: =H17 -> 2#7 | I19: =I17 -> 2#1 | J19: =J17 -> 8 | K19: 5012#401012 | L19: 3012#401012 | M19: 70203#1|14#140|3#14 | N19: 90 | O19: =O17 -> 0 | P19: 10738 | Q19: 2
B20: 3031 | C20: 简单-3-3 | D20: 3021 | E20: 0 | F20: 0 | G20: 51023 | H20: =H18 -> 2#7 | I20: 2#1 | J20: 8 | K20: 5013#401013 | L20: 3013#401013 | M20: 70303#1|14#140|3#14 | N20: 120 | O20: 0 | P20: 10738 | Q20: 3
B21: 3041 | C21: 简单-3-4 | D21: 3031 | E21: 0 | F21: 0 | G21: 51024 | H21: =H19 -> 2#7 | I21: 2#1 | J21: 8 | K21: 5014#401014 | L21: 3014#401014 | M21: 70403#1|14#140|3#14 | N21: 90 | O21: 0 | P21: 10738 | Q21: 4
B22: 3051 | C22: 简单-3-5 | D22: 3041 | E22: 0 | F22: 0 | G22: 51025 | H22: =H20 -> 2#7 | I22: 2#1 | J22: 8 | K22: 5015#401015 | L22: 3015#401015 | M22: 70503#1|14#140|3#14 | N22: 180 | O22: 0 | P22: 10738 | Q22: 5
B23: 4011 | C23: 简单-4-1 | D23: 3051 | E23: 16 | F23: 1 | G23: 51026 | H23: =H21 -> 2#7 | I23: 2#1 | J23: 8 | K23: 5016#401016 | L23: 3016#401016 | M23: 70104#1|14#160|3#16 | N23: 90 | O23: 0 | P23: 13423 | Q23: 1
B24: 4021 | C24: 简单-4-2 | D24: 4011 | E24: 0 | F24: 0 | G24: 51027 | H24: =H22 -> 2#7 | I24: 2#1 | J24: 8 | K24: 5017#401017 | L24: 3017#401017 | M24: 70204#1|14#160|3#16 | N24: 90 | O24: 0 | P24: 16108 | Q24: 2
B25: 4031 | C25: 简单-4-3 | D25: 4021 | E25: 0 | F25: 0 | G25: 51028 | H25: =H23 -> 2#7 | I25: 2#1 | J25: 8 | K25: 5018#401018 | L25: 3018#401018 | M25: 70304#1|14#160|3#16 | N25: 120 | O25: 0 | P25: 16108 | Q25: 3
B26: 4041 | C26: 简单-4-4 | D26: 4031 | E26: 0 | F26: 0 | G26: 51029 | H26: =H24 -> 2#7 | I26: 2#1 | J26: 8 | K26: 5019#401019 | L26: 3019#401019 | M26: 70404#1|14#160|3#16 | N26: 90 | O26: 0 | P26: 16108 | Q26: 4
B27: 4051 | C27: 简单-4-5 | D27: 4041 | E27: 0 | F27: 0 | G27: 51030 | H27: =H25 -> 2#7 | I27: 2#1 | J27: 8 | K27: 5020#401020 | L27: 3020#401020 | M27: 70504#1|14#160|3#16 | N27: 180 | O27: 0 | P27: 16108 | Q27: 5
B28: 5011 | C28: 简单-5-1 | D28: 4051 | E28: 18 | F28: 1 | G28: 51031 | H28: =H26 -> 2#7 | I28: 2#1 | J28: 8 | K28: 5021#401021 | L28: 3021#401021 | M28: 70105#1|14#180|3#18 | N28: 90 | O28: 0 | P28: 21477 | Q28: 1
B29: 5021 | C29: 简单-5-2 | D29: 5011 | E29: 0 | F29: 0 | G29: 51032 | H29: =H27 -> 2#7 | I29: 2#1 | J29: 8 | K29: 5022#401022 | L29: 3022#401022 | M29: 70205#1|14#180|3#18 | N29: 90 | O29: 0 | P29: 21477 | Q29: 2
B30: 5031 | C30: 简单-5-3 | D30: 5021 | E30: 0 | F30: 0 | G30: 51033 | H30: =H28 -> 2#7 | I30: 2#1 | J30: 8 | K30: 5023#401023 | L30: 3023#401023 | M30: 70305#1|14#180|3#18 | N30: 120 | O30: 0 | P30: 21477 | Q30: 3
B31: 5041 | C31: 简单-5-4 | D31: 5031 | E31: 0 | F31: 0 | G31: 51034 | H31: =H29 -> 2#7 | I31: 2#1 | J31: 8 | K31: 5024#401024 | L31: 3024#401024 | M31: 70405#1|14#180|3#18 | N31: 90 | O31: 0 | P31: 24162 | Q31: 4
B32: 5051 | C32: 简单-5-5 | D32: 5041 | E32: 0 | F32: 0 | G32: 51035 | H32: =H30 -> 2#7 | I32: 2#1 | J32: 8 | K32: 5025#401025 | L32: 3025#401025 | M32: 70505#1|14#180|3#18 | N32: 180 | O32: 0 | P32: 24162 | Q32: 5
B33: 6011 | C33: 简单-6-1 | D33: 5051 | E33: 21 | F33: 1 | G33: 51036 | H33: =H31 -> 2#7 | I33: 2#1 | J33: 8 | K33: 5026#401026 | L33: 3026#401026 | M33: 70106#1|14#200|3#20 | N33: 90 | O33: 0 | P33: 26847 | Q33: 1
B34: 6021 | C34: 简单-6-2 | D34: 6011 | E34: 0 | F34: 0 | G34: 51037 | H34: =H32 -> 2#7 | I34: 2#1 | J34: 8 | K34: 5027#401027 | L34: 3027#401027 | M34: 70206#1|14#200|3#20 | N34: 90 | O34: 0 | P34: 29007 | Q34: 2
B35: 6031 | C35: 简单-6-3 | D35: 6021 | E35: 0 | F35: 0 | G35: 51038 | H35: =H33 -> 2#7 | I35: 2#1 | J35: 8 | K35: 5028#401028 | L35: 3028#401028 | M35: 70306#1|14#200|3#20 | N35: 120 | O35: 0 | P35: 31167 | Q35: 3
B36: 6041 | C36: 简单-6-4 | D36: 6031 | E36: 0 | F36: 0 | G36: 51039 | H36: =H34 -> 2#7 | I36: 2#1 | J36: 8 | K36: 5029#401029 | L36: 3029#401029 | M36: 70406#1|14#200|3#20 | N36: 90 | O36: 0 | P36: 33327 | Q36: 4
B37: 6051 | C37: 简单-6-5 | D37: 6041 | E37: 0 | F37: 0 | G37: 51040 | H37: =H35 -> 2#7 | I37: 2#1 | J37: 8 | K37: 5030#401030 | L37: 3030#401030 | M37: 70506#1|14#200|3#20 | N37: 180 | O37: 0 | P37: 35487 | Q37: 5
B38: 7011 | C38: 简单-7-1 | D38: 6051 | E38: 23 | F38: 1 | G38: 51041 | H38: =H36 -> 2#7 | I38: 2#1 | J38: 8 | K38: 5031#401031 | L38: 3031#401031 | M38: 70106#1|70101#1|14#220|3#22 | N38: 90 | O38: 0 | P38: 37647 | Q38: 1
B39: 7021 | C39: 简单-7-2 | D39: 7011 | E39: 0 | F39: 0 | G39: 51042 | H39: =H37 -> 2#7 | I39: 2#1 | J39: 8 | K39: 5032#401032 | L39: 3032#401032 | M39: 70206#1|70201#1|14#220|3#22 | N39: 90 | O39: 0 | P39: 39807 | Q39: 2
B40: 7031 | C40: 简单-7-3 | D40: 7021 | E40: 0 | F40: 0 | G40: 51043 | H40: =H38 -> 2#7 | I40: 2#1 | J40: 8 | K40: 5033#401033 | L40: 3033#401033 | M40: 70306#1|70301#1|14#220|3#22 | N40: 120 | O40: 0 | P40: 41967 | Q40: 3
B41: 7041 | C41: 简单-7-4 | D41: 7031 | E41: 0 | F41: 0 | G41: 51044 | H41: =H39 -> 2#7 | I41: 2#1 | J41: 8 | K41: 5034#401034 | L41: 3034#401034 | M41: 70406#1|70401#1|14#220|3#22 | N41: 90 | O41: 0 | P41: 44128 | Q41: 4
B42: 7051 | C42: 简单-7-5 | D42: 7041 | E42: 0 | F42: 0 | G42: 51045 | H42: =H40 -> 2#7 | I42: 2#1 | J42: 8 | K42: 5035#401035 | L42: 3035#401035 | M42: 70506#1|70501#1|14#220|3#22 | N42: 180 | O42: 0 | P42: 46288 | Q42: 5
B43: 8011 | C43: 简单-8-1 | D43: 7051 | E43: 26 | F43: 1 | G43: 51046 | H43: =H41 -> 2#7 | I43: 2#1 | J43: 8 | K43: 5036#401036 | L43: 3036#401036 | M43: 70107#1|70102#1|14#240|3#24 | N43: 90 | O43: 0 | P43: 48448 | Q43: 1
B44: 8021 | C44: 简单-8-2 | D44: 8011 | E44: 0 | F44: 0 | G44: 51047 | H44: =H42 -> 2#7 | I44: 2#1 | J44: 8 | K44: 5037#401037 | L44: 3037#401037 | M44: 70207#1|70202#1|14#240|3#24 | N44: 90 | O44: 0 | P44: 49162 | Q44: 2
B45: 8031 | C45: 简单-8-3 | D45: 8021 | E45: 0 | F45: 0 | G45: 51048 | H45: =H43 -> 2#7 | I45: 2#1 | J45: 8 | K45: 5038#401038 | L45: 3038#401038 | M45: 70307#1|70302#1|14#240|3#24 | N45: 120 | O45: 0 | P45: 49877 | Q45: 3
B46: 8041 | C46: 简单-8-4 | D46: 8031 | E46: 0 | F46: 0 | G46: 51049 | H46: =H44 -> 2#7 | I46: 2#1 | J46: 8 | K46: 5039#401039 | L46: 3039#401039 | M46: 70407#1|70402#1|14#240|3#24 | N46: 90 | O46: 0 | P46: 50590 | Q46: 4
B47: 8051 | C47: 简单-8-5 | D47: 8041 | E47: 0 | F47: 0 | G47: 51050 | H47: =H45 -> 2#7 | I47: 2#1 | J47: 8 | K47: 5040#401040 | L47: 3040#401040 | M47: 70507#1|70502#1|14#240|3#24 | N47: 180 | O47: 0 | P47: 51304 | Q47: 5
B48: 9011 | C48: 简单-9-1 | D48: 8051 | E48: 27 | F48: 1 | G48: 51051 | H48: =H46 -> 2#7 | I48: 2#1 | J48: 8 | K48: 5041#401041 | L48: 3041#401041 | M48: 70108#1|14#260|3#26 | N48: 90 | O48: 0 | P48: 52019 | Q48: 1
B49: 9021 | C49: 简单-9-2 | D49: 9011 | E49: 0 | F49: 0 | G49: 51052 | H49: =H47 -> 2#7 | I49: 2#1 | J49: 8 | K49: 5042#401042 | L49: 3042#401042 | M49: 70208#1|14#260|3#26 | N49: 90 | O49: 0 | P49: 52732 | Q49: 2
B50: 9031 | C50: 简单-9-3 | D50: 9021 | E50: 0 | F50: 0 | G50: 51053 | H50: =H48 -> 2#7 | I50: 2#1 | J50: 8 | K50: 5043#401043 | L50: 3043#401043 | M50: 70308#1|14#260|3#26 | N50: 120 | O50: 0 | P50: 53446 | Q50: 3
B51: 9041 | C51: 简单-9-4 | D51: 9031 | E51: 0 | F51: 0 | G51: 51054 | H51: =H49 -> 2#7 | I51: 2#1 | J51: 8 | K51: 5044#401044 | L51: 3044#401044 | M51: 70408#1|14#260|3#26 | N51: 90 | O51: 0 | P51: 54160 | Q51: 4
B52: 9051 | C52: 简单-9-5 | D52: 9041 | E52: 0 | F52: 0 | G52: 51055 | H52: =H50 -> 2#7 | I52: 2#1 | J52: 8 | K52: 5045#401045 | L52: 3045#401045 | M52: 70508#1|14#260|3#26 | N52: 180 | O52: 0 | P52: 54874 | Q52: 5
B53: 10011 | C53: 简单-10-1 | D53: 9051 | E53: 29 | F53: 1 | G53: 51056 | H53: =H51 -> 2#7 | I53: 2#1 | J53: 8 | K53: 5046#401046 | L53: 3046#401046 | M53: 70108#1|70101#1|14#280|3#28 | N53: 90 | O53: 0 | P53: 56187 | Q53: 1
B54: 10021 | C54: 简单-10-2 | D54: 10011 | E54: 0 | F54: 0 | G54: 51057 | H54: =H52 -> 2#7 | I54: 2#1 | J54: 8 | K54: 5047#401047 | L54: 3047#401047 | M54: 70208#1|70201#1|14#280|3#28 | N54: 90 | O54: 0 | P54: 57384 | Q54: 2
B55: 10031 | C55: 简单-10-3 | D55: 10021 | E55: 0 | F55: 0 | G55: 51058 | H55: =H53 -> 2#7 | I55: 2#1 | J55: 8 | K55: 5048#401048 | L55: 3048#401048 | M55: 70308#1|70301#1|14#280|3#28 | N55: 120 | O55: 0 | P55: 58581 | Q55: 3
B56: 10041 | C56: 简单-10-4 | D56: 10031 | E56: 0 | F56: 0 | G56: 51059 | H56: =H54 -> 2#7 | I56: 2#1 | J56: 8 | K56: 5049#401049 | L56: 3049#401049 | M56: 70408#1|70401#1|14#280|3#28 | N56: 90 | O56: 0 | P56: 59778 | Q56: 4
B57: 10051 | C57: 简单-10-5 | D57: 10041 | E57: 0 | F57: 0 | G57: 51060 | H57: =H55 -> 2#7 | I57: 2#1 | J57: 8 | K57: 5050#401050 | L57: 3050#401050 | M57: 70508#1|70501#1|14#280|3#28 | N57: 180 | O57: 0 | P57: 60974 | Q57: 5
B58: 11011 | C58: 简单-11-1 | D58: =B57 -> 10051 | E58: 31 | F58: 1 | G58: 51061 | H58: =H56 -> 2#7 | I58: 2#1 | J58: 8 | K58: 5051#401051 | L58: 3051#401051 | M58: 70108#1|14#300|3#30 | N58: 90 | O58: =O56 -> 0 | P58: 62650 | Q58: 1
B59: =B58+10 -> 11021 | C59: 简单-11-2 | D59: 11011 | E59: 0 | F59: 0 | G59: 51062 | H59: =H57 -> 2#7 | I59: 2#1 | J59: 8 | K59: 5052#401052 | L59: 3052#401052 | M59: 70208#1|14#300|3#30 | N59: 90 | O59: =O57 -> 0 | P59: 64805 | Q59: 2
B60: =B59+10 -> 11031 | C60: 简单-11-3 | D60: 11021 | E60: 0 | F60: 0 | G60: 51063 | H60: =H58 -> 2#7 | I60: 2#1 | J60: 8 | K60: 5053#401053 | L60: 3053#401053 | M60: 70308#1|14#300|3#30 | N60: 120 | O60: =O58 -> 0 | P60: 66960 | Q60: 3
B61: 11041 | C61: 简单-11-4 | D61: 11031 | E61: 0 | F61: 0 | G61: 51064 | H61: =H59 -> 2#7 | I61: 2#1 | J61: 8 | K61: 5054#401054 | L61: 3054#401054 | M61: 70408#1|14#300|3#30 | N61: 90 | O61: =O59 -> 0 | P61: 69116 | Q61: 4
B62: 11051 | C62: 简单-11-5 | D62: 11041 | E62: 0 | F62: 0 | G62: 51065 | H62: =H60 -> 2#7 | I62: 2#1 | J62: 8 | K62: 5055#401055 | L62: 3055#401055 | M62: 70508#1|14#300|3#30 | N62: 180 | O62: =O60 -> 0 | P62: 71271 | Q62: 5
B63: =B58+1000 -> 12011 | C63: 简单-12-1 | D63: 11051 | E63: 32 | F63: 1 | G63: 51066 | H63: =H61 -> 2#7 | I63: 2#1 | J63: 8 | K63: 5056#401056 | L63: 3056#401056 | M63: 70109#1|70102#1|14#320|3#32 | N63: 90 | O63: =O61 -> 0 | P63: 72815 | Q63: 1
B64: =B63+10 -> 12021 | C64: 简单-12-2 | D64: 12011 | E64: 0 | F64: 0 | G64: 51067 | H64: =H62 -> 2#7 | I64: 2#1 | J64: 8 | K64: 5057#401057 | L64: 3057#401057 | M64: 70209#1|70202#1|14#320|3#32 | N64: 90 | O64: =O62 -> 0 | P64: 73749 | Q64: 2
B65: =B64+10 -> 12031 | C65: 简单-12-3 | D65: 12021 | E65: 0 | F65: 0 | G65: 51068 | H65: =H63 -> 2#7 | I65: 2#1 | J65: 8 | K65: 5058#401058 | L65: 3058#401058 | M65: 70309#1|70302#1|14#320|3#32 | N65: 120 | O65: =O63 -> 0 | P65: 74682 | Q65: 3
B66: 12041 | C66: 简单-12-4 | D66: 12031 | E66: 0 | F66: 0 | G66: 51069 | H66: =H64 -> 2#7 | I66: 2#1 | J66: 8 | K66: 5059#401059 | L66: 3059#401059 | M66: 70409#1|70402#1|14#320|3#32 | N66: 90 | O66: =O64 -> 0 | P66: 75616 | Q66: 4
B67: 12051 | C67: 简单-12-5 | D67: 12041 | E67: 0 | F67: 0 | G67: 51070 | H67: =H65 -> 2#7 | I67: 2#1 | J67: 8 | K67: 5060#401060 | L67: 3060#401060 | M67: 70509#1|70502#1|14#320|3#32 | N67: 180 | O67: =O65 -> 0 | P67: 76550 | Q67: 5
B68: =B63+1000 -> 13011 | C68: 简单-13-1 | D68: 12051 | E68: 36 | F68: 1 | G68: 51071 | H68: =H66 -> 2#7 | I68: 2#1 | J68: 8 | K68: 5061#401061 | L68: 3061#401061 | M68: 70109#1|14#340|3#34 | N68: 90 | O68: =O66 -> 0 | P68: 81574 | Q68: 1
B69: =B68+10 -> 13021 | C69: 简单-13-2 | D69: 13011 | E69: 0 | F69: 0 | G69: 51072 | H69: =H67 -> 2#7 | I69: 2#1 | J69: 8 | K69: 5062#401062 | L69: 3062#401062 | M69: 70209#1|14#340|3#34 | N69: 90 | O69: =O67 -> 0 | P69: 87651 | Q69: 2
B70: =B69+10 -> 13031 | C70: 简单-13-3 | D70: 13021 | E70: 0 | F70: 0 | G70: 51073 | H70: =H68 -> 2#7 | I70: 2#1 | J70: 8 | K70: 5063#401063 | L70: 3063#401063 | M70: 70309#1|14#340|3#34 | N70: 120 | O70: =O68 -> 0 | P70: 92799 | Q70: 3
B71: 13041 | C71: 简单-13-4 | D71: 13031 | E71: 0 | F71: 0 | G71: 51074 | H71: =H69 -> 2#7 | I71: 2#1 | J71: 8 | K71: 5064#401064 | L71: 3064#401064 | M71: 70409#1|14#340|3#34 | N71: 90 | O71: =O69 -> 0 | P71: 95157 | Q71: 4
B72: 13051 | C72: 简单-13-5 | D72: 13041 | E72: 0 | F72: 0 | G72: 51075 | H72: =H70 -> 2#7 | I72: 2#1 | J72: 8 | K72: 5065#401065 | L72: 3065#401065 | M72: 70509#1|14#340|3#34 | N72: 180 | O72: =O70 -> 0 | P72: 97517 | Q72: 5
B73: =B68+1000 -> 14011 | C73: 简单-14-1 | D73: 13051 | E73: 38 | F73: 1 | G73: 51076 | H73: =H71 -> 2#7 | I73: 2#1 | J73: 8 | K73: 5066#401066 | L73: 3066#401066 | M73: 70110#1|70101#1|14#360|3#36 | N73: 90 | O73: =O71 -> 0 | P73: 98864 | Q73: 1
B74: =B73+10 -> 14021 | C74: 简单-14-2 | D74: 14011 | E74: 0 | F74: 0 | G74: 51077 | H74: =H72 -> 2#7 | I74: 2#1 | J74: 8 | K74: 5067#401067 | L74: 3067#401067 | M74: 70210#1|70201#1|14#360|3#36 | N74: 90 | O74: =O72 -> 0 | P74: 99873 | Q74: 2
B75: =B74+10 -> 14031 | C75: 简单-14-3 | D75: 14021 | E75: 0 | F75: 0 | G75: 51078 | H75: =H73 -> 2#7 | I75: 2#1 | J75: 8 | K75: 5068#401068 | L75: 3068#401068 | M75: 70310#1|70301#1|14#360|3#36 | N75: 120 | O75: =O73 -> 0 | P75: 101276 | Q75: 3
B76: 14041 | C76: 简单-14-4 | D76: 14031 | E76: 0 | F76: 0 | G76: 51079 | H76: =H74 -> 2#7 | I76: 2#1 | J76: 8 | K76: 5069#401069 | L76: 3069#401069 | M76: 70410#1|70401#1|14#360|3#36 | N76: 90 | O76: =O74 -> 0 | P76: 103860 | Q76: 4
B77: 14051 | C77: 简单-14-5 | D77: 14041 | E77: 0 | F77: 0 | G77: 51080 | H77: =H75 -> 2#7 | I77: 2#1 | J77: 8 | K77: 5070#401070 | L77: 3070#401070 | M77: 70510#1|70501#1|14#360|3#36 | N77: 180 | O77: =O75 -> 0 | P77: 106445 | Q77: 5
B78: =B73+1000 -> 15011 | C78: 简单-15-1 | D78: 14051 | E78: 40 | F78: 1 | G78: 51081 | H78: =H76 -> 2#7 | I78: 2#1 | J78: 8 | K78: 5071#401071 | L78: 3071#401071 | M78: 70110#1|70102#1|14#380|3#38 | N78: 90 | O78: =O76 -> 0 | P78: 108872 | Q78: =Q73 -> 1
B79: =B78+10 -> 15021 | C79: 简单-15-2 | D79: 15011 | E79: 0 | F79: 0 | G79: 51082 | H79: =H77 -> 2#7 | I79: 2#1 | J79: 8 | K79: 5072#401072 | L79: 3072#401072 | M79: 70210#1|70202#1|14#380|3#38 | N79: 90 | O79: =O77 -> 0 | P79: 111246 | Q79: 2
B80: =B79+10 -> 15031 | C80: 简单-15-3 | D80: 15021 | E80: 0 | F80: 0 | G80: 51083 | H80: =H78 -> 2#7 | I80: 2#1 | J80: 8 | K80: 5073#401073 | L80: 3073#401073 | M80: 70310#1|70302#1|14#380|3#38 | N80: 120 | O80: =O78 -> 0 | P80: 113590 | Q80: 3
B81: 15041 | C81: 简单-15-4 | D81: 15031 | E81: 0 | F81: 0 | G81: 51084 | H81: =H79 -> 2#7 | I81: 2#1 | J81: 8 | K81: 5074#401074 | L81: 3074#401074 | M81: 70410#1|70402#1|14#380|3#38 | N81: 90 | O81: =O79 -> 0 | P81: 115848 | Q81: 4
B82: 15051 | C82: 简单-15-5 | D82: 15041 | E82: 0 | F82: 0 | G82: 51085 | H82: =H80 -> 2#7 | I82: 2#1 | J82: 8 | K82: 5075#401075 | L82: 3075#401075 | M82: 70510#1|70502#1|14#380|3#38 | N82: 180 | O82: =O80 -> 0 | P82: 118106 | Q82: 5
B83: 1012 | C83: 普通-1-1 | D83: 15051 | E83: 44 | F83: 1 | G83: 52011 | H83: =H56 -> 2#7 | I83: 2#1 | J83: 8 | K83: 8101#401076 | L83: 7001#401076 | M83: 70111#1|70103#1|14#180|3#18 | N83: 90 | O83: =O56 -> 0 | P83: 120379 | Q83: 1
B84: 1022 | C84: 普通-1-2 | D84: =B83 -> 1012 | E84: 0 | F84: 0 | G84: 52012 | H84: 2#7 | I84: 2#1 | J84: 8 | K84: 8102#401077 | L84: 7002#401077 | M84: 70211#1|70203#1|14#180|3#18 | N84: 90 | O84: =O57 -> 0 | P84: 122659 | Q84: 2
B85: 1032 | C85: 普通-1-3 | D85: =B84 -> 1022 | E85: 0 | F85: 0 | G85: 52013 | H85: =H83 -> 2#7 | I85: 2#1 | J85: 8 | K85: 8103#401078 | L85: 7003#401078 | M85: 70311#1|70303#1|14#180|3#18 | N85: 120 | O85: 0 | P85: 124634 | Q85: 3
B86: 1042 | C86: 普通-1-4 | D86: 1032 | E86: 0 | F86: 0 | G86: 52014 | H86: =H84 -> 2#7 | I86: 2#1 | J86: 8 | K86: 8104#401079 | L86: 7004#401079 | M86: 70411#1|70403#1|14#180|3#18 | N86: 90 | O86: 0 | P86: 125701 | Q86: 4
B87: 1052 | C87: 普通-1-5 | D87: 1042 | E87: 0 | F87: 0 | G87: 52015 | H87: =H85 -> 2#7 | I87: 2#1 | J87: 8 | K87: 8105#401080 | L87: 7005#401080 | M87: 70511#1|70503#1|14#180|3#18 | N87: 180 | O87: 0 | P87: 126767 | Q87: 5
B88: 2012 | C88: 普通-2-1 | D88: 1052 | E88: 46 | F88: 1 | G88: 52016 | H88: =H86 -> 2#7 | I88: 2#1 | J88: 8 | K88: 8106#401081 | L88: 7006#401081 | M88: 70111#1|14#200|3#20 | N88: 90 | O88: 0 | P88: 128152 | Q88: 1
B89: 2022 | C89: 普通-2-2 | D89: 2012 | E89: 0 | F89: 0 | G89: 52017 | H89: =H87 -> 2#7 | I89: 2#1 | J89: 8 | K89: 8107#401082 | L89: 7007#401082 | M89: 70211#1|14#200|3#20 | N89: 90 | O89: 0 | P89: 129643 | Q89: 2
B90: 2032 | C90: 普通-2-3 | D90: 2022 | E90: 0 | F90: 0 | G90: 52018 | H90: =H88 -> 2#7 | I90: 2#1 | J90: 8 | K90: 8108#401083 | L90: 7008#401083 | M90: 70311#1|14#200|3#20 | N90: 120 | O90: 0 | P90: 131009 | Q90: 3
B91: 2042 | C91: 普通-2-4 | D91: 2032 | E91: 0 | F91: 0 | G91: 52019 | H91: =H89 -> 2#7 | I91: 2#1 | J91: 8 | K91: 8109#401084 | L91: 7009#401084 | M91: 70411#1|14#200|3#20 | N91: 90 | O91: 0 | P91: 132002 | Q91: 4
B92: 2052 | C92: 普通-2-5 | D92: 2042 | E92: 0 | F92: 0 | G92: 52020 | H92: =H90 -> 2#7 | I92: 2#1 | J92: 8 | K92: 8110#401085 | L92: 7010#401085 | M92: 70511#1|14#200|3#20 | N92: 180 | O92: 0 | P92: 132993 | Q92: 5
B93: 3012 | C93: 普通-3-1 | D93: 2052 | E93: 47 | F93: 1 | G93: 52021 | H93: =H91 -> 2#7 | I93: 2#1 | J93: 8 | K93: 8111#401086 | L93: 7011#401086 | M93: 70111#1|14#220|3#22 | N93: 90 | O93: 0 | P93: 134643 | Q93: 1
B94: 3022 | C94: 普通-3-2 | D94: 3012 | E94: 0 | F94: 0 | G94: 52022 | H94: =H92 -> 2#7 | I94: 2#1 | J94: 8 | K94: 8112#401087 | L94: 7012#401087 | M94: 70211#1|14#220|3#22 | N94: 90 | O94: 0 | P94: 136512 | Q94: 2
B95: 3032 | C95: 普通-3-3 | D95: 3022 | E95: 0 | F95: 0 | G95: 52023 | H95: =H93 -> 2#7 | I95: 2#1 | J95: 8 | K95: 8113#401088 | L95: 7013#401088 | M95: 70311#1|14#220|3#22 | N95: 120 | O95: 0 | P95: 138041 | Q95: 3
B96: 3042 | C96: 普通-3-4 | D96: 3032 | E96: 0 | F96: 0 | G96: 52024 | H96: =H94 -> 2#7 | I96: 2#1 | J96: 8 | K96: 8114#401089 | L96: 7014#401089 | M96: 70411#1|14#220|3#22 | N96: 90 | O96: 0 | P96: 138553 | Q96: 4
B97: 3052 | C97: 普通-3-5 | D97: 3042 | E97: 0 | F97: 0 | G97: 52025 | H97: =H95 -> 2#7 | I97: 2#1 | J97: 8 | K97: 8115#401090 | L97: 7015#401090 | M97: 70511#1|14#220|3#22 | N97: 180 | O97: 0 | P97: 139066 | Q97: 5
B98: 4012 | C98: 普通-4-1 | D98: 3052 | E98: 49 | F98: 1 | G98: 52026 | H98: =H96 -> 2#7 | I98: 2#1 | J98: 8 | K98: 8116#401091 | L98: 7016#401091 | M98: 70112#1|14#240|3#24 | N98: 90 | O98: 0 | P98: 141764 | Q98: 1
B99: 4022 | C99: 普通-4-2 | D99: 4012 | E99: 0 | F99: 0 | G99: 52027 | H99: =H97 -> 2#7 | I99: 2#1 | J99: 8 | K99: 8117#401092 | L99: 7017#401092 | M99: 70212#1|14#240|3#24 | N99: 90 | O99: 0 | P99: 145191 | Q99: 2
B100: 4032 | C100: 普通-4-3 | D100: 4022 | E100: 0 | F100: 0 | G100: 52028 | H100: =H98 -> 2#7 | I100: 2#1 | J100: 8 | K100: 8118#401093 | L100: 7018#401093 | M100: 70312#1|14#240|3#24 | N100: 120 | O100: 0 | P100: 147889 | Q100: 3
B101: 4042 | C101: 普通-4-4 | D101: 4032 | E101: 0 | F101: 0 | G101: 52029 | H101: =H99 -> 2#7 | I101: 2#1 | J101: 8 | K101: 8119#401094 | L101: 7019#401094 | M101: 70412#1|14#240|3#24 | N101: 90 | O101: 0 | P101: 148402 | Q101: 4
B102: 4052 | C102: 普通-4-5 | D102: 4042 | E102: 0 | F102: 0 | G102: 52030 | H102: =H100 -> 2#7 | I102: 2#1 | J102: 8 | K102: 8120#401095 | L102: 7020#401095 | M102: 70512#1|14#240|3#24 | N102: 180 | O102: 0 | P102: 148914 | Q102: 5
B103: 5012 | C103: 普通-5-1 | D103: 4052 | E103: 50 | F103: 1 | G103: 52031 | H103: =H101 -> 2#7 | I103: 2#1 | J103: 8 | K103: 8121#401096 | L103: 7021#401096 | M103: 70112#1|14#260|3#26 | N103: 90 | O103: 0 | P103: 149787 | Q103: 1
B104: 5022 | C104: 普通-5-2 | D104: 5012 | E104: 0 | F104: 0 | G104: 52032 | H104: =H102 -> 2#7 | I104: 2#1 | J104: 8 | K104: 8122#401097 | L104: 7022#401097 | M104: 70212#1|14#260|3#26 | N104: 90 | O104: 0 | P104: 150781 | Q104: 2
B105: 5032 | C105: 普通-5-3 | D105: 5022 | E105: 0 | F105: 0 | G105: 52033 | H105: =H103 -> 2#7 | I105: 2#1 | J105: 8 | K105: 8123#401098 | L105: 7023#401098 | M105: 70312#1|14#260|3#26 | N105: 120 | O105: 0 | P105: 151929 | Q105: 3
B106: 5042 | C106: 普通-5-4 | D106: 5032 | E106: 0 | F106: 0 | G106: 52034 | H106: =H104 -> 2#7 | I106: 2#1 | J106: 8 | K106: 8124#401099 | L106: 7024#401099 | M106: 70412#1|14#260|3#26 | N106: 90 | O106: 0 | P106: 153545 | Q106: 4
B107: 5052 | C107: 普通-5-5 | D107: 5042 | E107: 0 | F107: 0 | G107: 52035 | H107: =H105 -> 2#7 | I107: 2#1 | J107: 8 | K107: 8125#401100 | L107: 7025#401100 | M107: 70512#1|14#260|3#26 | N107: 180 | O107: 0 | P107: 155161 | Q107: 5
B108: 6012 | C108: 普通-6-1 | D108: 5052 | E108: 51 | F108: 1 | G108: 52036 | H108: =H106 -> 2#7 | I108: 2#1 | J108: 8 | K108: 8126#401101 | L108: 7026#401101 | M108: 70112#1|70101#1|14#280|3#28 | N108: 90 | O108: 0 | P108: 156814 | Q108: 1
B109: 6022 | C109: 普通-6-2 | D109: 6012 | E109: 0 | F109: 0 | G109: 52037 | H109: =H107 -> 2#7 | I109: 2#1 | J109: 8 | K109: 8127#401102 | L109: 7027#401102 | M109: 70212#1|70201#1|14#280|3#28 | N109: 90 | O109: 0 | P109: 158480 | Q109: 2
B110: 6032 | C110: 普通-6-3 | D110: 6022 | E110: 0 | F110: 0 | G110: 52038 | H110: =H108 -> 2#7 | I110: 2#1 | J110: 8 | K110: 8128#401103 | L110: 7028#401103 | M110: 70312#1|70301#1|14#280|3#28 | N110: 120 | O110: 0 | P110: 159843 | Q110: 3
B111: 6042 | C111: 普通-6-4 | D111: 6032 | E111: 0 | F111: 0 | G111: 52039 | H111: =H109 -> 2#7 | I111: 2#1 | J111: 8 | K111: 8129#401104 | L111: 7029#401104 | M111: 70412#1|70401#1|14#280|3#28 | N111: 90 | O111: 0 | P111: 160300 | Q111: 4
B112: 6052 | C112: 普通-6-5 | D112: 6042 | E112: 0 | F112: 0 | G112: 52040 | H112: =H110 -> 2#7 | I112: 2#1 | J112: 8 | K112: 8130#401105 | L112: 7030#401105 | M112: 70512#1|70501#1|14#280|3#28 | N112: 180 | O112: 0 | P112: 160758 | Q112: 5
B113: 7012 | C113: 普通-7-1 | D113: 6052 | E113: 53 | F113: 1 | G113: 52041 | H113: =H111 -> 2#7 | I113: 2#1 | J113: 8 | K113: 8131#401106 | L113: 7031#401106 | M113: 70113#1|70102#1|14#300|3#30 | N113: 90 | O113: 0 | P113: 161597 | Q113: 1
B114: 7022 | C114: 普通-7-2 | D114: 7012 | E114: 0 | F114: 0 | G114: 52042 | H114: =H112 -> 2#7 | I114: 2#1 | J114: 8 | K114: 8132#401107 | L114: 7032#401107 | M114: 70213#1|70202#1|14#300|3#30 | N114: 90 | O114: 0 | P114: 162564 | Q114: 2
B115: 7032 | C115: 普通-7-3 | D115: 7022 | E115: 0 | F115: 0 | G115: 52043 | H115: =H113 -> 2#7 | I115: 2#1 | J115: 8 | K115: 8133#401108 | L115: 7033#401108 | M115: 70313#1|70302#1|14#300|3#30 | N115: 120 | O115: 0 | P115: 163404 | Q115: 3
B116: 7042 | C116: 普通-7-4 | D116: 7032 | E116: 0 | F116: 0 | G116: 52044 | H116: =H114 -> 2#7 | I116: 2#1 | J116: 8 | K116: 8134#401109 | L116: 7034#401109 | M116: 70413#1|70402#1|14#300|3#30 | N116: 90 | O116: 0 | P116: 163861 | Q116: 4
B117: 7052 | C117: 普通-7-5 | D117: 7042 | E117: 0 | F117: 0 | G117: 52045 | H117: =H115 -> 2#7 | I117: 2#1 | J117: 8 | K117: 8135#401110 | L117: 7035#401110 | M117: 70513#1|70502#1|14#300|3#30 | N117: 180 | O117: 0 | P117: 164319 | Q117: 5
B118: 8012 | C118: 普通-8-1 | D118: 7052 | E118: 54 | F118: 1 | G118: 52046 | H118: =H116 -> 2#7 | I118: 2#1 | J118: 8 | K118: 8136#401111 | L118: 7036#401111 | M118: 70113#1|70103#1|14#320|3#32 | N118: 90 | O118: 0 | P118: 166473 | Q118: 1
B119: 8022 | C119: 普通-8-2 | D119: 8012 | E119: 0 | F119: 0 | G119: 52047 | H119: =H117 -> 2#7 | I119: 2#1 | J119: 8 | K119: 8137#401112 | L119: 7037#401112 | M119: 70213#1|70203#1|14#320|3#32 | N119: 90 | O119: 0 | P119: 169223 | Q119: 2
B120: 8032 | C120: 普通-8-3 | D120: 8022 | E120: 0 | F120: 0 | G120: 52048 | H120: =H118 -> 2#7 | I120: 2#1 | J120: 8 | K120: 8138#401113 | L120: 7038#401113 | M120: 70313#1|70303#1|14#320|3#32 | N120: 120 | O120: 0 | P120: 173478 | Q120: 3
B121: 8042 | C121: 普通-8-4 | D121: 8032 | E121: 0 | F121: 0 | G121: 52049 | H121: =H119 -> 2#7 | I121: 2#1 | J121: 8 | K121: 8139#401114 | L121: 7039#401114 | M121: 70413#1|70403#1|14#320|3#32 | N121: 90 | O121: 0 | P121: 176669 | Q121: 4
B122: 8052 | C122: 普通-8-5 | D122: 8042 | E122: 0 | F122: 0 | G122: 52050 | H122: =H120 -> 2#7 | I122: 2#1 | J122: 8 | K122: 8140#401115 | L122: 7040#401115 | M122: 70513#1|70503#1|14#320|3#32 | N122: 180 | O122: 0 | P122: 178795 | Q122: 5
B123: 9012 | C123: 普通-9-1 | D123: 8052 | E123: 55 | F123: 1 | G123: 52051 | H123: =H121 -> 2#7 | I123: 2#1 | J123: 8 | K123: 8141#401116 | L123: 7041#401116 | M123: 70113#1|14#340|3#34 | N123: 90 | O123: 0 | P123: 181548 | Q123: 1
B124: 9022 | C124: 普通-9-2 | D124: 9012 | E124: 0 | F124: 0 | G124: 52052 | H124: =H122 -> 2#7 | I124: 2#1 | J124: 8 | K124: 8142#401117 | L124: 7042#401117 | M124: 70213#1|14#340|3#34 | N124: 90 | O124: 0 | P124: 184073 | Q124: 2
B125: 9032 | C125: 普通-9-3 | D125: 9022 | E125: 0 | F125: 0 | G125: 52053 | H125: =H123 -> 2#7 | I125: 2#1 | J125: 8 | K125: 8143#401118 | L125: 7043#401118 | M125: 70313#1|14#340|3#34 | N125: 120 | O125: 0 | P125: 184824 | Q125: 3
B126: 9042 | C126: 普通-9-4 | D126: 9032 | E126: 0 | F126: 0 | G126: 52054 | H126: =H124 -> 2#7 | I126: 2#1 | J126: 8 | K126: 8144#401119 | L126: 7044#401119 | M126: 70413#1|14#340|3#34 | N126: 90 | O126: 0 | P126: 186955 | Q126: 4
B127: 9052 | C127: 普通-9-5 | D127: 9042 | E127: 0 | F127: 0 | G127: 52055 | H127: =H125 -> 2#7 | I127: 2#1 | J127: 8 | K127: 8145#401120 | L127: 7045#401120 | M127: 70513#1|14#340|3#34 | N127: 180 | O127: 0 | P127: 190464 | Q127: 5
B128: 10012 | C128: 普通-10-1 | D128: 9052 | E128: 57 | F128: 1 | G128: 52056 | H128: =H126 -> 2#7 | I128: 2#1 | J128: 8 | K128: 8146#401121 | L128: 7046#401121 | M128: 70114#1|14#360|3#36 | N128: 90 | O128: 0 | P128: 191674 | Q128: 1
B129: 10022 | C129: 普通-10-2 | D129: 10012 | E129: 0 | F129: 0 | G129: 52057 | H129: =H127 -> 2#7 | I129: 2#1 | J129: 8 | K129: 8147#401122 | L129: 7047#401122 | M129: 70214#1|14#360|3#36 | N129: 90 | O129: 0 | P129: 192426 | Q129: 2
B130: 10032 | C130: 普通-10-3 | D130: 10022 | E130: 0 | F130: 0 | G130: 52058 | H130: =H128 -> 2#7 | I130: 2#1 | J130: 8 | K130: 8148#401123 | L130: 7048#401123 | M130: 70314#1|14#360|3#36 | N130: 120 | O130: 0 | P130: 193177 | Q130: 3
B131: 10042 | C131: 普通-10-4 | D131: 10032 | E131: 0 | F131: 0 | G131: 52059 | H131: =H129 -> 2#7 | I131: 2#1 | J131: 8 | K131: 8149#401124 | L131: 7049#401124 | M131: 70414#1|14#360|3#36 | N131: 90 | O131: 0 | P131: 194373 | Q131: 4
B132: 10052 | C132: 普通-10-5 | D132: 10042 | E132: 0 | F132: 0 | G132: 52060 | H132: =H130 -> 2#7 | I132: 2#1 | J132: 8 | K132: 8150#401125 | L132: 7050#401125 | M132: 70514#1|14#360|3#36 | N132: 180 | O132: 0 | P132: 196015 | Q132: 5
B133: 11012 | C133: 普通-11-1 | D133: =B132 -> 10052 | E133: 58 | F133: 1 | G133: 52061 | H133: =H131 -> 2#7 | I133: 2#1 | J133: 8 | K133: 8151#401126 | L133: 7051#401126 | M133: 70114#1|14#380|3#38 | N133: 90 | O133: =O131 -> 0 | P133: 197165 | Q133: 1
B134: 11022 | C134: 普通-11-2 | D134: 11012 | E134: 0 | F134: 0 | G134: 52062 | H134: =H132 -> 2#7 | I134: 2#1 | J134: 8 | K134: 8152#401127 | L134: 7052#401127 | M134: 70214#1|14#380|3#38 | N134: 90 | O134: =O132 -> 0 | P134: 202678 | Q134: 2
B135: 11032 | C135: 普通-11-3 | D135: 11022 | E135: 0 | F135: 0 | G135: 52063 | H135: =H133 -> 2#7 | I135: 2#1 | J135: 8 | K135: 8153#401128 | L135: 7053#401128 | M135: 70314#1|14#380|3#38 | N135: 120 | O135: =O133 -> 0 | P135: 208190 | Q135: 3
B136: 11042 | C136: 普通-11-4 | D136: 11032 | E136: 0 | F136: 0 | G136: 52064 | H136: =H134 -> 2#7 | I136: 2#1 | J136: 8 | K136: 8154#401129 | L136: 7054#401129 | M136: 70414#1|14#380|3#38 | N136: 90 | O136: =O134 -> 0 | P136: 209506 | Q136: 4
B137: 11052 | C137: 普通-11-5 | D137: 11042 | E137: 0 | F137: 0 | G137: 52065 | H137: =H135 -> 2#7 | I137: 2#1 | J137: 8 | K137: 8155#401130 | L137: 7055#401130 | M137: 70514#1|14#380|3#38 | N137: 180 | O137: =O135 -> 0 | P137: 213024 | Q137: 5
B138: 12012 | C138: 普通-12-1 | D138: 11052 | E138: 60 | F138: 1 | G138: 52066 | H138: =H136 -> 2#7 | I138: 2#1 | J138: 8 | K138: 8156#401131 | L138: 7056#401131 | M138: 70114#1|14#400|3#40 | N138: 90 | O138: =O136 -> 0 | P138: 215452 | Q138: 1
B139: 12022 | C139: 普通-12-2 | D139: 12012 | E139: 0 | F139: 0 | G139: 52067 | H139: =H137 -> 2#7 | I139: 2#1 | J139: 8 | K139: 8157#401132 | L139: 7057#401132 | M139: 70214#1|14#400|3#40 | N139: 90 | O139: =O137 -> 0 | P139: 216949 | Q139: 2
B140: 12032 | C140: 普通-12-3 | D140: 12022 | E140: 0 | F140: 0 | G140: 52068 | H140: =H138 -> 2#7 | I140: 2#1 | J140: 8 | K140: 8158#401133 | L140: 7058#401133 | M140: 70314#1|14#400|3#40 | N140: 120 | O140: =O138 -> 0 | P140: 219475 | Q140: 3
B141: 12042 | C141: 普通-12-4 | D141: 12032 | E141: 0 | F141: 0 | G141: 52069 | H141: =H139 -> 2#7 | I141: 2#1 | J141: 8 | K141: 8159#401134 | L141: 7059#401134 | M141: 70414#1|14#400|3#40 | N141: 90 | O141: =O139 -> 0 | P141: 223998 | Q141: 4
B142: 12052 | C142: 普通-12-5 | D142: 12042 | E142: 0 | F142: 0 | G142: 52070 | H142: =H140 -> 2#7 | I142: 2#1 | J142: 8 | K142: 8160#401135 | L142: 7060#401135 | M142: 70514#1|14#400|3#40 | N142: 180 | O142: =O140 -> 0 | P142: 225027 | Q142: 5
B143: 13012 | C143: 普通-13-1 | D143: 12052 | E143: 61 | F143: 1 | G143: 52071 | H143: =H141 -> 2#7 | I143: 2#1 | J143: 8 | K143: 8161#401136 | L143: 7061#401136 | M143: 70115#1|14#420|3#42 | N143: 90 | O143: =O141 -> 0 | P143: 226056 | Q143: 1
B144: 13022 | C144: 普通-13-2 | D144: 13012 | E144: 0 | F144: 0 | G144: 52072 | H144: =H142 -> 2#7 | I144: 2#1 | J144: 8 | K144: 8162#401137 | L144: 7062#401137 | M144: 70215#1|14#420|3#42 | N144: 90 | O144: =O142 -> 0 | P144: 227916 | Q144: 2
B145: 13032 | C145: 普通-13-3 | D145: 13022 | E145: 0 | F145: 0 | G145: 52073 | H145: =H143 -> 2#7 | I145: 2#1 | J145: 8 | K145: 8163#401138 | L145: 7063#401138 | M145: 70315#1|14#420|3#42 | N145: 120 | O145: =O143 -> 0 | P145: 230241 | Q145: 3
B146: 13042 | C146: 普通-13-4 | D146: 13032 | E146: 0 | F146: 0 | G146: 52074 | H146: =H144 -> 2#7 | I146: 2#1 | J146: 8 | K146: 8164#401139 | L146: 7064#401139 | M146: 70415#1|14#420|3#42 | N146: 90 | O146: =O144 -> 0 | P146: 232578 | Q146: 4
B147: 13052 | C147: 普通-13-5 | D147: 13042 | E147: 0 | F147: 0 | G147: 52075 | H147: =H145 -> 2#7 | I147: 2#1 | J147: 8 | K147: 8165#401140 | L147: 7065#401140 | M147: 70515#1|14#420|3#42 | N147: 180 | O147: =O145 -> 0 | P147: 235035 | Q147: 5
B148: 14012 | C148: 普通-14-1 | D148: 13052 | E148: 62 | F148: 1 | G148: 52076 | H148: =H146 -> 2#7 | I148: 2#1 | J148: 8 | K148: 8166#401141 | L148: 7066#401141 | M148: 70115#1|14#440|3#44 | N148: 90 | O148: =O146 -> 0 | P148: 238479 | Q148: 1
B149: 14022 | C149: 普通-14-2 | D149: 14012 | E149: 0 | F149: 0 | G149: 52077 | H149: =H147 -> 2#7 | I149: 2#1 | J149: 8 | K149: 8167#401142 | L149: 7067#401142 | M149: 70215#1|14#440|3#44 | N149: 90 | O149: =O147 -> 0 | P149: 241442 | Q149: 2
B150: 14032 | C150: 普通-14-3 | D150: 14022 | E150: 0 | F150: 0 | G150: 52078 | H150: =H148 -> 2#7 | I150: 2#1 | J150: 8 | K150: 8168#401143 | L150: 7068#401143 | M150: 70315#1|14#440|3#44 | N150: 120 | O150: =O148 -> 0 | P150: 243711 | Q150: 3
B151: 14042 | C151: 普通-14-4 | D151: 14032 | E151: 0 | F151: 0 | G151: 52079 | H151: =H149 -> 2#7 | I151: 2#1 | J151: 8 | K151: 8169#401144 | L151: 7069#401144 | M151: 70415#1|14#440|3#44 | N151: 90 | O151: =O149 -> 0 | P151: 245980 | Q151: 4
B152: 14052 | C152: 普通-14-5 | D152: 14042 | E152: 0 | F152: 0 | G152: 52080 | H152: =H150 -> 2#7 | I152: 2#1 | J152: 8 | K152: 8170#401145 | L152: 7070#401145 | M152: 70515#1|14#440|3#44 | N152: 180 | O152: =O150 -> 0 | P152: 249683 | Q152: 5
B153: 15012 | C153: 普通-15-1 | D153: 14052 | E153: 63 | F153: 1 | G153: 52081 | H153: =H151 -> 2#7 | I153: 2#1 | J153: 8 | K153: 8171#401146 | L153: 7071#401146 | M153: 70115#1|14#460|3#46 | N153: 90 | O153: =O151 -> 0 | P153: 257015 | Q153: 1
B154: 15022 | C154: 普通-15-2 | D154: 15012 | E154: 0 | F154: 0 | G154: 52082 | H154: =H152 -> 2#7 | I154: 2#1 | J154: 8 | K154: 8172#401147 | L154: 7072#401147 | M154: 70215#1|14#460|3#46 | N154: 90 | O154: =O152 -> 0 | P154: 262462 | Q154: 2
B155: 15032 | C155: 普通-15-3 | D155: 15022 | E155: 0 | F155: 0 | G155: 52083 | H155: =H153 -> 2#7 | I155: 2#1 | J155: 8 | K155: 8173#401148 | L155: 7073#401148 | M155: 70315#1|14#460|3#46 | N155: 120 | O155: =O153 -> 0 | P155: 265174 | Q155: 3
B156: 15042 | C156: 普通-15-4 | D156: 15032 | E156: 0 | F156: 0 | G156: 52084 | H156: =H154 -> 2#7 | I156: 2#1 | J156: 8 | K156: 8174#401149 | L156: 7074#401149 | M156: 70415#1|14#460|3#46 | N156: 90 | O156: =O154 -> 0 | P156: 268967 | Q156: 4
B157: 15052 | C157: 普通-15-5 | D157: 15042 | E157: 0 | F157: 0 | G157: 52085 | H157: =H155 -> 2#7 | I157: 2#1 | J157: 8 | K157: 8175#401150 | L157: 7075#401150 | M157: 70515#1|14#460|3#46 | N157: 180 | O157: =O155 -> 0 | P157: 276244 | Q157: 5
B158: 1013 | C158: 困难-1-1 | D158: 15052 | E158: 65 | F158: 1 | G158: =G83+1000 -> 53011 | H158: =H131 -> 2#7 | I158: 2#1 | J158: 8 | K158: 8701#401151 | L158: 8501#401151 | M158: 70116#1|14#220|3#22 | N158: 90 | O158: 0 | P158: 280950 | Q158: =Q128 -> 1
B159: 1023 | C159: 困难-1-2 | D159: 1013 | E159: 0 | F159: 0 | G159: =G84+1000 -> 53012 | H159: =H132 -> 2#7 | I159: 2#1 | J159: 8 | K159: 8702#401152 | L159: 8502#401152 | M159: 70216#1|14#220|3#22 | N159: 90 | O159: 0 | P159: 284320 | Q159: =Q129 -> 2
B160: 1033 | C160: 困难-1-3 | D160: 1023 | E160: 0 | F160: 0 | G160: 53013 | H160: =H158 -> 2#7 | I160: 2#1 | J160: 8 | K160: 8703#401153 | L160: 8503#401153 | M160: 70316#1|14#220|3#22 | N160: 120 | O160: 0 | P160: 287174 | Q160: =Q130 -> 3
B161: 1043 | C161: 困难-1-4 | D161: 1033 | E161: 0 | F161: 0 | G161: 53014 | H161: =H159 -> 2#7 | I161: 2#1 | J161: 8 | K161: 8704#401154 | L161: 8504#401154 | M161: 70416#1|14#220|3#22 | N161: 90 | O161: 0 | P161: 289921 | Q161: =Q131 -> 4
B162: 1053 | C162: 困难-1-5 | D162: 1043 | E162: 0 | F162: 0 | G162: 53015 | H162: =H160 -> 2#7 | I162: 2#1 | J162: 8 | K162: 8705#401155 | L162: 8505#401155 | M162: 70516#1|14#220|3#22 | N162: 180 | O162: 0 | P162: 292273 | Q162: =Q132 -> 5
B163: 2013 | C163: 困难-2-1 | D163: 1053 | E163: 66 | F163: 1 | G163: 53016 | H163: =H161 -> 2#7 | I163: 2#1 | J163: 8 | K163: 8706#401156 | L163: 8506#401156 | M163: 70116#1|14#240|3#24 | N163: 90 | O163: 0 | P163: 294964 | Q163: 1
B164: 2023 | C164: 困难-2-2 | D164: 2013 | E164: 0 | F164: 0 | G164: 53017 | H164: =H162 -> 2#7 | I164: 2#1 | J164: 8 | K164: 8707#401157 | L164: 8507#401157 | M164: 70216#1|14#240|3#24 | N164: 90 | O164: 0 | P164: 298539 | Q164: 2
B165: 2033 | C165: 困难-2-3 | D165: 2023 | E165: 0 | F165: 0 | G165: 53018 | H165: =H163 -> 2#7 | I165: 2#1 | J165: 8 | K165: 8708#401158 | L165: 8508#401158 | M165: 70316#1|14#240|3#24 | N165: 120 | O165: 0 | P165: 302187 | Q165: 3
B166: 2043 | C166: 困难-2-4 | D166: 2033 | E166: 0 | F166: 0 | G166: 53019 | H166: =H164 -> 2#7 | I166: 2#1 | J166: 8 | K166: 8709#401159 | L166: 8509#401159 | M166: 70416#1|14#240|3#24 | N166: 90 | O166: 0 | P166: 303743 | Q166: 4
B167: 2053 | C167: 困难-2-5 | D167: 2043 | E167: 0 | F167: 0 | G167: 53020 | H167: =H165 -> 2#7 | I167: 2#1 | J167: 8 | K167: 8710#401160 | L167: 8510#401160 | M167: 70516#1|14#240|3#24 | N167: 180 | O167: 0 | P167: 305328 | Q167: =Q162 -> 5
B168: 3013 | C168: 困难-3-1 | D168: 2053 | E168: 67 | F168: 1 | G168: 53021 | H168: =H166 -> 2#7 | I168: 2#1 | J168: 8 | K168: 8711#401161 | L168: 8511#401161 | M168: 70116#1|14#260|3#26 | N168: 90 | O168: 0 | P168: 306531 | Q168: 1
B169: 3023 | C169: 困难-3-2 | D169: 3013 | E169: 0 | F169: 0 | G169: 53022 | H169: =H167 -> 2#7 | I169: 2#1 | J169: 8 | K169: 8712#401162 | L169: 8512#401162 | M169: 70216#1|14#260|3#26 | N169: 90 | O169: 0 | P169: 309926 | Q169: 2
B170: 3033 | C170: 困难-3-3 | D170: 3023 | E170: 0 | F170: 0 | G170: 53023 | H170: =H168 -> 2#7 | I170: 2#1 | J170: 8 | K170: 8713#401163 | L170: 8513#401163 | M170: 70316#1|14#260|3#26 | N170: 120 | O170: 0 | P170: 314491 | Q170: 3
B171: 3043 | C171: 困难-3-4 | D171: 3033 | E171: 0 | F171: 0 | G171: 53024 | H171: =H169 -> 2#7 | I171: 2#1 | J171: 8 | K171: 8714#401164 | L171: 8514#401164 | M171: 70416#1|14#260|3#26 | N171: 90 | O171: 0 | P171: 315605 | Q171: 4
B172: 3053 | C172: 困难-3-5 | D172: 3043 | E172: 0 | F172: 0 | G172: 53025 | H172: =H170 -> 2#7 | I172: 2#1 | J172: 8 | K172: 8715#401165 | L172: 8515#401165 | M172: 70516#1|14#260|3#26 | N172: 180 | O172: 0 | P172: 317313 | Q172: 5
B173: 4013 | C173: 困难-4-1 | D173: 3053 | E173: 68 | F173: 1 | G173: 53026 | H173: =H171 -> 2#7 | I173: 2#1 | J173: 8 | K173: 8716#401166 | L173: 8516#401166 | M173: 70117#1|14#280|3#28 | N173: 90 | O173: 0 | P173: 318854 | Q173: 1
B174: 4023 | C174: 困难-4-2 | D174: 4013 | E174: 0 | F174: 0 | G174: 53027 | H174: =H172 -> 2#7 | I174: 2#1 | J174: 8 | K174: 8717#401167 | L174: 8517#401167 | M174: 70217#1|14#280|3#28 | N174: 90 | O174: 0 | P174: 323629 | Q174: 2
B175: 4033 | C175: 困难-4-3 | D175: 4023 | E175: 0 | F175: 0 | G175: 53028 | H175: =H173 -> 2#7 | I175: 2#1 | J175: 8 | K175: 8718#401168 | L175: 8518#401168 | M175: 70317#1|14#280|3#28 | N175: 120 | O175: 0 | P175: 325867 | Q175: 3
B176: 4043 | C176: 困难-4-4 | D176: 4033 | E176: 0 | F176: 0 | G176: 53029 | H176: =H174 -> 2#7 | I176: 2#1 | J176: 8 | K176: 8719#401169 | L176: 8519#401169 | M176: 70417#1|14#280|3#28 | N176: 90 | O176: 0 | P176: 327909 | Q176: 4
B177: 4053 | C177: 困难-4-5 | D177: 4043 | E177: 0 | F177: 0 | G177: 53030 | H177: =H175 -> 2#7 | I177: 2#1 | J177: 8 | K177: 8720#401170 | L177: 8520#401170 | M177: 70517#1|14#280|3#28 | N177: 180 | O177: 0 | P177: 329464 | Q177: 5
B178: 5013 | C178: 困难-5-1 | D178: 4053 | E178: 69 | F178: 1 | G178: 53031 | H178: =H176 -> 2#7 | I178: 2#1 | J178: 8 | K178: 8721#401171 | L178: 8521#401171 | M178: 70117#1|14#300|3#30 | N178: 90 | O178: 0 | P178: 336489 | Q178: 1
B179: 5023 | C179: 困难-5-2 | D179: 5013 | E179: 0 | F179: 0 | G179: 53032 | H179: =H177 -> 2#7 | I179: 2#1 | J179: 8 | K179: 8722#401172 | L179: 8522#401172 | M179: 70217#1|14#300|3#30 | N179: 90 | O179: 0 | P179: 339290 | Q179: 2
B180: 5033 | C180: 困难-5-3 | D180: 5023 | E180: 0 | F180: 0 | G180: 53033 | H180: =H178 -> 2#7 | I180: 2#1 | J180: 8 | K180: 8723#401173 | L180: 8523#401173 | M180: 70317#1|14#300|3#30 | N180: 120 | O180: 0 | P180: 341417 | Q180: 3
B181: 5043 | C181: 困难-5-4 | D181: 5033 | E181: 0 | F181: 0 | G181: 53034 | H181: =H179 -> 2#7 | I181: 2#1 | J181: 8 | K181: 8724#401174 | L181: 8524#401174 | M181: 70417#1|14#300|3#30 | N181: 90 | O181: 0 | P181: 342993 | Q181: 4
B182: 5053 | C182: 困难-5-5 | D182: 5043 | E182: 0 | F182: 0 | G182: 53035 | H182: =H180 -> 2#7 | I182: 2#1 | J182: 8 | K182: 8725#401175 | L182: 8525#401175 | M182: 70517#1|14#300|3#30 | N182: 180 | O182: 0 | P182: 348488 | Q182: 5
B183: 6013 | C183: 困难-6-1 | D183: 5053 | E183: 70 | F183: 1 | G183: 53036 | H183: =H181 -> 2#7 | I183: 2#1 | J183: 8 | K183: 8726#401176 | L183: 8526#401176 | M183: 70117#1|14#320|3#32 | N183: 90 | O183: 0 | P183: 350906 | Q183: 1
B184: 6023 | C184: 困难-6-2 | D184: 6013 | E184: 0 | F184: 0 | G184: 53037 | H184: =H182 -> 2#7 | I184: 2#1 | J184: 8 | K184: 8727#401177 | L184: 8527#401177 | M184: 70217#1|14#320|3#32 | N184: 90 | O184: 0 | P184: 353090 | Q184: 2
B185: 6033 | C185: 困难-6-3 | D185: 6023 | E185: 0 | F185: 0 | G185: 53038 | H185: =H183 -> 2#7 | I185: 2#1 | J185: 8 | K185: 8728#401178 | L185: 8528#401178 | M185: 70317#1|14#320|3#32 | N185: 120 | O185: 0 | P185: 359356 | Q185: 3
B186: 6043 | C186: 困难-6-4 | D186: 6033 | E186: 0 | F186: 0 | G186: 53039 | H186: =H184 -> 2#7 | I186: 2#1 | J186: 8 | K186: 8729#401179 | L186: 8529#401179 | M186: 70417#1|14#320|3#32 | N186: 90 | O186: 0 | P186: 361324 | Q186: 4
B187: 6053 | C187: 困难-6-5 | D187: 6043 | E187: 0 | F187: 0 | G187: 53040 | H187: =H185 -> 2#7 | I187: 2#1 | J187: 8 | K187: 8730#401180 | L187: 8530#401180 | M187: 70517#1|14#320|3#32 | N187: 180 | O187: 0 | P187: 362825 | Q187: 5
B188: 7013 | C188: 困难-7-1 | D188: 6053 | E188: 71 | F188: 1 | G188: 53041 | H188: =H186 -> 2#7 | I188: 2#1 | J188: 8 | K188: 8731#401181 | L188: 8531#401181 | M188: 70118#1|14#340|3#34 | N188: 90 | O188: 0 | P188: 364353 | Q188: 1
B189: 7023 | C189: 困难-7-2 | D189: 7013 | E189: 0 | F189: 0 | G189: 53042 | H189: =H187 -> 2#7 | I189: 2#1 | J189: 8 | K189: 8732#401182 | L189: 8532#401182 | M189: 70218#1|14#340|3#34 | N189: 90 | O189: 0 | P189: 366122 | Q189: 2
B190: 7033 | C190: 困难-7-3 | D190: 7023 | E190: 0 | F190: 0 | G190: 53043 | H190: =H188 -> 2#7 | I190: 2#1 | J190: 8 | K190: 8733#401183 | L190: 8533#401183 | M190: 70318#1|14#340|3#34 | N190: 120 | O190: 0 | P190: 369471 | Q190: 3
B191: 7043 | C191: 困难-7-4 | D191: 7033 | E191: 0 | F191: 0 | G191: =G116+1000 -> 53044 | H191: =H189 -> 2#7 | I191: 2#1 | J191: 8 | K191: 8734#401184 | L191: 8534#401184 | M191: 70418#1|14#340|3#34 | N191: 90 | O191: 0 | P191: 374306 | Q191: 4
B192: 7053 | C192: 困难-7-5 | D192: 7043 | E192: 0 | F192: 0 | G192: 53045 | H192: =H190 -> 2#7 | I192: 2#1 | J192: 8 | K192: 8735#401185 | L192: 8535#401185 | M192: 70518#1|14#340|3#34 | N192: 180 | O192: 0 | P192: 375524 | Q192: 5
B193: 8013 | C193: 困难-8-1 | D193: 7053 | E193: 72 | F193: 1 | G193: 53046 | H193: =H191 -> 2#7 | I193: 2#1 | J193: 8 | K193: 8736#401186 | L193: 8536#401186 | M193: 70118#1|14#360|3#36 | N193: 90 | O193: 0 | P193: 382690 | Q193: 1
B194: 8023 | C194: 困难-8-2 | D194: 8013 | E194: 0 | F194: 0 | G194: 53047 | H194: =H192 -> 2#7 | I194: 2#1 | J194: 8 | K194: 8737#401187 | L194: 8537#401187 | M194: 70218#1|14#360|3#36 | N194: 90 | O194: 0 | P194: 385997 | Q194: 2
B195: 8033 | C195: 困难-8-3 | D195: 8023 | E195: 0 | F195: 0 | G195: 53048 | H195: =H193 -> 2#7 | I195: 2#1 | J195: 8 | K195: 8738#401188 | L195: 8538#401188 | M195: 70318#1|14#360|3#36 | N195: 120 | O195: 0 | P195: 388328 | Q195: 3
B196: 8043 | C196: 困难-8-4 | D196: 8033 | E196: 0 | F196: 0 | G196: 53049 | H196: =H194 -> 2#7 | I196: 2#1 | J196: 8 | K196: 8739#401189 | L196: 8539#401189 | M196: 70418#1|14#360|3#36 | N196: 90 | O196: 0 | P196: 396599 | Q196: 4
B197: 8053 | C197: 困难-8-5 | D197: 8043 | E197: 0 | F197: 0 | G197: 53050 | H197: =H195 -> 2#7 | I197: 2#1 | J197: 8 | K197: 8740#401190 | L197: 8540#401190 | M197: 70518#1|14#360|3#36 | N197: 180 | O197: 0 | P197: 403116 | Q197: 5
B198: 9013 | C198: 困难-9-1 | D198: 8053 | E198: 74 | F198: 1 | G198: 53051 | H198: =H196 -> 2#7 | I198: 2#1 | J198: 8 | K198: 8741#401191 | L198: 8541#401191 | M198: 70119#1|14#380|3#38 | N198: 90 | O198: 0 | P198: 406969 | Q198: 1
B199: 9023 | C199: 困难-9-2 | D199: 9013 | E199: 0 | F199: 0 | G199: 53052 | H199: =H197 -> 2#7 | I199: 2#1 | J199: 8 | K199: 8742#401192 | L199: 8542#401192 | M199: 70219#1|14#380|3#38 | N199: 90 | O199: 0 | P199: 409567 | Q199: 2
B200: 9033 | C200: 困难-9-3 | D200: 9023 | E200: 0 | F200: 0 | G200: 53053 | H200: =H198 -> 2#7 | I200: 2#1 | J200: 8 | K200: 8743#401193 | L200: 8543#401193 | M200: 70319#1|14#380|3#38 | N200: 120 | O200: 0 | P200: 411393 | Q200: 3
... 107 more rows

Sheet Sheet1
A1: 关卡id | B1: 关卡名称 | C1: 物品1 | D1: 数量1 | E1: 输出1 | F1: 物品2 | G1: 数量2 | H1: 输出2 | I1: 物品3 | J1: 数量3 | K1: 输出3 | L1: 总输出 | M1: 游戏天数 | N1: 需要的总经验 | O1: 关卡经验占比 | P1: 单关经验 | Q1: 玩家等级_v0 | R1: 刷本次数_v0 | S1: 玩家等级_v15 | T1: 刷本次数_v15 | U1: 战力 | V1: 修正战力 | X1: 天数 | Y1: 队伍等级 | Z1: 队伍人数 | AA1: 累计消耗 | AE1: 天数 | AF1: V0等级 | AG1: V1等级 | AH1: V2等级 | AI1: V3等级 | AJ1: V4等级 | AK1: V5等级 | AL1: V6等级 | AM1: V7等级 | AN1: V8等级 | AO1: V9等级 | AP1: V10等级 | AQ1: V11等级 | AR1: V12等级 | AS1: V13等级 | AT1: V14等级 | AU1: V15等级
A2: 1011 | B2: 简单-1-1 | C2: 11024 | D2: 1 | E2: =[1]!SUMSTRING(C2:D2,"#") ->  | F2: 14 | G2: 100 | H2: =[1]!SUMSTRING(F2:G2,"#") ->  | I2: 3 | J2: 10 | K2: =[1]!SUMSTRING(I2:J2,"#") ->  | L2: =E2&"|"&H2&"|"&K2 ->  | M2: 0 | N2: =N21/20 -> 2178 | O2: =N2*0.3 -> 653.4 | P2: 100 | Q2: =_xlfn.IFNA(VLOOKUP(M2,$AE$2:$AF$21,2,0),"") ->  | U2: =INT(VLOOKUP(M2,[2]战力等级细化!H:AA,20,FALSE)) -> 3390 | V2: 1007 | X2: 1 | Y2: 88 | Z2: 5 | AA2: 43560 | AE2: 1 | AF2: 22 | AG2: 23 | AH2: 23 | AI2: 24 | AJ2: 25 | AK2: 25 | AL2: 26 | AM2: 26 | AN2: 27 | AO2: 27 | AP2: 27 | AQ2: 28 | AR2: 28 | AS2: 29 | AT2: 29 | AU2: 29
A3: 1021 | B3: 简单-1-2 | C3: 11025 | D3: 1 | E3: =[1]!SUMSTRING(C3:D3,"#") ->  | F3: 14 | G3: 100 | H3: =[1]!SUMSTRING(F3:G3,"#") ->  | I3: 3 | J3: 10 | K3: =[1]!SUMSTRING(I3:J3,"#") ->  | L3: =E3&"|"&H3&"|"&K3 ->  | M3: 0 | N3: =N2+$N$21/20 -> 4356 | O3: =N3*0.3 -> 1306.8 | P3: 105 | Q3: =_xlfn.IFNA(VLOOKUP(M3,$AE$2:$AF$21,2,0),"") ->  | U3: =INT(VLOOKUP(M3,[2]战力等级细化!H:AA,20,FALSE)) -> 3390 | V3: =INT(V2+($V$7-$V$2)/5) -> 1050 | X3: 2 | Y3: 96 | Z3: 5 | AA3: 51360 | AE3: 2 | AF3: 25 | AG3: 26 | AH3: 27 | AI3: 28 | AJ3: 29 | AK3: 29 | AL3: 30 | AM3: 31 | AN3: 31 | AO3: 32 | AP3: 32 | AQ3: 33 | AR3: 33 | AS3: 34 | AT3: 34 | AU3: 35
A4: 1031 | B4: 简单-1-3 | C4: 11026 | D4: 1 | E4: =[1]!SUMSTRING(C4:D4,"#") ->  | F4: 14 | G4: 100 | H4: =[1]!SUMSTRING(F4:G4,"#") ->  | I4: 3 | J4: 10 | K4: =[1]!SUMSTRING(I4:J4,"#") ->  | M4: 0 | N4: =N3+$N$21/20 -> 6534 | O4: 1960.2 | P4: 110 | Q4: =_xlfn.IFNA(VLOOKUP(M4,$AE$2:$AF$21,2,0),"") ->  | U4: =INT(VLOOKUP(M4,[2]战力等级细化!H:AA,20,FALSE)) -> 3390 | V4: =INT(V3+($V$7-$V$2)/5) -> 1093 | X4: 3 | Y4: 100 | Z4: 5 | AA4: 55590 | AE4: 3 | AF4: 27 | AG4: 29 | AH4: 30 | AI4: 31 | AJ4: 32 | AK4: 32 | AL4: 33 | AM4: 34 | AN4: 35 | AO4: 35 | AP4: 36 | AQ4: 37 | AR4: 37 | AS4: 38 | AT4: 39 | AU4: 39
A5: 1041 | B5: 简单-1-4 | C5: 11027 | D5: 1 | E5: =[1]!SUMSTRING(C5:D5,"#") ->  | F5: 14 | G5: 100 | H5: =[1]!SUMSTRING(F5:G5,"#") ->  | I5: 3 | J5: 10 | K5: =[1]!SUMSTRING(I5:J5,"#") ->  | M5: 0 | N5: 8712 | O5: 2613.6 | P5: 115 | U5: =INT(VLOOKUP(M5,[2]战力等级细化!H:AA,20,FALSE)) -> 3390 | V5: 1136 | X5: 4 | Y5: 100 | Z5: 5 | AA5: 55590 | AE5: 4 | AF5: 29 | AG5: 31 | AH5: 32 | AI5: 33 | AJ5: 34 | AK5: 35 | AL5: 36 | AM5: 37 | AN5: 38 | AO5: 38 | AP5: 39 | AQ5: 40 | AR5: 41 | AS5: 42 | AT5: 43 | AU5: 43
A6: 1051 | B6: 简单-1-5 | C6: 11028 | D6: 1 | E6: =[1]!SUMSTRING(C6:D6,"#") ->  | F6: 14 | G6: 100 | H6: =[1]!SUMSTRING(F6:G6,"#") ->  | I6: 3 | J6: 10 | K6: =[1]!SUMSTRING(I6:J6,"#") ->  | M6: 0 | N6: 10890 | O6: 3267 | P6: 120 | U6: =INT(VLOOKUP(M6,[2]战力等级细化!H:AA,20,FALSE)) -> 3390 | V6: 1179 | X6: 5 | Y6: 108 | Z6: 5 | AA6: 68310 | AE6: 5 | AF6: 31 | AG6: 32 | AH6: 34 | AI6: 35 | AJ6: 36 | AK6: 37 | AL6: 38 | AM6: 39 | AN6: 40 | AO6: 41 | AP6: 42 | AQ6: 43 | AR6: 44 | AS6: 45 | AT6: 46 | AU6: 46
A7: 2011 | B7: 简单-2-1 | C7: 11029 | D7: 1 | E7: =[1]!SUMSTRING(C7:D7,"#") ->  | F7: 14 | G7: 120 | H7: =[1]!SUMSTRING(F7:G7,"#") ->  | I7: 3 | J7: 12 | K7: =[1]!SUMSTRING(I7:J7,"#") ->  | M7: 0.1 | N7: 13068 | O7: 3920.4 | P7: 125 | U7: =INT(VLOOKUP(M7,[2]战力等级细化!H:AA,20,FALSE)) -> 2983 | V7: 1224 | X7: 6 | Y7: 108 | Z7: 5 | AA7: 68310 | AE7: 6 | AF7: 32 | AG7: 34 | AH7: 35 | AI7: 37 | AJ7: 38 | AK7: 39 | AL7: 41 | AM7: 42 | AN7: 43 | AO7: 44 | AP7: 45 | AQ7: 46 | AR7: 47 | AS7: 47 | AT7: 48 | AU7: 49
A8: 2021 | B8: 简单-2-2 | C8: 11030 | D8: 1 | E8: =[1]!SUMSTRING(C8:D8,"#") ->  | F8: 14 | G8: 120 | H8: =[1]!SUMSTRING(F8:G8,"#") ->  | I8: 3 | J8: 12 | K8: =[1]!SUMSTRING(I8:J8,"#") ->  | M8: 0.1 | N8: 15246 | O8: 4573.8 | P8: 130 | U8: =INT(VLOOKUP(M8,[2]战力等级细化!H:AA,20,FALSE)) -> 2983 | V8: =INT(V7+($V$12-$V$7)/5) -> 2769 | X8: 7 | Y8: 120 | Z8: 5 | AA8: 99390 | AE8: 7 | AF8: 34 | AG8: 35 | AH8: 37 | AI8: 38 | AJ8: 40 | AK8: 41 | AL8: 43 | AM8: 44 | AN8: 45 | AO8: 46 | AP8: 47 | AQ8: 48 | AR8: 49 | AS8: 50 | AT8: 50 | AU8: 51
A9: 2031 | B9: 简单-2-3 | C9: 11031 | D9: 1 | E9: =[1]!SUMSTRING(C9:D9,"#") ->  | F9: 14 | G9: 120 | H9: =[1]!SUMSTRING(F9:G9,"#") ->  | I9: 3 | J9: 12 | K9: =[1]!SUMSTRING(I9:J9,"#") ->  | M9: 0.1 | N9: 17424 | O9: 5227.2 | P9: 135 | U9: =INT(VLOOKUP(M9,[2]战力等级细化!H:AA,20,FALSE)) -> 2983 | V9: =INT(V8+($V$12-$V$7)/5) -> 4314 | X9: 8 | Y9: 122 | Z9: 5 | AA9: 105970 | AE9: 8 | AF9: 35 | AG9: 37 | AH9: 38 | AI9: 40 | AJ9: 42 | AK9: 43 | AL9: 45 | AM9: 46 | AN9: 47 | AO9: 48 | AP9: 49 | AQ9: 50 | AR9: 51 | AS9: 51 | AT9: 52 | AU9: 53
A10: 2041 | B10: 简单-2-4 | C10: 11032 | D10: 1 | E10: =[1]!SUMSTRING(C10:D10,"#") ->  | F10: 14 | G10: 120 | H10: =[1]!SUMSTRING(F10:G10,"#") ->  | I10: 3 | J10: 12 | K10: =[1]!SUMSTRING(I10:J10,"#") ->  | M10: 0.1 | N10: 19602 | O10: 5880.6 | P10: 140 | U10: =INT(VLOOKUP(M10,[2]战力等级细化!H:AA,20,FALSE)) -> 2983 | V10: 5859 | X10: 9 | Y10: 124 | Z10: 5 | AA10: 112950 | AE10: 9 | AF10: 36 | AG10: 38 | AH10: 40 | AI10: 42 | AJ10: 43 | AK10: 45 | AL10: 46 | AM10: 47 | AN10: 48 | AO10: 50 | AP10: 51 | AQ10: 51 | AR10: 52 | AS10: 53 | AT10: 54 | AU10: 55
A11: 2051 | B11: 简单-2-5 | C11: 11033 | D11: 1 | E11: =[1]!SUMSTRING(C11:D11,"#") ->  | F11: 14 | G11: 120 | H11: =[1]!SUMSTRING(F11:G11,"#") ->  | I11: 3 | J11: 12 | K11: =[1]!SUMSTRING(I11:J11,"#") ->  | M11: 0.1 | N11: 21780 | O11: 6534 | P11: 145 | U11: =INT(VLOOKUP(M11,[2]战力等级细化!H:AA,20,FALSE)) -> 2983 | V11: 7404 | X11: 10 | Y11: 126 | Z11: 5 | AA11: 120330 | AE11: 10 | AF11: 37 | AG11: 39 | AH11: 41 | AI11: 43 | AJ11: 45 | AK11: 46 | AL11: 48 | AM11: 49 | AN11: 50 | AO11: 51 | AP11: 52 | AQ11: 53 | AR11: 54 | AS11: 55 | AT11: 55 | AU11: 56
A12: 3011 | B12: 简单-3-1 | C12: 11034 | D12: 1 | E12: =[1]!SUMSTRING(C12:D12,"#") ->  | F12: 14 | G12: 140 | H12: =[1]!SUMSTRING(F12:G12,"#") ->  | I12: 3 | J12: 14 | K12: =[1]!SUMSTRING(I12:J12,"#") ->  | M12: 0.3 | N12: 23958 | O12: 7187.4 | P12: 150 | U12: =INT(VLOOKUP(M12,[2]战力等级细化!H:AA,20,FALSE)) -> 8949 | V12: =U12 -> 8949 | X12: 11 | Y12: 128 | Z12: 5 | AA12: 128110 | AE12: 11 | AF12: 38 | AG12: 40 | AH12: 43 | AI12: 44 | AJ12: 46 | AK12: 48 | AL12: 49 | AM12: 50 | AN12: 51 | AO12: 52 | AP12: 53 | AQ12: 54 | AR12: 55 | AS12: 56 | AT12: 57 | AU12: 58
A13: 3021 | B13: 简单-3-2 | C13: 11035 | D13: 1 | E13: =[1]!SUMSTRING(C13:D13,"#") ->  | F13: 14 | G13: 140 | H13: =[1]!SUMSTRING(F13:G13,"#") ->  | I13: 3 | J13: 14 | K13: =[1]!SUMSTRING(I13:J13,"#") ->  | M13: 0.35 | N13: 26136 | O13: 7840.8 | P13: 155 | U13: =AVERAGE(U12,U14) -> 10440.5 | V13: =U13 -> 10440.5 | X13: 12 | Y13: 130 | Z13: 5 | AA13: 136290 | AE13: 12 | AF13: 39 | AG13: 42 | AH13: 44 | AI13: 46 | AJ13: 47 | AK13: 49 | AL13: 50 | AM13: 51 | AN13: 53 | AO13: 54 | AP13: 55 | AQ13: 56 | AR13: 56 | AS13: 57 | AT13: 58 | AU13: 59
A14: 3031 | B14: 简单-3-3 | C14: 11036 | D14: 1 | E14: =[1]!SUMSTRING(C14:D14,"#") ->  | F14: 14 | G14: 140 | H14: =[1]!SUMSTRING(F14:G14,"#") ->  | I14: 3 | J14: 14 | K14: =[1]!SUMSTRING(I14:J14,"#") ->  | M14: 0.4 | N14: 28314 | O14: 8494.2 | P14: 160 | U14: =INT(VLOOKUP(M14,[2]战力等级细化!H:AA,20,FALSE)) -> 11932 | V14: 11932 | X14: 13 | Y14: 132 | Z14: 5 | AA14: 144870 | AE14: 13 | AF14: 40 | AG14: 43 | AH14: 45 | AI14: 47 | AJ14: 48 | AK14: 50 | AL14: 51 | AM14: 53 | AN14: 54 | AO14: 55 | AP14: 56 | AQ14: 57 | AR14: 58 | AS14: 58 | AT14: 59 | AU14: 60
A15: 3041 | B15: 简单-3-4 | C15: 11037 | D15: 1 | E15: =[1]!SUMSTRING(C15:D15,"#") ->  | F15: 14 | G15: 140 | H15: =[1]!SUMSTRING(F15:G15,"#") ->  | I15: 3 | J15: 14 | K15: =[1]!SUMSTRING(I15:J15,"#") ->  | M15: 0.45 | N15: 30492 | O15: 9147.6 | P15: 165 | U15: =AVERAGE(U14,U16) -> 13423.5 | V15: 13423.5 | X15: 14 | Y15: 134 | Z15: 5 | AA15: 153850 | AE15: 14 | AF15: 41 | AG15: 44 | AH15: 46 | AI15: 48 | AJ15: 49 | AK15: 51 | AL15: 52 | AM15: 54 | AN15: 55 | AO15: 56 | AP15: 57 | AQ15: 58 | AR15: 59 | AS15: 60 | AT15: 60 | AU15: 61
A16: 3051 | B16: 简单-3-5 | C16: 11038 | D16: 1 | E16: =[1]!SUMSTRING(C16:D16,"#") ->  | F16: 14 | G16: 140 | H16: =[1]!SUMSTRING(F16:G16,"#") ->  | I16: 3 | J16: 14 | K16: =[1]!SUMSTRING(I16:J16,"#") ->  | M16: 0.5 | N16: 32670 | O16: 9801 | P16: 170 | U16: =INT(VLOOKUP(M16,[2]战力等级细化!H:AA,20,FALSE)) -> 14915 | V16: 14915 | X16: 15 | Y16: 136 | Z16: 5 | AA16: 163230 | AE16: 15 | AF16: 42 | AG16: 45 | AH16: 47 | AI16: 49 | AJ16: 50 | AK16: 52 | AL16: 53 | AM16: 55 | AN16: 56 | AO16: 57 | AP16: 58 | AQ16: 59 | AR16: 60 | AS16: 60 | AT16: 61 | AU16: 62
A17: 4011 | B17: 简单-4-1 | C17: 11039 | D17: 1 | E17: =[1]!SUMSTRING(C17:D17,"#") ->  | F17: 14 | G17: 160 | H17: =[1]!SUMSTRING(F17:G17,"#") ->  | I17: 3 | J17: 16 | K17: =[1]!SUMSTRING(I17:J17,"#") ->  | M17: 0.6 | N17: 34848 | O17: 10454.4 | P17: 175 | U17: =INT(VLOOKUP(M17,[2]战力等级细化!H:AA,20,FALSE)) -> 17898 | V17: 17898 | X17: 16 | Y17: 136.5 | Z17: 5 | AA17: 163230 | AE17: 16 | AF17: 43 | AG17: 46 | AH17: 48 | AI17: 50 | AJ17: 51 | AK17: 53 | AL17: 54 | AM17: 56 | AN17: 57 | AO17: 58 | AP17: 59 | AQ17: 60 | AR17: 61 | AS17: 61 | AT17: 62 | AU17: 63
A18: 4021 | B18: 简单-4-2 | C18: 11040 | D18: 1 | E18: =[1]!SUMSTRING(C18:D18,"#") ->  | F18: 14 | G18: 160 | H18: =[1]!SUMSTRING(F18:G18,"#") ->  | I18: 3 | J18: 16 | K18: =[1]!SUMSTRING(I18:J18,"#") ->  | M18: 0.7 | N18: 37026 | O18: 11107.8 | P18: 180 | U18: =INT(VLOOKUP(M18,[2]战力等级细化!H:AA,20,FALSE)) -> 20881 | V18: 20881 | X18: 17 | Y18: 137 | Z18: 5 | AA18: 168070 | AE18: 17 | AF18: 44 | AG18: 46 | AH18: 49 | AI18: 51 | AJ18: 52 | AK18: 54 | AL18: 55 | AM18: 56 | AN18: 58 | AO18: 59 | AP18: 60 | AQ18: 61 | AR18: 61 | AS18: 62 | AT18: 63 | AU18: 64
A19: 4031 | B19: 简单-4-3 | C19: 11041 | D19: 1 | E19: =[1]!SUMSTRING(C19:D19,"#") ->  | F19: 14 | G19: 160 | H19: =[1]!SUMSTRING(F19:G19,"#") ->  | I19: 3 | J19: 16 | K19: =[1]!SUMSTRING(I19:J19,"#") ->  | M19: 0.8 | N19: 39204 | O19: 11761.2 | P19: 185 | U19: =INT(VLOOKUP(M19,[2]战力等级细化!H:AA,20,FALSE)) -> 23864 | V19: 23864 | X19: 18 | Y19: 137.5 | Z19: 5 | AA19: 168070 | AE19: 18 | AF19: 45 | AG19: 47 | AH19: 49 | AI19: 51 | AJ19: 53 | AK19: 55 | AL19: 56 | AM19: 57 | AN19: 58 | AO19: 60 | AP19: 60 | AQ19: 61 | AR19: 62 | AS19: 63 | AT19: 64 | AU19: 64
A20: 4041 | B20: 简单-4-4 | C20: 11042 | D20: 1 | E20: =[1]!SUMSTRING(C20:D20,"#") ->  | F20: 14 | G20: 160 | H20: =[1]!SUMSTRING(F20:G20,"#") ->  | I20: 3 | J20: 16 | K20: =[1]!SUMSTRING(I20:J20,"#") ->  | M20: 0.9 | N20: 41382 | O20: 12414.6 | P20: 190 | U20: =INT(VLOOKUP(M20,[2]战力等级细化!H:AA,20,FALSE)) -> 26847 | V20: 26847 | X20: 19 | Y20: 138 | Z20: 5 | AA20: 173010 | AE20: 19 | AF20: 45 | AG20: 48 | AH20: 50 | AI20: 52 | AJ20: 54 | AK20: 55 | AL20: 57 | AM20: 58 | AN20: 59 | AO20: 60 | AP20: 61 | AQ20: 62 | AR20: 63 | AS20: 64 | AT20: 64 | AU20: 65
A21: 4051 | B21: 简单-4-5 | C21: 11043 | D21: 1 | E21: =[1]!SUMSTRING(C21:D21,"#") ->  | F21: 14 | G21: 160 | H21: =[1]!SUMSTRING(F21:G21,"#") ->  | I21: 3 | J21: 16 | K21: =[1]!SUMSTRING(I21:J21,"#") ->  | M21: 1 | N21: =_xlfn.IFNA(VLOOKUP(M21,$X:$AA,4,0),"") -> 43560 | O21: 13068 | P21: 195 | Q21: 22 | R21: =(252+290)/8 -> 67.75 | U21: =INT(VLOOKUP(M21,[2]战力等级细化!H:AA,20,FALSE)) -> 29830 | V21: 29830 | X21: 20 | Y21: 138.5 | Z21: 5 | AA21: 173010 | AE21: 20 | AF21: 46 | AG21: 49 | AH21: 51 | AI21: 53 | AJ21: 55 | AK21: 56 | AL21: 58 | AM21: 59 | AN21: 60 | AO21: 61 | AP21: 62 | AQ21: 63 | AR21: 64 | AS21: 64 | AT21: 65 | AU21: 66
A22: 5011 | B22: 简单-5-1 | C22: 11044 | D22: 1 | E22: =[1]!SUMSTRING(C22:D22,"#") ->  | F22: 14 | G22: 180 | H22: =[1]!SUMSTRING(F22:G22,"#") ->  | I22: 3 | J22: 18 | K22: =[1]!SUMSTRING(I22:J22,"#") ->  | M22: 1.1 | N22: =N21+($N$31-$N$21)/10 -> 44340 | O22: 13302 | P22: 200 | U22: =INT(VLOOKUP(M22,[2]战力等级细化!H:AA,20,FALSE)) -> 32230 | V22: 32230 | X22: 21 | Y22: 139 | Z22: 5 | AA22: 178050
A23: 5021 | B23: 简单-5-2 | C23: 11045 | D23: 1 | E23: =[1]!SUMSTRING(C23:D23,"#") ->  | F23: 14 | G23: 180 | H23: =[1]!SUMSTRING(F23:G23,"#") ->  | I23: 3 | J23: 18 | K23: =[1]!SUMSTRING(I23:J23,"#") ->  | M23: 1.2 | N23: =N22+($N$31-$N$21)/10 -> 45120 | O23: 13536 | P23: 205 | U23: =INT(VLOOKUP(M23,[2]战力等级细化!H:AA,20,FALSE)) -> 34630 | V23: 34630 | X23: 22 | Y23: 139.5 | Z23: 5 | AA23: 178050
A24: 5031 | B24: 简单-5-3 | C24: 11046 | D24: 1 | E24: =[1]!SUMSTRING(C24:D24,"#") ->  | F24: 14 | G24: 180 | H24: =[1]!SUMSTRING(F24:G24,"#") ->  | I24: 3 | J24: 18 | K24: =[1]!SUMSTRING(I24:J24,"#") ->  | M24: 1.3 | N24: 45900 | O24: 13770 | P24: 210 | U24: =INT(VLOOKUP(M24,[2]战力等级细化!H:AA,20,FALSE)) -> 37031 | V24: 37031 | X24: 23 | Y24: 140 | Z24: 5 | AA24: 183390
A25: 5041 | B25: 简单-5-4 | C25: 11002 | D25: 1 | E25: =[1]!SUMSTRING(C25:D25,"#") ->  | F25: 14 | G25: 180 | H25: =[1]!SUMSTRING(F25:G25,"#") ->  | I25: 3 | J25: 18 | K25: =[1]!SUMSTRING(I25:J25,"#") ->  | M25: 1.4 | N25: 46680 | O25: 14004 | P25: 215 | U25: =INT(VLOOKUP(M25,[2]战力等级细化!H:AA,20,FALSE)) -> 39431 | V25: 39431 | X25: 24 | Y25: 140.5 | Z25: 5 | AA25: 183390
A26: 5051 | B26: 简单-5-5 | C26: 11003 | D26: 1 | E26: =[1]!SUMSTRING(C26:D26,"#") ->  | F26: 14 | G26: 180 | H26: =[1]!SUMSTRING(F26:G26,"#") ->  | I26: 3 | J26: 18 | K26: =[1]!SUMSTRING(I26:J26,"#") ->  | M26: 1.5 | N26: 47460 | O26: 14238 | P26: 220 | U26: =INT(VLOOKUP(M26,[2]战力等级细化!H:AA,20,FALSE)) -> 41831 | V26: 41831 | X26: 25 | Y26: 141 | Z26: 5 | AA26: 189030
A27: 6011 | B27: 简单-6-1 | C27: 11005 | D27: 1 | E27: =[1]!SUMSTRING(C27:D27,"#") ->  | F27: 14 | G27: 200 | H27: =[1]!SUMSTRING(F27:G27,"#") ->  | I27: 3 | J27: 20 | K27: =[1]!SUMSTRING(I27:J27,"#") ->  | M27: 1.6 | N27: 48240 | O27: 14472 | P27: 225 | U27: =INT(VLOOKUP(M27,[2]战力等级细化!H:AA,20,FALSE)) -> 44231 | V27: 44231 | X27: 26 | Y27: 141.5 | Z27: 5 | AA27: 189030
A28: 6021 | B28: 简单-6-2 | C28: 11006 | D28: 1 | E28: =[1]!SUMSTRING(C28:D28,"#") ->  | F28: 14 | G28: 200 | H28: =[1]!SUMSTRING(F28:G28,"#") ->  | I28: 3 | J28: 20 | K28: =[1]!SUMSTRING(I28:J28,"#") ->  | M28: 1.7 | N28: 49020 | O28: 14706 | P28: 230 | U28: =INT(VLOOKUP(M28,[2]战力等级细化!H:AA,20,FALSE)) -> 46631 | V28: 46631 | X28: 27 | Y28: 142 | Z28: 5 | AA28: 194970
A29: 6031 | B29: 简单-6-3 | C29: 11007 | D29: 1 | E29: =[1]!SUMSTRING(C29:D29,"#") ->  | F29: 14 | G29: 200 | H29: =[1]!SUMSTRING(F29:G29,"#") ->  | I29: 3 | J29: 20 | K29: =[1]!SUMSTRING(I29:J29,"#") ->  | M29: 1.8 | N29: 49800 | O29: 14940 | P29: 235 | U29: =INT(VLOOKUP(M29,[2]战力等级细化!H:AA,20,FALSE)) -> 49032 | V29: 49032 | X29: 28 | Y29: 142.5 | Z29: 5 | AA29: 194970
A30: 6041 | B30: 简单-6-4 | C30: 11009 | D30: 1 | E30: =[1]!SUMSTRING(C30:D30,"#") ->  | F30: 14 | G30: 200 | H30: =[1]!SUMSTRING(F30:G30,"#") ->  | I30: 3 | J30: 20 | K30: =[1]!SUMSTRING(I30:J30,"#") ->  | M30: 1.9 | N30: 50580 | O30: 15174 | P30: 240 | U30: =INT(VLOOKUP(M30,[2]战力等级细化!H:AA,20,FALSE)) -> 51432 | V30: 51432 | X30: 29 | Y30: 143 | Z30: 5 | AA30: 201210
A31: 6051 | B31: 简单-6-5 | C31: 11010 | D31: 1 | E31: =[1]!SUMSTRING(C31:D31,"#") ->  | F31: 14 | G31: 200 | H31: =[1]!SUMSTRING(F31:G31,"#") ->  | I31: 3 | J31: 20 | K31: =[1]!SUMSTRING(I31:J31,"#") ->  | M31: 2 | N31: =_xlfn.IFNA(VLOOKUP(M31,$X:$AA,4,0),"") -> 51360 | O31: 15408 | P31: 245 | Q31: 25 | U31: =INT(VLOOKUP(M31,[2]战力等级细化!H:AA,20,FALSE)) -> 53832 | V31: 53832 | X31: 30 | Y31: 144 | Z31: 5 | AA31: 207750
A32: 7011 | B32: 简单-7-1 | C32: 11011 | D32: 1 | E32: =[1]!SUMSTRING(C32:D32,"#") ->  | F32: 14 | G32: 220 | H32: =[1]!SUMSTRING(F32:G32,"#") ->  | I32: 3 | J32: 22 | K32: =[1]!SUMSTRING(I32:J32,"#") ->  | M32: 2.2 | N32: =N31+($N$36-$N$31)/5 -> 52206 | O32: 15661.8 | P32: 250 | U32: =INT(VLOOKUP(M32,[2]战力等级细化!H:AA,20,FALSE)) -> 55419 | V32: 55419 | X32: 31 | Y32: 144.5 | Z32: 5 | AA32: 207750
A33: 7021 | B33: 简单-7-2 | C33: 11013 | D33: 1 | E33: =[1]!SUMSTRING(C33:D33,"#") ->  | F33: 14 | G33: 220 | H33: =[1]!SUMSTRING(F33:G33,"#") ->  | I33: 3 | J33: 22 | K33: =[1]!SUMSTRING(I33:J33,"#") ->  | M33: 2.4 | N33: =N32+($N$36-$N$31)/5 -> 53052 | O33: 15915.6 | P33: 255 | U33: =INT(VLOOKUP(M33,[2]战力等级细化!H:AA,20,FALSE)) -> 57005 | V33: 57005 | X33: 32 | Y33: 145 | Z33: 5 | AA33: 214590
A34: 7031 | B34: 简单-7-3 | C34: 11019 | D34: 1 | E34: =[1]!SUMSTRING(C34:D34,"#") ->  | F34: 14 | G34: 220 | H34: =[1]!SUMSTRING(F34:G34,"#") ->  | I34: 3 | J34: 22 | K34: =[1]!SUMSTRING(I34:J34,"#") ->  | M34: 2.6 | N34: 53898 | O34: 16169.4 | P34: 260 | U34: =INT(VLOOKUP(M34,[2]战力等级细化!H:AA,20,FALSE)) -> 58592 | V34: 58592 | X34: 33 | Y34: 145.5 | Z34: 5 | AA34: 214590
A35: 7041 | B35: 简单-7-4 | C35: 11020 | D35: 1 | E35: =[1]!SUMSTRING(C35:D35,"#") ->  | F35: 14 | G35: 220 | H35: =[1]!SUMSTRING(F35:G35,"#") ->  | I35: 3 | J35: 22 | K35: =[1]!SUMSTRING(I35:J35,"#") ->  | M35: 2.8 | N35: 54744 | O35: 16423.2 | P35: 265 | U35: =INT(VLOOKUP(M35,[2]战力等级细化!H:AA,20,FALSE)) -> 60178 | V35: 60178 | X35: 34 | Y35: 146 | Z35: 5 | AA35: 221730
A36: 7051 | B36: 简单-7-5 | C36: 11021 | D36: 1 | E36: =[1]!SUMSTRING(C36:D36,"#") ->  | F36: 14 | G36: 220 | H36: =[1]!SUMSTRING(F36:G36,"#") ->  | I36: 3 | J36: 22 | K36: =[1]!SUMSTRING(I36:J36,"#") ->  | M36: 3 | N36: =_xlfn.IFNA(VLOOKUP(M36,$X:$AA,4,0),"") -> 55590 | O36: 16677 | P36: 270 | Q36: 27 | U36: =INT(VLOOKUP(M36,[2]战力等级细化!H:AA,20,FALSE)) -> 61765 | V36: 61765 | X36: 35 | Y36: 146.5 | Z36: 5 | AA36: 221730
A37: 8011 | B37: 简单-8-1 | C37: 11022 | D37: 1 | E37: =[1]!SUMSTRING(C37:D37,"#") ->  | F37: 14 | G37: 240 | H37: =[1]!SUMSTRING(F37:G37,"#") ->  | I37: 3 | J37: 24 | K37: =[1]!SUMSTRING(I37:J37,"#") ->  | M37: 3.4 | N37: =N36+($N$41-$N$36)/5 -> 58134 | O37: 17440.2 | P37: 275 | U37: =INT(VLOOKUP(M37,[2]战力等级细化!H:AA,20,FALSE)) -> 64425 | V37: 64425 | X37: 36 | Y37: 147 | Z37: 5 | AA37: 229170
A38: 8021 | B38: 简单-8-2 | C38: 11002 | D38: 1 | E38: =[1]!SUMSTRING(C38:D38,"#") ->  | F38: 14 | G38: 240 | H38: =[1]!SUMSTRING(F38:G38,"#") ->  | I38: 3 | J38: 24 | K38: =[1]!SUMSTRING(I38:J38,"#") ->  | M38: 3.8 | N38: =N37+($N$41-$N$36)/5 -> 60678 | O38: 18203.4 | P38: 280 | U38: =INT(VLOOKUP(M38,[2]战力等级细化!H:AA,20,FALSE)) -> 67084 | V38: 67084 | X38: 37 | Y38: 147.5 | Z38: 5 | AA38: 229170
A39: 8031 | B39: 简单-8-3 | C39: 11003 | D39: 1 | E39: =[1]!SUMSTRING(C39:D39,"#") ->  | F39: 14 | G39: 240 | H39: =[1]!SUMSTRING(F39:G39,"#") ->  | I39: 3 | J39: 24 | K39: =[1]!SUMSTRING(I39:J39,"#") ->  | M39: 4.2 | N39: 63222 | O39: 18966.6 | P39: 285 | U39: =INT(VLOOKUP(M39,[2]战力等级细化!H:AA,20,FALSE)) -> 70809 | V39: 70809 | X39: 38 | Y39: 148 | Z39: 5 | AA39: 236910
A40: 8041 | B40: 简单-8-4 | C40: 11005 | D40: 1 | E40: =[1]!SUMSTRING(C40:D40,"#") ->  | F40: 14 | G40: 240 | H40: =[1]!SUMSTRING(F40:G40,"#") ->  | I40: 3 | J40: 24 | K40: =[1]!SUMSTRING(I40:J40,"#") ->  | M40: 4.6 | N40: 65766 | O40: 19729.8 | P40: 290 | U40: =INT(VLOOKUP(M40,[2]战力等级细化!H:AA,20,FALSE)) -> 75598 | V40: 75598 | X40: 39 | Y40: 148.5 | Z40: 5 | AA40: 236910
A41: 8051 | B41: 简单-8-5 | C41: 11006 | D41: 1 | E41: =[1]!SUMSTRING(C41:D41,"#") ->  | F41: 14 | G41: 240 | H41: =[1]!SUMSTRING(F41:G41,"#") ->  | I41: 3 | J41: 24 | K41: =[1]!SUMSTRING(I41:J41,"#") ->  | M41: 5 | N41: =_xlfn.IFNA(VLOOKUP(M41,$X:$AA,4,0),"") -> 68310 | O41: 20493 | P41: 295 | Q41: 31 | U41: =INT(VLOOKUP(M41,[2]战力等级细化!H:AA,20,FALSE)) -> 80388 | V41: 80388 | X41: 40 | Y41: 149 | Z41: 5 | AA41: 244950
A42: 9011 | B42: 简单-9-1 | C42: 11007 | D42: 1 | E42: =[1]!SUMSTRING(C42:D42,"#") ->  | F42: 14 | G42: 260 | H42: =[1]!SUMSTRING(F42:G42,"#") ->  | I42: 3 | J42: 26 | K42: =[1]!SUMSTRING(I42:J42,"#") ->  | M42: 5.4 | N42: =N41+($N$46-$N$41)/5 -> 74526 | O42: 22357.8 | P42: 300 | U42: =INT(VLOOKUP(M42,[2]战力等级细化!H:AA,20,FALSE)) -> 82462 | V42: 82462 | X42: 41 | Y42: 149.5 | Z42: 5 | AA42: 244950
A43: 9021 | B43: 简单-9-2 | C43: 11009 | D43: 1 | E43: =[1]!SUMSTRING(C43:D43,"#") ->  | F43: 14 | G43: 260 | H43: =[1]!SUMSTRING(F43:G43,"#") ->  | I43: 3 | J43: 26 | K43: =[1]!SUMSTRING(I43:J43,"#") ->  | M43: 5.8 | N43: =N42+($N$46-$N$41)/5 -> 80742 | O43: 24222.6 | P43: 305 | U43: =INT(VLOOKUP(M43,[2]战力等级细化!H:AA,20,FALSE)) -> 84537 | V43: 84537 | X43: 42 | Y43: 150 | Z43: 5 | AA43: 253290
A44: 9031 | B44: 简单-9-3 | C44: 11010 | D44: 1 | E44: =[1]!SUMSTRING(C44:D44,"#") ->  | F44: 14 | G44: 260 | H44: =[1]!SUMSTRING(F44:G44,"#") ->  | I44: 3 | J44: 26 | K44: =[1]!SUMSTRING(I44:J44,"#") ->  | M44: 6.2 | N44: 86958 | O44: 26087.4 | P44: 310 | U44: =INT(VLOOKUP(M44,[2]战力等级细化!H:AA,20,FALSE)) -> 88950 | V44: 88950 | X44: 43 | Y44: 150.5 | Z44: 5 | AA44: 253290
A45: 9041 | B45: 简单-9-4 | C45: 11011 | D45: 1 | E45: =[1]!SUMSTRING(C45:D45,"#") ->  | F45: 14 | G45: 260 | H45: =[1]!SUMSTRING(F45:G45,"#") ->  | I45: 3 | J45: 26 | K45: =[1]!SUMSTRING(I45:J45,"#") ->  | M45: 6.6 | N45: 93174 | O45: 27952.2 | P45: 315 | U45: =INT(VLOOKUP(M45,[2]战力等级细化!H:AA,20,FALSE)) -> 95702 | V45: 95702 | X45: 44 | Y45: 151 | Z45: 5 | AA45: 261930
A46: 9051 | B46: 简单-9-5 | C46: 11013 | D46: 1 | E46: =[1]!SUMSTRING(C46:D46,"#") ->  | F46: 14 | G46: 260 | H46: =[1]!SUMSTRING(F46:G46,"#") ->  | I46: 3 | J46: 26 | K46: =[1]!SUMSTRING(I46:J46,"#") ->  | M46: 7 | N46: =_xlfn.IFNA(VLOOKUP(M46,$X:$AA,4,0),"") -> 99390 | O46: 29817 | P46: 320 | Q46: 34 | U46: =INT(VLOOKUP(M46,[2]战力等级细化!H:AA,20,FALSE)) -> 102455 | V46: 102455 | X46: 45 | Y46: 152 | Z46: 5 | AA46: 270870
A47: 10011 | B47: 简单-10-1 | C47: 11019 | D47: 1 | E47: =[1]!SUMSTRING(C47:D47,"#") ->  | F47: 14 | G47: 280 | H47: =[1]!SUMSTRING(F47:G47,"#") ->  | I47: 3 | J47: 28 | K47: =[1]!SUMSTRING(I47:J47,"#") ->  | M47: 7.5 | N47: =AVERAGEA(N46,N48) -> 102680 | O47: 30804 | P47: 325 | U47: =INT(VLOOKUP(M47,[2]战力等级细化!H:AA,20,FALSE)) -> 105731 | V47: 105731 | X47: 46 | Y47: 154 | Z47: 5 | AA47: 289650
A48: 10021 | B48: 简单-10-2 | C48: 11020 | D48: 1 | E48: =[1]!SUMSTRING(C48:D48,"#") ->  | F48: 14 | G48: 280 | H48: =[1]!SUMSTRING(F48:G48,"#") ->  | I48: 3 | J48: 28 | K48: =[1]!SUMSTRING(I48:J48,"#") ->  | M48: 8 | N48: =_xlfn.IFNA(VLOOKUP(M48,$X:$AA,4,0),"") -> 105970 | O48: 31791 | P48: 330 | Q48: 35 | U48: =INT(VLOOKUP(M48,[2]战力等级细化!H:AA,20,FALSE)) -> 109008 | V48: 109008 | X48: 47 | Y48: 156 | Z48: 5 | AA48: 309630
A49: 10031 | B49: 简单-10-3 | C49: 11021 | D49: 1 | E49: =[1]!SUMSTRING(C49:D49,"#") ->  | F49: 14 | G49: 280 | H49: =[1]!SUMSTRING(F49:G49,"#") ->  | I49: 3 | J49: 28 | K49: =[1]!SUMSTRING(I49:J49,"#") ->  | M49: 8.5 | N49: =AVERAGEA(N48,N50) -> 109460 | O49: 32838 | P49: 335 | U49: =INT(VLOOKUP(M49,[2]战力等级细化!H:AA,20,FALSE)) -> 110409 | V49: 110409 | X49: 48 | Y49: 158 | Z49: 5 | AA49: 330810
A50: 10041 | B50: 简单-10-4 | C50: 11022 | D50: 1 | E50: =[1]!SUMSTRING(C50:D50,"#") ->  | F50: 14 | G50: 280 | H50: =[1]!SUMSTRING(F50:G50,"#") ->  | I50: 3 | J50: 28 | K50: =[1]!SUMSTRING(I50:J50,"#") ->  | M50: 9 | N50: =_xlfn.IFNA(VLOOKUP(M50,$X:$AA,4,0),"") -> 112950 | O50: 33885 | P50: 340 | Q50: 36 | U50: =INT(VLOOKUP(M50,[2]战力等级细化!H:AA,20,FALSE)) -> 111811 | V50: 111811 | X50: 49 | Y50: 160 | Z50: 5 | AA50: 353190
A51: 10051 | B51: 简单-10-5 | C51: 11002 | D51: 1 | E51: =[1]!SUMSTRING(C51:D51,"#") ->  | F51: 14 | G51: 280 | H51: =[1]!SUMSTRING(F51:G51,"#") ->  | I51: 3 | J51: 28 | K51: =[1]!SUMSTRING(I51:J51,"#") ->  | M51: 10 | N51: =_xlfn.IFNA(VLOOKUP(M51,$X:$AA,4,0),"") -> 120330 | O51: 36099 | P51: 345 | Q51: 37 | U51: =INT(VLOOKUP(M51,[2]战力等级细化!H:AA,20,FALSE)) -> 118991 | V51: 118991 | X51: 50 | Y51: 162 | Z51: 5 | AA51: 376770
X52: 51 | Y52: 164 | Z52: 5 | AA52: 401550
X53: 52 | Y53: 166 | Z53: 5 | AA53: 427530
X54: 53 | Y54: 168 | Z54: 5 | AA54: 454710
X55: 54 | Y55: 170 | Z55: 5 | AA55: 483090
X56: 55 | Y56: 172 | Z56: 5 | AA56: 512670
X57: 56 | Y57: 174 | Z57: 5 | AA57: 543450
X58: 57 | Y58: 176 | Z58: 5 | AA58: 575430
X59: 58 | Y59: 178 | Z59: 5 | AA59: 608610
X60: 59 | Y60: 180 | Z60: 5 | AA60: 698580
X61: 60 | Y61: 184 | Z61: 5 | AA61: 715350
X62: 61 | Y62: 184 | Z62: 5 | AA62: 715350
X63: 62 | Y63: 184 | Z63: 5 | AA63: 715350
X64: 63 | Y64: 185 | Z64: 5 | AA64: 734190
X65: 64 | Y65: 185 | Z65: 5 | AA65: 734190
X66: 65 | Y66: 185 | Z66: 5 | AA66: 734190
X67: 66 | Y67: 186 | Z67: 5 | AA67: 753330
X68: 67 | Y68: 186 | Z68: 5 | AA68: 753330
X69: 68 | Y69: 186 | Z69: 5 | AA69: 753330
X70: 69 | Y70: 187 | Z70: 5 | AA70: 772770
X71: 70 | Y71: 187 | Z71: 5 | AA71: 772770
X72: 71 | Y72: 187 | Z72: 5 | AA72: 772770
X73: 72 | Y73: 188 | Z73: 5 | AA73: 792510
X74: 73 | Y74: 188 | Z74: 5 | AA74: 792510
X75: 74 | Y75: 188 | Z75: 5 | AA75: 792510
X76: 75 | Y76: 189 | Z76: 5 | AA76: 812550
X77: 76 | Y77: 189 | Z77: 5 | AA77: 812550
X78: 77 | Y78: 189 | Z78: 5 | AA78: 812550
X79: 78 | Y79: 190 | Z79: 5 | AA79: 832890
X80: 79 | Y80: 190 | Z80: 5 | AA80: 832890
X81: 80 | Y81: 190 | Z81: 5 | AA81: 832890
X82: 81 | Y82: 191 | Z82: 5 | AA82: 853530
X83: 82 | Y83: 191 | Z83: 5 | AA83: 853530
X84: 83 | Y84: 191 | Z84: 5 | AA84: 853530
X85: 84 | Y85: 192 | Z85: 5 | AA85: 874470
X86: 85 | Y86: 192 | Z86: 5 | AA86: 874470
X87: 86 | Y87: 192 | Z87: 5 | AA87: 874470
X88: 87 | Y88: 193 | Z88: 5 | AA88: 895710
X89: 88 | Y89: 193 | Z89: 5 | AA89: 895710
X90: 89 | Y90: 193 | Z90: 5 | AA90: 895710
X91: 90 | Y91: 198 | Z91: 5 | AA91: 1006410
X92: 91 | Y92: 198 | Z92: 5 | AA92: 1006410
X93: 92 | Y93: 198 | Z93: 5 | AA93: 1006410
X94: 93 | Y94: 199 | Z94: 5 | AA94: 1029390
X95: 94 | Y95: 199 | Z95: 5 | AA95: 1029390
X96: 95 | Y96: 199 | Z96: 5 | AA96: 1029390
X97: 96 | Y97: 200 | Z97: 5 | AA97: 1052970
X98: 97 | Y98: 200 | Z98: 5 | AA98: 1052970
X99: 98 | Y99: 200 | Z99: 5 | AA99: 1052970
X100: 99 | Y100: 201 | Z100: 5 | AA100: 1720140
X101: 100 | Y101: 201 | Z101: 5 | AA101: 1077150
X102: 101 | Y102: 201 | Z102: 5 | AA102: 1077150
X103: 102 | Y103: 202 | Z103: 5 | AA103: 1101930
X104: 103 | Y104: 202 | Z104: 5 | AA104: 1101930
X105: 104 | Y105: 202 | Z105: 5 | AA105: 1101930
X106: 105 | Y106: 203 | Z106: 5 | AA106: 1127310
X107: 106 | Y107: 203 | Z107: 5 | AA107: 1127310
X108: 107 | Y108: 203 | Z108: 5 | AA108: 1127310
X109: 108 | Y109: 204 | Z109: 5 | AA109: 1153290
X110: 109 | Y110: 204 | Z110: 5 | AA110: 1153290
X111: 110 | Y111: 204 | Z111: 5 | AA111: 1153290
X112: 111 | Y112: 205 | Z112: 5 | AA112: 1179870
X113: 112 | Y113: 205 | Z113: 5 | AA113: 1179870
X114: 113 | Y114: 205 | Z114: 5 | AA114: 1179870
X115: 114 | Y115: 206 | Z115: 5 | AA115: 1207050
X116: 115 | Y116: 206 | Z116: 5 | AA116: 1207050
X117: 116 | Y117: 206 | Z117: 5 | AA117: 1207050
X118: 117 | Y118: 207 | Z118: 5 | AA118: 1234830
X119: 118 | Y119: 207 | Z119: 5 | AA119: 1234830
X120: 119 | Y120: 207 | Z120: 5 | AA120: 1234830
X121: 120 | Y121: 216 | Z121: 5 | AA121: 1511850
X122: 121 | Y122: 216 | Z122: 5 | AA122: 1511850
X123: 122 | Y123: 217 | Z123: 5 | AA123: 1545630
X124: 123 | Y124: 217 | Z124: 5 | AA124: 1545630
X125: 124 | Y125: 217 | Z125: 5 | AA125: 1545630
X126: 125 | Y126: 218 | Z126: 5 | AA126: 1580010
X127: 126 | Y127: 218 | Z127: 5 | AA127: 1580010
X128: 127 | Y128: 219 | Z128: 5 | AA128: 1614990
X129: 128 | Y129: 219 | Z129: 5 | AA129: 1614990
X130: 129 | Y130: 219 | Z130: 5 | AA130: 1614990
X131: 130 | Y131: 220 | Z131: 5 | AA131: 1650570
X132: 131 | Y132: 220 | Z132: 5 | AA132: 1650570
X133: 132 | Y133: 221 | Z133: 5 | AA133: 1686750
X134: 133 | Y134: 221 | Z134: 5 | AA134: 1686750
X135: 134 | Y135: 221 | Z135: 5 | AA135: 1686750
X136: 135 | Y136: 222 | Z136: 5 | AA136: 1723530
X137: 136 | Y137: 222 | Z137: 5 | AA137: 1723530
X138: 137 | Y138: 223 | Z138: 5 | AA138: 1760910
X139: 138 | Y139: 223 | Z139: 5 | AA139: 1760910
X140: 139 | Y140: 223 | Z140: 5 | AA140: 1760910
X141: 140 | Y141: 224 | Z141: 5 | AA141: 1798890
X142: 141 | Y142: 224 | Z142: 5 | AA142: 1798890
X143: 142 | Y143: 225 | Z143: 5 | AA143: 1837470
X144: 143 | Y144: 225 | Z144: 5 | AA144: 1837470
X145: 144 | Y145: 225 | Z145: 5 | AA145: 1837470
X146: 145 | Y146: 226 | Z146: 5 | AA146: 1876650
X147: 146 | Y147: 226 | Z147: 5 | AA147: 1876650
X148: 147 | Y148: 227 | Z148: 5 | AA148: 1916430
X149: 148 | Y149: 227 | Z149: 5 | AA149: 1916430
X150: 149 | Y150: 227 | Z150: 5 | AA150: 1916430
X151: 150 | Y151: 230 | Z151: 5 | AA151: 2039370
X152: 151 | Y152: 230 | Z152: 5 | AA152: 2039370
X153: 152 | Y153: 230 | Z153: 5 | AA153: 2039370
X154: 153 | Y154: 232 | Z154: 5 | AA154: 2124330
X155: 154 | Y155: 232 | Z155: 5 | AA155: 2124330
X156: 155 | Y156: 232 | Z156: 5 | AA156: 2124330
X157: 156 | Y157: 234 | Z157: 5 | AA157: 2211690
X158: 157 | Y158: 234 | Z158: 5 | AA158: 2211690
X159: 158 | Y159: 234 | Z159: 5 | AA159: 2211690
X160: 159 | Y160: 236 | Z160: 5 | AA160: 2301450
X161: 160 | Y161: 236 | Z161: 5 | AA161: 2301450
X162: 161 | Y162: 236 | Z162: 5 | AA162: 2301450
X163: 162 | Y163: 238 | Z163: 5 | AA163: 2393610
X164: 163 | Y164: 238 | Z164: 5 | AA164: 2393610
X165: 164 | Y165: 238 | Z165: 5 | AA165: 2393610
X166: 165 | Y166: 240 | Z166: 5 | AA166: 2488170
X167: 166 | Y167: 240 | Z167: 5 | AA167: 2488170
X168: 167 | Y168: 240 | Z168: 5 | AA168: 2488170
X169: 168 | Y169: 242 | Z169: 5 | AA169: 2585130
X170: 169 | Y170: 242 | Z170: 5 | AA170: 2585130
X171: 170 | Y171: 242 | Z171: 5 | AA171: 2585130
X172: 171 | Y172: 244 | Z172: 5 | AA172: 2684490
X173: 172 | Y173: 244 | Z173: 5 | AA173: 2684490
X174: 173 | Y174: 244 | Z174: 5 | AA174: 2684490
X175: 174 | Y175: 246 | Z175: 5 | AA175: 2786250
X176: 175 | Y176: 246 | Z176: 5 | AA176: 2786250
X177: 176 | Y177: 246 | Z177: 5 | AA177: 2786250
X178: 177 | Y178: 248 | Z178: 5 | AA178: 2890410
X179: 178 | Y179: 248 | Z179: 5 | AA179: 2890410
X180: 179 | Y180: 248 | Z180: 5 | AA180: 2890410
X181: 180 | Y181: 250 | Z181: 5 | AA181: 2943390

Sheet Sheet2
B1: Id | C1: Name | D1: Exp | E1: RandomReward | J1: Show | M1: Show
B2: int | C2: string | D2: int | E2: mut,int#int,1 | J2: mut,int#int,2 | M2: mut,int#int,2
B3: 2 | C3: 3 | D3: 2 | E3: 4 | J3: 3 | M3: 3
B4: 关卡ID | C4: 关卡名称 | D4: 关卡经验奖励 | E4: 关卡道具奖励组 --每一次 | J4: 显示 | M4: 显示
A5: 默认值 | B5: 0 | D5: 0 | E5: 0 | F5: 1 | H5: 2 | J5: null | M5: null
A6: 正确性校对
A7: 校对值
B8: 1011 | C8: 简单-1-1 | D8: 8 | E8: 4001#3001 | F8: =VLOOKUP(VALUE(LEFT(VLOOKUP(VALUE(RIGHT(LevelDifficultyConfig!L8,4)),[3]RewardGroup!$B$1:$E$670,4,FALSE),5)),[4]RewardItemConfig!$B$1:$C$1176,2,FALSE) ->  | G8: =VLOOKUP(VALUE(RIGHT(VLOOKUP(VALUE(RIGHT(LevelDifficultyConfig!L8,4)),[3]RewardGroup!$B$1:$E$670,4,FALSE),5)),[4]RewardItemConfig!$B$1:$C$1176,2,FALSE) ->  | H8: =VLOOKUP(VALUE(LEFT(VLOOKUP(VALUE(LEFT(LevelDifficultyConfig!L8,4)),[3]RewardGroup!$B$1:$E$670,4,FALSE),5)),[4]RewardItemConfig!$B$1:$C$1176,2,FALSE) -> 3 | I8: =VLOOKUP(VALUE(RIGHT(VLOOKUP(VALUE(LEFT(LevelDifficultyConfig!L8,4)),[3]RewardGroup!$B$1:$E$670,4,FALSE),5)),[4]RewardItemConfig!$B$1:$C$1176,2,FALSE) -> 14 | J8: =I8&"#1|"&G8&"#100|"&F8&"#10" ->  | M8: 11024#1|14#100|3#10
B9: 1021 | C9: 简单-1-2 | D9: 8 | E9: 4002#3002 | F9: =VLOOKUP(VALUE(LEFT(VLOOKUP(VALUE(RIGHT(LevelDifficultyConfig!L9,4)),[3]RewardGroup!$B$1:$E$670,4,FALSE),5)),[4]RewardItemConfig!$B$1:$C$1176,2,FALSE) ->  | G9: =VLOOKUP(VALUE(RIGHT(VLOOKUP(VALUE(RIGHT(LevelDifficultyConfig!L9,4)),[3]RewardGroup!$B$1:$E$670,4,FALSE),5)),[4]RewardItemConfig!$B$1:$C$1176,2,FALSE) ->  | H9: =VLOOKUP(VALUE(LEFT(VLOOKUP(VALUE(LEFT(LevelDifficultyConfig!L9,4)),[3]RewardGroup!$B$1:$E$670,4,FALSE),5)),[4]RewardItemConfig!$B$1:$C$1176,2,FALSE) -> 3 | I9: =VLOOKUP(VALUE(RIGHT(VLOOKUP(VALUE(LEFT(LevelDifficultyConfig!L9,4)),[3]RewardGroup!$B$1:$E$670,4,FALSE),5)),[4]RewardItemConfig!$B$1:$C$1176,2,FALSE) -> 14 | J9: =I9&"#1|"&G9&"#100|"&F9&"#10" ->  | M9: 11025#1|14#100|3#10
B10: 1031 | C10: 简单-1-3 | D10: 8 | E10: 4003#3003 | F10: =VLOOKUP(VALUE(LEFT(VLOOKUP(VALUE(RIGHT(LevelDifficultyConfig!L10,4)),[3]RewardGroup!$B$1:$E$670,4,FALSE),5)),[4]RewardItemConfig!$B$1:$C$1176,2,FALSE) ->  | G10: =VLOOKUP(VALUE(RIGHT(VLOOKUP(VALUE(RIGHT(LevelDifficultyConfig!L10,4)),[3]RewardGroup!$B$1:$E$670,4,FALSE),5)),[4]RewardItemConfig!$B$1:$C$1176,2,FALSE) ->  | H10: =VLOOKUP(VALUE(LEFT(VLOOKUP(VALUE(LEFT(LevelDifficultyConfig!L10,4)),[3]RewardGroup!$B$1:$E$670,4,FALSE),5)),[4]RewardItemConfig!$B$1:$C$1176,2,FALSE) -> 3 | I10: =VLOOKUP(VALUE(RIGHT(VLOOKUP(VALUE(LEFT(LevelDifficultyConfig!L10,4)),[3]RewardGroup!$B$1:$E$670,4,FALSE),5)),[4]RewardItemConfig!$B$1:$C$1176,2,FALSE) -> 14 | M10: 11026#1|14#100|3#10
B11: 1041 | C11: 简单-1-4 | D11: 8 | E11: 4004#3004 | F11: =VLOOKUP(VALUE(LEFT(VLOOKUP(VALUE(RIGHT(LevelDifficultyConfig!L11,4)),[3]RewardGroup!$B$1:$E$670,4,FALSE),5)),[4]RewardItemConfig!$B$1:$C$1176,2,FALSE) ->  | G11: =VLOOKUP(VALUE(RIGHT(VLOOKUP(VALUE(RIGHT(LevelDifficultyConfig!L11,4)),[3]RewardGroup!$B$1:$E$670,4,FALSE),5)),[4]RewardItemConfig!$B$1:$C$1176,2,FALSE) ->  | H11: =VLOOKUP(VALUE(LEFT(VLOOKUP(VALUE(LEFT(LevelDifficultyConfig!L11,4)),[3]RewardGroup!$B$1:$E$670,4,FALSE),5)),[4]RewardItemConfig!$B$1:$C$1176,2,FALSE) -> 3 | I11: =VLOOKUP(VALUE(RIGHT(VLOOKUP(VALUE(LEFT(LevelDifficultyConfig!L11,4)),[3]RewardGroup!$B$1:$E$670,4,FALSE),5)),[4]RewardItemConfig!$B$1:$C$1176,2,FALSE) -> 14 | M11: 11027#1|14#100|3#10
B12: 1051 | C12: 简单-1-5 | D12: 8 | E12: 4005#3005 | F12: =VLOOKUP(VALUE(LEFT(VLOOKUP(VALUE(RIGHT(LevelDifficultyConfig!L12,4)),[3]RewardGroup!$B$1:$E$670,4,FALSE),5)),[4]RewardItemConfig!$B$1:$C$1176,2,FALSE) ->  | G12: =VLOOKUP(VALUE(RIGHT(VLOOKUP(VALUE(RIGHT(LevelDifficultyConfig!L12,4)),[3]RewardGroup!$B$1:$E$670,4,FALSE),5)),[4]RewardItemConfig!$B$1:$C$1176,2,FALSE) ->  | H12: =VLOOKUP(VALUE(LEFT(VLOOKUP(VALUE(LEFT(LevelDifficultyConfig!L12,4)),[3]RewardGroup!$B$1:$E$670,4,FALSE),5)),[4]RewardItemConfig!$B$1:$C$1176,2,FALSE) -> 3 | I12: =VLOOKUP(VALUE(RIGHT(VLOOKUP(VALUE(LEFT(LevelDifficultyConfig!L12,4)),[3]RewardGroup!$B$1:$E$670,4,FALSE),5)),[4]RewardItemConfig!$B$1:$C$1176,2,FALSE) -> 14 | M12: 11028#1|14#100|3#10
B13: 2011 | C13: 简单-2-1 | D13: 8 | E13: 4006#3006 | F13: =VLOOKUP(VALUE(LEFT(VLOOKUP(VALUE(RIGHT(LevelDifficultyConfig!L13,4)),[3]RewardGroup!$B$1:$E$670,4,FALSE),5)),[4]RewardItemConfig!$B$1:$C$1176,2,FALSE) ->  | G13: =VLOOKUP(VALUE(RIGHT(VLOOKUP(VALUE(RIGHT(LevelDifficultyConfig!L13,4)),[3]RewardGroup!$B$1:$E$670,4,FALSE),5)),[4]RewardItemConfig!$B$1:$C$1176,2,FALSE) ->  | H13: =VLOOKUP(VALUE(LEFT(VLOOKUP(VALUE(LEFT(LevelDifficultyConfig!L13,4)),[3]RewardGroup!$B$1:$E$670,4,FALSE),5)),[4]RewardItemConfig!$B$1:$C$1176,2,FALSE) -> 3 | I13: =VLOOKUP(VALUE(RIGHT(VLOOKUP(VALUE(LEFT(LevelDifficultyConfig!L13,4)),[3]RewardGroup!$B$1:$E$670,4,FALSE),5)),[4]RewardItemConfig!$B$1:$C$1176,2,FALSE) -> 14 | J13: =I13&"#1|"&G13&"#120|"&F13&"#12" ->  | M13: 11029#1|14#120|3#12
B14: 2021 | C14: 简单-2-2 | D14: 8 | E14: 4007#3007 | F14: =VLOOKUP(VALUE(LEFT(VLOOKUP(VALUE(RIGHT(LevelDifficultyConfig!L14,4)),[3]RewardGroup!$B$1:$E$670,4,FALSE),5)),[4]RewardItemConfig!$B$1:$C$1176,2,FALSE) ->  | G14: =VLOOKUP(VALUE(RIGHT(VLOOKUP(VALUE(RIGHT(LevelDifficultyConfig!L14,4)),[3]RewardGroup!$B$1:$E$670,4,FALSE),5)),[4]RewardItemConfig!$B$1:$C$1176,2,FALSE) ->  | H14: =VLOOKUP(VALUE(LEFT(VLOOKUP(VALUE(LEFT(LevelDifficultyConfig!L14,4)),[3]RewardGroup!$B$1:$E$670,4,FALSE),5)),[4]RewardItemConfig!$B$1:$C$1176,2,FALSE) -> 3 | I14: =VLOOKUP(VALUE(RIGHT(VLOOKUP(VALUE(LEFT(LevelDifficultyConfig!L14,4)),[3]RewardGroup!$B$1:$E$670,4,FALSE),5)),[4]RewardItemConfig!$B$1:$C$1176,2,FALSE) -> 14 | J14: =I14&"#1|"&G14&"#120|"&F14&"#12" ->  | M14: 11030#1|14#120|3#12
B15: 2031 | C15: 简单-2-3 | D15: 8 | E15: 4008#3008 | F15: =VLOOKUP(VALUE(LEFT(VLOOKUP(VALUE(RIGHT(LevelDifficultyConfig!L15,4)),[3]RewardGroup!$B$1:$E$670,4,FALSE),5)),[4]RewardItemConfig!$B$1:$C$1176,2,FALSE) ->  | G15: =VLOOKUP(VALUE(RIGHT(VLOOKUP(VALUE(RIGHT(LevelDifficultyConfig!L15,4)),[3]RewardGroup!$B$1:$E$670,4,FALSE),5)),[4]RewardItemConfig!$B$1:$C$1176,2,FALSE) ->  | H15: =VLOOKUP(VALUE(LEFT(VLOOKUP(VALUE(LEFT(LevelDifficultyConfig!L15,4)),[3]RewardGroup!$B$1:$E$670,4,FALSE),5)),[4]RewardItemConfig!$B$1:$C$1176,2,FALSE) -> 3 | I15: =VLOOKUP(VALUE(RIGHT(VLOOKUP(VALUE(LEFT(LevelDifficultyConfig!L15,4)),[3]RewardGroup!$B$1:$E$670,4,FALSE),5)),[4]RewardItemConfig!$B$1:$C$1176,2,FALSE) -> 14 | M15: 11031#1|14#120|3#12
B16: 2041 | C16: 简单-2-4 | D16: 8 | E16: 4009#3009 | F16: =VLOOKUP(VALUE(LEFT(VLOOKUP(VALUE(RIGHT(LevelDifficultyConfig!L16,4)),[3]RewardGroup!$B$1:$E$670,4,FALSE),5)),[4]RewardItemConfig!$B$1:$C$1176,2,FALSE) ->  | G16: =VLOOKUP(VALUE(RIGHT(VLOOKUP(VALUE(RIGHT(LevelDifficultyConfig!L16,4)),[3]RewardGroup!$B$1:$E$670,4,FALSE),5)),[4]RewardItemConfig!$B$1:$C$1176,2,FALSE) ->  | H16: =VLOOKUP(VALUE(LEFT(VLOOKUP(VALUE(LEFT(LevelDifficultyConfig!L16,4)),[3]RewardGroup!$B$1:$E$670,4,FALSE),5)),[4]RewardItemConfig!$B$1:$C$1176,2,FALSE) -> 3 | I16: =VLOOKUP(VALUE(RIGHT(VLOOKUP(VALUE(LEFT(LevelDifficultyConfig!L16,4)),[3]RewardGroup!$B$1:$E$670,4,FALSE),5)),[4]RewardItemConfig!$B$1:$C$1176,2,FALSE) -> 14 | M16: 11032#1|14#120|3#12
B17: 2051 | C17: 简单-2-5 | D17: 8 | E17: 4010#3010 | F17: =VLOOKUP(VALUE(LEFT(VLOOKUP(VALUE(RIGHT(LevelDifficultyConfig!L17,4)),[3]RewardGroup!$B$1:$E$670,4,FALSE),5)),[4]RewardItemConfig!$B$1:$C$1176,2,FALSE) ->  | G17: =VLOOKUP(VALUE(RIGHT(VLOOKUP(VALUE(RIGHT(LevelDifficultyConfig!L17,4)),[3]RewardGroup!$B$1:$E$670,4,FALSE),5)),[4]RewardItemConfig!$B$1:$C$1176,2,FALSE) ->  | H17: =VLOOKUP(VALUE(LEFT(VLOOKUP(VALUE(LEFT(LevelDifficultyConfig!L17,4)),[3]RewardGroup!$B$1:$E$670,4,FALSE),5)),[4]RewardItemConfig!$B$1:$C$1176,2,FALSE) -> 3 | I17: =VLOOKUP(VALUE(RIGHT(VLOOKUP(VALUE(LEFT(LevelDifficultyConfig!L17,4)),[3]RewardGroup!$B$1:$E$670,4,FALSE),5)),[4]RewardItemConfig!$B$1:$C$1176,2,FALSE) -> 14 | M17: 11033#1|14#120|3#12
B18: 3011 | C18: 简单-3-1 | D18: 8 | E18: 4011#3011 | F18: =VLOOKUP(VALUE(LEFT(VLOOKUP(VALUE(RIGHT(LevelDifficultyConfig!L18,4)),[3]RewardGroup!$B$1:$E$670,4,FALSE),5)),[4]RewardItemConfig!$B$1:$C$1176,2,FALSE) ->  | G18: =VLOOKUP(VALUE(RIGHT(VLOOKUP(VALUE(RIGHT(LevelDifficultyConfig!L18,4)),[3]RewardGroup!$B$1:$E$670,4,FALSE),5)),[4]RewardItemConfig!$B$1:$C$1176,2,FALSE) ->  | H18: =VLOOKUP(VALUE(LEFT(VLOOKUP(VALUE(LEFT(LevelDifficultyConfig!L18,4)),[3]RewardGroup!$B$1:$E$670,4,FALSE),5)),[4]RewardItemConfig!$B$1:$C$1176,2,FALSE) -> 3 | I18: =VLOOKUP(VALUE(RIGHT(VLOOKUP(VALUE(LEFT(LevelDifficultyConfig!L18,4)),[3]RewardGroup!$B$1:$E$670,4,FALSE),5)),[4]RewardItemConfig!$B$1:$C$1176,2,FALSE) -> 14 | J18: =I18&"#1|"&G18&"#140|"&F18&"#14" ->  | M18: 11034#1|14#140|3#14
B19: 3021 | C19: 简单-3-2 | D19: 8 | E19: 4012#3012 | F19: =VLOOKUP(VALUE(LEFT(VLOOKUP(VALUE(RIGHT(LevelDifficultyConfig!L19,4)),[3]RewardGroup!$B$1:$E$670,4,FALSE),5)),[4]RewardItemConfig!$B$1:$C$1176,2,FALSE) ->  | G19: =VLOOKUP(VALUE(RIGHT(VLOOKUP(VALUE(RIGHT(LevelDifficultyConfig!L19,4)),[3]RewardGroup!$B$1:$E$670,4,FALSE),5)),[4]RewardItemConfig!$B$1:$C$1176,2,FALSE) ->  | H19: =VLOOKUP(VALUE(LEFT(VLOOKUP(VALUE(LEFT(LevelDifficultyConfig!L19,4)),[3]RewardGroup!$B$1:$E$670,4,FALSE),5)),[4]RewardItemConfig!$B$1:$C$1176,2,FALSE) -> 3 | I19: =VLOOKUP(VALUE(RIGHT(VLOOKUP(VALUE(LEFT(LevelDifficultyConfig!L19,4)),[3]RewardGroup!$B$1:$E$670,4,FALSE),5)),[4]RewardItemConfig!$B$1:$C$1176,2,FALSE) -> 14 | J19: =I19&"#1|"&G19&"#140|"&F19&"#14" ->  | M19: 11035#1|14#140|3#14
B20: 3031 | C20: 简单-3-3 | D20: 8 | E20: 4013#3013 | F20: =VLOOKUP(VALUE(LEFT(VLOOKUP(VALUE(RIGHT(LevelDifficultyConfig!L20,4)),[3]RewardGroup!$B$1:$E$670,4,FALSE),5)),[4]RewardItemConfig!$B$1:$C$1176,2,FALSE) ->  | G20: =VLOOKUP(VALUE(RIGHT(VLOOKUP(VALUE(RIGHT(LevelDifficultyConfig!L20,4)),[3]RewardGroup!$B$1:$E$670,4,FALSE),5)),[4]RewardItemConfig!$B$1:$C$1176,2,FALSE) ->  | H20: =VLOOKUP(VALUE(LEFT(VLOOKUP(VALUE(LEFT(LevelDifficultyConfig!L20,4)),[3]RewardGroup!$B$1:$E$670,4,FALSE),5)),[4]RewardItemConfig!$B$1:$C$1176,2,FALSE) -> 3 | I20: =VLOOKUP(VALUE(RIGHT(VLOOKUP(VALUE(LEFT(LevelDifficultyConfig!L20,4)),[3]RewardGroup!$B$1:$E$670,4,FALSE),5)),[4]RewardItemConfig!$B$1:$C$1176,2,FALSE) -> 14 | M20: 11036#1|14#140|3#14
B21: 3041 | C21: 简单-3-4 | D21: 8 | E21: 4014#3014 | F21: =VLOOKUP(VALUE(LEFT(VLOOKUP(VALUE(RIGHT(LevelDifficultyConfig!L21,4)),[3]RewardGroup!$B$1:$E$670,4,FALSE),5)),[4]RewardItemConfig!$B$1:$C$1176,2,FALSE) ->  | G21: =VLOOKUP(VALUE(RIGHT(VLOOKUP(VALUE(RIGHT(LevelDifficultyConfig!L21,4)),[3]RewardGroup!$B$1:$E$670,4,FALSE),5)),[4]RewardItemConfig!$B$1:$C$1176,2,FALSE) ->  | H21: =VLOOKUP(VALUE(LEFT(VLOOKUP(VALUE(LEFT(LevelDifficultyConfig!L21,4)),[3]RewardGroup!$B$1:$E$670,4,FALSE),5)),[4]RewardItemConfig!$B$1:$C$1176,2,FALSE) -> 3 | I21: =VLOOKUP(VALUE(RIGHT(VLOOKUP(VALUE(LEFT(LevelDifficultyConfig!L21,4)),[3]RewardGroup!$B$1:$E$670,4,FALSE),5)),[4]RewardItemConfig!$B$1:$C$1176,2,FALSE) -> 14 | M21: 11037#1|14#140|3#14
B22: 3051 | C22: 简单-3-5 | D22: 8 | E22: 4015#3015 | F22: =VLOOKUP(VALUE(LEFT(VLOOKUP(VALUE(RIGHT(LevelDifficultyConfig!L22,4)),[3]RewardGroup!$B$1:$E$670,4,FALSE),5)),[4]RewardItemConfig!$B$1:$C$1176,2,FALSE) ->  | G22: =VLOOKUP(VALUE(RIGHT(VLOOKUP(VALUE(RIGHT(LevelDifficultyConfig!L22,4)),[3]RewardGroup!$B$1:$E$670,4,FALSE),5)),[4]RewardItemConfig!$B$1:$C$1176,2,FALSE) ->  | H22: =VLOOKUP(VALUE(LEFT(VLOOKUP(VALUE(LEFT(LevelDifficultyConfig!L22,4)),[3]RewardGroup!$B$1:$E$670,4,FALSE),5)),[4]RewardItemConfig!$B$1:$C$1176,2,FALSE) -> 3 | I22: =VLOOKUP(VALUE(RIGHT(VLOOKUP(VALUE(LEFT(LevelDifficultyConfig!L22,4)),[3]RewardGroup!$B$1:$E$670,4,FALSE),5)),[4]RewardItemConfig!$B$1:$C$1176,2,FALSE) -> 14 | M22: 11038#1|14#140|3#14
B23: 4011 | C23: 简单-4-1 | D23: 8 | E23: 4016#3016 | F23: =VLOOKUP(VALUE(LEFT(VLOOKUP(VALUE(RIGHT(LevelDifficultyConfig!L23,4)),[3]RewardGroup!$B$1:$E$670,4,FALSE),5)),[4]RewardItemConfig!$B$1:$C$1176,2,FALSE) ->  | G23: =VLOOKUP(VALUE(RIGHT(VLOOKUP(VALUE(RIGHT(LevelDifficultyConfig!L23,4)),[3]RewardGroup!$B$1:$E$670,4,FALSE),5)),[4]RewardItemConfig!$B$1:$C$1176,2,FALSE) ->  | H23: =VLOOKUP(VALUE(LEFT(VLOOKUP(VALUE(LEFT(LevelDifficultyConfig!L23,4)),[3]RewardGroup!$B$1:$E$670,4,FALSE),5)),[4]RewardItemConfig!$B$1:$C$1176,2,FALSE) -> 3 | I23: =VLOOKUP(VALUE(RIGHT(VLOOKUP(VALUE(LEFT(LevelDifficultyConfig!L23,4)),[3]RewardGroup!$B$1:$E$670,4,FALSE),5)),[4]RewardItemConfig!$B$1:$C$1176,2,FALSE) -> 14 | J23: =I23&"#1|"&G23&"#160|"&F23&"#16" ->  | M23: 11039#1|14#160|3#16
B24: 4021 | C24: 简单-4-2 | D24: 8 | E24: 4017#3017 | F24: =VLOOKUP(VALUE(LEFT(VLOOKUP(VALUE(RIGHT(LevelDifficultyConfig!L24,4)),[3]RewardGroup!$B$1:$E$670,4,FALSE),5)),[4]RewardItemConfig!$B$1:$C$1176,2,FALSE) ->  | G24: =VLOOKUP(VALUE(RIGHT(VLOOKUP(VALUE(RIGHT(LevelDifficultyConfig!L24,4)),[3]RewardGroup!$B$1:$E$670,4,FALSE),5)),[4]RewardItemConfig!$B$1:$C$1176,2,FALSE) ->  | H24: =VLOOKUP(VALUE(LEFT(VLOOKUP(VALUE(LEFT(LevelDifficultyConfig!L24,4)),[3]RewardGroup!$B$1:$E$670,4,FALSE),5)),[4]RewardItemConfig!$B$1:$C$1176,2,FALSE) -> 3 | I24: =VLOOKUP(VALUE(RIGHT(VLOOKUP(VALUE(LEFT(LevelDifficultyConfig!L24,4)),[3]RewardGroup!$B$1:$E$670,4,FALSE),5)),[4]RewardItemConfig!$B$1:$C$1176,2,FALSE) -> 14 | J24: =I24&"#1|"&G24&"#160|"&F24&"#16" ->  | M24: 11040#1|14#160|3#16
B25: 4031 | C25: 简单-4-3 | D25: 8 | E25: 4018#3018 | F25: =VLOOKUP(VALUE(LEFT(VLOOKUP(VALUE(RIGHT(LevelDifficultyConfig!L25,4)),[3]RewardGroup!$B$1:$E$670,4,FALSE),5)),[4]RewardItemConfig!$B$1:$C$1176,2,FALSE) ->  | G25: =VLOOKUP(VALUE(RIGHT(VLOOKUP(VALUE(RIGHT(LevelDifficultyConfig!L25,4)),[3]RewardGroup!$B$1:$E$670,4,FALSE),5)),[4]RewardItemConfig!$B$1:$C$1176,2,FALSE) ->  | H25: =VLOOKUP(VALUE(LEFT(VLOOKUP(VALUE(LEFT(LevelDifficultyConfig!L25,4)),[3]RewardGroup!$B$1:$E$670,4,FALSE),5)),[4]RewardItemConfig!$B$1:$C$1176,2,FALSE) -> 3 | I25: =VLOOKUP(VALUE(RIGHT(VLOOKUP(VALUE(LEFT(LevelDifficultyConfig!L25,4)),[3]RewardGroup!$B$1:$E$670,4,FALSE),5)),[4]RewardItemConfig!$B$1:$C$1176,2,FALSE) -> 14 | M25: 11041#1|14#160|3#16
B26: 4041 | C26: 简单-4-4 | D26: 8 | E26: 4019#3019 | F26: =VLOOKUP(VALUE(LEFT(VLOOKUP(VALUE(RIGHT(LevelDifficultyConfig!L26,4)),[3]RewardGroup!$B$1:$E$670,4,FALSE),5)),[4]RewardItemConfig!$B$1:$C$1176,2,FALSE) ->  | G26: =VLOOKUP(VALUE(RIGHT(VLOOKUP(VALUE(RIGHT(LevelDifficultyConfig!L26,4)),[3]RewardGroup!$B$1:$E$670,4,FALSE),5)),[4]RewardItemConfig!$B$1:$C$1176,2,FALSE) ->  | H26: =VLOOKUP(VALUE(LEFT(VLOOKUP(VALUE(LEFT(LevelDifficultyConfig!L26,4)),[3]RewardGroup!$B$1:$E$670,4,FALSE),5)),[4]RewardItemConfig!$B$1:$C$1176,2,FALSE) -> 3 | I26: =VLOOKUP(VALUE(RIGHT(VLOOKUP(VALUE(LEFT(LevelDifficultyConfig!L26,4)),[3]RewardGroup!$B$1:$E$670,4,FALSE),5)),[4]RewardItemConfig!$B$1:$C$1176,2,FALSE) -> 14 | M26: 11042#1|14#160|3#16
B27: 4051 | C27: 简单-4-5 | D27: 8 | E27: 4020#3020 | F27: =VLOOKUP(VALUE(LEFT(VLOOKUP(VALUE(RIGHT(LevelDifficultyConfig!L27,4)),[3]RewardGroup!$B$1:$E$670,4,FALSE),5)),[4]RewardItemConfig!$B$1:$C$1176,2,FALSE) ->  | G27: =VLOOKUP(VALUE(RIGHT(VLOOKUP(VALUE(RIGHT(LevelDifficultyConfig!L27,4)),[3]RewardGroup!$B$1:$E$670,4,FALSE),5)),[4]RewardItemConfig!$B$1:$C$1176,2,FALSE) ->  | H27: =VLOOKUP(VALUE(LEFT(VLOOKUP(VALUE(LEFT(LevelDifficultyConfig!L27,4)),[3]RewardGroup!$B$1:$E$670,4,FALSE),5)),[4]RewardItemConfig!$B$1:$C$1176,2,FALSE) -> 3 | I27: =VLOOKUP(VALUE(RIGHT(VLOOKUP(VALUE(LEFT(LevelDifficultyConfig!L27,4)),[3]RewardGroup!$B$1:$E$670,4,FALSE),5)),[4]RewardItemConfig!$B$1:$C$1176,2,FALSE) -> 14 | M27: 11043#1|14#160|3#16
B28: 5011 | C28: 简单-5-1 | D28: 8 | E28: 4021#3021 | F28: =VLOOKUP(VALUE(LEFT(VLOOKUP(VALUE(RIGHT(LevelDifficultyConfig!L28,4)),[3]RewardGroup!$B$1:$E$670,4,FALSE),5)),[4]RewardItemConfig!$B$1:$C$1176,2,FALSE) ->  | G28: =VLOOKUP(VALUE(RIGHT(VLOOKUP(VALUE(RIGHT(LevelDifficultyConfig!L28,4)),[3]RewardGroup!$B$1:$E$670,4,FALSE),5)),[4]RewardItemConfig!$B$1:$C$1176,2,FALSE) ->  | H28: =VLOOKUP(VALUE(LEFT(VLOOKUP(VALUE(LEFT(LevelDifficultyConfig!L28,4)),[3]RewardGroup!$B$1:$E$670,4,FALSE),5)),[4]RewardItemConfig!$B$1:$C$1176,2,FALSE) -> 3 | I28: =VLOOKUP(VALUE(RIGHT(VLOOKUP(VALUE(LEFT(LevelDifficultyConfig!L28,4)),[3]RewardGroup!$B$1:$E$670,4,FALSE),5)),[4]RewardItemConfig!$B$1:$C$1176,2,FALSE) -> 14 | J28: =I28&"#1|"&G28&"#180|"&F28&"#18" ->  | M28: 11044#1|14#180|3#18
B29: 5021 | C29: 简单-5-2 | D29: 8 | E29: 4022#3022 | F29: =VLOOKUP(VALUE(LEFT(VLOOKUP(VALUE(RIGHT(LevelDifficultyConfig!L29,4)),[3]RewardGroup!$B$1:$E$670,4,FALSE),5)),[4]RewardItemConfig!$B$1:$C$1176,2,FALSE) ->  | G29: =VLOOKUP(VALUE(RIGHT(VLOOKUP(VALUE(RIGHT(LevelDifficultyConfig!L29,4)),[3]RewardGroup!$B$1:$E$670,4,FALSE),5)),[4]RewardItemConfig!$B$1:$C$1176,2,FALSE) ->  | H29: =VLOOKUP(VALUE(LEFT(VLOOKUP(VALUE(LEFT(LevelDifficultyConfig!L29,4)),[3]RewardGroup!$B$1:$E$670,4,FALSE),5)),[4]RewardItemConfig!$B$1:$C$1176,2,FALSE) -> 3 | I29: =VLOOKUP(VALUE(RIGHT(VLOOKUP(VALUE(LEFT(LevelDifficultyConfig!L29,4)),[3]RewardGroup!$B$1:$E$670,4,FALSE),5)),[4]RewardItemConfig!$B$1:$C$1176,2,FALSE) -> 14 | J29: =I29&"#1|"&G29&"#180|"&F29&"#18" ->  | M29: 11045#1|14#180|3#18
B30: 5031 | C30: 简单-5-3 | D30: 8 | E30: 4023#3023 | F30: =VLOOKUP(VALUE(LEFT(VLOOKUP(VALUE(RIGHT(LevelDifficultyConfig!L30,4)),[3]RewardGroup!$B$1:$E$670,4,FALSE),5)),[4]RewardItemConfig!$B$1:$C$1176,2,FALSE) ->  | G30: =VLOOKUP(VALUE(RIGHT(VLOOKUP(VALUE(RIGHT(LevelDifficultyConfig!L30,4)),[3]RewardGroup!$B$1:$E$670,4,FALSE),5)),[4]RewardItemConfig!$B$1:$C$1176,2,FALSE) ->  | H30: =VLOOKUP(VALUE(LEFT(VLOOKUP(VALUE(LEFT(LevelDifficultyConfig!L30,4)),[3]RewardGroup!$B$1:$E$670,4,FALSE),5)),[4]RewardItemConfig!$B$1:$C$1176,2,FALSE) -> 3 | I30: =VLOOKUP(VALUE(RIGHT(VLOOKUP(VALUE(LEFT(LevelDifficultyConfig!L30,4)),[3]RewardGroup!$B$1:$E$670,4,FALSE),5)),[4]RewardItemConfig!$B$1:$C$1176,2,FALSE) -> 14 | M30: 11046#1|14#180|3#18
B31: 5041 | C31: 简单-5-4 | D31: 8 | E31: 4024#3024 | F31: =VLOOKUP(VALUE(LEFT(VLOOKUP(VALUE(RIGHT(LevelDifficultyConfig!L31,4)),[3]RewardGroup!$B$1:$E$670,4,FALSE),5)),[4]RewardItemConfig!$B$1:$C$1176,2,FALSE) ->  | G31: =VLOOKUP(VALUE(RIGHT(VLOOKUP(VALUE(RIGHT(LevelDifficultyConfig!L31,4)),[3]RewardGroup!$B$1:$E$670,4,FALSE),5)),[4]RewardItemConfig!$B$1:$C$1176,2,FALSE) ->  | H31: =VLOOKUP(VALUE(LEFT(VLOOKUP(VALUE(LEFT(LevelDifficultyConfig!L31,4)),[3]RewardGroup!$B$1:$E$670,4,FALSE),5)),[4]RewardItemConfig!$B$1:$C$1176,2,FALSE) -> 3 | I31: =VLOOKUP(VALUE(RIGHT(VLOOKUP(VALUE(LEFT(LevelDifficultyConfig!L31,4)),[3]RewardGroup!$B$1:$E$670,4,FALSE),5)),[4]RewardItemConfig!$B$1:$C$1176,2,FALSE) -> 14 | M31: 11002#1|14#180|3#18
B32: 5051 | C32: 简单-5-5 | D32: 8 | E32: 4025#3025 | F32: =VLOOKUP(VALUE(LEFT(VLOOKUP(VALUE(RIGHT(LevelDifficultyConfig!L32,4)),[3]RewardGroup!$B$1:$E$670,4,FALSE),5)),[4]RewardItemConfig!$B$1:$C$1176,2,FALSE) ->  | G32: =VLOOKUP(VALUE(RIGHT(VLOOKUP(VALUE(RIGHT(LevelDifficultyConfig!L32,4)),[3]RewardGroup!$B$1:$E$670,4,FALSE),5)),[4]RewardItemConfig!$B$1:$C$1176,2,FALSE) ->  | H32: =VLOOKUP(VALUE(LEFT(VLOOKUP(VALUE(LEFT(LevelDifficultyConfig!L32,4)),[3]RewardGroup!$B$1:$E$670,4,FALSE),5)),[4]RewardItemConfig!$B$1:$C$1176,2,FALSE) -> 3 | I32: =VLOOKUP(VALUE(RIGHT(VLOOKUP(VALUE(LEFT(LevelDifficultyConfig!L32,4)),[3]RewardGroup!$B$1:$E$670,4,FALSE),5)),[4]RewardItemConfig!$B$1:$C$1176,2,FALSE) -> 14 | M32: 11003#1|14#180|3#18
B33: 6011 | C33: 简单-6-1 | D33: 8 | E33: 4026#3026 | F33: =VLOOKUP(VALUE(LEFT(VLOOKUP(VALUE(RIGHT(LevelDifficultyConfig!L33,4)),[3]RewardGroup!$B$1:$E$670,4,FALSE),5)),[4]RewardItemConfig!$B$1:$C$1176,2,FALSE) ->  | G33: =VLOOKUP(VALUE(RIGHT(VLOOKUP(VALUE(RIGHT(LevelDifficultyConfig!L33,4)),[3]RewardGroup!$B$1:$E$670,4,FALSE),5)),[4]RewardItemConfig!$B$1:$C$1176,2,FALSE) ->  | H33: =VLOOKUP(VALUE(LEFT(VLOOKUP(VALUE(LEFT(LevelDifficultyConfig!L33,4)),[3]RewardGroup!$B$1:$E$670,4,FALSE),5)),[4]RewardItemConfig!$B$1:$C$1176,2,FALSE) -> 3 | I33: =VLOOKUP(VALUE(RIGHT(VLOOKUP(VALUE(LEFT(LevelDifficultyConfig!L33,4)),[3]RewardGroup!$B$1:$E$670,4,FALSE),5)),[4]RewardItemConfig!$B$1:$C$1176,2,FALSE) -> 14 | J33: =I33&"#1|"&G33&"#200|"&F33&"#20" ->  | M33: 11005#1|14#200|3#20
B34: 6021 | C34: 简单-6-2 | D34: 8 | E34: 4027#3027 | F34: =VLOOKUP(VALUE(LEFT(VLOOKUP(VALUE(RIGHT(LevelDifficultyConfig!L34,4)),[3]RewardGroup!$B$1:$E$670,4,FALSE),5)),[4]RewardItemConfig!$B$1:$C$1176,2,FALSE) ->  | G34: =VLOOKUP(VALUE(RIGHT(VLOOKUP(VALUE(RIGHT(LevelDifficultyConfig!L34,4)),[3]RewardGroup!$B$1:$E$670,4,FALSE),5)),[4]RewardItemConfig!$B$1:$C$1176,2,FALSE) ->  | H34: =VLOOKUP(VALUE(LEFT(VLOOKUP(VALUE(LEFT(LevelDifficultyConfig!L34,4)),[3]RewardGroup!$B$1:$E$670,4,FALSE),5)),[4]RewardItemConfig!$B$1:$C$1176,2,FALSE) -> 3 | I34: =VLOOKUP(VALUE(RIGHT(VLOOKUP(VALUE(LEFT(LevelDifficultyConfig!L34,4)),[3]RewardGroup!$B$1:$E$670,4,FALSE),5)),[4]RewardItemConfig!$B$1:$C$1176,2,FALSE) -> 14 | J34: =I34&"#1|"&G34&"#200|"&F34&"#20" ->  | M34: 11006#1|14#200|3#20
B35: 6031 | C35: 简单-6-3 | D35: 8 | E35: 4028#3028 | F35: =VLOOKUP(VALUE(LEFT(VLOOKUP(VALUE(RIGHT(LevelDifficultyConfig!L35,4)),[3]RewardGroup!$B$1:$E$670,4,FALSE),5)),[4]RewardItemConfig!$B$1:$C$1176,2,FALSE) ->  | G35: =VLOOKUP(VALUE(RIGHT(VLOOKUP(VALUE(RIGHT(LevelDifficultyConfig!L35,4)),[3]RewardGroup!$B$1:$E$670,4,FALSE),5)),[4]RewardItemConfig!$B$1:$C$1176,2,FALSE) ->  | H35: =VLOOKUP(VALUE(LEFT(VLOOKUP(VALUE(LEFT(LevelDifficultyConfig!L35,4)),[3]RewardGroup!$B$1:$E$670,4,FALSE),5)),[4]RewardItemConfig!$B$1:$C$1176,2,FALSE) -> 3 | I35: =VLOOKUP(VALUE(RIGHT(VLOOKUP(VALUE(LEFT(LevelDifficultyConfig!L35,4)),[3]RewardGroup!$B$1:$E$670,4,FALSE),5)),[4]RewardItemConfig!$B$1:$C$1176,2,FALSE) -> 14 | M35: 11007#1|14#200|3#20
B36: 6041 | C36: 简单-6-4 | D36: 8 | E36: 4029#3029 | F36: =VLOOKUP(VALUE(LEFT(VLOOKUP(VALUE(RIGHT(LevelDifficultyConfig!L36,4)),[3]RewardGroup!$B$1:$E$670,4,FALSE),5)),[4]RewardItemConfig!$B$1:$C$1176,2,FALSE) ->  | G36: =VLOOKUP(VALUE(RIGHT(VLOOKUP(VALUE(RIGHT(LevelDifficultyConfig!L36,4)),[3]RewardGroup!$B$1:$E$670,4,FALSE),5)),[4]RewardItemConfig!$B$1:$C$1176,2,FALSE) ->  | H36: =VLOOKUP(VALUE(LEFT(VLOOKUP(VALUE(LEFT(LevelDifficultyConfig!L36,4)),[3]RewardGroup!$B$1:$E$670,4,FALSE),5)),[4]RewardItemConfig!$B$1:$C$1176,2,FALSE) -> 3 | I36: =VLOOKUP(VALUE(RIGHT(VLOOKUP(VALUE(LEFT(LevelDifficultyConfig!L36,4)),[3]RewardGroup!$B$1:$E$670,4,FALSE),5)),[4]RewardItemConfig!$B$1:$C$1176,2,FALSE) -> 14 | M36: 11009#1|14#200|3#20
B37: 6051 | C37: 简单-6-5 | D37: 8 | E37: 4030#3030 | F37: =VLOOKUP(VALUE(LEFT(VLOOKUP(VALUE(RIGHT(LevelDifficultyConfig!L37,4)),[3]RewardGroup!$B$1:$E$670,4,FALSE),5)),[4]RewardItemConfig!$B$1:$C$1176,2,FALSE) ->  | G37: =VLOOKUP(VALUE(RIGHT(VLOOKUP(VALUE(RIGHT(LevelDifficultyConfig!L37,4)),[3]RewardGroup!$B$1:$E$670,4,FALSE),5)),[4]RewardItemConfig!$B$1:$C$1176,2,FALSE) ->  | H37: =VLOOKUP(VALUE(LEFT(VLOOKUP(VALUE(LEFT(LevelDifficultyConfig!L37,4)),[3]RewardGroup!$B$1:$E$670,4,FALSE),5)),[4]RewardItemConfig!$B$1:$C$1176,2,FALSE) -> 3 | I37: =VLOOKUP(VALUE(RIGHT(VLOOKUP(VALUE(LEFT(LevelDifficultyConfig!L37,4)),[3]RewardGroup!$B$1:$E$670,4,FALSE),5)),[4]RewardItemConfig!$B$1:$C$1176,2,FALSE) -> 14 | M37: 11010#1|14#200|3#20
B38: 7011 | C38: 简单-7-1 | D38: 8 | E38: 4031#3031 | F38: =VLOOKUP(VALUE(LEFT(VLOOKUP(VALUE(RIGHT(LevelDifficultyConfig!L38,4)),[3]RewardGroup!$B$1:$E$670,4,FALSE),5)),[4]RewardItemConfig!$B$1:$C$1176,2,FALSE) ->  | G38: =VLOOKUP(VALUE(RIGHT(VLOOKUP(VALUE(RIGHT(LevelDifficultyConfig!L38,4)),[3]RewardGroup!$B$1:$E$670,4,FALSE),5)),[4]RewardItemConfig!$B$1:$C$1176,2,FALSE) ->  | H38: =VLOOKUP(VALUE(LEFT(VLOOKUP(VALUE(LEFT(LevelDifficultyConfig!L38,4)),[3]RewardGroup!$B$1:$E$670,4,FALSE),5)),[4]RewardItemConfig!$B$1:$C$1176,2,FALSE) -> 3 | I38: =VLOOKUP(VALUE(RIGHT(VLOOKUP(VALUE(LEFT(LevelDifficultyConfig!L38,4)),[3]RewardGroup!$B$1:$E$670,4,FALSE),5)),[4]RewardItemConfig!$B$1:$C$1176,2,FALSE) -> 14 | J38: =I38&"#1|"&G38&"#220|"&F38&"#22" ->  | M38: 11011#1|14#220|3#22
B39: 7021 | C39: 简单-7-2 | D39: 8 | E39: 4032#3032 | F39: =VLOOKUP(VALUE(LEFT(VLOOKUP(VALUE(RIGHT(LevelDifficultyConfig!L39,4)),[3]RewardGroup!$B$1:$E$670,4,FALSE),5)),[4]RewardItemConfig!$B$1:$C$1176,2,FALSE) ->  | G39: =VLOOKUP(VALUE(RIGHT(VLOOKUP(VALUE(RIGHT(LevelDifficultyConfig!L39,4)),[3]RewardGroup!$B$1:$E$670,4,FALSE),5)),[4]RewardItemConfig!$B$1:$C$1176,2,FALSE) ->  | H39: =VLOOKUP(VALUE(LEFT(VLOOKUP(VALUE(LEFT(LevelDifficultyConfig!L39,4)),[3]RewardGroup!$B$1:$E$670,4,FALSE),5)),[4]RewardItemConfig!$B$1:$C$1176,2,FALSE) -> 3 | I39: =VLOOKUP(VALUE(RIGHT(VLOOKUP(VALUE(LEFT(LevelDifficultyConfig!L39,4)),[3]RewardGroup!$B$1:$E$670,4,FALSE),5)),[4]RewardItemConfig!$B$1:$C$1176,2,FALSE) -> 14 | J39: =I39&"#1|"&G39&"#220|"&F39&"#22" ->  | M39: 11013#1|14#220|3#22
B40: 7031 | C40: 简单-7-3 | D40: 8 | E40: 4033#3033 | F40: =VLOOKUP(VALUE(LEFT(VLOOKUP(VALUE(RIGHT(LevelDifficultyConfig!L40,4)),[3]RewardGroup!$B$1:$E$670,4,FALSE),5)),[4]RewardItemConfig!$B$1:$C$1176,2,FALSE) ->  | G40: =VLOOKUP(VALUE(RIGHT(VLOOKUP(VALUE(RIGHT(LevelDifficultyConfig!L40,4)),[3]RewardGroup!$B$1:$E$670,4,FALSE),5)),[4]RewardItemConfig!$B$1:$C$1176,2,FALSE) ->  | H40: =VLOOKUP(VALUE(LEFT(VLOOKUP(VALUE(LEFT(LevelDifficultyConfig!L40,4)),[3]RewardGroup!$B$1:$E$670,4,FALSE),5)),[4]RewardItemConfig!$B$1:$C$1176,2,FALSE) -> 3 | I40: =VLOOKUP(VALUE(RIGHT(VLOOKUP(VALUE(LEFT(LevelDifficultyConfig!L40,4)),[3]RewardGroup!$B$1:$E$670,4,FALSE),5)),[4]RewardItemConfig!$B$1:$C$1176,2,FALSE) -> 14 | M40: 11019#1|14#220|3#22
B41: 7041 | C41: 简单-7-4 | D41: 8 | E41: 4034#3034 | F41: =VLOOKUP(VALUE(LEFT(VLOOKUP(VALUE(RIGHT(LevelDifficultyConfig!L41,4)),[3]RewardGroup!$B$1:$E$670,4,FALSE),5)),[4]RewardItemConfig!$B$1:$C$1176,2,FALSE) ->  | G41: =VLOOKUP(VALUE(RIGHT(VLOOKUP(VALUE(RIGHT(LevelDifficultyConfig!L41,4)),[3]RewardGroup!$B$1:$E$670,4,FALSE),5)),[4]RewardItemConfig!$B$1:$C$1176,2,FALSE) ->  | H41: =VLOOKUP(VALUE(LEFT(VLOOKUP(VALUE(LEFT(LevelDifficultyConfig!L41,4)),[3]RewardGroup!$B$1:$E$670,4,FALSE),5)),[4]RewardItemConfig!$B$1:$C$1176,2,FALSE) -> 3 | I41: =VLOOKUP(VALUE(RIGHT(VLOOKUP(VALUE(LEFT(LevelDifficultyConfig!L41,4)),[3]RewardGroup!$B$1:$E$670,4,FALSE),5)),[4]RewardItemConfig!$B$1:$C$1176,2,FALSE) -> 14 | M41: 11020#1|14#220|3#22
B42: 7051 | C42: 简单-7-5 | D42: 8 | E42: 4035#3035 | F42: =VLOOKUP(VALUE(LEFT(VLOOKUP(VALUE(RIGHT(LevelDifficultyConfig!L42,4)),[3]RewardGroup!$B$1:$E$670,4,FALSE),5)),[4]RewardItemConfig!$B$1:$C$1176,2,FALSE) ->  | G42: =VLOOKUP(VALUE(RIGHT(VLOOKUP(VALUE(RIGHT(LevelDifficultyConfig!L42,4)),[3]RewardGroup!$B$1:$E$670,4,FALSE),5)),[4]RewardItemConfig!$B$1:$C$1176,2,FALSE) ->  | H42: =VLOOKUP(VALUE(LEFT(VLOOKUP(VALUE(LEFT(LevelDifficultyConfig!L42,4)),[3]RewardGroup!$B$1:$E$670,4,FALSE),5)),[4]RewardItemConfig!$B$1:$C$1176,2,FALSE) -> 3 | I42: =VLOOKUP(VALUE(RIGHT(VLOOKUP(VALUE(LEFT(LevelDifficultyConfig!L42,4)),[3]RewardGroup!$B$1:$E$670,4,FALSE),5)),[4]RewardItemConfig!$B$1:$C$1176,2,FALSE) -> 14 | M42: 11021#1|14#220|3#22
B43: 8011 | C43: 简单-8-1 | D43: 8 | E43: 4036#3036 | F43: =VLOOKUP(VALUE(LEFT(VLOOKUP(VALUE(RIGHT(LevelDifficultyConfig!L43,4)),[3]RewardGroup!$B$1:$E$670,4,FALSE),5)),[4]RewardItemConfig!$B$1:$C$1176,2,FALSE) ->  | G43: =VLOOKUP(VALUE(RIGHT(VLOOKUP(VALUE(RIGHT(LevelDifficultyConfig!L43,4)),[3]RewardGroup!$B$1:$E$670,4,FALSE),5)),[4]RewardItemConfig!$B$1:$C$1176,2,FALSE) ->  | H43: =VLOOKUP(VALUE(LEFT(VLOOKUP(VALUE(LEFT(LevelDifficultyConfig!L43,4)),[3]RewardGroup!$B$1:$E$670,4,FALSE),5)),[4]RewardItemConfig!$B$1:$C$1176,2,FALSE) -> 3 | I43: =VLOOKUP(VALUE(RIGHT(VLOOKUP(VALUE(LEFT(LevelDifficultyConfig!L43,4)),[3]RewardGroup!$B$1:$E$670,4,FALSE),5)),[4]RewardItemConfig!$B$1:$C$1176,2,FALSE) -> 14 | J43: =I43&"#1|"&G43&"#240|"&F43&"#24" ->  | M43: 11022#1|14#240|3#24
B44: 8021 | C44: 简单-8-2 | D44: 8 | E44: 4037#3037 | F44: =VLOOKUP(VALUE(LEFT(VLOOKUP(VALUE(RIGHT(LevelDifficultyConfig!L44,4)),[3]RewardGroup!$B$1:$E$670,4,FALSE),5)),[4]RewardItemConfig!$B$1:$C$1176,2,FALSE) ->  | G44: =VLOOKUP(VALUE(RIGHT(VLOOKUP(VALUE(RIGHT(LevelDifficultyConfig!L44,4)),[3]RewardGroup!$B$1:$E$670,4,FALSE),5)),[4]RewardItemConfig!$B$1:$C$1176,2,FALSE) ->  | H44: =VLOOKUP(VALUE(LEFT(VLOOKUP(VALUE(LEFT(LevelDifficultyConfig!L44,4)),[3]RewardGroup!$B$1:$E$670,4,FALSE),5)),[4]RewardItemConfig!$B$1:$C$1176,2,FALSE) -> 3 | I44: =VLOOKUP(VALUE(RIGHT(VLOOKUP(VALUE(LEFT(LevelDifficultyConfig!L44,4)),[3]RewardGroup!$B$1:$E$670,4,FALSE),5)),[4]RewardItemConfig!$B$1:$C$1176,2,FALSE) -> 14 | J44: =I44&"#1|"&G44&"#240|"&F44&"#24" ->  | M44: 11002#1|14#240|3#24
B45: 8031 | C45: 简单-8-3 | D45: 8 | E45: 4038#3038 | F45: =VLOOKUP(VALUE(LEFT(VLOOKUP(VALUE(RIGHT(LevelDifficultyConfig!L45,4)),[3]RewardGroup!$B$1:$E$670,4,FALSE),5)),[4]RewardItemConfig!$B$1:$C$1176,2,FALSE) ->  | G45: =VLOOKUP(VALUE(RIGHT(VLOOKUP(VALUE(RIGHT(LevelDifficultyConfig!L45,4)),[3]RewardGroup!$B$1:$E$670,4,FALSE),5)),[4]RewardItemConfig!$B$1:$C$1176,2,FALSE) ->  | H45: =VLOOKUP(VALUE(LEFT(VLOOKUP(VALUE(LEFT(LevelDifficultyConfig!L45,4)),[3]RewardGroup!$B$1:$E$670,4,FALSE),5)),[4]RewardItemConfig!$B$1:$C$1176,2,FALSE) -> 3 | I45: =VLOOKUP(VALUE(RIGHT(VLOOKUP(VALUE(LEFT(LevelDifficultyConfig!L45,4)),[3]RewardGroup!$B$1:$E$670,4,FALSE),5)),[4]RewardItemConfig!$B$1:$C$1176,2,FALSE) -> 14 | M45: 11003#1|14#240|3#24
B46: 8041 | C46: 简单-8-4 | D46: 8 | E46: 4039#3039 | F46: =VLOOKUP(VALUE(LEFT(VLOOKUP(VALUE(RIGHT(LevelDifficultyConfig!L46,4)),[3]RewardGroup!$B$1:$E$670,4,FALSE),5)),[4]RewardItemConfig!$B$1:$C$1176,2,FALSE) ->  | G46: =VLOOKUP(VALUE(RIGHT(VLOOKUP(VALUE(RIGHT(LevelDifficultyConfig!L46,4)),[3]RewardGroup!$B$1:$E$670,4,FALSE),5)),[4]RewardItemConfig!$B$1:$C$1176,2,FALSE) ->  | H46: =VLOOKUP(VALUE(LEFT(VLOOKUP(VALUE(LEFT(LevelDifficultyConfig!L46,4)),[3]RewardGroup!$B$1:$E$670,4,FALSE),5)),[4]RewardItemConfig!$B$1:$C$1176,2,FALSE) -> 3 | I46: =VLOOKUP(VALUE(RIGHT(VLOOKUP(VALUE(LEFT(LevelDifficultyConfig!L46,4)),[3]RewardGroup!$B$1:$E$670,4,FALSE),5)),[4]RewardItemConfig!$B$1:$C$1176,2,FALSE) -> 14 | M46: 11005#1|14#240|3#24
B47: 8051 | C47: 简单-8-5 | D47: 8 | E47: 4040#3040 | F47: =VLOOKUP(VALUE(LEFT(VLOOKUP(VALUE(RIGHT(LevelDifficultyConfig!L47,4)),[3]RewardGroup!$B$1:$E$670,4,FALSE),5)),[4]RewardItemConfig!$B$1:$C$1176,2,FALSE) ->  | G47: =VLOOKUP(VALUE(RIGHT(VLOOKUP(VALUE(RIGHT(LevelDifficultyConfig!L47,4)),[3]RewardGroup!$B$1:$E$670,4,FALSE),5)),[4]RewardItemConfig!$B$1:$C$1176,2,FALSE) ->  | H47: =VLOOKUP(VALUE(LEFT(VLOOKUP(VALUE(LEFT(LevelDifficultyConfig!L47,4)),[3]RewardGroup!$B$1:$E$670,4,FALSE),5)),[4]RewardItemConfig!$B$1:$C$1176,2,FALSE) -> 3 | I47: =VLOOKUP(VALUE(RIGHT(VLOOKUP(VALUE(LEFT(LevelDifficultyConfig!L47,4)),[3]RewardGroup!$B$1:$E$670,4,FALSE),5)),[4]RewardItemConfig!$B$1:$C$1176,2,FALSE) -> 14 | M47: 11006#1|14#240|3#24
B48: 9011 | C48: 简单-9-1 | D48: 8 | E48: 4041#3041 | F48: =VLOOKUP(VALUE(LEFT(VLOOKUP(VALUE(RIGHT(LevelDifficultyConfig!L48,4)),[3]RewardGroup!$B$1:$E$670,4,FALSE),5)),[4]RewardItemConfig!$B$1:$C$1176,2,FALSE) ->  | G48: =VLOOKUP(VALUE(RIGHT(VLOOKUP(VALUE(RIGHT(LevelDifficultyConfig!L48,4)),[3]RewardGroup!$B$1:$E$670,4,FALSE),5)),[4]RewardItemConfig!$B$1:$C$1176,2,FALSE) ->  | H48: =VLOOKUP(VALUE(LEFT(VLOOKUP(VALUE(LEFT(LevelDifficultyConfig!L48,4)),[3]RewardGroup!$B$1:$E$670,4,FALSE),5)),[4]RewardItemConfig!$B$1:$C$1176,2,FALSE) -> 3 | I48: =VLOOKUP(VALUE(RIGHT(VLOOKUP(VALUE(LEFT(LevelDifficultyConfig!L48,4)),[3]RewardGroup!$B$1:$E$670,4,FALSE),5)),[4]RewardItemConfig!$B$1:$C$1176,2,FALSE) -> 14 | J48: =I48&"#1|"&G48&"#260|"&F48&"#26" ->  | M48: 11007#1|14#260|3#26
B49: 9021 | C49: 简单-9-2 | D49: 8 | E49: 4042#3042 | F49: =VLOOKUP(VALUE(LEFT(VLOOKUP(VALUE(RIGHT(LevelDifficultyConfig!L49,4)),[3]RewardGroup!$B$1:$E$670,4,FALSE),5)),[4]RewardItemConfig!$B$1:$C$1176,2,FALSE) ->  | G49: =VLOOKUP(VALUE(RIGHT(VLOOKUP(VALUE(RIGHT(LevelDifficultyConfig!L49,4)),[3]RewardGroup!$B$1:$E$670,4,FALSE),5)),[4]RewardItemConfig!$B$1:$C$1176,2,FALSE) ->  | H49: =VLOOKUP(VALUE(LEFT(VLOOKUP(VALUE(LEFT(LevelDifficultyConfig!L49,4)),[3]RewardGroup!$B$1:$E$670,4,FALSE),5)),[4]RewardItemConfig!$B$1:$C$1176,2,FALSE) -> 3 | I49: =VLOOKUP(VALUE(RIGHT(VLOOKUP(VALUE(LEFT(LevelDifficultyConfig!L49,4)),[3]RewardGroup!$B$1:$E$670,4,FALSE),5)),[4]RewardItemConfig!$B$1:$C$1176,2,FALSE) -> 14 | J49: =I49&"#1|"&G49&"#260|"&F49&"#26" ->  | M49: 11009#1|14#260|3#26
B50: 9031 | C50: 简单-9-3 | D50: 8 | E50: 4043#3043 | F50: =VLOOKUP(VALUE(LEFT(VLOOKUP(VALUE(RIGHT(LevelDifficultyConfig!L50,4)),[3]RewardGroup!$B$1:$E$670,4,FALSE),5)),[4]RewardItemConfig!$B$1:$C$1176,2,FALSE) ->  | G50: =VLOOKUP(VALUE(RIGHT(VLOOKUP(VALUE(RIGHT(LevelDifficultyConfig!L50,4)),[3]RewardGroup!$B$1:$E$670,4,FALSE),5)),[4]RewardItemConfig!$B$1:$C$1176,2,FALSE) ->  | H50: =VLOOKUP(VALUE(LEFT(VLOOKUP(VALUE(LEFT(LevelDifficultyConfig!L50,4)),[3]RewardGroup!$B$1:$E$670,4,FALSE),5)),[4]RewardItemConfig!$B$1:$C$1176,2,FALSE) -> 3 | I50: =VLOOKUP(VALUE(RIGHT(VLOOKUP(VALUE(LEFT(LevelDifficultyConfig!L50,4)),[3]RewardGroup!$B$1:$E$670,4,FALSE),5)),[4]RewardItemConfig!$B$1:$C$1176,2,FALSE) -> 14 | M50: 11010#1|14#260|3#26
B51: 9041 | C51: 简单-9-4 | D51: 8 | E51: 4044#3044 | F51: =VLOOKUP(VALUE(LEFT(VLOOKUP(VALUE(RIGHT(LevelDifficultyConfig!L51,4)),[3]RewardGroup!$B$1:$E$670,4,FALSE),5)),[4]RewardItemConfig!$B$1:$C$1176,2,FALSE) ->  | G51: =VLOOKUP(VALUE(RIGHT(VLOOKUP(VALUE(RIGHT(LevelDifficultyConfig!L51,4)),[3]RewardGroup!$B$1:$E$670,4,FALSE),5)),[4]RewardItemConfig!$B$1:$C$1176,2,FALSE) ->  | H51: =VLOOKUP(VALUE(LEFT(VLOOKUP(VALUE(LEFT(LevelDifficultyConfig!L51,4)),[3]RewardGroup!$B$1:$E$670,4,FALSE),5)),[4]RewardItemConfig!$B$1:$C$1176,2,FALSE) -> 3 | I51: =VLOOKUP(VALUE(RIGHT(VLOOKUP(VALUE(LEFT(LevelDifficultyConfig!L51,4)),[3]RewardGroup!$B$1:$E$670,4,FALSE),5)),[4]RewardItemConfig!$B$1:$C$1176,2,FALSE) -> 14 | M51: 11011#1|14#260|3#26
B52: 9051 | C52: 简单-9-5 | D52: 8 | E52: 4045#3045 | F52: =VLOOKUP(VALUE(LEFT(VLOOKUP(VALUE(RIGHT(LevelDifficultyConfig!L52,4)),[3]RewardGroup!$B$1:$E$670,4,FALSE),5)),[4]RewardItemConfig!$B$1:$C$1176,2,FALSE) ->  | G52: =VLOOKUP(VALUE(RIGHT(VLOOKUP(VALUE(RIGHT(LevelDifficultyConfig!L52,4)),[3]RewardGroup!$B$1:$E$670,4,FALSE),5)),[4]RewardItemConfig!$B$1:$C$1176,2,FALSE) ->  | H52: =VLOOKUP(VALUE(LEFT(VLOOKUP(VALUE(LEFT(LevelDifficultyConfig!L52,4)),[3]RewardGroup!$B$1:$E$670,4,FALSE),5)),[4]RewardItemConfig!$B$1:$C$1176,2,FALSE) -> 3 | I52: =VLOOKUP(VALUE(RIGHT(VLOOKUP(VALUE(LEFT(LevelDifficultyConfig!L52,4)),[3]RewardGroup!$B$1:$E$670,4,FALSE),5)),[4]RewardItemConfig!$B$1:$C$1176,2,FALSE) -> 14 | M52: 11013#1|14#260|3#26
B53: 10011 | C53: 简单-10-1 | D53: 8 | E53: 4046#3046 | F53: =VLOOKUP(VALUE(LEFT(VLOOKUP(VALUE(RIGHT(LevelDifficultyConfig!L53,4)),[3]RewardGroup!$B$1:$E$670,4,FALSE),5)),[4]RewardItemConfig!$B$1:$C$1176,2,FALSE) ->  | G53: =VLOOKUP(VALUE(RIGHT(VLOOKUP(VALUE(RIGHT(LevelDifficultyConfig!L53,4)),[3]RewardGroup!$B$1:$E$670,4,FALSE),5)),[4]RewardItemConfig!$B$1:$C$1176,2,FALSE) ->  | H53: =VLOOKUP(VALUE(LEFT(VLOOKUP(VALUE(LEFT(LevelDifficultyConfig!L53,4)),[3]RewardGroup!$B$1:$E$670,4,FALSE),5)),[4]RewardItemConfig!$B$1:$C$1176,2,FALSE) -> 3 | I53: =VLOOKUP(VALUE(RIGHT(VLOOKUP(VALUE(LEFT(LevelDifficultyConfig!L53,4)),[3]RewardGroup!$B$1:$E$670,4,FALSE),5)),[4]RewardItemConfig!$B$1:$C$1176,2,FALSE) -> 14 | J53: =I53&"#1|"&G53&"#280|"&F53&"#28" ->  | M53: 11019#1|14#280|3#28
B54: 10021 | C54: 简单-10-2 | D54: 8 | E54: 4047#3047 | F54: =VLOOKUP(VALUE(LEFT(VLOOKUP(VALUE(RIGHT(LevelDifficultyConfig!L54,4)),[3]RewardGroup!$B$1:$E$670,4,FALSE),5)),[4]RewardItemConfig!$B$1:$C$1176,2,FALSE) ->  | G54: =VLOOKUP(VALUE(RIGHT(VLOOKUP(VALUE(RIGHT(LevelDifficultyConfig!L54,4)),[3]RewardGroup!$B$1:$E$670,4,FALSE),5)),[4]RewardItemConfig!$B$1:$C$1176,2,FALSE) ->  | H54: =VLOOKUP(VALUE(LEFT(VLOOKUP(VALUE(LEFT(LevelDifficultyConfig!L54,4)),[3]RewardGroup!$B$1:$E$670,4,FALSE),5)),[4]RewardItemConfig!$B$1:$C$1176,2,FALSE) -> 3 | I54: =VLOOKUP(VALUE(RIGHT(VLOOKUP(VALUE(LEFT(LevelDifficultyConfig!L54,4)),[3]RewardGroup!$B$1:$E$670,4,FALSE),5)),[4]RewardItemConfig!$B$1:$C$1176,2,FALSE) -> 14 | J54: =I54&"#1|"&G54&"#280|"&F54&"#28" ->  | M54: 11020#1|14#280|3#28
B55: 10031 | C55: 简单-10-3 | D55: 8 | E55: 4048#3048 | F55: =VLOOKUP(VALUE(LEFT(VLOOKUP(VALUE(RIGHT(LevelDifficultyConfig!L55,4)),[3]RewardGroup!$B$1:$E$670,4,FALSE),5)),[4]RewardItemConfig!$B$1:$C$1176,2,FALSE) ->  | G55: =VLOOKUP(VALUE(RIGHT(VLOOKUP(VALUE(RIGHT(LevelDifficultyConfig!L55,4)),[3]RewardGroup!$B$1:$E$670,4,FALSE),5)),[4]RewardItemConfig!$B$1:$C$1176,2,FALSE) ->  | H55: =VLOOKUP(VALUE(LEFT(VLOOKUP(VALUE(LEFT(LevelDifficultyConfig!L55,4)),[3]RewardGroup!$B$1:$E$670,4,FALSE),5)),[4]RewardItemConfig!$B$1:$C$1176,2,FALSE) -> 3 | I55: =VLOOKUP(VALUE(RIGHT(VLOOKUP(VALUE(LEFT(LevelDifficultyConfig!L55,4)),[3]RewardGroup!$B$1:$E$670,4,FALSE),5)),[4]RewardItemConfig!$B$1:$C$1176,2,FALSE) -> 14 | M55: 11021#1|14#280|3#28
B56: 10041 | C56: 简单-10-4 | D56: 8 | E56: 4049#3049 | F56: =VLOOKUP(VALUE(LEFT(VLOOKUP(VALUE(RIGHT(LevelDifficultyConfig!L56,4)),[3]RewardGroup!$B$1:$E$670,4,FALSE),5)),[4]RewardItemConfig!$B$1:$C$1176,2,FALSE) ->  | G56: =VLOOKUP(VALUE(RIGHT(VLOOKUP(VALUE(RIGHT(LevelDifficultyConfig!L56,4)),[3]RewardGroup!$B$1:$E$670,4,FALSE),5)),[4]RewardItemConfig!$B$1:$C$1176,2,FALSE) ->  | H56: =VLOOKUP(VALUE(LEFT(VLOOKUP(VALUE(LEFT(LevelDifficultyConfig!L56,4)),[3]RewardGroup!$B$1:$E$670,4,FALSE),5)),[4]RewardItemConfig!$B$1:$C$1176,2,FALSE) -> 3 | I56: =VLOOKUP(VALUE(RIGHT(VLOOKUP(VALUE(LEFT(LevelDifficultyConfig!L56,4)),[3]RewardGroup!$B$1:$E$670,4,FALSE),5)),[4]RewardItemConfig!$B$1:$C$1176,2,FALSE) -> 14 | M56: 11022#1|14#280|3#28
B57: 10051 | C57: 简单-10-5 | D57: 8 | E57: 4050#3050 | F57: =VLOOKUP(VALUE(LEFT(VLOOKUP(VALUE(RIGHT(LevelDifficultyConfig!L57,4)),[3]RewardGroup!$B$1:$E$670,4,FALSE),5)),[4]RewardItemConfig!$B$1:$C$1176,2,FALSE) ->  | G57: =VLOOKUP(VALUE(RIGHT(VLOOKUP(VALUE(RIGHT(LevelDifficultyConfig!L57,4)),[3]RewardGroup!$B$1:$E$670,4,FALSE),5)),[4]RewardItemConfig!$B$1:$C$1176,2,FALSE) ->  | H57: =VLOOKUP(VALUE(LEFT(VLOOKUP(VALUE(LEFT(LevelDifficultyConfig!L57,4)),[3]RewardGroup!$B$1:$E$670,4,FALSE),5)),[4]RewardItemConfig!$B$1:$C$1176,2,FALSE) -> 3 | I57: =VLOOKUP(VALUE(RIGHT(VLOOKUP(VALUE(LEFT(LevelDifficultyConfig!L57,4)),[3]RewardGroup!$B$1:$E$670,4,FALSE),5)),[4]RewardItemConfig!$B$1:$C$1176,2,FALSE) -> 14 | M57: 11002#1|14#280|3#28
B58: 1012 | C58: 普通-1-1 | D58: 8 | E58: 4001#3001 | F58: =VLOOKUP(VALUE(LEFT(VLOOKUP(VALUE(RIGHT(LevelDifficultyConfig!L83,4)),[3]RewardGroup!$B$1:$E$670,4,FALSE),5)),[4]RewardItemConfig!$B$1:$C$1176,2,FALSE) ->  | G58: =VLOOKUP(VALUE(RIGHT(VLOOKUP(VALUE(RIGHT(LevelDifficultyConfig!L83,4)),[3]RewardGroup!$B$1:$E$670,4,FALSE),5)),[4]RewardItemConfig!$B$1:$C$1176,2,FALSE) ->  | H58: =VLOOKUP(VALUE(LEFT(VLOOKUP(VALUE(LEFT(LevelDifficultyConfig!L83,4)),[3]RewardGroup!$B$1:$E$670,4,FALSE),5)),[4]RewardItemConfig!$B$1:$C$1176,2,FALSE) -> 3 | I58: =VLOOKUP(VALUE(RIGHT(VLOOKUP(VALUE(LEFT(LevelDifficultyConfig!L83,4)),[3]RewardGroup!$B$1:$E$670,4,FALSE),5)),[4]RewardItemConfig!$B$1:$C$1176,2,FALSE) -> 14 | M58: =M56 -> 11022#1|14#280|3#28
B59: 1022 | C59: 普通-1-2 | D59: 8 | E59: 4002#3002 | F59: =VLOOKUP(VALUE(LEFT(VLOOKUP(VALUE(RIGHT(LevelDifficultyConfig!L84,4)),[3]RewardGroup!$B$1:$E$670,4,FALSE),5)),[4]RewardItemConfig!$B$1:$C$1176,2,FALSE) ->  | G59: =VLOOKUP(VALUE(RIGHT(VLOOKUP(VALUE(RIGHT(LevelDifficultyConfig!L84,4)),[3]RewardGroup!$B$1:$E$670,4,FALSE),5)),[4]RewardItemConfig!$B$1:$C$1176,2,FALSE) ->  | H59: =VLOOKUP(VALUE(LEFT(VLOOKUP(VALUE(LEFT(LevelDifficultyConfig!L84,4)),[3]RewardGroup!$B$1:$E$670,4,FALSE),5)),[4]RewardItemConfig!$B$1:$C$1176,2,FALSE) -> 3 | I59: =VLOOKUP(VALUE(RIGHT(VLOOKUP(VALUE(LEFT(LevelDifficultyConfig!L84,4)),[3]RewardGroup!$B$1:$E$670,4,FALSE),5)),[4]RewardItemConfig!$B$1:$C$1176,2,FALSE) -> 14 | M59: 11002#1|14#280|3#28
B60: 1032 | C60: 普通-1-3 | D60: 8 | E60: 4003#3003 | F60: =VLOOKUP(VALUE(LEFT(VLOOKUP(VALUE(RIGHT(LevelDifficultyConfig!L85,4)),[3]RewardGroup!$B$1:$E$670,4,FALSE),5)),[4]RewardItemConfig!$B$1:$C$1176,2,FALSE) ->  | G60: =VLOOKUP(VALUE(RIGHT(VLOOKUP(VALUE(RIGHT(LevelDifficultyConfig!L85,4)),[3]RewardGroup!$B$1:$E$670,4,FALSE),5)),[4]RewardItemConfig!$B$1:$C$1176,2,FALSE) ->  | H60: =VLOOKUP(VALUE(LEFT(VLOOKUP(VALUE(LEFT(LevelDifficultyConfig!L85,4)),[3]RewardGroup!$B$1:$E$670,4,FALSE),5)),[4]RewardItemConfig!$B$1:$C$1176,2,FALSE) -> 3 | I60: =VLOOKUP(VALUE(RIGHT(VLOOKUP(VALUE(LEFT(LevelDifficultyConfig!L85,4)),[3]RewardGroup!$B$1:$E$670,4,FALSE),5)),[4]RewardItemConfig!$B$1:$C$1176,2,FALSE) -> 14 | M60: 11022#1|14#280|3#28
B61: 1042 | C61: 普通-1-4 | D61: 8 | E61: 4004#3004 | F61: =VLOOKUP(VALUE(LEFT(VLOOKUP(VALUE(RIGHT(LevelDifficultyConfig!L86,4)),[3]RewardGroup!$B$1:$E$670,4,FALSE),5)),[4]RewardItemConfig!$B$1:$C$1176,2,FALSE) ->  | G61: =VLOOKUP(VALUE(RIGHT(VLOOKUP(VALUE(RIGHT(LevelDifficultyConfig!L86,4)),[3]RewardGroup!$B$1:$E$670,4,FALSE),5)),[4]RewardItemConfig!$B$1:$C$1176,2,FALSE) ->  | H61: =VLOOKUP(VALUE(LEFT(VLOOKUP(VALUE(LEFT(LevelDifficultyConfig!L86,4)),[3]RewardGroup!$B$1:$E$670,4,FALSE),5)),[4]RewardItemConfig!$B$1:$C$1176,2,FALSE) -> 3 | I61: =VLOOKUP(VALUE(RIGHT(VLOOKUP(VALUE(LEFT(LevelDifficultyConfig!L86,4)),[3]RewardGroup!$B$1:$E$670,4,FALSE),5)),[4]RewardItemConfig!$B$1:$C$1176,2,FALSE) -> 14 | M61: 11002#1|14#280|3#28
B62: 1052 | C62: 普通-1-5 | D62: 8 | E62: 4005#3005 | F62: =VLOOKUP(VALUE(LEFT(VLOOKUP(VALUE(RIGHT(LevelDifficultyConfig!L87,4)),[3]RewardGroup!$B$1:$E$670,4,FALSE),5)),[4]RewardItemConfig!$B$1:$C$1176,2,FALSE) ->  | G62: =VLOOKUP(VALUE(RIGHT(VLOOKUP(VALUE(RIGHT(LevelDifficultyConfig!L87,4)),[3]RewardGroup!$B$1:$E$670,4,FALSE),5)),[4]RewardItemConfig!$B$1:$C$1176,2,FALSE) ->  | H62: =VLOOKUP(VALUE(LEFT(VLOOKUP(VALUE(LEFT(LevelDifficultyConfig!L87,4)),[3]RewardGroup!$B$1:$E$670,4,FALSE),5)),[4]RewardItemConfig!$B$1:$C$1176,2,FALSE) -> 3 | I62: =VLOOKUP(VALUE(RIGHT(VLOOKUP(VALUE(LEFT(LevelDifficultyConfig!L87,4)),[3]RewardGroup!$B$1:$E$670,4,FALSE),5)),[4]RewardItemConfig!$B$1:$C$1176,2,FALSE) -> 14 | M62: 11022#1|14#280|3#28
B63: 2012 | C63: 普通-2-1 | D63: 8 | E63: 4006#3006 | F63: =VLOOKUP(VALUE(LEFT(VLOOKUP(VALUE(RIGHT(LevelDifficultyConfig!L88,4)),[3]RewardGroup!$B$1:$E$670,4,FALSE),5)),[4]RewardItemConfig!$B$1:$C$1176,2,FALSE) ->  | G63: =VLOOKUP(VALUE(RIGHT(VLOOKUP(VALUE(RIGHT(LevelDifficultyConfig!L88,4)),[3]RewardGroup!$B$1:$E$670,4,FALSE),5)),[4]RewardItemConfig!$B$1:$C$1176,2,FALSE) ->  | H63: =VLOOKUP(VALUE(LEFT(VLOOKUP(VALUE(LEFT(LevelDifficultyConfig!L88,4)),[3]RewardGroup!$B$1:$E$670,4,FALSE),5)),[4]RewardItemConfig!$B$1:$C$1176,2,FALSE) -> 3 | I63: =VLOOKUP(VALUE(RIGHT(VLOOKUP(VALUE(LEFT(LevelDifficultyConfig!L88,4)),[3]RewardGroup!$B$1:$E$670,4,FALSE),5)),[4]RewardItemConfig!$B$1:$C$1176,2,FALSE) -> 14 | M63: 11002#1|14#280|3#28
B64: 2022 | C64: 普通-2-2 | D64: 8 | E64: 4007#3007 | F64: =VLOOKUP(VALUE(LEFT(VLOOKUP(VALUE(RIGHT(LevelDifficultyConfig!L89,4)),[3]RewardGroup!$B$1:$E$670,4,FALSE),5)),[4]RewardItemConfig!$B$1:$C$1176,2,FALSE) ->  | G64: =VLOOKUP(VALUE(RIGHT(VLOOKUP(VALUE(RIGHT(LevelDifficultyConfig!L89,4)),[3]RewardGroup!$B$1:$E$670,4,FALSE),5)),[4]RewardItemConfig!$B$1:$C$1176,2,FALSE) ->  | H64: =VLOOKUP(VALUE(LEFT(VLOOKUP(VALUE(LEFT(LevelDifficultyConfig!L89,4)),[3]RewardGroup!$B$1:$E$670,4,FALSE),5)),[4]RewardItemConfig!$B$1:$C$1176,2,FALSE) -> 3 | I64: =VLOOKUP(VALUE(RIGHT(VLOOKUP(VALUE(LEFT(LevelDifficultyConfig!L89,4)),[3]RewardGroup!$B$1:$E$670,4,FALSE),5)),[4]RewardItemConfig!$B$1:$C$1176,2,FALSE) -> 14 | M64: 11022#1|14#280|3#28
B65: 2032 | C65: 普通-2-3 | D65: 8 | E65: 4008#3008 | F65: =VLOOKUP(VALUE(LEFT(VLOOKUP(VALUE(RIGHT(LevelDifficultyConfig!L90,4)),[3]RewardGroup!$B$1:$E$670,4,FALSE),5)),[4]RewardItemConfig!$B$1:$C$1176,2,FALSE) ->  | G65: =VLOOKUP(VALUE(RIGHT(VLOOKUP(VALUE(RIGHT(LevelDifficultyConfig!L90,4)),[3]RewardGroup!$B$1:$E$670,4,FALSE),5)),[4]RewardItemConfig!$B$1:$C$1176,2,FALSE) ->  | H65: =VLOOKUP(VALUE(LEFT(VLOOKUP(VALUE(LEFT(LevelDifficultyConfig!L90,4)),[3]RewardGroup!$B$1:$E$670,4,FALSE),5)),[4]RewardItemConfig!$B$1:$C$1176,2,FALSE) -> 3 | I65: =VLOOKUP(VALUE(RIGHT(VLOOKUP(VALUE(LEFT(LevelDifficultyConfig!L90,4)),[3]RewardGroup!$B$1:$E$670,4,FALSE),5)),[4]RewardItemConfig!$B$1:$C$1176,2,FALSE) -> 14 | M65: 11002#1|14#280|3#28
B66: 2042 | C66: 普通-2-4 | D66: 8 | E66: 4009#3009 | F66: =VLOOKUP(VALUE(LEFT(VLOOKUP(VALUE(RIGHT(LevelDifficultyConfig!L91,4)),[3]RewardGroup!$B$1:$E$670,4,FALSE),5)),[4]RewardItemConfig!$B$1:$C$1176,2,FALSE) ->  | G66: =VLOOKUP(VALUE(RIGHT(VLOOKUP(VALUE(RIGHT(LevelDifficultyConfig!L91,4)),[3]RewardGroup!$B$1:$E$670,4,FALSE),5)),[4]RewardItemConfig!$B$1:$C$1176,2,FALSE) ->  | H66: =VLOOKUP(VALUE(LEFT(VLOOKUP(VALUE(LEFT(LevelDifficultyConfig!L91,4)),[3]RewardGroup!$B$1:$E$670,4,FALSE),5)),[4]RewardItemConfig!$B$1:$C$1176,2,FALSE) -> 3 | I66: =VLOOKUP(VALUE(RIGHT(VLOOKUP(VALUE(LEFT(LevelDifficultyConfig!L91,4)),[3]RewardGroup!$B$1:$E$670,4,FALSE),5)),[4]RewardItemConfig!$B$1:$C$1176,2,FALSE) -> 14 | M66: 11022#1|14#280|3#28
B67: 2052 | C67: 普通-2-5 | D67: 8 | E67: 4010#3010 | F67: =VLOOKUP(VALUE(LEFT(VLOOKUP(VALUE(RIGHT(LevelDifficultyConfig!L92,4)),[3]RewardGroup!$B$1:$E$670,4,FALSE),5)),[4]RewardItemConfig!$B$1:$C$1176,2,FALSE) ->  | G67: =VLOOKUP(VALUE(RIGHT(VLOOKUP(VALUE(RIGHT(LevelDifficultyConfig!L92,4)),[3]RewardGroup!$B$1:$E$670,4,FALSE),5)),[4]RewardItemConfig!$B$1:$C$1176,2,FALSE) ->  | H67: =VLOOKUP(VALUE(LEFT(VLOOKUP(VALUE(LEFT(LevelDifficultyConfig!L92,4)),[3]RewardGroup!$B$1:$E$670,4,FALSE),5)),[4]RewardItemConfig!$B$1:$C$1176,2,FALSE) -> 3 | I67: =VLOOKUP(VALUE(RIGHT(VLOOKUP(VALUE(LEFT(LevelDifficultyConfig!L92,4)),[3]RewardGroup!$B$1:$E$670,4,FALSE),5)),[4]RewardItemConfig!$B$1:$C$1176,2,FALSE) -> 14 | M67: 11002#1|14#280|3#28
B68: 3012 | C68: 普通-3-1 | D68: 8 | E68: 4011#3011 | F68: =VLOOKUP(VALUE(LEFT(VLOOKUP(VALUE(RIGHT(LevelDifficultyConfig!L93,4)),[3]RewardGroup!$B$1:$E$670,4,FALSE),5)),[4]RewardItemConfig!$B$1:$C$1176,2,FALSE) ->  | G68: =VLOOKUP(VALUE(RIGHT(VLOOKUP(VALUE(RIGHT(LevelDifficultyConfig!L93,4)),[3]RewardGroup!$B$1:$E$670,4,FALSE),5)),[4]RewardItemConfig!$B$1:$C$1176,2,FALSE) ->  | H68: =VLOOKUP(VALUE(LEFT(VLOOKUP(VALUE(LEFT(LevelDifficultyConfig!L93,4)),[3]RewardGroup!$B$1:$E$670,4,FALSE),5)),[4]RewardItemConfig!$B$1:$C$1176,2,FALSE) -> 3 | I68: =VLOOKUP(VALUE(RIGHT(VLOOKUP(VALUE(LEFT(LevelDifficultyConfig!L93,4)),[3]RewardGroup!$B$1:$E$670,4,FALSE),5)),[4]RewardItemConfig!$B$1:$C$1176,2,FALSE) -> 14 | M68: 11022#1|14#280|3#28
B69: 3022 | C69: 普通-3-2 | D69: 8 | E69: 4012#3012 | F69: =VLOOKUP(VALUE(LEFT(VLOOKUP(VALUE(RIGHT(LevelDifficultyConfig!L94,4)),[3]RewardGroup!$B$1:$E$670,4,FALSE),5)),[4]RewardItemConfig!$B$1:$C$1176,2,FALSE) ->  | G69: =VLOOKUP(VALUE(RIGHT(VLOOKUP(VALUE(RIGHT(LevelDifficultyConfig!L94,4)),[3]RewardGroup!$B$1:$E$670,4,FALSE),5)),[4]RewardItemConfig!$B$1:$C$1176,2,FALSE) ->  | H69: =VLOOKUP(VALUE(LEFT(VLOOKUP(VALUE(LEFT(LevelDifficultyConfig!L94,4)),[3]RewardGroup!$B$1:$E$670,4,FALSE),5)),[4]RewardItemConfig!$B$1:$C$1176,2,FALSE) -> 3 | I69: =VLOOKUP(VALUE(RIGHT(VLOOKUP(VALUE(LEFT(LevelDifficultyConfig!L94,4)),[3]RewardGroup!$B$1:$E$670,4,FALSE),5)),[4]RewardItemConfig!$B$1:$C$1176,2,FALSE) -> 14 | M69: 11002#1|14#280|3#28
B70: 3032 | C70: 普通-3-3 | D70: 8 | E70: 4013#3013 | F70: =VLOOKUP(VALUE(LEFT(VLOOKUP(VALUE(RIGHT(LevelDifficultyConfig!L95,4)),[3]RewardGroup!$B$1:$E$670,4,FALSE),5)),[4]RewardItemConfig!$B$1:$C$1176,2,FALSE) ->  | G70: =VLOOKUP(VALUE(RIGHT(VLOOKUP(VALUE(RIGHT(LevelDifficultyConfig!L95,4)),[3]RewardGroup!$B$1:$E$670,4,FALSE),5)),[4]RewardItemConfig!$B$1:$C$1176,2,FALSE) ->  | H70: =VLOOKUP(VALUE(LEFT(VLOOKUP(VALUE(LEFT(LevelDifficultyConfig!L95,4)),[3]RewardGroup!$B$1:$E$670,4,FALSE),5)),[4]RewardItemConfig!$B$1:$C$1176,2,FALSE) -> 3 | I70: =VLOOKUP(VALUE(RIGHT(VLOOKUP(VALUE(LEFT(LevelDifficultyConfig!L95,4)),[3]RewardGroup!$B$1:$E$670,4,FALSE),5)),[4]RewardItemConfig!$B$1:$C$1176,2,FALSE) -> 14 | M70: 11022#1|14#280|3#28
B71: 3042 | C71: 普通-3-4 | D71: 8 | E71: 4014#3014 | F71: =VLOOKUP(VALUE(LEFT(VLOOKUP(VALUE(RIGHT(LevelDifficultyConfig!L96,4)),[3]RewardGroup!$B$1:$E$670,4,FALSE),5)),[4]RewardItemConfig!$B$1:$C$1176,2,FALSE) ->  | G71: =VLOOKUP(VALUE(RIGHT(VLOOKUP(VALUE(RIGHT(LevelDifficultyConfig!L96,4)),[3]RewardGroup!$B$1:$E$670,4,FALSE),5)),[4]RewardItemConfig!$B$1:$C$1176,2,FALSE) ->  | H71: =VLOOKUP(VALUE(LEFT(VLOOKUP(VALUE(LEFT(LevelDifficultyConfig!L96,4)),[3]RewardGroup!$B$1:$E$670,4,FALSE),5)),[4]RewardItemConfig!$B$1:$C$1176,2,FALSE) -> 3 | I71: =VLOOKUP(VALUE(RIGHT(VLOOKUP(VALUE(LEFT(LevelDifficultyConfig!L96,4)),[3]RewardGroup!$B$1:$E$670,4,FALSE),5)),[4]RewardItemConfig!$B$1:$C$1176,2,FALSE) -> 14 | M71: 11002#1|14#280|3#28
B72: 3052 | C72: 普通-3-5 | D72: 8 | E72: 4015#3015 | F72: =VLOOKUP(VALUE(LEFT(VLOOKUP(VALUE(RIGHT(LevelDifficultyConfig!L97,4)),[3]RewardGroup!$B$1:$E$670,4,FALSE),5)),[4]RewardItemConfig!$B$1:$C$1176,2,FALSE) ->  | G72: =VLOOKUP(VALUE(RIGHT(VLOOKUP(VALUE(RIGHT(LevelDifficultyConfig!L97,4)),[3]RewardGroup!$B$1:$E$670,4,FALSE),5)),[4]RewardItemConfig!$B$1:$C$1176,2,FALSE) ->  | H72: =VLOOKUP(VALUE(LEFT(VLOOKUP(VALUE(LEFT(LevelDifficultyConfig!L97,4)),[3]RewardGroup!$B$1:$E$670,4,FALSE),5)),[4]RewardItemConfig!$B$1:$C$1176,2,FALSE) -> 3 | I72: =VLOOKUP(VALUE(RIGHT(VLOOKUP(VALUE(LEFT(LevelDifficultyConfig!L97,4)),[3]RewardGroup!$B$1:$E$670,4,FALSE),5)),[4]RewardItemConfig!$B$1:$C$1176,2,FALSE) -> 14 | M72: 11022#1|14#280|3#28
B73: 4012 | C73: 普通-4-1 | D73: 8 | E73: 4016#3016 | F73: =VLOOKUP(VALUE(LEFT(VLOOKUP(VALUE(RIGHT(LevelDifficultyConfig!L98,4)),[3]RewardGroup!$B$1:$E$670,4,FALSE),5)),[4]RewardItemConfig!$B$1:$C$1176,2,FALSE) ->  | G73: =VLOOKUP(VALUE(RIGHT(VLOOKUP(VALUE(RIGHT(LevelDifficultyConfig!L98,4)),[3]RewardGroup!$B$1:$E$670,4,FALSE),5)),[4]RewardItemConfig!$B$1:$C$1176,2,FALSE) ->  | H73: =VLOOKUP(VALUE(LEFT(VLOOKUP(VALUE(LEFT(LevelDifficultyConfig!L98,4)),[3]RewardGroup!$B$1:$E$670,4,FALSE),5)),[4]RewardItemConfig!$B$1:$C$1176,2,FALSE) -> 3 | I73: =VLOOKUP(VALUE(RIGHT(VLOOKUP(VALUE(LEFT(LevelDifficultyConfig!L98,4)),[3]RewardGroup!$B$1:$E$670,4,FALSE),5)),[4]RewardItemConfig!$B$1:$C$1176,2,FALSE) -> 14 | M73: 11002#1|14#280|3#28
B74: 4022 | C74: 普通-4-2 | D74: 8 | E74: 4017#3017 | F74: =VLOOKUP(VALUE(LEFT(VLOOKUP(VALUE(RIGHT(LevelDifficultyConfig!L99,4)),[3]RewardGroup!$B$1:$E$670,4,FALSE),5)),[4]RewardItemConfig!$B$1:$C$1176,2,FALSE) ->  | G74: =VLOOKUP(VALUE(RIGHT(VLOOKUP(VALUE(RIGHT(LevelDifficultyConfig!L99,4)),[3]RewardGroup!$B$1:$E$670,4,FALSE),5)),[4]RewardItemConfig!$B$1:$C$1176,2,FALSE) ->  | H74: =VLOOKUP(VALUE(LEFT(VLOOKUP(VALUE(LEFT(LevelDifficultyConfig!L99,4)),[3]RewardGroup!$B$1:$E$670,4,FALSE),5)),[4]RewardItemConfig!$B$1:$C$1176,2,FALSE) -> 3 | I74: =VLOOKUP(VALUE(RIGHT(VLOOKUP(VALUE(LEFT(LevelDifficultyConfig!L99,4)),[3]RewardGroup!$B$1:$E$670,4,FALSE),5)),[4]RewardItemConfig!$B$1:$C$1176,2,FALSE) -> 14 | M74: 11022#1|14#280|3#28
B75: 4032 | C75: 普通-4-3 | D75: 8 | E75: 4018#3018 | F75: =VLOOKUP(VALUE(LEFT(VLOOKUP(VALUE(RIGHT(LevelDifficultyConfig!L100,4)),[3]RewardGroup!$B$1:$E$670,4,FALSE),5)),[4]RewardItemConfig!$B$1:$C$1176,2,FALSE) ->  | G75: =VLOOKUP(VALUE(RIGHT(VLOOKUP(VALUE(RIGHT(LevelDifficultyConfig!L100,4)),[3]RewardGroup!$B$1:$E$670,4,FALSE),5)),[4]RewardItemConfig!$B$1:$C$1176,2,FALSE) ->  | H75: =VLOOKUP(VALUE(LEFT(VLOOKUP(VALUE(LEFT(LevelDifficultyConfig!L100,4)),[3]RewardGroup!$B$1:$E$670,4,FALSE),5)),[4]RewardItemConfig!$B$1:$C$1176,2,FALSE) -> 3 | I75: =VLOOKUP(VALUE(RIGHT(VLOOKUP(VALUE(LEFT(LevelDifficultyConfig!L100,4)),[3]RewardGroup!$B$1:$E$670,4,FALSE),5)),[4]RewardItemConfig!$B$1:$C$1176,2,FALSE) -> 14 | M75: 11002#1|14#280|3#28
B76: 4042 | C76: 普通-4-4 | D76: 8 | E76: 4019#3019 | F76: =VLOOKUP(VALUE(LEFT(VLOOKUP(VALUE(RIGHT(LevelDifficultyConfig!L101,4)),[3]RewardGroup!$B$1:$E$670,4,FALSE),5)),[4]RewardItemConfig!$B$1:$C$1176,2,FALSE) ->  | G76: =VLOOKUP(VALUE(RIGHT(VLOOKUP(VALUE(RIGHT(LevelDifficultyConfig!L101,4)),[3]RewardGroup!$B$1:$E$670,4,FALSE),5)),[4]RewardItemConfig!$B$1:$C$1176,2,FALSE) ->  | H76: =VLOOKUP(VALUE(LEFT(VLOOKUP(VALUE(LEFT(LevelDifficultyConfig!L101,4)),[3]RewardGroup!$B$1:$E$670,4,FALSE),5)),[4]RewardItemConfig!$B$1:$C$1176,2,FALSE) -> 3 | I76: =VLOOKUP(VALUE(RIGHT(VLOOKUP(VALUE(LEFT(LevelDifficultyConfig!L101,4)),[3]RewardGroup!$B$1:$E$670,4,FALSE),5)),[4]RewardItemConfig!$B$1:$C$1176,2,FALSE) -> 14 | M76: 11022#1|14#280|3#28
B77: 4052 | C77: 普通-4-5 | D77: 8 | E77: 4020#3020 | F77: =VLOOKUP(VALUE(LEFT(VLOOKUP(VALUE(RIGHT(LevelDifficultyConfig!L102,4)),[3]RewardGroup!$B$1:$E$670,4,FALSE),5)),[4]RewardItemConfig!$B$1:$C$1176,2,FALSE) ->  | G77: =VLOOKUP(VALUE(RIGHT(VLOOKUP(VALUE(RIGHT(LevelDifficultyConfig!L102,4)),[3]RewardGroup!$B$1:$E$670,4,FALSE),5)),[4]RewardItemConfig!$B$1:$C$1176,2,FALSE) ->  | H77: =VLOOKUP(VALUE(LEFT(VLOOKUP(VALUE(LEFT(LevelDifficultyConfig!L102,4)),[3]RewardGroup!$B$1:$E$670,4,FALSE),5)),[4]RewardItemConfig!$B$1:$C$1176,2,FALSE) -> 3 | I77: =VLOOKUP(VALUE(RIGHT(VLOOKUP(VALUE(LEFT(LevelDifficultyConfig!L102,4)),[3]RewardGroup!$B$1:$E$670,4,FALSE),5)),[4]RewardItemConfig!$B$1:$C$1176,2,FALSE) -> 14 | M77: 11002#1|14#280|3#28
B78: 5012 | C78: 普通-5-1 | D78: 8 | E78: 4021#3021 | F78: =VLOOKUP(VALUE(LEFT(VLOOKUP(VALUE(RIGHT(LevelDifficultyConfig!L103,4)),[3]RewardGroup!$B$1:$E$670,4,FALSE),5)),[4]RewardItemConfig!$B$1:$C$1176,2,FALSE) ->  | G78: =VLOOKUP(VALUE(RIGHT(VLOOKUP(VALUE(RIGHT(LevelDifficultyConfig!L103,4)),[3]RewardGroup!$B$1:$E$670,4,FALSE),5)),[4]RewardItemConfig!$B$1:$C$1176,2,FALSE) ->  | H78: =VLOOKUP(VALUE(LEFT(VLOOKUP(VALUE(LEFT(LevelDifficultyConfig!L103,4)),[3]RewardGroup!$B$1:$E$670,4,FALSE),5)),[4]RewardItemConfig!$B$1:$C$1176,2,FALSE) -> 3 | I78: =VLOOKUP(VALUE(RIGHT(VLOOKUP(VALUE(LEFT(LevelDifficultyConfig!L103,4)),[3]RewardGroup!$B$1:$E$670,4,FALSE),5)),[4]RewardItemConfig!$B$1:$C$1176,2,FALSE) -> 14 | M78: 11022#1|14#280|3#28
B79: 5022 | C79: 普通-5-2 | D79: 8 | E79: 4022#3022 | F79: =VLOOKUP(VALUE(LEFT(VLOOKUP(VALUE(RIGHT(LevelDifficultyConfig!L104,4)),[3]RewardGroup!$B$1:$E$670,4,FALSE),5)),[4]RewardItemConfig!$B$1:$C$1176,2,FALSE) ->  | G79: =VLOOKUP(VALUE(RIGHT(VLOOKUP(VALUE(RIGHT(LevelDifficultyConfig!L104,4)),[3]RewardGroup!$B$1:$E$670,4,FALSE),5)),[4]RewardItemConfig!$B$1:$C$1176,2,FALSE) ->  | H79: =VLOOKUP(VALUE(LEFT(VLOOKUP(VALUE(LEFT(LevelDifficultyConfig!L104,4)),[3]RewardGroup!$B$1:$E$670,4,FALSE),5)),[4]RewardItemConfig!$B$1:$C$1176,2,FALSE) -> 3 | I79: =VLOOKUP(VALUE(RIGHT(VLOOKUP(VALUE(LEFT(LevelDifficultyConfig!L104,4)),[3]RewardGroup!$B$1:$E$670,4,FALSE),5)),[4]RewardItemConfig!$B$1:$C$1176,2,FALSE) -> 14 | M79: 11002#1|14#280|3#28
B80: 5032 | C80: 普通-5-3 | D80: 8 | E80: 4023#3023 | F80: =VLOOKUP(VALUE(LEFT(VLOOKUP(VALUE(RIGHT(LevelDifficultyConfig!L105,4)),[3]RewardGroup!$B$1:$E$670,4,FALSE),5)),[4]RewardItemConfig!$B$1:$C$1176,2,FALSE) ->  | G80: =VLOOKUP(VALUE(RIGHT(VLOOKUP(VALUE(RIGHT(LevelDifficultyConfig!L105,4)),[3]RewardGroup!$B$1:$E$670,4,FALSE),5)),[4]RewardItemConfig!$B$1:$C$1176,2,FALSE) ->  | H80: =VLOOKUP(VALUE(LEFT(VLOOKUP(VALUE(LEFT(LevelDifficultyConfig!L105,4)),[3]RewardGroup!$B$1:$E$670,4,FALSE),5)),[4]RewardItemConfig!$B$1:$C$1176,2,FALSE) -> 3 | I80: =VLOOKUP(VALUE(RIGHT(VLOOKUP(VALUE(LEFT(LevelDifficultyConfig!L105,4)),[3]RewardGroup!$B$1:$E$670,4,FALSE),5)),[4]RewardItemConfig!$B$1:$C$1176,2,FALSE) -> 14 | M80: 11022#1|14#280|3#28
B81: 5042 | C81: 普通-5-4 | D81: 8 | E81: 4024#3024 | F81: =VLOOKUP(VALUE(LEFT(VLOOKUP(VALUE(RIGHT(LevelDifficultyConfig!L106,4)),[3]RewardGroup!$B$1:$E$670,4,FALSE),5)),[4]RewardItemConfig!$B$1:$C$1176,2,FALSE) ->  | G81: =VLOOKUP(VALUE(RIGHT(VLOOKUP(VALUE(RIGHT(LevelDifficultyConfig!L106,4)),[3]RewardGroup!$B$1:$E$670,4,FALSE),5)),[4]RewardItemConfig!$B$1:$C$1176,2,FALSE) ->  | H81: =VLOOKUP(VALUE(LEFT(VLOOKUP(VALUE(LEFT(LevelDifficultyConfig!L106,4)),[3]RewardGroup!$B$1:$E$670,4,FALSE),5)),[4]RewardItemConfig!$B$1:$C$1176,2,FALSE) ->  | I81: =VLOOKUP(VALUE(RIGHT(VLOOKUP(VALUE(LEFT(LevelDifficultyConfig!L106,4)),[3]RewardGroup!$B$1:$E$670,4,FALSE),5)),[4]RewardItemConfig!$B$1:$C$1176,2,FALSE) ->  | M81: 11002#1|14#280|3#28
B82: 5052 | C82: 普通-5-5 | D82: 8 | E82: 4025#3025 | F82: =VLOOKUP(VALUE(LEFT(VLOOKUP(VALUE(RIGHT(LevelDifficultyConfig!L107,4)),[3]RewardGroup!$B$1:$E$670,4,FALSE),5)),[4]RewardItemConfig!$B$1:$C$1176,2,FALSE) ->  | G82: =VLOOKUP(VALUE(RIGHT(VLOOKUP(VALUE(RIGHT(LevelDifficultyConfig!L107,4)),[3]RewardGroup!$B$1:$E$670,4,FALSE),5)),[4]RewardItemConfig!$B$1:$C$1176,2,FALSE) ->  | H82: =VLOOKUP(VALUE(LEFT(VLOOKUP(VALUE(LEFT(LevelDifficultyConfig!L107,4)),[3]RewardGroup!$B$1:$E$670,4,FALSE),5)),[4]RewardItemConfig!$B$1:$C$1176,2,FALSE) ->  | I82: =VLOOKUP(VALUE(RIGHT(VLOOKUP(VALUE(LEFT(LevelDifficultyConfig!L107,4)),[3]RewardGroup!$B$1:$E$670,4,FALSE),5)),[4]RewardItemConfig!$B$1:$C$1176,2,FALSE) ->  | M82: 11022#1|14#280|3#28
B83: 6012 | C83: 普通-6-1 | D83: 8 | E83: 4026#3026 | F83: =VLOOKUP(VALUE(LEFT(VLOOKUP(VALUE(RIGHT(LevelDifficultyConfig!L108,4)),[3]RewardGroup!$B$1:$E$670,4,FALSE),5)),[4]RewardItemConfig!$B$1:$C$1176,2,FALSE) ->  | G83: =VLOOKUP(VALUE(RIGHT(VLOOKUP(VALUE(RIGHT(LevelDifficultyConfig!L108,4)),[3]RewardGroup!$B$1:$E$670,4,FALSE),5)),[4]RewardItemConfig!$B$1:$C$1176,2,FALSE) ->  | H83: =VLOOKUP(VALUE(LEFT(VLOOKUP(VALUE(LEFT(LevelDifficultyConfig!L108,4)),[3]RewardGroup!$B$1:$E$670,4,FALSE),5)),[4]RewardItemConfig!$B$1:$C$1176,2,FALSE) ->  | I83: =VLOOKUP(VALUE(RIGHT(VLOOKUP(VALUE(LEFT(LevelDifficultyConfig!L108,4)),[3]RewardGroup!$B$1:$E$670,4,FALSE),5)),[4]RewardItemConfig!$B$1:$C$1176,2,FALSE) ->  | M83: 11002#1|14#280|3#28
B84: 6022 | C84: 普通-6-2 | D84: 8 | E84: 4027#3027 | F84: =VLOOKUP(VALUE(LEFT(VLOOKUP(VALUE(RIGHT(LevelDifficultyConfig!L109,4)),[3]RewardGroup!$B$1:$E$670,4,FALSE),5)),[4]RewardItemConfig!$B$1:$C$1176,2,FALSE) ->  | G84: =VLOOKUP(VALUE(RIGHT(VLOOKUP(VALUE(RIGHT(LevelDifficultyConfig!L109,4)),[3]RewardGroup!$B$1:$E$670,4,FALSE),5)),[4]RewardItemConfig!$B$1:$C$1176,2,FALSE) ->  | H84: =VLOOKUP(VALUE(LEFT(VLOOKUP(VALUE(LEFT(LevelDifficultyConfig!L109,4)),[3]RewardGroup!$B$1:$E$670,4,FALSE),5)),[4]RewardItemConfig!$B$1:$C$1176,2,FALSE) ->  | I84: =VLOOKUP(VALUE(RIGHT(VLOOKUP(VALUE(LEFT(LevelDifficultyConfig!L109,4)),[3]RewardGroup!$B$1:$E$670,4,FALSE),5)),[4]RewardItemConfig!$B$1:$C$1176,2,FALSE) ->  | M84: 11022#1|14#280|3#28
B85: 6032 | C85: 普通-6-3 | D85: 8 | E85: 4028#3028 | F85: =VLOOKUP(VALUE(LEFT(VLOOKUP(VALUE(RIGHT(LevelDifficultyConfig!L110,4)),[3]RewardGroup!$B$1:$E$670,4,FALSE),5)),[4]RewardItemConfig!$B$1:$C$1176,2,FALSE) ->  | G85: =VLOOKUP(VALUE(RIGHT(VLOOKUP(VALUE(RIGHT(LevelDifficultyConfig!L110,4)),[3]RewardGroup!$B$1:$E$670,4,FALSE),5)),[4]RewardItemConfig!$B$1:$C$1176,2,FALSE) ->  | H85: =VLOOKUP(VALUE(LEFT(VLOOKUP(VALUE(LEFT(LevelDifficultyConfig!L110,4)),[3]RewardGroup!$B$1:$E$670,4,FALSE),5)),[4]RewardItemConfig!$B$1:$C$1176,2,FALSE) ->  | I85: =VLOOKUP(VALUE(RIGHT(VLOOKUP(VALUE(LEFT(LevelDifficultyConfig!L110,4)),[3]RewardGroup!$B$1:$E$670,4,FALSE),5)),[4]RewardItemConfig!$B$1:$C$1176,2,FALSE) ->  | M85: 11002#1|14#280|3#28
B86: 6042 | C86: 普通-6-4 | D86: 8 | E86: 4029#3029 | F86: =VLOOKUP(VALUE(LEFT(VLOOKUP(VALUE(RIGHT(LevelDifficultyConfig!L111,4)),[3]RewardGroup!$B$1:$E$670,4,FALSE),5)),[4]RewardItemConfig!$B$1:$C$1176,2,FALSE) ->  | G86: =VLOOKUP(VALUE(RIGHT(VLOOKUP(VALUE(RIGHT(LevelDifficultyConfig!L111,4)),[3]RewardGroup!$B$1:$E$670,4,FALSE),5)),[4]RewardItemConfig!$B$1:$C$1176,2,FALSE) ->  | H86: =VLOOKUP(VALUE(LEFT(VLOOKUP(VALUE(LEFT(LevelDifficultyConfig!L111,4)),[3]RewardGroup!$B$1:$E$670,4,FALSE),5)),[4]RewardItemConfig!$B$1:$C$1176,2,FALSE) ->  | I86: =VLOOKUP(VALUE(RIGHT(VLOOKUP(VALUE(LEFT(LevelDifficultyConfig!L111,4)),[3]RewardGroup!$B$1:$E$670,4,FALSE),5)),[4]RewardItemConfig!$B$1:$C$1176,2,FALSE) ->  | M86: 11022#1|14#280|3#28
B87: 6052 | C87: 普通-6-5 | D87: 8 | E87: 4030#3030 | F87: =VLOOKUP(VALUE(LEFT(VLOOKUP(VALUE(RIGHT(LevelDifficultyConfig!L112,4)),[3]RewardGroup!$B$1:$E$670,4,FALSE),5)),[4]RewardItemConfig!$B$1:$C$1176,2,FALSE) ->  | G87: =VLOOKUP(VALUE(RIGHT(VLOOKUP(VALUE(RIGHT(LevelDifficultyConfig!L112,4)),[3]RewardGroup!$B$1:$E$670,4,FALSE),5)),[4]RewardItemConfig!$B$1:$C$1176,2,FALSE) ->  | H87: =VLOOKUP(VALUE(LEFT(VLOOKUP(VALUE(LEFT(LevelDifficultyConfig!L112,4)),[3]RewardGroup!$B$1:$E$670,4,FALSE),5)),[4]RewardItemConfig!$B$1:$C$1176,2,FALSE) ->  | I87: =VLOOKUP(VALUE(RIGHT(VLOOKUP(VALUE(LEFT(LevelDifficultyConfig!L112,4)),[3]RewardGroup!$B$1:$E$670,4,FALSE),5)),[4]RewardItemConfig!$B$1:$C$1176,2,FALSE) ->  | M87: 11002#1|14#280|3#28
B88: 7012 | C88: 普通-7-1 | D88: 8 | E88: 4031#3031 | F88: =VLOOKUP(VALUE(LEFT(VLOOKUP(VALUE(RIGHT(LevelDifficultyConfig!L113,4)),[3]RewardGroup!$B$1:$E$670,4,FALSE),5)),[4]RewardItemConfig!$B$1:$C$1176,2,FALSE) ->  | G88: =VLOOKUP(VALUE(RIGHT(VLOOKUP(VALUE(RIGHT(LevelDifficultyConfig!L113,4)),[3]RewardGroup!$B$1:$E$670,4,FALSE),5)),[4]RewardItemConfig!$B$1:$C$1176,2,FALSE) ->  | H88: =VLOOKUP(VALUE(LEFT(VLOOKUP(VALUE(LEFT(LevelDifficultyConfig!L113,4)),[3]RewardGroup!$B$1:$E$670,4,FALSE),5)),[4]RewardItemConfig!$B$1:$C$1176,2,FALSE) ->  | I88: =VLOOKUP(VALUE(RIGHT(VLOOKUP(VALUE(LEFT(LevelDifficultyConfig!L113,4)),[3]RewardGroup!$B$1:$E$670,4,FALSE),5)),[4]RewardItemConfig!$B$1:$C$1176,2,FALSE) ->  | M88: 11022#1|14#280|3#28
B89: 7022 | C89: 普通-7-2 | D89: 8 | E89: 4032#3032 | F89: =VLOOKUP(VALUE(LEFT(VLOOKUP(VALUE(RIGHT(LevelDifficultyConfig!L114,4)),[3]RewardGroup!$B$1:$E$670,4,FALSE),5)),[4]RewardItemConfig!$B$1:$C$1176,2,FALSE) ->  | G89: =VLOOKUP(VALUE(RIGHT(VLOOKUP(VALUE(RIGHT(LevelDifficultyConfig!L114,4)),[3]RewardGroup!$B$1:$E$670,4,FALSE),5)),[4]RewardItemConfig!$B$1:$C$1176,2,FALSE) ->  | H89: =VLOOKUP(VALUE(LEFT(VLOOKUP(VALUE(LEFT(LevelDifficultyConfig!L114,4)),[3]RewardGroup!$B$1:$E$670,4,FALSE),5)),[4]RewardItemConfig!$B$1:$C$1176,2,FALSE) ->  | I89: =VLOOKUP(VALUE(RIGHT(VLOOKUP(VALUE(LEFT(LevelDifficultyConfig!L114,4)),[3]RewardGroup!$B$1:$E$670,4,FALSE),5)),[4]RewardItemConfig!$B$1:$C$1176,2,FALSE) ->  | M89: 11002#1|14#280|3#28
B90: 7032 | C90: 普通-7-3 | D90: 8 | E90: 4033#3033 | F90: =VLOOKUP(VALUE(LEFT(VLOOKUP(VALUE(RIGHT(LevelDifficultyConfig!L115,4)),[3]RewardGroup!$B$1:$E$670,4,FALSE),5)),[4]RewardItemConfig!$B$1:$C$1176,2,FALSE) ->  | G90: =VLOOKUP(VALUE(RIGHT(VLOOKUP(VALUE(RIGHT(LevelDifficultyConfig!L115,4)),[3]RewardGroup!$B$1:$E$670,4,FALSE),5)),[4]RewardItemConfig!$B$1:$C$1176,2,FALSE) ->  | H90: =VLOOKUP(VALUE(LEFT(VLOOKUP(VALUE(LEFT(LevelDifficultyConfig!L115,4)),[3]RewardGroup!$B$1:$E$670,4,FALSE),5)),[4]RewardItemConfig!$B$1:$C$1176,2,FALSE) ->  | I90: =VLOOKUP(VALUE(RIGHT(VLOOKUP(VALUE(LEFT(LevelDifficultyConfig!L115,4)),[3]RewardGroup!$B$1:$E$670,4,FALSE),5)),[4]RewardItemConfig!$B$1:$C$1176,2,FALSE) ->  | M90: 11022#1|14#280|3#28
B91: 7042 | C91: 普通-7-4 | D91: 8 | E91: 4034#3034 | F91: =VLOOKUP(VALUE(LEFT(VLOOKUP(VALUE(RIGHT(LevelDifficultyConfig!L116,4)),[3]RewardGroup!$B$1:$E$670,4,FALSE),5)),[4]RewardItemConfig!$B$1:$C$1176,2,FALSE) ->  | G91: =VLOOKUP(VALUE(RIGHT(VLOOKUP(VALUE(RIGHT(LevelDifficultyConfig!L116,4)),[3]RewardGroup!$B$1:$E$670,4,FALSE),5)),[4]RewardItemConfig!$B$1:$C$1176,2,FALSE) ->  | H91: =VLOOKUP(VALUE(LEFT(VLOOKUP(VALUE(LEFT(LevelDifficultyConfig!L116,4)),[3]RewardGroup!$B$1:$E$670,4,FALSE),5)),[4]RewardItemConfig!$B$1:$C$1176,2,FALSE) ->  | I91: =VLOOKUP(VALUE(RIGHT(VLOOKUP(VALUE(LEFT(LevelDifficultyConfig!L116,4)),[3]RewardGroup!$B$1:$E$670,4,FALSE),5)),[4]RewardItemConfig!$B$1:$C$1176,2,FALSE) ->  | M91: 11002#1|14#280|3#28
B92: 7052 | C92: 普通-7-5 | D92: 8 | E92: 4035#3035 | F92: =VLOOKUP(VALUE(LEFT(VLOOKUP(VALUE(RIGHT(LevelDifficultyConfig!L117,4)),[3]RewardGroup!$B$1:$E$670,4,FALSE),5)),[4]RewardItemConfig!$B$1:$C$1176,2,FALSE) -> 3 | G92: =VLOOKUP(VALUE(RIGHT(VLOOKUP(VALUE(RIGHT(LevelDifficultyConfig!L117,4)),[3]RewardGroup!$B$1:$E$670,4,FALSE),5)),[4]RewardItemConfig!$B$1:$C$1176,2,FALSE) ->  | H92: =VLOOKUP(VALUE(LEFT(VLOOKUP(VALUE(LEFT(LevelDifficultyConfig!L117,4)),[3]RewardGroup!$B$1:$E$670,4,FALSE),5)),[4]RewardItemConfig!$B$1:$C$1176,2,FALSE) ->  | I92: =VLOOKUP(VALUE(RIGHT(VLOOKUP(VALUE(LEFT(LevelDifficultyConfig!L117,4)),[3]RewardGroup!$B$1:$E$670,4,FALSE),5)),[4]RewardItemConfig!$B$1:$C$1176,2,FALSE) ->  | M92: 11022#1|14#280|3#28
B93: 8012 | C93: 普通-8-1 | D93: 8 | E93: 4036#3036 | F93: =VLOOKUP(VALUE(LEFT(VLOOKUP(VALUE(RIGHT(LevelDifficultyConfig!L118,4)),[3]RewardGroup!$B$1:$E$670,4,FALSE),5)),[4]RewardItemConfig!$B$1:$C$1176,2,FALSE) -> 3 | G93: =VLOOKUP(VALUE(RIGHT(VLOOKUP(VALUE(RIGHT(LevelDifficultyConfig!L118,4)),[3]RewardGroup!$B$1:$E$670,4,FALSE),5)),[4]RewardItemConfig!$B$1:$C$1176,2,FALSE) ->  | H93: =VLOOKUP(VALUE(LEFT(VLOOKUP(VALUE(LEFT(LevelDifficultyConfig!L118,4)),[3]RewardGroup!$B$1:$E$670,4,FALSE),5)),[4]RewardItemConfig!$B$1:$C$1176,2,FALSE) ->  | I93: =VLOOKUP(VALUE(RIGHT(VLOOKUP(VALUE(LEFT(LevelDifficultyConfig!L118,4)),[3]RewardGroup!$B$1:$E$670,4,FALSE),5)),[4]RewardItemConfig!$B$1:$C$1176,2,FALSE) ->  | M93: 11002#1|14#280|3#28
B94: 8022 | C94: 普通-8-2 | D94: 8 | E94: 4037#3037 | F94: =VLOOKUP(VALUE(LEFT(VLOOKUP(VALUE(RIGHT(LevelDifficultyConfig!L119,4)),[3]RewardGroup!$B$1:$E$670,4,FALSE),5)),[4]RewardItemConfig!$B$1:$C$1176,2,FALSE) -> 3 | G94: =VLOOKUP(VALUE(RIGHT(VLOOKUP(VALUE(RIGHT(LevelDifficultyConfig!L119,4)),[3]RewardGroup!$B$1:$E$670,4,FALSE),5)),[4]RewardItemConfig!$B$1:$C$1176,2,FALSE) ->  | H94: =VLOOKUP(VALUE(LEFT(VLOOKUP(VALUE(LEFT(LevelDifficultyConfig!L119,4)),[3]RewardGroup!$B$1:$E$670,4,FALSE),5)),[4]RewardItemConfig!$B$1:$C$1176,2,FALSE) ->  | I94: =VLOOKUP(VALUE(RIGHT(VLOOKUP(VALUE(LEFT(LevelDifficultyConfig!L119,4)),[3]RewardGroup!$B$1:$E$670,4,FALSE),5)),[4]RewardItemConfig!$B$1:$C$1176,2,FALSE) ->  | M94: 11022#1|14#280|3#28
B95: 8032 | C95: 普通-8-3 | D95: 8 | E95: 4038#3038 | F95: =VLOOKUP(VALUE(LEFT(VLOOKUP(VALUE(RIGHT(LevelDifficultyConfig!L120,4)),[3]RewardGroup!$B$1:$E$670,4,FALSE),5)),[4]RewardItemConfig!$B$1:$C$1176,2,FALSE) -> 3 | G95: =VLOOKUP(VALUE(RIGHT(VLOOKUP(VALUE(RIGHT(LevelDifficultyConfig!L120,4)),[3]RewardGroup!$B$1:$E$670,4,FALSE),5)),[4]RewardItemConfig!$B$1:$C$1176,2,FALSE) ->  | H95: =VLOOKUP(VALUE(LEFT(VLOOKUP(VALUE(LEFT(LevelDifficultyConfig!L120,4)),[3]RewardGroup!$B$1:$E$670,4,FALSE),5)),[4]RewardItemConfig!$B$1:$C$1176,2,FALSE) ->  | I95: =VLOOKUP(VALUE(RIGHT(VLOOKUP(VALUE(LEFT(LevelDifficultyConfig!L120,4)),[3]RewardGroup!$B$1:$E$670,4,FALSE),5)),[4]RewardItemConfig!$B$1:$C$1176,2,FALSE) ->  | M95: 11002#1|14#280|3#28
B96: 8042 | C96: 普通-8-4 | D96: 8 | E96: 4039#3039 | F96: =VLOOKUP(VALUE(LEFT(VLOOKUP(VALUE(RIGHT(LevelDifficultyConfig!L121,4)),[3]RewardGroup!$B$1:$E$670,4,FALSE),5)),[4]RewardItemConfig!$B$1:$C$1176,2,FALSE) -> 3 | G96: =VLOOKUP(VALUE(RIGHT(VLOOKUP(VALUE(RIGHT(LevelDifficultyConfig!L121,4)),[3]RewardGroup!$B$1:$E$670,4,FALSE),5)),[4]RewardItemConfig!$B$1:$C$1176,2,FALSE) ->  | H96: =VLOOKUP(VALUE(LEFT(VLOOKUP(VALUE(LEFT(LevelDifficultyConfig!L121,4)),[3]RewardGroup!$B$1:$E$670,4,FALSE),5)),[4]RewardItemConfig!$B$1:$C$1176,2,FALSE) ->  | I96: =VLOOKUP(VALUE(RIGHT(VLOOKUP(VALUE(LEFT(LevelDifficultyConfig!L121,4)),[3]RewardGroup!$B$1:$E$670,4,FALSE),5)),[4]RewardItemConfig!$B$1:$C$1176,2,FALSE) ->  | M96: 11022#1|14#280|3#28
B97: 8052 | C97: 普通-8-5 | D97: 8 | E97: 4040#3040 | F97: =VLOOKUP(VALUE(LEFT(VLOOKUP(VALUE(RIGHT(LevelDifficultyConfig!L122,4)),[3]RewardGroup!$B$1:$E$670,4,FALSE),5)),[4]RewardItemConfig!$B$1:$C$1176,2,FALSE) -> 3 | G97: =VLOOKUP(VALUE(RIGHT(VLOOKUP(VALUE(RIGHT(LevelDifficultyConfig!L122,4)),[3]RewardGroup!$B$1:$E$670,4,FALSE),5)),[4]RewardItemConfig!$B$1:$C$1176,2,FALSE) ->  | H97: =VLOOKUP(VALUE(LEFT(VLOOKUP(VALUE(LEFT(LevelDifficultyConfig!L122,4)),[3]RewardGroup!$B$1:$E$670,4,FALSE),5)),[4]RewardItemConfig!$B$1:$C$1176,2,FALSE) ->  | I97: =VLOOKUP(VALUE(RIGHT(VLOOKUP(VALUE(LEFT(LevelDifficultyConfig!L122,4)),[3]RewardGroup!$B$1:$E$670,4,FALSE),5)),[4]RewardItemConfig!$B$1:$C$1176,2,FALSE) ->  | M97: 11002#1|14#280|3#28
B98: 9012 | C98: 普通-9-1 | D98: 8 | E98: 4041#3041 | F98: =VLOOKUP(VALUE(LEFT(VLOOKUP(VALUE(RIGHT(LevelDifficultyConfig!L123,4)),[3]RewardGroup!$B$1:$E$670,4,FALSE),5)),[4]RewardItemConfig!$B$1:$C$1176,2,FALSE) -> 3 | G98: =VLOOKUP(VALUE(RIGHT(VLOOKUP(VALUE(RIGHT(LevelDifficultyConfig!L123,4)),[3]RewardGroup!$B$1:$E$670,4,FALSE),5)),[4]RewardItemConfig!$B$1:$C$1176,2,FALSE) ->  | H98: =VLOOKUP(VALUE(LEFT(VLOOKUP(VALUE(LEFT(LevelDifficultyConfig!L123,4)),[3]RewardGroup!$B$1:$E$670,4,FALSE),5)),[4]RewardItemConfig!$B$1:$C$1176,2,FALSE) ->  | I98: =VLOOKUP(VALUE(RIGHT(VLOOKUP(VALUE(LEFT(LevelDifficultyConfig!L123,4)),[3]RewardGroup!$B$1:$E$670,4,FALSE),5)),[4]RewardItemConfig!$B$1:$C$1176,2,FALSE) ->  | M98: 11022#1|14#280|3#28
B99: 9022 | C99: 普通-9-2 | D99: 8 | E99: 4042#3042 | F99: =VLOOKUP(VALUE(LEFT(VLOOKUP(VALUE(RIGHT(LevelDifficultyConfig!L124,4)),[3]RewardGroup!$B$1:$E$670,4,FALSE),5)),[4]RewardItemConfig!$B$1:$C$1176,2,FALSE) -> 3 | G99: =VLOOKUP(VALUE(RIGHT(VLOOKUP(VALUE(RIGHT(LevelDifficultyConfig!L124,4)),[3]RewardGroup!$B$1:$E$670,4,FALSE),5)),[4]RewardItemConfig!$B$1:$C$1176,2,FALSE) ->  | H99: =VLOOKUP(VALUE(LEFT(VLOOKUP(VALUE(LEFT(LevelDifficultyConfig!L124,4)),[3]RewardGroup!$B$1:$E$670,4,FALSE),5)),[4]RewardItemConfig!$B$1:$C$1176,2,FALSE) ->  | I99: =VLOOKUP(VALUE(RIGHT(VLOOKUP(VALUE(LEFT(LevelDifficultyConfig!L124,4)),[3]RewardGroup!$B$1:$E$670,4,FALSE),5)),[4]RewardItemConfig!$B$1:$C$1176,2,FALSE) ->  | M99: 11002#1|14#280|3#28
B100: 9032 | C100: 普通-9-3 | D100: 8 | E100: 4043#3043 | F100: =VLOOKUP(VALUE(LEFT(VLOOKUP(VALUE(RIGHT(LevelDifficultyConfig!L125,4)),[3]RewardGroup!$B$1:$E$670,4,FALSE),5)),[4]RewardItemConfig!$B$1:$C$1176,2,FALSE) -> 3 | G100: =VLOOKUP(VALUE(RIGHT(VLOOKUP(VALUE(RIGHT(LevelDifficultyConfig!L125,4)),[3]RewardGroup!$B$1:$E$670,4,FALSE),5)),[4]RewardItemConfig!$B$1:$C$1176,2,FALSE) ->  | H100: =VLOOKUP(VALUE(LEFT(VLOOKUP(VALUE(LEFT(LevelDifficultyConfig!L125,4)),[3]RewardGroup!$B$1:$E$670,4,FALSE),5)),[4]RewardItemConfig!$B$1:$C$1176,2,FALSE) ->  | I100: =VLOOKUP(VALUE(RIGHT(VLOOKUP(VALUE(LEFT(LevelDifficultyConfig!L125,4)),[3]RewardGroup!$B$1:$E$670,4,FALSE),5)),[4]RewardItemConfig!$B$1:$C$1176,2,FALSE) ->  | M100: 11022#1|14#280|3#28
B101: 9042 | C101: 普通-9-4 | D101: 8 | E101: 4044#3044 | F101: =VLOOKUP(VALUE(LEFT(VLOOKUP(VALUE(RIGHT(LevelDifficultyConfig!L126,4)),[3]RewardGroup!$B$1:$E$670,4,FALSE),5)),[4]RewardItemConfig!$B$1:$C$1176,2,FALSE) -> 3 | G101: =VLOOKUP(VALUE(RIGHT(VLOOKUP(VALUE(RIGHT(LevelDifficultyConfig!L126,4)),[3]RewardGroup!$B$1:$E$670,4,FALSE),5)),[4]RewardItemConfig!$B$1:$C$1176,2,FALSE) ->  | H101: =VLOOKUP(VALUE(LEFT(VLOOKUP(VALUE(LEFT(LevelDifficultyConfig!L126,4)),[3]RewardGroup!$B$1:$E$670,4,FALSE),5)),[4]RewardItemConfig!$B$1:$C$1176,2,FALSE) ->  | I101: =VLOOKUP(VALUE(RIGHT(VLOOKUP(VALUE(LEFT(LevelDifficultyConfig!L126,4)),[3]RewardGroup!$B$1:$E$670,4,FALSE),5)),[4]RewardItemConfig!$B$1:$C$1176,2,FALSE) ->  | M101: 11002#1|14#280|3#28
B102: 9052 | C102: 普通-9-5 | D102: 8 | E102: 4045#3045 | F102: =VLOOKUP(VALUE(LEFT(VLOOKUP(VALUE(RIGHT(LevelDifficultyConfig!L127,4)),[3]RewardGroup!$B$1:$E$670,4,FALSE),5)),[4]RewardItemConfig!$B$1:$C$1176,2,FALSE) -> 3 | G102: =VLOOKUP(VALUE(RIGHT(VLOOKUP(VALUE(RIGHT(LevelDifficultyConfig!L127,4)),[3]RewardGroup!$B$1:$E$670,4,FALSE),5)),[4]RewardItemConfig!$B$1:$C$1176,2,FALSE) ->  | H102: =VLOOKUP(VALUE(LEFT(VLOOKUP(VALUE(LEFT(LevelDifficultyConfig!L127,4)),[3]RewardGroup!$B$1:$E$670,4,FALSE),5)),[4]RewardItemConfig!$B$1:$C$1176,2,FALSE) ->  | I102: =VLOOKUP(VALUE(RIGHT(VLOOKUP(VALUE(LEFT(LevelDifficultyConfig!L127,4)),[3]RewardGroup!$B$1:$E$670,4,FALSE),5)),[4]RewardItemConfig!$B$1:$C$1176,2,FALSE) ->  | M102: 11022#1|14#280|3#28
B103: 10012 | C103: 普通-10-1 | D103: 8 | E103: 4046#3046 | F103: =VLOOKUP(VALUE(LEFT(VLOOKUP(VALUE(RIGHT(LevelDifficultyConfig!L128,4)),[3]RewardGroup!$B$1:$E$670,4,FALSE),5)),[4]RewardItemConfig!$B$1:$C$1176,2,FALSE) ->  | G103: =VLOOKUP(VALUE(RIGHT(VLOOKUP(VALUE(RIGHT(LevelDifficultyConfig!L128,4)),[3]RewardGroup!$B$1:$E$670,4,FALSE),5)),[4]RewardItemConfig!$B$1:$C$1176,2,FALSE) ->  | H103: =VLOOKUP(VALUE(LEFT(VLOOKUP(VALUE(LEFT(LevelDifficultyConfig!L128,4)),[3]RewardGroup!$B$1:$E$670,4,FALSE),5)),[4]RewardItemConfig!$B$1:$C$1176,2,FALSE) ->  | I103: =VLOOKUP(VALUE(RIGHT(VLOOKUP(VALUE(LEFT(LevelDifficultyConfig!L128,4)),[3]RewardGroup!$B$1:$E$670,4,FALSE),5)),[4]RewardItemConfig!$B$1:$C$1176,2,FALSE) ->  | M103: 11002#1|14#280|3#28
B104: 10022 | C104: 普通-10-2 | D104: 8 | E104: 4047#3047 | F104: =VLOOKUP(VALUE(LEFT(VLOOKUP(VALUE(RIGHT(LevelDifficultyConfig!L129,4)),[3]RewardGroup!$B$1:$E$670,4,FALSE),5)),[4]RewardItemConfig!$B$1:$C$1176,2,FALSE) ->  | G104: =VLOOKUP(VALUE(RIGHT(VLOOKUP(VALUE(RIGHT(LevelDifficultyConfig!L129,4)),[3]RewardGroup!$B$1:$E$670,4,FALSE),5)),[4]RewardItemConfig!$B$1:$C$1176,2,FALSE) ->  | H104: =VLOOKUP(VALUE(LEFT(VLOOKUP(VALUE(LEFT(LevelDifficultyConfig!L129,4)),[3]RewardGroup!$B$1:$E$670,4,FALSE),5)),[4]RewardItemConfig!$B$1:$C$1176,2,FALSE) ->  | I104: =VLOOKUP(VALUE(RIGHT(VLOOKUP(VALUE(LEFT(LevelDifficultyConfig!L129,4)),[3]RewardGroup!$B$1:$E$670,4,FALSE),5)),[4]RewardItemConfig!$B$1:$C$1176,2,FALSE) ->  | M104: 11022#1|14#280|3#28
B105: 10032 | C105: 普通-10-3 | D105: 8 | E105: 4048#3048 | F105: =VLOOKUP(VALUE(LEFT(VLOOKUP(VALUE(RIGHT(LevelDifficultyConfig!L130,4)),[3]RewardGroup!$B$1:$E$670,4,FALSE),5)),[4]RewardItemConfig!$B$1:$C$1176,2,FALSE) ->  | G105: =VLOOKUP(VALUE(RIGHT(VLOOKUP(VALUE(RIGHT(LevelDifficultyConfig!L130,4)),[3]RewardGroup!$B$1:$E$670,4,FALSE),5)),[4]RewardItemConfig!$B$1:$C$1176,2,FALSE) ->  | H105: =VLOOKUP(VALUE(LEFT(VLOOKUP(VALUE(LEFT(LevelDifficultyConfig!L130,4)),[3]RewardGroup!$B$1:$E$670,4,FALSE),5)),[4]RewardItemConfig!$B$1:$C$1176,2,FALSE) ->  | I105: =VLOOKUP(VALUE(RIGHT(VLOOKUP(VALUE(LEFT(LevelDifficultyConfig!L130,4)),[3]RewardGroup!$B$1:$E$670,4,FALSE),5)),[4]RewardItemConfig!$B$1:$C$1176,2,FALSE) ->  | M105: 11002#1|14#280|3#28
B106: 10042 | C106: 普通-10-4 | D106: 8 | E106: 4049#3049 | F106: =VLOOKUP(VALUE(LEFT(VLOOKUP(VALUE(RIGHT(LevelDifficultyConfig!L131,4)),[3]RewardGroup!$B$1:$E$670,4,FALSE),5)),[4]RewardItemConfig!$B$1:$C$1176,2,FALSE) ->  | G106: =VLOOKUP(VALUE(RIGHT(VLOOKUP(VALUE(RIGHT(LevelDifficultyConfig!L131,4)),[3]RewardGroup!$B$1:$E$670,4,FALSE),5)),[4]RewardItemConfig!$B$1:$C$1176,2,FALSE) ->  | H106: =VLOOKUP(VALUE(LEFT(VLOOKUP(VALUE(LEFT(LevelDifficultyConfig!L131,4)),[3]RewardGroup!$B$1:$E$670,4,FALSE),5)),[4]RewardItemConfig!$B$1:$C$1176,2,FALSE) ->  | I106: =VLOOKUP(VALUE(RIGHT(VLOOKUP(VALUE(LEFT(LevelDifficultyConfig!L131,4)),[3]RewardGroup!$B$1:$E$670,4,FALSE),5)),[4]RewardItemConfig!$B$1:$C$1176,2,FALSE) ->  | M106: 11022#1|14#280|3#28
B107: 10052 | C107: 普通-10-5 | D107: 8 | E107: 4050#3050 | F107: =VLOOKUP(VALUE(LEFT(VLOOKUP(VALUE(RIGHT(LevelDifficultyConfig!L132,4)),[3]RewardGroup!$B$1:$E$670,4,FALSE),5)),[4]RewardItemConfig!$B$1:$C$1176,2,FALSE) ->  | G107: =VLOOKUP(VALUE(RIGHT(VLOOKUP(VALUE(RIGHT(LevelDifficultyConfig!L132,4)),[3]RewardGroup!$B$1:$E$670,4,FALSE),5)),[4]RewardItemConfig!$B$1:$C$1176,2,FALSE) ->  | H107: =VLOOKUP(VALUE(LEFT(VLOOKUP(VALUE(LEFT(LevelDifficultyConfig!L132,4)),[3]RewardGroup!$B$1:$E$670,4,FALSE),5)),[4]RewardItemConfig!$B$1:$C$1176,2,FALSE) ->  | I107: =VLOOKUP(VALUE(RIGHT(VLOOKUP(VALUE(LEFT(LevelDifficultyConfig!L132,4)),[3]RewardGroup!$B$1:$E$670,4,FALSE),5)),[4]RewardItemConfig!$B$1:$C$1176,2,FALSE) ->  | M107: 11002#1|14#280|3#28
B108: 1013 | C108: 困难-1-1 | D108: 8 | E108: 4001#3001 | F108: =VLOOKUP(VALUE(LEFT(VLOOKUP(VALUE(RIGHT(LevelDifficultyConfig!L158,4)),[3]RewardGroup!$B$1:$E$670,4,FALSE),5)),[4]RewardItemConfig!$B$1:$C$1176,2,FALSE) ->  | G108: =VLOOKUP(VALUE(RIGHT(VLOOKUP(VALUE(RIGHT(LevelDifficultyConfig!L158,4)),[3]RewardGroup!$B$1:$E$670,4,FALSE),5)),[4]RewardItemConfig!$B$1:$C$1176,2,FALSE) ->  | H108: =VLOOKUP(VALUE(LEFT(VLOOKUP(VALUE(LEFT(LevelDifficultyConfig!L158,4)),[3]RewardGroup!$B$1:$E$670,4,FALSE),5)),[4]RewardItemConfig!$B$1:$C$1176,2,FALSE) ->  | I108: =VLOOKUP(VALUE(RIGHT(VLOOKUP(VALUE(LEFT(LevelDifficultyConfig!L158,4)),[3]RewardGroup!$B$1:$E$670,4,FALSE),5)),[4]RewardItemConfig!$B$1:$C$1176,2,FALSE) ->  | M108: 11022#1|14#280|3#28
B109: 1023 | C109: 困难-1-2 | D109: 8 | E109: 4002#3002 | F109: =VLOOKUP(VALUE(LEFT(VLOOKUP(VALUE(RIGHT(LevelDifficultyConfig!L159,4)),[3]RewardGroup!$B$1:$E$670,4,FALSE),5)),[4]RewardItemConfig!$B$1:$C$1176,2,FALSE) ->  | G109: =VLOOKUP(VALUE(RIGHT(VLOOKUP(VALUE(RIGHT(LevelDifficultyConfig!L159,4)),[3]RewardGroup!$B$1:$E$670,4,FALSE),5)),[4]RewardItemConfig!$B$1:$C$1176,2,FALSE) ->  | H109: =VLOOKUP(VALUE(LEFT(VLOOKUP(VALUE(LEFT(LevelDifficultyConfig!L159,4)),[3]RewardGroup!$B$1:$E$670,4,FALSE),5)),[4]RewardItemConfig!$B$1:$C$1176,2,FALSE) ->  | I109: =VLOOKUP(VALUE(RIGHT(VLOOKUP(VALUE(LEFT(LevelDifficultyConfig!L159,4)),[3]RewardGroup!$B$1:$E$670,4,FALSE),5)),[4]RewardItemConfig!$B$1:$C$1176,2,FALSE) ->  | M109: 11002#1|14#280|3#28
B110: 1033 | C110: 困难-1-3 | D110: 8 | E110: 4003#3003 | F110: =VLOOKUP(VALUE(LEFT(VLOOKUP(VALUE(RIGHT(LevelDifficultyConfig!L160,4)),[3]RewardGroup!$B$1:$E$670,4,FALSE),5)),[4]RewardItemConfig!$B$1:$C$1176,2,FALSE) ->  | G110: =VLOOKUP(VALUE(RIGHT(VLOOKUP(VALUE(RIGHT(LevelDifficultyConfig!L160,4)),[3]RewardGroup!$B$1:$E$670,4,FALSE),5)),[4]RewardItemConfig!$B$1:$C$1176,2,FALSE) ->  | H110: =VLOOKUP(VALUE(LEFT(VLOOKUP(VALUE(LEFT(LevelDifficultyConfig!L160,4)),[3]RewardGroup!$B$1:$E$670,4,FALSE),5)),[4]RewardItemConfig!$B$1:$C$1176,2,FALSE) ->  | I110: =VLOOKUP(VALUE(RIGHT(VLOOKUP(VALUE(LEFT(LevelDifficultyConfig!L160,4)),[3]RewardGroup!$B$1:$E$670,4,FALSE),5)),[4]RewardItemConfig!$B$1:$C$1176,2,FALSE) ->  | M110: 11022#1|14#280|3#28
B111: 1043 | C111: 困难-1-4 | D111: 8 | E111: 4004#3004 | F111: =VLOOKUP(VALUE(LEFT(VLOOKUP(VALUE(RIGHT(LevelDifficultyConfig!L161,4)),[3]RewardGroup!$B$1:$E$670,4,FALSE),5)),[4]RewardItemConfig!$B$1:$C$1176,2,FALSE) ->  | G111: =VLOOKUP(VALUE(RIGHT(VLOOKUP(VALUE(RIGHT(LevelDifficultyConfig!L161,4)),[3]RewardGroup!$B$1:$E$670,4,FALSE),5)),[4]RewardItemConfig!$B$1:$C$1176,2,FALSE) ->  | H111: =VLOOKUP(VALUE(LEFT(VLOOKUP(VALUE(LEFT(LevelDifficultyConfig!L161,4)),[3]RewardGroup!$B$1:$E$670,4,FALSE),5)),[4]RewardItemConfig!$B$1:$C$1176,2,FALSE) ->  | I111: =VLOOKUP(VALUE(RIGHT(VLOOKUP(VALUE(LEFT(LevelDifficultyConfig!L161,4)),[3]RewardGroup!$B$1:$E$670,4,FALSE),5)),[4]RewardItemConfig!$B$1:$C$1176,2,FALSE) ->  | M111: 11002#1|14#280|3#28
B112: 1053 | C112: 困难-1-5 | D112: 8 | E112: 4005#3005 | F112: =VLOOKUP(VALUE(LEFT(VLOOKUP(VALUE(RIGHT(LevelDifficultyConfig!L162,4)),[3]RewardGroup!$B$1:$E$670,4,FALSE),5)),[4]RewardItemConfig!$B$1:$C$1176,2,FALSE) ->  | G112: =VLOOKUP(VALUE(RIGHT(VLOOKUP(VALUE(RIGHT(LevelDifficultyConfig!L162,4)),[3]RewardGroup!$B$1:$E$670,4,FALSE),5)),[4]RewardItemConfig!$B$1:$C$1176,2,FALSE) ->  | H112: =VLOOKUP(VALUE(LEFT(VLOOKUP(VALUE(LEFT(LevelDifficultyConfig!L162,4)),[3]RewardGroup!$B$1:$E$670,4,FALSE),5)),[4]RewardItemConfig!$B$1:$C$1176,2,FALSE) ->  | I112: =VLOOKUP(VALUE(RIGHT(VLOOKUP(VALUE(LEFT(LevelDifficultyConfig!L162,4)),[3]RewardGroup!$B$1:$E$670,4,FALSE),5)),[4]RewardItemConfig!$B$1:$C$1176,2,FALSE) ->  | M112: 11022#1|14#280|3#28
B113: 2013 | C113: 困难-2-1 | D113: 8 | E113: 4006#3006 | F113: =VLOOKUP(VALUE(LEFT(VLOOKUP(VALUE(RIGHT(LevelDifficultyConfig!L163,4)),[3]RewardGroup!$B$1:$E$670,4,FALSE),5)),[4]RewardItemConfig!$B$1:$C$1176,2,FALSE) ->  | G113: =VLOOKUP(VALUE(RIGHT(VLOOKUP(VALUE(RIGHT(LevelDifficultyConfig!L163,4)),[3]RewardGroup!$B$1:$E$670,4,FALSE),5)),[4]RewardItemConfig!$B$1:$C$1176,2,FALSE) ->  | H113: =VLOOKUP(VALUE(LEFT(VLOOKUP(VALUE(LEFT(LevelDifficultyConfig!L163,4)),[3]RewardGroup!$B$1:$E$670,4,FALSE),5)),[4]RewardItemConfig!$B$1:$C$1176,2,FALSE) ->  | I113: =VLOOKUP(VALUE(RIGHT(VLOOKUP(VALUE(LEFT(LevelDifficultyConfig!L163,4)),[3]RewardGroup!$B$1:$E$670,4,FALSE),5)),[4]RewardItemConfig!$B$1:$C$1176,2,FALSE) ->  | M113: 11002#1|14#280|3#28
B114: 2023 | C114: 困难-2-2 | D114: 8 | E114: 4007#3007 | F114: =VLOOKUP(VALUE(LEFT(VLOOKUP(VALUE(RIGHT(LevelDifficultyConfig!L164,4)),[3]RewardGroup!$B$1:$E$670,4,FALSE),5)),[4]RewardItemConfig!$B$1:$C$1176,2,FALSE) ->  | G114: =VLOOKUP(VALUE(RIGHT(VLOOKUP(VALUE(RIGHT(LevelDifficultyConfig!L164,4)),[3]RewardGroup!$B$1:$E$670,4,FALSE),5)),[4]RewardItemConfig!$B$1:$C$1176,2,FALSE) ->  | H114: =VLOOKUP(VALUE(LEFT(VLOOKUP(VALUE(LEFT(LevelDifficultyConfig!L164,4)),[3]RewardGroup!$B$1:$E$670,4,FALSE),5)),[4]RewardItemConfig!$B$1:$C$1176,2,FALSE) ->  | I114: =VLOOKUP(VALUE(RIGHT(VLOOKUP(VALUE(LEFT(LevelDifficultyConfig!L164,4)),[3]RewardGroup!$B$1:$E$670,4,FALSE),5)),[4]RewardItemConfig!$B$1:$C$1176,2,FALSE) ->  | M114: 11022#1|14#280|3#28
B115: 2033 | C115: 困难-2-3 | D115: 8 | E115: 4008#3008 | F115: =VLOOKUP(VALUE(LEFT(VLOOKUP(VALUE(RIGHT(LevelDifficultyConfig!L165,4)),[3]RewardGroup!$B$1:$E$670,4,FALSE),5)),[4]RewardItemConfig!$B$1:$C$1176,2,FALSE) ->  | G115: =VLOOKUP(VALUE(RIGHT(VLOOKUP(VALUE(RIGHT(LevelDifficultyConfig!L165,4)),[3]RewardGroup!$B$1:$E$670,4,FALSE),5)),[4]RewardItemConfig!$B$1:$C$1176,2,FALSE) ->  | H115: =VLOOKUP(VALUE(LEFT(VLOOKUP(VALUE(LEFT(LevelDifficultyConfig!L165,4)),[3]RewardGroup!$B$1:$E$670,4,FALSE),5)),[4]RewardItemConfig!$B$1:$C$1176,2,FALSE) ->  | I115: =VLOOKUP(VALUE(RIGHT(VLOOKUP(VALUE(LEFT(LevelDifficultyConfig!L165,4)),[3]RewardGroup!$B$1:$E$670,4,FALSE),5)),[4]RewardItemConfig!$B$1:$C$1176,2,FALSE) ->  | M115: 11002#1|14#280|3#28
B116: 2043 | C116: 困难-2-4 | D116: 8 | E116: 4009#3009 | F116: =VLOOKUP(VALUE(LEFT(VLOOKUP(VALUE(RIGHT(LevelDifficultyConfig!L166,4)),[3]RewardGroup!$B$1:$E$670,4,FALSE),5)),[4]RewardItemConfig!$B$1:$C$1176,2,FALSE) ->  | G116: =VLOOKUP(VALUE(RIGHT(VLOOKUP(VALUE(RIGHT(LevelDifficultyConfig!L166,4)),[3]RewardGroup!$B$1:$E$670,4,FALSE),5)),[4]RewardItemConfig!$B$1:$C$1176,2,FALSE) ->  | H116: =VLOOKUP(VALUE(LEFT(VLOOKUP(VALUE(LEFT(LevelDifficultyConfig!L166,4)),[3]RewardGroup!$B$1:$E$670,4,FALSE),5)),[4]RewardItemConfig!$B$1:$C$1176,2,FALSE) ->  | I116: =VLOOKUP(VALUE(RIGHT(VLOOKUP(VALUE(LEFT(LevelDifficultyConfig!L166,4)),[3]RewardGroup!$B$1:$E$670,4,FALSE),5)),[4]RewardItemConfig!$B$1:$C$1176,2,FALSE) ->  | M116: 11022#1|14#280|3#28
B117: 2053 | C117: 困难-2-5 | D117: 8 | E117: 4010#3010 | F117: =VLOOKUP(VALUE(LEFT(VLOOKUP(VALUE(RIGHT(LevelDifficultyConfig!L167,4)),[3]RewardGroup!$B$1:$E$670,4,FALSE),5)),[4]RewardItemConfig!$B$1:$C$1176,2,FALSE) ->  | G117: =VLOOKUP(VALUE(RIGHT(VLOOKUP(VALUE(RIGHT(LevelDifficultyConfig!L167,4)),[3]RewardGroup!$B$1:$E$670,4,FALSE),5)),[4]RewardItemConfig!$B$1:$C$1176,2,FALSE) ->  | H117: =VLOOKUP(VALUE(LEFT(VLOOKUP(VALUE(LEFT(LevelDifficultyConfig!L167,4)),[3]RewardGroup!$B$1:$E$670,4,FALSE),5)),[4]RewardItemConfig!$B$1:$C$1176,2,FALSE) ->  | I117: =VLOOKUP(VALUE(RIGHT(VLOOKUP(VALUE(LEFT(LevelDifficultyConfig!L167,4)),[3]RewardGroup!$B$1:$E$670,4,FALSE),5)),[4]RewardItemConfig!$B$1:$C$1176,2,FALSE) ->  | M117: 11002#1|14#280|3#28
B118: 3013 | C118: 困难-3-1 | D118: 8 | E118: 4011#3011 | F118: =VLOOKUP(VALUE(LEFT(VLOOKUP(VALUE(RIGHT(LevelDifficultyConfig!L168,4)),[3]RewardGroup!$B$1:$E$670,4,FALSE),5)),[4]RewardItemConfig!$B$1:$C$1176,2,FALSE) ->  | G118: =VLOOKUP(VALUE(RIGHT(VLOOKUP(VALUE(RIGHT(LevelDifficultyConfig!L168,4)),[3]RewardGroup!$B$1:$E$670,4,FALSE),5)),[4]RewardItemConfig!$B$1:$C$1176,2,FALSE) ->  | H118: =VLOOKUP(VALUE(LEFT(VLOOKUP(VALUE(LEFT(LevelDifficultyConfig!L168,4)),[3]RewardGroup!$B$1:$E$670,4,FALSE),5)),[4]RewardItemConfig!$B$1:$C$1176,2,FALSE) ->  | I118: =VLOOKUP(VALUE(RIGHT(VLOOKUP(VALUE(LEFT(LevelDifficultyConfig!L168,4)),[3]RewardGroup!$B$1:$E$670,4,FALSE),5)),[4]RewardItemConfig!$B$1:$C$1176,2,FALSE) ->  | J118: =I118&"#1|"&G118&"#280|"&F118&"#28" ->  | M118: 11022#1|14#280|3#28
B119: 3023 | C119: 困难-3-2 | D119: 8 | E119: 4012#3012 | F119: =VLOOKUP(VALUE(LEFT(VLOOKUP(VALUE(RIGHT(LevelDifficultyConfig!L169,4)),[3]RewardGroup!$B$1:$E$670,4,FALSE),5)),[4]RewardItemConfig!$B$1:$C$1176,2,FALSE) ->  | G119: =VLOOKUP(VALUE(RIGHT(VLOOKUP(VALUE(RIGHT(LevelDifficultyConfig!L169,4)),[3]RewardGroup!$B$1:$E$670,4,FALSE),5)),[4]RewardItemConfig!$B$1:$C$1176,2,FALSE) ->  | H119: =VLOOKUP(VALUE(LEFT(VLOOKUP(VALUE(LEFT(LevelDifficultyConfig!L169,4)),[3]RewardGroup!$B$1:$E$670,4,FALSE),5)),[4]RewardItemConfig!$B$1:$C$1176,2,FALSE) ->  | I119: =VLOOKUP(VALUE(RIGHT(VLOOKUP(VALUE(LEFT(LevelDifficultyConfig!L169,4)),[3]RewardGroup!$B$1:$E$670,4,FALSE),5)),[4]RewardItemConfig!$B$1:$C$1176,2,FALSE) ->  | M119: 11002#1|14#280|3#28
B120: 3033 | C120: 困难-3-3 | D120: 8 | E120: 4013#3013 | F120: =VLOOKUP(VALUE(LEFT(VLOOKUP(VALUE(RIGHT(LevelDifficultyConfig!L170,4)),[3]RewardGroup!$B$1:$E$670,4,FALSE),5)),[4]RewardItemConfig!$B$1:$C$1176,2,FALSE) ->  | G120: =VLOOKUP(VALUE(RIGHT(VLOOKUP(VALUE(RIGHT(LevelDifficultyConfig!L170,4)),[3]RewardGroup!$B$1:$E$670,4,FALSE),5)),[4]RewardItemConfig!$B$1:$C$1176,2,FALSE) ->  | H120: =VLOOKUP(VALUE(LEFT(VLOOKUP(VALUE(LEFT(LevelDifficultyConfig!L170,4)),[3]RewardGroup!$B$1:$E$670,4,FALSE),5)),[4]RewardItemConfig!$B$1:$C$1176,2,FALSE) ->  | I120: =VLOOKUP(VALUE(RIGHT(VLOOKUP(VALUE(LEFT(LevelDifficultyConfig!L170,4)),[3]RewardGroup!$B$1:$E$670,4,FALSE),5)),[4]RewardItemConfig!$B$1:$C$1176,2,FALSE) ->  | M120: 11022#1|14#280|3#28
B121: 3043 | C121: 困难-3-4 | D121: 8 | E121: 4014#3014 | F121: =VLOOKUP(VALUE(LEFT(VLOOKUP(VALUE(RIGHT(LevelDifficultyConfig!L171,4)),[3]RewardGroup!$B$1:$E$670,4,FALSE),5)),[4]RewardItemConfig!$B$1:$C$1176,2,FALSE) ->  | G121: =VLOOKUP(VALUE(RIGHT(VLOOKUP(VALUE(RIGHT(LevelDifficultyConfig!L171,4)),[3]RewardGroup!$B$1:$E$670,4,FALSE),5)),[4]RewardItemConfig!$B$1:$C$1176,2,FALSE) ->  | H121: =VLOOKUP(VALUE(LEFT(VLOOKUP(VALUE(LEFT(LevelDifficultyConfig!L171,4)),[3]RewardGroup!$B$1:$E$670,4,FALSE),5)),[4]RewardItemConfig!$B$1:$C$1176,2,FALSE) ->  | I121: =VLOOKUP(VALUE(RIGHT(VLOOKUP(VALUE(LEFT(LevelDifficultyConfig!L171,4)),[3]RewardGroup!$B$1:$E$670,4,FALSE),5)),[4]RewardItemConfig!$B$1:$C$1176,2,FALSE) ->  | M121: 11002#1|14#280|3#28
B122: 3053 | C122: 困难-3-5 | D122: 8 | E122: 4015#3015 | F122: =VLOOKUP(VALUE(LEFT(VLOOKUP(VALUE(RIGHT(LevelDifficultyConfig!L172,4)),[3]RewardGroup!$B$1:$E$670,4,FALSE),5)),[4]RewardItemConfig!$B$1:$C$1176,2,FALSE) ->  | G122: =VLOOKUP(VALUE(RIGHT(VLOOKUP(VALUE(RIGHT(LevelDifficultyConfig!L172,4)),[3]RewardGroup!$B$1:$E$670,4,FALSE),5)),[4]RewardItemConfig!$B$1:$C$1176,2,FALSE) ->  | H122: =VLOOKUP(VALUE(LEFT(VLOOKUP(VALUE(LEFT(LevelDifficultyConfig!L172,4)),[3]RewardGroup!$B$1:$E$670,4,FALSE),5)),[4]RewardItemConfig!$B$1:$C$1176,2,FALSE) ->  | I122: =VLOOKUP(VALUE(RIGHT(VLOOKUP(VALUE(LEFT(LevelDifficultyConfig!L172,4)),[3]RewardGroup!$B$1:$E$670,4,FALSE),5)),[4]RewardItemConfig!$B$1:$C$1176,2,FALSE) ->  | M122: =M120 -> 11022#1|14#280|3#28
B123: 4013 | C123: 困难-4-1 | D123: 8 | E123: 4016#3016 | F123: =VLOOKUP(VALUE(LEFT(VLOOKUP(VALUE(RIGHT(LevelDifficultyConfig!L173,4)),[3]RewardGroup!$B$1:$E$670,4,FALSE),5)),[4]RewardItemConfig!$B$1:$C$1176,2,FALSE) ->  | G123: =VLOOKUP(VALUE(RIGHT(VLOOKUP(VALUE(RIGHT(LevelDifficultyConfig!L173,4)),[3]RewardGroup!$B$1:$E$670,4,FALSE),5)),[4]RewardItemConfig!$B$1:$C$1176,2,FALSE) ->  | H123: =VLOOKUP(VALUE(LEFT(VLOOKUP(VALUE(LEFT(LevelDifficultyConfig!L173,4)),[3]RewardGroup!$B$1:$E$670,4,FALSE),5)),[4]RewardItemConfig!$B$1:$C$1176,2,FALSE) ->  | I123: =VLOOKUP(VALUE(RIGHT(VLOOKUP(VALUE(LEFT(LevelDifficultyConfig!L173,4)),[3]RewardGroup!$B$1:$E$670,4,FALSE),5)),[4]RewardItemConfig!$B$1:$C$1176,2,FALSE) ->  | M123: 11002#1|14#280|3#28
B124: 4023 | C124: 困难-4-2 | D124: 8 | E124: 4017#3017 | F124: =VLOOKUP(VALUE(LEFT(VLOOKUP(VALUE(RIGHT(LevelDifficultyConfig!L174,4)),[3]RewardGroup!$B$1:$E$670,4,FALSE),5)),[4]RewardItemConfig!$B$1:$C$1176,2,FALSE) ->  | G124: =VLOOKUP(VALUE(RIGHT(VLOOKUP(VALUE(RIGHT(LevelDifficultyConfig!L174,4)),[3]RewardGroup!$B$1:$E$670,4,FALSE),5)),[4]RewardItemConfig!$B$1:$C$1176,2,FALSE) ->  | H124: =VLOOKUP(VALUE(LEFT(VLOOKUP(VALUE(LEFT(LevelDifficultyConfig!L174,4)),[3]RewardGroup!$B$1:$E$670,4,FALSE),5)),[4]RewardItemConfig!$B$1:$C$1176,2,FALSE) ->  | I124: =VLOOKUP(VALUE(RIGHT(VLOOKUP(VALUE(LEFT(LevelDifficultyConfig!L174,4)),[3]RewardGroup!$B$1:$E$670,4,FALSE),5)),[4]RewardItemConfig!$B$1:$C$1176,2,FALSE) ->  | M124: 11022#1|14#280|3#28
B125: 4033 | C125: 困难-4-3 | D125: 8 | E125: 4018#3018 | F125: =VLOOKUP(VALUE(LEFT(VLOOKUP(VALUE(RIGHT(LevelDifficultyConfig!L175,4)),[3]RewardGroup!$B$1:$E$670,4,FALSE),5)),[4]RewardItemConfig!$B$1:$C$1176,2,FALSE) ->  | G125: =VLOOKUP(VALUE(RIGHT(VLOOKUP(VALUE(RIGHT(LevelDifficultyConfig!L175,4)),[3]RewardGroup!$B$1:$E$670,4,FALSE),5)),[4]RewardItemConfig!$B$1:$C$1176,2,FALSE) ->  | H125: =VLOOKUP(VALUE(LEFT(VLOOKUP(VALUE(LEFT(LevelDifficultyConfig!L175,4)),[3]RewardGroup!$B$1:$E$670,4,FALSE),5)),[4]RewardItemConfig!$B$1:$C$1176,2,FALSE) ->  | I125: =VLOOKUP(VALUE(RIGHT(VLOOKUP(VALUE(LEFT(LevelDifficultyConfig!L175,4)),[3]RewardGroup!$B$1:$E$670,4,FALSE),5)),[4]RewardItemConfig!$B$1:$C$1176,2,FALSE) ->  | M125: 11002#1|14#280|3#28
B126: 4043 | C126: 困难-4-4 | D126: 8 | E126: 4019#3019 | F126: =VLOOKUP(VALUE(LEFT(VLOOKUP(VALUE(RIGHT(LevelDifficultyConfig!L176,4)),[3]RewardGroup!$B$1:$E$670,4,FALSE),5)),[4]RewardItemConfig!$B$1:$C$1176,2,FALSE) ->  | G126: =VLOOKUP(VALUE(RIGHT(VLOOKUP(VALUE(RIGHT(LevelDifficultyConfig!L176,4)),[3]RewardGroup!$B$1:$E$670,4,FALSE),5)),[4]RewardItemConfig!$B$1:$C$1176,2,FALSE) ->  | H126: =VLOOKUP(VALUE(LEFT(VLOOKUP(VALUE(LEFT(LevelDifficultyConfig!L176,4)),[3]RewardGroup!$B$1:$E$670,4,FALSE),5)),[4]RewardItemConfig!$B$1:$C$1176,2,FALSE) ->  | I126: =VLOOKUP(VALUE(RIGHT(VLOOKUP(VALUE(LEFT(LevelDifficultyConfig!L176,4)),[3]RewardGroup!$B$1:$E$670,4,FALSE),5)),[4]RewardItemConfig!$B$1:$C$1176,2,FALSE) ->  | M126: 11022#1|14#280|3#28
B127: 4053 | C127: 困难-4-5 | D127: 8 | E127: 4020#3020 | F127: =VLOOKUP(VALUE(LEFT(VLOOKUP(VALUE(RIGHT(LevelDifficultyConfig!L177,4)),[3]RewardGroup!$B$1:$E$670,4,FALSE),5)),[4]RewardItemConfig!$B$1:$C$1176,2,FALSE) ->  | G127: =VLOOKUP(VALUE(RIGHT(VLOOKUP(VALUE(RIGHT(LevelDifficultyConfig!L177,4)),[3]RewardGroup!$B$1:$E$670,4,FALSE),5)),[4]RewardItemConfig!$B$1:$C$1176,2,FALSE) ->  | H127: =VLOOKUP(VALUE(LEFT(VLOOKUP(VALUE(LEFT(LevelDifficultyConfig!L177,4)),[3]RewardGroup!$B$1:$E$670,4,FALSE),5)),[4]RewardItemConfig!$B$1:$C$1176,2,FALSE) ->  | I127: =VLOOKUP(VALUE(RIGHT(VLOOKUP(VALUE(LEFT(LevelDifficultyConfig!L177,4)),[3]RewardGroup!$B$1:$E$670,4,FALSE),5)),[4]RewardItemConfig!$B$1:$C$1176,2,FALSE) ->  | M127: 11002#1|14#280|3#28
B128: 5013 | C128: 困难-5-1 | D128: 8 | E128: 4021#3021 | F128: =VLOOKUP(VALUE(LEFT(VLOOKUP(VALUE(RIGHT(LevelDifficultyConfig!L178,4)),[3]RewardGroup!$B$1:$E$670,4,FALSE),5)),[4]RewardItemConfig!$B$1:$C$1176,2,FALSE) ->  | G128: =VLOOKUP(VALUE(RIGHT(VLOOKUP(VALUE(RIGHT(LevelDifficultyConfig!L178,4)),[3]RewardGroup!$B$1:$E$670,4,FALSE),5)),[4]RewardItemConfig!$B$1:$C$1176,2,FALSE) ->  | H128: =VLOOKUP(VALUE(LEFT(VLOOKUP(VALUE(LEFT(LevelDifficultyConfig!L178,4)),[3]RewardGroup!$B$1:$E$670,4,FALSE),5)),[4]RewardItemConfig!$B$1:$C$1176,2,FALSE) ->  | I128: =VLOOKUP(VALUE(RIGHT(VLOOKUP(VALUE(LEFT(LevelDifficultyConfig!L178,4)),[3]RewardGroup!$B$1:$E$670,4,FALSE),5)),[4]RewardItemConfig!$B$1:$C$1176,2,FALSE) ->  | M128: 11022#1|14#280|3#28
B129: 5023 | C129: 困难-5-2 | D129: 8 | E129: 4022#3022 | F129: =VLOOKUP(VALUE(LEFT(VLOOKUP(VALUE(RIGHT(LevelDifficultyConfig!L179,4)),[3]RewardGroup!$B$1:$E$670,4,FALSE),5)),[4]RewardItemConfig!$B$1:$C$1176,2,FALSE) ->  | G129: =VLOOKUP(VALUE(RIGHT(VLOOKUP(VALUE(RIGHT(LevelDifficultyConfig!L179,4)),[3]RewardGroup!$B$1:$E$670,4,FALSE),5)),[4]RewardItemConfig!$B$1:$C$1176,2,FALSE) ->  | H129: =VLOOKUP(VALUE(LEFT(VLOOKUP(VALUE(LEFT(LevelDifficultyConfig!L179,4)),[3]RewardGroup!$B$1:$E$670,4,FALSE),5)),[4]RewardItemConfig!$B$1:$C$1176,2,FALSE) ->  | I129: =VLOOKUP(VALUE(RIGHT(VLOOKUP(VALUE(LEFT(LevelDifficultyConfig!L179,4)),[3]RewardGroup!$B$1:$E$670,4,FALSE),5)),[4]RewardItemConfig!$B$1:$C$1176,2,FALSE) ->  | M129: 11002#1|14#280|3#28
B130: 5033 | C130: 困难-5-3 | D130: 8 | E130: 4023#3023 | F130: =VLOOKUP(VALUE(LEFT(VLOOKUP(VALUE(RIGHT(LevelDifficultyConfig!L180,4)),[3]RewardGroup!$B$1:$E$670,4,FALSE),5)),[4]RewardItemConfig!$B$1:$C$1176,2,FALSE) ->  | G130: =VLOOKUP(VALUE(RIGHT(VLOOKUP(VALUE(RIGHT(LevelDifficultyConfig!L180,4)),[3]RewardGroup!$B$1:$E$670,4,FALSE),5)),[4]RewardItemConfig!$B$1:$C$1176,2,FALSE) ->  | H130: =VLOOKUP(VALUE(LEFT(VLOOKUP(VALUE(LEFT(LevelDifficultyConfig!L180,4)),[3]RewardGroup!$B$1:$E$670,4,FALSE),5)),[4]RewardItemConfig!$B$1:$C$1176,2,FALSE) ->  | I130: =VLOOKUP(VALUE(RIGHT(VLOOKUP(VALUE(LEFT(LevelDifficultyConfig!L180,4)),[3]RewardGroup!$B$1:$E$670,4,FALSE),5)),[4]RewardItemConfig!$B$1:$C$1176,2,FALSE) ->  | M130: 11022#1|14#280|3#28
B131: 5043 | C131: 困难-5-4 | D131: 8 | E131: 4024#3024 | F131: =VLOOKUP(VALUE(LEFT(VLOOKUP(VALUE(RIGHT(LevelDifficultyConfig!L181,4)),[3]RewardGroup!$B$1:$E$670,4,FALSE),5)),[4]RewardItemConfig!$B$1:$C$1176,2,FALSE) ->  | G131: =VLOOKUP(VALUE(RIGHT(VLOOKUP(VALUE(RIGHT(LevelDifficultyConfig!L181,4)),[3]RewardGroup!$B$1:$E$670,4,FALSE),5)),[4]RewardItemConfig!$B$1:$C$1176,2,FALSE) ->  | H131: =VLOOKUP(VALUE(LEFT(VLOOKUP(VALUE(LEFT(LevelDifficultyConfig!L181,4)),[3]RewardGroup!$B$1:$E$670,4,FALSE),5)),[4]RewardItemConfig!$B$1:$C$1176,2,FALSE) ->  | I131: =VLOOKUP(VALUE(RIGHT(VLOOKUP(VALUE(LEFT(LevelDifficultyConfig!L181,4)),[3]RewardGroup!$B$1:$E$670,4,FALSE),5)),[4]RewardItemConfig!$B$1:$C$1176,2,FALSE) ->  | M131: 11002#1|14#280|3#28
B132: 5053 | C132: 困难-5-5 | D132: 8 | E132: 4025#3025 | F132: =VLOOKUP(VALUE(LEFT(VLOOKUP(VALUE(RIGHT(LevelDifficultyConfig!L182,4)),[3]RewardGroup!$B$1:$E$670,4,FALSE),5)),[4]RewardItemConfig!$B$1:$C$1176,2,FALSE) ->  | G132: =VLOOKUP(VALUE(RIGHT(VLOOKUP(VALUE(RIGHT(LevelDifficultyConfig!L182,4)),[3]RewardGroup!$B$1:$E$670,4,FALSE),5)),[4]RewardItemConfig!$B$1:$C$1176,2,FALSE) ->  | H132: =VLOOKUP(VALUE(LEFT(VLOOKUP(VALUE(LEFT(LevelDifficultyConfig!L182,4)),[3]RewardGroup!$B$1:$E$670,4,FALSE),5)),[4]RewardItemConfig!$B$1:$C$1176,2,FALSE) ->  | I132: =VLOOKUP(VALUE(RIGHT(VLOOKUP(VALUE(LEFT(LevelDifficultyConfig!L182,4)),[3]RewardGroup!$B$1:$E$670,4,FALSE),5)),[4]RewardItemConfig!$B$1:$C$1176,2,FALSE) ->  | M132: 11022#1|14#280|3#28
B133: 6013 | C133: 困难-6-1 | D133: 8 | E133: 4026#3026 | F133: =VLOOKUP(VALUE(LEFT(VLOOKUP(VALUE(RIGHT(LevelDifficultyConfig!L183,4)),[3]RewardGroup!$B$1:$E$670,4,FALSE),5)),[4]RewardItemConfig!$B$1:$C$1176,2,FALSE) ->  | G133: =VLOOKUP(VALUE(RIGHT(VLOOKUP(VALUE(RIGHT(LevelDifficultyConfig!L183,4)),[3]RewardGroup!$B$1:$E$670,4,FALSE),5)),[4]RewardItemConfig!$B$1:$C$1176,2,FALSE) ->  | H133: =VLOOKUP(VALUE(LEFT(VLOOKUP(VALUE(LEFT(LevelDifficultyConfig!L183,4)),[3]RewardGroup!$B$1:$E$670,4,FALSE),5)),[4]RewardItemConfig!$B$1:$C$1176,2,FALSE) ->  | I133: =VLOOKUP(VALUE(RIGHT(VLOOKUP(VALUE(LEFT(LevelDifficultyConfig!L183,4)),[3]RewardGroup!$B$1:$E$670,4,FALSE),5)),[4]RewardItemConfig!$B$1:$C$1176,2,FALSE) ->  | M133: 11002#1|14#280|3#28
B134: 6023 | C134: 困难-6-2 | D134: 8 | E134: 4027#3027 | F134: =VLOOKUP(VALUE(LEFT(VLOOKUP(VALUE(RIGHT(LevelDifficultyConfig!L184,4)),[3]RewardGroup!$B$1:$E$670,4,FALSE),5)),[4]RewardItemConfig!$B$1:$C$1176,2,FALSE) ->  | G134: =VLOOKUP(VALUE(RIGHT(VLOOKUP(VALUE(RIGHT(LevelDifficultyConfig!L184,4)),[3]RewardGroup!$B$1:$E$670,4,FALSE),5)),[4]RewardItemConfig!$B$1:$C$1176,2,FALSE) ->  | H134: =VLOOKUP(VALUE(LEFT(VLOOKUP(VALUE(LEFT(LevelDifficultyConfig!L184,4)),[3]RewardGroup!$B$1:$E$670,4,FALSE),5)),[4]RewardItemConfig!$B$1:$C$1176,2,FALSE) ->  | I134: =VLOOKUP(VALUE(RIGHT(VLOOKUP(VALUE(LEFT(LevelDifficultyConfig!L184,4)),[3]RewardGroup!$B$1:$E$670,4,FALSE),5)),[4]RewardItemConfig!$B$1:$C$1176,2,FALSE) ->  | M134: 11022#1|14#280|3#28
B135: 6033 | C135: 困难-6-3 | D135: 8 | E135: 4028#3028 | F135: =VLOOKUP(VALUE(LEFT(VLOOKUP(VALUE(RIGHT(LevelDifficultyConfig!L185,4)),[3]RewardGroup!$B$1:$E$670,4,FALSE),5)),[4]RewardItemConfig!$B$1:$C$1176,2,FALSE) ->  | G135: =VLOOKUP(VALUE(RIGHT(VLOOKUP(VALUE(RIGHT(LevelDifficultyConfig!L185,4)),[3]RewardGroup!$B$1:$E$670,4,FALSE),5)),[4]RewardItemConfig!$B$1:$C$1176,2,FALSE) ->  | H135: =VLOOKUP(VALUE(LEFT(VLOOKUP(VALUE(LEFT(LevelDifficultyConfig!L185,4)),[3]RewardGroup!$B$1:$E$670,4,FALSE),5)),[4]RewardItemConfig!$B$1:$C$1176,2,FALSE) ->  | I135: =VLOOKUP(VALUE(RIGHT(VLOOKUP(VALUE(LEFT(LevelDifficultyConfig!L185,4)),[3]RewardGroup!$B$1:$E$670,4,FALSE),5)),[4]RewardItemConfig!$B$1:$C$1176,2,FALSE) ->  | M135: 11002#1|14#280|3#28
B136: 6043 | C136: 困难-6-4 | D136: 8 | E136: 4029#3029 | F136: =VLOOKUP(VALUE(LEFT(VLOOKUP(VALUE(RIGHT(LevelDifficultyConfig!L186,4)),[3]RewardGroup!$B$1:$E$670,4,FALSE),5)),[4]RewardItemConfig!$B$1:$C$1176,2,FALSE) ->  | G136: =VLOOKUP(VALUE(RIGHT(VLOOKUP(VALUE(RIGHT(LevelDifficultyConfig!L186,4)),[3]RewardGroup!$B$1:$E$670,4,FALSE),5)),[4]RewardItemConfig!$B$1:$C$1176,2,FALSE) ->  | H136: =VLOOKUP(VALUE(LEFT(VLOOKUP(VALUE(LEFT(LevelDifficultyConfig!L186,4)),[3]RewardGroup!$B$1:$E$670,4,FALSE),5)),[4]RewardItemConfig!$B$1:$C$1176,2,FALSE) ->  | I136: =VLOOKUP(VALUE(RIGHT(VLOOKUP(VALUE(LEFT(LevelDifficultyConfig!L186,4)),[3]RewardGroup!$B$1:$E$670,4,FALSE),5)),[4]RewardItemConfig!$B$1:$C$1176,2,FALSE) ->  | M136: 11022#1|14#280|3#28
B137: 6053 | C137: 困难-6-5 | D137: 8 | E137: 4030#3030 | F137: =VLOOKUP(VALUE(LEFT(VLOOKUP(VALUE(RIGHT(LevelDifficultyConfig!L187,4)),[3]RewardGroup!$B$1:$E$670,4,FALSE),5)),[4]RewardItemConfig!$B$1:$C$1176,2,FALSE) ->  | G137: =VLOOKUP(VALUE(RIGHT(VLOOKUP(VALUE(RIGHT(LevelDifficultyConfig!L187,4)),[3]RewardGroup!$B$1:$E$670,4,FALSE),5)),[4]RewardItemConfig!$B$1:$C$1176,2,FALSE) ->  | H137: =VLOOKUP(VALUE(LEFT(VLOOKUP(VALUE(LEFT(LevelDifficultyConfig!L187,4)),[3]RewardGroup!$B$1:$E$670,4,FALSE),5)),[4]RewardItemConfig!$B$1:$C$1176,2,FALSE) ->  | I137: =VLOOKUP(VALUE(RIGHT(VLOOKUP(VALUE(LEFT(LevelDifficultyConfig!L187,4)),[3]RewardGroup!$B$1:$E$670,4,FALSE),5)),[4]RewardItemConfig!$B$1:$C$1176,2,FALSE) ->  | M137: 11002#1|14#280|3#28
B138: 7013 | C138: 困难-7-1 | D138: 8 | E138: 4031#3031 | F138: =VLOOKUP(VALUE(LEFT(VLOOKUP(VALUE(RIGHT(LevelDifficultyConfig!L188,4)),[3]RewardGroup!$B$1:$E$670,4,FALSE),5)),[4]RewardItemConfig!$B$1:$C$1176,2,FALSE) -> 3 | G138: =VLOOKUP(VALUE(RIGHT(VLOOKUP(VALUE(RIGHT(LevelDifficultyConfig!L188,4)),[3]RewardGroup!$B$1:$E$670,4,FALSE),5)),[4]RewardItemConfig!$B$1:$C$1176,2,FALSE) ->  | H138: =VLOOKUP(VALUE(LEFT(VLOOKUP(VALUE(LEFT(LevelDifficultyConfig!L188,4)),[3]RewardGroup!$B$1:$E$670,4,FALSE),5)),[4]RewardItemConfig!$B$1:$C$1176,2,FALSE) ->  | I138: =VLOOKUP(VALUE(RIGHT(VLOOKUP(VALUE(LEFT(LevelDifficultyConfig!L188,4)),[3]RewardGroup!$B$1:$E$670,4,FALSE),5)),[4]RewardItemConfig!$B$1:$C$1176,2,FALSE) ->  | M138: 11022#1|14#280|3#28
B139: 7023 | C139: 困难-7-2 | D139: 8 | E139: 4032#3032 | F139: =VLOOKUP(VALUE(LEFT(VLOOKUP(VALUE(RIGHT(LevelDifficultyConfig!L189,4)),[3]RewardGroup!$B$1:$E$670,4,FALSE),5)),[4]RewardItemConfig!$B$1:$C$1176,2,FALSE) ->  | G139: =VLOOKUP(VALUE(RIGHT(VLOOKUP(VALUE(RIGHT(LevelDifficultyConfig!L189,4)),[3]RewardGroup!$B$1:$E$670,4,FALSE),5)),[4]RewardItemConfig!$B$1:$C$1176,2,FALSE) ->  | H139: =VLOOKUP(VALUE(LEFT(VLOOKUP(VALUE(LEFT(LevelDifficultyConfig!L189,4)),[3]RewardGroup!$B$1:$E$670,4,FALSE),5)),[4]RewardItemConfig!$B$1:$C$1176,2,FALSE) ->  | I139: =VLOOKUP(VALUE(RIGHT(VLOOKUP(VALUE(LEFT(LevelDifficultyConfig!L189,4)),[3]RewardGroup!$B$1:$E$670,4,FALSE),5)),[4]RewardItemConfig!$B$1:$C$1176,2,FALSE) ->  | M139: 11002#1|14#280|3#28
B140: 7033 | C140: 困难-7-3 | D140: 8 | E140: 4033#3033 | F140: =VLOOKUP(VALUE(LEFT(VLOOKUP(VALUE(RIGHT(LevelDifficultyConfig!L190,4)),[3]RewardGroup!$B$1:$E$670,4,FALSE),5)),[4]RewardItemConfig!$B$1:$C$1176,2,FALSE) ->  | G140: =VLOOKUP(VALUE(RIGHT(VLOOKUP(VALUE(RIGHT(LevelDifficultyConfig!L190,4)),[3]RewardGroup!$B$1:$E$670,4,FALSE),5)),[4]RewardItemConfig!$B$1:$C$1176,2,FALSE) ->  | H140: =VLOOKUP(VALUE(LEFT(VLOOKUP(VALUE(LEFT(LevelDifficultyConfig!L190,4)),[3]RewardGroup!$B$1:$E$670,4,FALSE),5)),[4]RewardItemConfig!$B$1:$C$1176,2,FALSE) ->  | I140: =VLOOKUP(VALUE(RIGHT(VLOOKUP(VALUE(LEFT(LevelDifficultyConfig!L190,4)),[3]RewardGroup!$B$1:$E$670,4,FALSE),5)),[4]RewardItemConfig!$B$1:$C$1176,2,FALSE) ->  | M140: 11022#1|14#280|3#28
B141: 7043 | C141: 困难-7-4 | D141: 8 | E141: 4034#3034 | F141: =VLOOKUP(VALUE(LEFT(VLOOKUP(VALUE(RIGHT(LevelDifficultyConfig!L191,4)),[3]RewardGroup!$B$1:$E$670,4,FALSE),5)),[4]RewardItemConfig!$B$1:$C$1176,2,FALSE) ->  | G141: =VLOOKUP(VALUE(RIGHT(VLOOKUP(VALUE(RIGHT(LevelDifficultyConfig!L191,4)),[3]RewardGroup!$B$1:$E$670,4,FALSE),5)),[4]RewardItemConfig!$B$1:$C$1176,2,FALSE) ->  | H141: =VLOOKUP(VALUE(LEFT(VLOOKUP(VALUE(LEFT(LevelDifficultyConfig!L191,4)),[3]RewardGroup!$B$1:$E$670,4,FALSE),5)),[4]RewardItemConfig!$B$1:$C$1176,2,FALSE) ->  | I141: =VLOOKUP(VALUE(RIGHT(VLOOKUP(VALUE(LEFT(LevelDifficultyConfig!L191,4)),[3]RewardGroup!$B$1:$E$670,4,FALSE),5)),[4]RewardItemConfig!$B$1:$C$1176,2,FALSE) ->  | M141: 11002#1|14#280|3#28
B142: 7053 | C142: 困难-7-5 | D142: 8 | E142: 4035#3035 | F142: =VLOOKUP(VALUE(LEFT(VLOOKUP(VALUE(RIGHT(LevelDifficultyConfig!L192,4)),[3]RewardGroup!$B$1:$E$670,4,FALSE),5)),[4]RewardItemConfig!$B$1:$C$1176,2,FALSE) ->  | G142: =VLOOKUP(VALUE(RIGHT(VLOOKUP(VALUE(RIGHT(LevelDifficultyConfig!L192,4)),[3]RewardGroup!$B$1:$E$670,4,FALSE),5)),[4]RewardItemConfig!$B$1:$C$1176,2,FALSE) ->  | H142: =VLOOKUP(VALUE(LEFT(VLOOKUP(VALUE(LEFT(LevelDifficultyConfig!L192,4)),[3]RewardGroup!$B$1:$E$670,4,FALSE),5)),[4]RewardItemConfig!$B$1:$C$1176,2,FALSE) ->  | I142: =VLOOKUP(VALUE(RIGHT(VLOOKUP(VALUE(LEFT(LevelDifficultyConfig!L192,4)),[3]RewardGroup!$B$1:$E$670,4,FALSE),5)),[4]RewardItemConfig!$B$1:$C$1176,2,FALSE) ->  | M142: 11022#1|14#280|3#28
B143: 8013 | C143: 困难-8-1 | D143: 8 | E143: 4036#3036 | F143: =VLOOKUP(VALUE(LEFT(VLOOKUP(VALUE(RIGHT(LevelDifficultyConfig!L193,4)),[3]RewardGroup!$B$1:$E$670,4,FALSE),5)),[4]RewardItemConfig!$B$1:$C$1176,2,FALSE) ->  | G143: =VLOOKUP(VALUE(RIGHT(VLOOKUP(VALUE(RIGHT(LevelDifficultyConfig!L193,4)),[3]RewardGroup!$B$1:$E$670,4,FALSE),5)),[4]RewardItemConfig!$B$1:$C$1176,2,FALSE) ->  | H143: =VLOOKUP(VALUE(LEFT(VLOOKUP(VALUE(LEFT(LevelDifficultyConfig!L193,4)),[3]RewardGroup!$B$1:$E$670,4,FALSE),5)),[4]RewardItemConfig!$B$1:$C$1176,2,FALSE) ->  | I143: =VLOOKUP(VALUE(RIGHT(VLOOKUP(VALUE(LEFT(LevelDifficultyConfig!L193,4)),[3]RewardGroup!$B$1:$E$670,4,FALSE),5)),[4]RewardItemConfig!$B$1:$C$1176,2,FALSE) ->  | M143: 11002#1|14#280|3#28
B144: 8023 | C144: 困难-8-2 | D144: 8 | E144: 4037#3037 | F144: =VLOOKUP(VALUE(LEFT(VLOOKUP(VALUE(RIGHT(LevelDifficultyConfig!L194,4)),[3]RewardGroup!$B$1:$E$670,4,FALSE),5)),[4]RewardItemConfig!$B$1:$C$1176,2,FALSE) ->  | G144: =VLOOKUP(VALUE(RIGHT(VLOOKUP(VALUE(RIGHT(LevelDifficultyConfig!L194,4)),[3]RewardGroup!$B$1:$E$670,4,FALSE),5)),[4]RewardItemConfig!$B$1:$C$1176,2,FALSE) ->  | H144: =VLOOKUP(VALUE(LEFT(VLOOKUP(VALUE(LEFT(LevelDifficultyConfig!L194,4)),[3]RewardGroup!$B$1:$E$670,4,FALSE),5)),[4]RewardItemConfig!$B$1:$C$1176,2,FALSE) ->  | I144: =VLOOKUP(VALUE(RIGHT(VLOOKUP(VALUE(LEFT(LevelDifficultyConfig!L194,4)),[3]RewardGroup!$B$1:$E$670,4,FALSE),5)),[4]RewardItemConfig!$B$1:$C$1176,2,FALSE) ->  | M144: 11022#1|14#280|3#28
B145: 8033 | C145: 困难-8-3 | D145: 8 | E145: 4038#3038 | F145: =VLOOKUP(VALUE(LEFT(VLOOKUP(VALUE(RIGHT(LevelDifficultyConfig!L195,4)),[3]RewardGroup!$B$1:$E$670,4,FALSE),5)),[4]RewardItemConfig!$B$1:$C$1176,2,FALSE) ->  | G145: =VLOOKUP(VALUE(RIGHT(VLOOKUP(VALUE(RIGHT(LevelDifficultyConfig!L195,4)),[3]RewardGroup!$B$1:$E$670,4,FALSE),5)),[4]RewardItemConfig!$B$1:$C$1176,2,FALSE) ->  | H145: =VLOOKUP(VALUE(LEFT(VLOOKUP(VALUE(LEFT(LevelDifficultyConfig!L195,4)),[3]RewardGroup!$B$1:$E$670,4,FALSE),5)),[4]RewardItemConfig!$B$1:$C$1176,2,FALSE) ->  | I145: =VLOOKUP(VALUE(RIGHT(VLOOKUP(VALUE(LEFT(LevelDifficultyConfig!L195,4)),[3]RewardGroup!$B$1:$E$670,4,FALSE),5)),[4]RewardItemConfig!$B$1:$C$1176,2,FALSE) ->  | M145: 11002#1|14#280|3#28
B146: 8043 | C146: 困难-8-4 | D146: 8 | E146: 4039#3039 | F146: =VLOOKUP(VALUE(LEFT(VLOOKUP(VALUE(RIGHT(LevelDifficultyConfig!L196,4)),[3]RewardGroup!$B$1:$E$670,4,FALSE),5)),[4]RewardItemConfig!$B$1:$C$1176,2,FALSE) ->  | G146: =VLOOKUP(VALUE(RIGHT(VLOOKUP(VALUE(RIGHT(LevelDifficultyConfig!L196,4)),[3]RewardGroup!$B$1:$E$670,4,FALSE),5)),[4]RewardItemConfig!$B$1:$C$1176,2,FALSE) ->  | H146: =VLOOKUP(VALUE(LEFT(VLOOKUP(VALUE(LEFT(LevelDifficultyConfig!L196,4)),[3]RewardGroup!$B$1:$E$670,4,FALSE),5)),[4]RewardItemConfig!$B$1:$C$1176,2,FALSE) ->  | I146: =VLOOKUP(VALUE(RIGHT(VLOOKUP(VALUE(LEFT(LevelDifficultyConfig!L196,4)),[3]RewardGroup!$B$1:$E$670,4,FALSE),5)),[4]RewardItemConfig!$B$1:$C$1176,2,FALSE) ->  | M146: 11022#1|14#280|3#28
B147: 8053 | C147: 困难-8-5 | D147: 8 | E147: 4040#3040 | F147: =VLOOKUP(VALUE(LEFT(VLOOKUP(VALUE(RIGHT(LevelDifficultyConfig!L197,4)),[3]RewardGroup!$B$1:$E$670,4,FALSE),5)),[4]RewardItemConfig!$B$1:$C$1176,2,FALSE) ->  | G147: =VLOOKUP(VALUE(RIGHT(VLOOKUP(VALUE(RIGHT(LevelDifficultyConfig!L197,4)),[3]RewardGroup!$B$1:$E$670,4,FALSE),5)),[4]RewardItemConfig!$B$1:$C$1176,2,FALSE) ->  | H147: =VLOOKUP(VALUE(LEFT(VLOOKUP(VALUE(LEFT(LevelDifficultyConfig!L197,4)),[3]RewardGroup!$B$1:$E$670,4,FALSE),5)),[4]RewardItemConfig!$B$1:$C$1176,2,FALSE) ->  | I147: =VLOOKUP(VALUE(RIGHT(VLOOKUP(VALUE(LEFT(LevelDifficultyConfig!L197,4)),[3]RewardGroup!$B$1:$E$670,4,FALSE),5)),[4]RewardItemConfig!$B$1:$C$1176,2,FALSE) ->  | M147: 11002#1|14#280|3#28
B148: 9013 | C148: 困难-9-1 | D148: 8 | E148: 4041#3041 | F148: =VLOOKUP(VALUE(LEFT(VLOOKUP(VALUE(RIGHT(LevelDifficultyConfig!L198,4)),[3]RewardGroup!$B$1:$E$670,4,FALSE),5)),[4]RewardItemConfig!$B$1:$C$1176,2,FALSE) ->  | G148: =VLOOKUP(VALUE(RIGHT(VLOOKUP(VALUE(RIGHT(LevelDifficultyConfig!L198,4)),[3]RewardGroup!$B$1:$E$670,4,FALSE),5)),[4]RewardItemConfig!$B$1:$C$1176,2,FALSE) ->  | H148: =VLOOKUP(VALUE(LEFT(VLOOKUP(VALUE(LEFT(LevelDifficultyConfig!L198,4)),[3]RewardGroup!$B$1:$E$670,4,FALSE),5)),[4]RewardItemConfig!$B$1:$C$1176,2,FALSE) ->  | I148: =VLOOKUP(VALUE(RIGHT(VLOOKUP(VALUE(LEFT(LevelDifficultyConfig!L198,4)),[3]RewardGroup!$B$1:$E$670,4,FALSE),5)),[4]RewardItemConfig!$B$1:$C$1176,2,FALSE) ->  | M148: 11022#1|14#280|3#28
B149: 9023 | C149: 困难-9-2 | D149: 8 | E149: 4042#3042 | F149: =VLOOKUP(VALUE(LEFT(VLOOKUP(VALUE(RIGHT(LevelDifficultyConfig!L199,4)),[3]RewardGroup!$B$1:$E$670,4,FALSE),5)),[4]RewardItemConfig!$B$1:$C$1176,2,FALSE) ->  | G149: =VLOOKUP(VALUE(RIGHT(VLOOKUP(VALUE(RIGHT(LevelDifficultyConfig!L199,4)),[3]RewardGroup!$B$1:$E$670,4,FALSE),5)),[4]RewardItemConfig!$B$1:$C$1176,2,FALSE) ->  | H149: =VLOOKUP(VALUE(LEFT(VLOOKUP(VALUE(LEFT(LevelDifficultyConfig!L199,4)),[3]RewardGroup!$B$1:$E$670,4,FALSE),5)),[4]RewardItemConfig!$B$1:$C$1176,2,FALSE) ->  | I149: =VLOOKUP(VALUE(RIGHT(VLOOKUP(VALUE(LEFT(LevelDifficultyConfig!L199,4)),[3]RewardGroup!$B$1:$E$670,4,FALSE),5)),[4]RewardItemConfig!$B$1:$C$1176,2,FALSE) ->  | M149: 11002#1|14#280|3#28
B150: 9033 | C150: 困难-9-3 | D150: 8 | E150: 4043#3043 | F150: =VLOOKUP(VALUE(LEFT(VLOOKUP(VALUE(RIGHT(LevelDifficultyConfig!L200,4)),[3]RewardGroup!$B$1:$E$670,4,FALSE),5)),[4]RewardItemConfig!$B$1:$C$1176,2,FALSE) ->  | G150: =VLOOKUP(VALUE(RIGHT(VLOOKUP(VALUE(RIGHT(LevelDifficultyConfig!L200,4)),[3]RewardGroup!$B$1:$E$670,4,FALSE),5)),[4]RewardItemConfig!$B$1:$C$1176,2,FALSE) ->  | H150: =VLOOKUP(VALUE(LEFT(VLOOKUP(VALUE(LEFT(LevelDifficultyConfig!L200,4)),[3]RewardGroup!$B$1:$E$670,4,FALSE),5)),[4]RewardItemConfig!$B$1:$C$1176,2,FALSE) ->  | I150: =VLOOKUP(VALUE(RIGHT(VLOOKUP(VALUE(LEFT(LevelDifficultyConfig!L200,4)),[3]RewardGroup!$B$1:$E$670,4,FALSE),5)),[4]RewardItemConfig!$B$1:$C$1176,2,FALSE) ->  | M150: 11022#1|14#280|3#28
B151: 9043 | C151: 困难-9-4 | D151: 8 | E151: 4044#3044 | F151: =VLOOKUP(VALUE(LEFT(VLOOKUP(VALUE(RIGHT(LevelDifficultyConfig!L201,4)),[3]RewardGroup!$B$1:$E$670,4,FALSE),5)),[4]RewardItemConfig!$B$1:$C$1176,2,FALSE) ->  | G151: =VLOOKUP(VALUE(RIGHT(VLOOKUP(VALUE(RIGHT(LevelDifficultyConfig!L201,4)),[3]RewardGroup!$B$1:$E$670,4,FALSE),5)),[4]RewardItemConfig!$B$1:$C$1176,2,FALSE) ->  | H151: =VLOOKUP(VALUE(LEFT(VLOOKUP(VALUE(LEFT(LevelDifficultyConfig!L201,4)),[3]RewardGroup!$B$1:$E$670,4,FALSE),5)),[4]RewardItemConfig!$B$1:$C$1176,2,FALSE) ->  | I151: =VLOOKUP(VALUE(RIGHT(VLOOKUP(VALUE(LEFT(LevelDifficultyConfig!L201,4)),[3]RewardGroup!$B$1:$E$670,4,FALSE),5)),[4]RewardItemConfig!$B$1:$C$1176,2,FALSE) ->  | M151: 11002#1|14#280|3#28
B152: 9053 | C152: 困难-9-5 | D152: 8 | E152: 4045#3045 | F152: =VLOOKUP(VALUE(LEFT(VLOOKUP(VALUE(RIGHT(LevelDifficultyConfig!L202,4)),[3]RewardGroup!$B$1:$E$670,4,FALSE),5)),[4]RewardItemConfig!$B$1:$C$1176,2,FALSE) ->  | G152: =VLOOKUP(VALUE(RIGHT(VLOOKUP(VALUE(RIGHT(LevelDifficultyConfig!L202,4)),[3]RewardGroup!$B$1:$E$670,4,FALSE),5)),[4]RewardItemConfig!$B$1:$C$1176,2,FALSE) ->  | H152: =VLOOKUP(VALUE(LEFT(VLOOKUP(VALUE(LEFT(LevelDifficultyConfig!L202,4)),[3]RewardGroup!$B$1:$E$670,4,FALSE),5)),[4]RewardItemConfig!$B$1:$C$1176,2,FALSE) ->  | I152: =VLOOKUP(VALUE(RIGHT(VLOOKUP(VALUE(LEFT(LevelDifficultyConfig!L202,4)),[3]RewardGroup!$B$1:$E$670,4,FALSE),5)),[4]RewardItemConfig!$B$1:$C$1176,2,FALSE) ->  | M152: 11022#1|14#280|3#28
B153: 10013 | C153: 困难-10-1 | D153: 8 | E153: 4046#3046 | F153: =VLOOKUP(VALUE(LEFT(VLOOKUP(VALUE(RIGHT(LevelDifficultyConfig!L203,4)),[3]RewardGroup!$B$1:$E$670,4,FALSE),5)),[4]RewardItemConfig!$B$1:$C$1176,2,FALSE) ->  | G153: =VLOOKUP(VALUE(RIGHT(VLOOKUP(VALUE(RIGHT(LevelDifficultyConfig!L203,4)),[3]RewardGroup!$B$1:$E$670,4,FALSE),5)),[4]RewardItemConfig!$B$1:$C$1176,2,FALSE) ->  | H153: =VLOOKUP(VALUE(LEFT(VLOOKUP(VALUE(LEFT(LevelDifficultyConfig!L203,4)),[3]RewardGroup!$B$1:$E$670,4,FALSE),5)),[4]RewardItemConfig!$B$1:$C$1176,2,FALSE) ->  | I153: =VLOOKUP(VALUE(RIGHT(VLOOKUP(VALUE(LEFT(LevelDifficultyConfig!L203,4)),[3]RewardGroup!$B$1:$E$670,4,FALSE),5)),[4]RewardItemConfig!$B$1:$C$1176,2,FALSE) ->  | M153: 11002#1|14#280|3#28
B154: 10023 | C154: 困难-10-2 | D154: 8 | E154: 4047#3047 | F154: =VLOOKUP(VALUE(LEFT(VLOOKUP(VALUE(RIGHT(LevelDifficultyConfig!L204,4)),[3]RewardGroup!$B$1:$E$670,4,FALSE),5)),[4]RewardItemConfig!$B$1:$C$1176,2,FALSE) ->  | G154: =VLOOKUP(VALUE(RIGHT(VLOOKUP(VALUE(RIGHT(LevelDifficultyConfig!L204,4)),[3]RewardGroup!$B$1:$E$670,4,FALSE),5)),[4]RewardItemConfig!$B$1:$C$1176,2,FALSE) ->  | H154: =VLOOKUP(VALUE(LEFT(VLOOKUP(VALUE(LEFT(LevelDifficultyConfig!L204,4)),[3]RewardGroup!$B$1:$E$670,4,FALSE),5)),[4]RewardItemConfig!$B$1:$C$1176,2,FALSE) ->  | I154: =VLOOKUP(VALUE(RIGHT(VLOOKUP(VALUE(LEFT(LevelDifficultyConfig!L204,4)),[3]RewardGroup!$B$1:$E$670,4,FALSE),5)),[4]RewardItemConfig!$B$1:$C$1176,2,FALSE) ->  | M154: 11022#1|14#280|3#28
B155: 10033 | C155: 困难-10-3 | D155: 8 | E155: 4048#3048 | F155: =VLOOKUP(VALUE(LEFT(VLOOKUP(VALUE(RIGHT(LevelDifficultyConfig!L205,4)),[3]RewardGroup!$B$1:$E$670,4,FALSE),5)),[4]RewardItemConfig!$B$1:$C$1176,2,FALSE) ->  | G155: =VLOOKUP(VALUE(RIGHT(VLOOKUP(VALUE(RIGHT(LevelDifficultyConfig!L205,4)),[3]RewardGroup!$B$1:$E$670,4,FALSE),5)),[4]RewardItemConfig!$B$1:$C$1176,2,FALSE) ->  | H155: =VLOOKUP(VALUE(LEFT(VLOOKUP(VALUE(LEFT(LevelDifficultyConfig!L205,4)),[3]RewardGroup!$B$1:$E$670,4,FALSE),5)),[4]RewardItemConfig!$B$1:$C$1176,2,FALSE) ->  | I155: =VLOOKUP(VALUE(RIGHT(VLOOKUP(VALUE(LEFT(LevelDifficultyConfig!L205,4)),[3]RewardGroup!$B$1:$E$670,4,FALSE),5)),[4]RewardItemConfig!$B$1:$C$1176,2,FALSE) ->  | M155: 11002#1|14#280|3#28
B156: 10043 | C156: 困难-10-4 | D156: 8 | E156: 4049#3049 | F156: =VLOOKUP(VALUE(LEFT(VLOOKUP(VALUE(RIGHT(LevelDifficultyConfig!L206,4)),[3]RewardGroup!$B$1:$E$670,4,FALSE),5)),[4]RewardItemConfig!$B$1:$C$1176,2,FALSE) ->  | G156: =VLOOKUP(VALUE(RIGHT(VLOOKUP(VALUE(RIGHT(LevelDifficultyConfig!L206,4)),[3]RewardGroup!$B$1:$E$670,4,FALSE),5)),[4]RewardItemConfig!$B$1:$C$1176,2,FALSE) ->  | H156: =VLOOKUP(VALUE(LEFT(VLOOKUP(VALUE(LEFT(LevelDifficultyConfig!L206,4)),[3]RewardGroup!$B$1:$E$670,4,FALSE),5)),[4]RewardItemConfig!$B$1:$C$1176,2,FALSE) ->  | I156: =VLOOKUP(VALUE(RIGHT(VLOOKUP(VALUE(LEFT(LevelDifficultyConfig!L206,4)),[3]RewardGroup!$B$1:$E$670,4,FALSE),5)),[4]RewardItemConfig!$B$1:$C$1176,2,FALSE) ->  | M156: 11022#1|14#280|3#28
B157: 10053 | C157: 困难-10-5 | D157: 8 | E157: 4050#3050 | F157: =VLOOKUP(VALUE(LEFT(VLOOKUP(VALUE(RIGHT(LevelDifficultyConfig!L207,4)),[3]RewardGroup!$B$1:$E$670,4,FALSE),5)),[4]RewardItemConfig!$B$1:$C$1176,2,FALSE) ->  | G157: =VLOOKUP(VALUE(RIGHT(VLOOKUP(VALUE(RIGHT(LevelDifficultyConfig!L207,4)),[3]RewardGroup!$B$1:$E$670,4,FALSE),5)),[4]RewardItemConfig!$B$1:$C$1176,2,FALSE) ->  | H157: =VLOOKUP(VALUE(LEFT(VLOOKUP(VALUE(LEFT(LevelDifficultyConfig!L207,4)),[3]RewardGroup!$B$1:$E$670,4,FALSE),5)),[4]RewardItemConfig!$B$1:$C$1176,2,FALSE) ->  | I157: =VLOOKUP(VALUE(RIGHT(VLOOKUP(VALUE(LEFT(LevelDifficultyConfig!L207,4)),[3]RewardGroup!$B$1:$E$670,4,FALSE),5)),[4]RewardItemConfig!$B$1:$C$1176,2,FALSE) ->  | M157: 11002#1|14#280|3#28

Sheet Sheet3
G7: 5011
G8: 5012
G9: 5013
G10: 5014
G11: 5015
G12: 5016
G13: 5017
G14: 5018
G15: 5019
G16: 5020
G17: 5021
G18: 5022
G19: 5023
G20: 5024
G21: 5025
G22: 5026
G23: 5027
G24: 5028
G25: 5029
G26: 5030
G27: 5031
G28: 5032
G29: 5033
G30: 5034
G31: 5035
G32: 5036
G33: 5037 | M33: 简单-1-1 | N33: 3001 | O33: 401006 | P33: =[5]!SUMSTRING(N33:O33,"#") -> 3001#401006
G34: 5038 | M34: 简单-1-2 | N34: 3002 | O34: 401007 | P34: =[5]!SUMSTRING(N34:O34,"#") -> 3002#401007
G35: 5039 | M35: 简单-1-3 | N35: 3003 | O35: 401008 | P35: =[5]!SUMSTRING(N35:O35,"#") -> 3003#401008
G36: 5040 | M36: 简单-1-4 | N36: 3004 | O36: 401009 | P36: =[5]!SUMSTRING(N36:O36,"#") -> 3004#401009
G37: 5041 | M37: 简单-1-5 | N37: 3005 | O37: 401010 | P37: =[5]!SUMSTRING(N37:O37,"#") -> 3005#401010
G38: 5042 | M38: 简单-2-1 | N38: 3006 | O38: 401011 | P38: =[5]!SUMSTRING(N38:O38,"#") -> 3006#401011
G39: 5043 | M39: 简单-2-2 | N39: 3007 | O39: 401012 | P39: =[5]!SUMSTRING(N39:O39,"#") -> 3007#401012
G40: 5044 | M40: 简单-2-3 | N40: 3008 | O40: 401013 | P40: =[5]!SUMSTRING(N40:O40,"#") -> 3008#401013
G41: 5045 | M41: 简单-2-4 | N41: 3009 | O41: 401014 | P41: =[5]!SUMSTRING(N41:O41,"#") -> 3009#401014
G42: 5046 | M42: 简单-2-5 | N42: 3010 | O42: 401015 | P42: =[5]!SUMSTRING(N42:O42,"#") -> 3010#401015
G43: 5047 | M43: 简单-3-1 | N43: 3011 | O43: 401016 | P43: =[5]!SUMSTRING(N43:O43,"#") -> 3011#401016
G44: 5048 | M44: 简单-3-2 | N44: 3012 | O44: 401017 | P44: =[5]!SUMSTRING(N44:O44,"#") -> 3012#401017
G45: 5049 | M45: 简单-3-3 | N45: 3013 | O45: 401018 | P45: =[5]!SUMSTRING(N45:O45,"#") -> 3013#401018
G46: 5050 | M46: 简单-3-4 | N46: 3014 | O46: 401019 | P46: =[5]!SUMSTRING(N46:O46,"#") -> 3014#401019
G47: 5051 | M47: 简单-3-5 | N47: 3015 | O47: 401020 | P47: =[5]!SUMSTRING(N47:O47,"#") -> 3015#401020
G48: 5052 | M48: 简单-4-1 | N48: 3016 | O48: 401021 | P48: =[5]!SUMSTRING(N48:O48,"#") -> 3016#401021
G49: 5053 | M49: 简单-4-2 | N49: 3017 | O49: 401022 | P49: =[5]!SUMSTRING(N49:O49,"#") -> 3017#401022
G50: 5054 | M50: 简单-4-3 | N50: 3018 | O50: 401023 | P50: =[5]!SUMSTRING(N50:O50,"#") -> 3018#401023
G51: 5055 | M51: 简单-4-4 | N51: 3019 | O51: 401024 | P51: =[5]!SUMSTRING(N51:O51,"#") -> 3019#401024
G52: 5056 | M52: 简单-4-5 | N52: 3020 | O52: 401025 | P52: =[5]!SUMSTRING(N52:O52,"#") -> 3020#401025
G53: 5057 | M53: 简单-5-1 | N53: 3021 | O53: 401021 | P53: =[5]!SUMSTRING(N53:O53,"#") -> 3021#401021
G54: 5058 | M54: 简单-5-2 | N54: 3022 | O54: 401022 | P54: =[5]!SUMSTRING(N54:O54,"#") -> 3022#401022
G55: 5059 | M55: 简单-5-3 | N55: 3023 | O55: 401023 | P55: =[5]!SUMSTRING(N55:O55,"#") -> 3023#401023
G56: 5060 | M56: 简单-5-4 | N56: 3024 | O56: 401024 | P56: =[5]!SUMSTRING(N56:O56,"#") -> 3024#401024
G57: 5061 | M57: 简单-5-5 | N57: 3025 | O57: 401025 | P57: =[5]!SUMSTRING(N57:O57,"#") -> 3025#401025
G58: 5062
G59: 5063
G60: 5064
G61: 5065
G62: 5066
G63: 5067
G64: 5068
G65: 5069
G66: 5070
G67: 5071
G68: 5072
G69: 5073
G70: 5074
G71: 5075

Sheet Sheet4
S2: #1 | T2: #1
E3: 简单-1-1 | F3: 70101#1 | G3: 14#100 | H3: 3#10 | N3: 610101 | Q3: =VLOOKUP(N3,[4]RewardItemConfig!$B:$C,2,FALSE) -> 70101 | R3: =IF(VLOOKUP(O3,[4]RewardItemConfig!$B:$C,2,FALSE)=0,"",VLOOKUP(O3,[4]RewardItemConfig!$B:$C,2,FALSE)) ->  | S3: =IF(Q3="","",Q3&$S$2) -> 70101#1 | T3: =IF(R3="","",R3&$S$2) ->  | U3: =_xlfn.TEXTJOIN("|",TRUE,S3:T3,G3,H3) -> 70101#1|14#100|3#10
A4: 8801 | B4: 401226 | C4: =A4&"#"&B4 -> 8801#401226 | E4: 简单-1-2 | F4: 70201#1 | G4: 14#100 | H4: 3#10 | N4: 610201 | Q4: =VLOOKUP(N4,[4]RewardItemConfig!$B:$C,2,FALSE) -> 70201 | R4: =IF(VLOOKUP(O4,[4]RewardItemConfig!$B:$C,2,FALSE)=0,"",VLOOKUP(O4,[4]RewardItemConfig!$B:$C,2,FALSE)) ->  | S4: =IF(Q4="","",Q4&$S$2) -> 70201#1 | T4: =IF(R4="","",R4&$S$2) ->  | U4: =_xlfn.TEXTJOIN("|",TRUE,S4:T4,G4,H4) -> 70201#1|14#100|3#10
A5: 8802 | B5: 401227 | C5: =A5&"#"&B5 -> 8802#401227 | E5: 简单-1-3 | F5: 70301#1 | G5: 14#100 | H5: 3#10 | N5: 610301 | Q5: =VLOOKUP(N5,[4]RewardItemConfig!$B:$C,2,FALSE) -> 70301 | R5: =IF(VLOOKUP(O5,[4]RewardItemConfig!$B:$C,2,FALSE)=0,"",VLOOKUP(O5,[4]RewardItemConfig!$B:$C,2,FALSE)) ->  | S5: 70301#1 | U5: 70301#1|14#100|3#10
A6: 8803 | B6: 401228 | C6: 8803#401228 | E6: 简单-1-4 | F6: 70401#1 | G6: 14#100 | H6: 3#10 | N6: 610401 | Q6: =VLOOKUP(N6,[4]RewardItemConfig!$B:$C,2,FALSE) -> 70401 | R6: =IF(VLOOKUP(O6,[4]RewardItemConfig!$B:$C,2,FALSE)=0,"",VLOOKUP(O6,[4]RewardItemConfig!$B:$C,2,FALSE)) ->  | S6: 70401#1 | U6: 70401#1|14#100|3#10
A7: 8804 | B7: 401229 | C7: 8804#401229 | E7: 简单-1-5 | F7: 70501#1 | G7: 14#100 | H7: 3#10 | N7: 610501 | Q7: =VLOOKUP(N7,[4]RewardItemConfig!$B:$C,2,FALSE) -> 70501 | R7: =IF(VLOOKUP(O7,[4]RewardItemConfig!$B:$C,2,FALSE)=0,"",VLOOKUP(O7,[4]RewardItemConfig!$B:$C,2,FALSE)) ->  | S7: 70501#1 | U7: 70501#1|14#100|3#10
A8: 8805 | B8: 401230 | C8: 8805#401230 | E8: 简单-2-1 | F8: 70102#1 | G8: 14#120 | H8: 3#12 | N8: 610102 | Q8: =VLOOKUP(N8,[4]RewardItemConfig!$B:$C,2,FALSE) -> 70102 | R8: =IF(VLOOKUP(O8,[4]RewardItemConfig!$B:$C,2,FALSE)=0,"",VLOOKUP(O8,[4]RewardItemConfig!$B:$C,2,FALSE)) ->  | S8: 70102#1 | U8: 70102#1|14#120|3#12
A9: 8806 | B9: 401231 | C9: 8806#401231 | E9: 简单-2-2 | F9: 70202#1 | G9: 14#120 | H9: 3#12 | N9: 610202 | Q9: =VLOOKUP(N9,[4]RewardItemConfig!$B:$C,2,FALSE) -> 70202 | R9: =IF(VLOOKUP(O9,[4]RewardItemConfig!$B:$C,2,FALSE)=0,"",VLOOKUP(O9,[4]RewardItemConfig!$B:$C,2,FALSE)) ->  | S9: 70202#1 | U9: 70202#1|14#120|3#12
A10: 8807 | B10: 401232 | C10: 8807#401232 | E10: 简单-2-3 | F10: 70302#1 | G10: 14#120 | H10: 3#12 | N10: 610302 | Q10: =VLOOKUP(N10,[4]RewardItemConfig!$B:$C,2,FALSE) -> 70302 | R10: =IF(VLOOKUP(O10,[4]RewardItemConfig!$B:$C,2,FALSE)=0,"",VLOOKUP(O10,[4]RewardItemConfig!$B:$C,2,FALSE)) ->  | S10: 70302#1 | U10: 70302#1|14#120|3#12
A11: 8808 | B11: 401233 | C11: 8808#401233 | E11: 简单-2-4 | F11: 70402#1 | G11: 14#120 | H11: 3#12 | N11: 610402 | Q11: =VLOOKUP(N11,[4]RewardItemConfig!$B:$C,2,FALSE) -> 70402 | R11: =IF(VLOOKUP(O11,[4]RewardItemConfig!$B:$C,2,FALSE)=0,"",VLOOKUP(O11,[4]RewardItemConfig!$B:$C,2,FALSE)) ->  | S11: 70402#1 | U11: 70402#1|14#120|3#12
A12: 8809 | B12: 401234 | C12: 8809#401234 | E12: 简单-2-5 | F12: 70502#1 | G12: 14#120 | H12: 3#12 | N12: 610502 | Q12: =VLOOKUP(N12,[4]RewardItemConfig!$B:$C,2,FALSE) -> 70502 | R12: =IF(VLOOKUP(O12,[4]RewardItemConfig!$B:$C,2,FALSE)=0,"",VLOOKUP(O12,[4]RewardItemConfig!$B:$C,2,FALSE)) ->  | S12: 70502#1 | U12: 70502#1|14#120|3#12
A13: 8810 | B13: 401235 | C13: 8810#401235 | E13: 简单-3-1 | F13: 70103#1 | G13: 14#140 | H13: 3#14 | N13: 610103 | Q13: =VLOOKUP(N13,[4]RewardItemConfig!$B:$C,2,FALSE) -> 70103 | R13: =IF(VLOOKUP(O13,[4]RewardItemConfig!$B:$C,2,FALSE)=0,"",VLOOKUP(O13,[4]RewardItemConfig!$B:$C,2,FALSE)) ->  | S13: 70103#1 | U13: 70103#1|14#140|3#14
A14: 8811 | B14: 401236 | C14: 8811#401236 | E14: 简单-3-2 | F14: 70203#1 | G14: 14#140 | H14: 3#14 | N14: 610203 | Q14: =VLOOKUP(N14,[4]RewardItemConfig!$B:$C,2,FALSE) -> 70203 | R14: =IF(VLOOKUP(O14,[4]RewardItemConfig!$B:$C,2,FALSE)=0,"",VLOOKUP(O14,[4]RewardItemConfig!$B:$C,2,FALSE)) ->  | S14: 70203#1 | U14: 70203#1|14#140|3#14
A15: 8812 | B15: 401237 | C15: 8812#401237 | E15: 简单-3-3 | F15: 70303#1 | G15: 14#140 | H15: 3#14 | N15: 610303 | Q15: =VLOOKUP(N15,[4]RewardItemConfig!$B:$C,2,FALSE) -> 70303 | R15: =IF(VLOOKUP(O15,[4]RewardItemConfig!$B:$C,2,FALSE)=0,"",VLOOKUP(O15,[4]RewardItemConfig!$B:$C,2,FALSE)) ->  | S15: 70303#1 | U15: 70303#1|14#140|3#14
A16: 8813 | B16: 401238 | C16: 8813#401238 | E16: 简单-3-4 | F16: 70403#1 | G16: 14#140 | H16: 3#14 | N16: 610403 | Q16: =VLOOKUP(N16,[4]RewardItemConfig!$B:$C,2,FALSE) -> 70403 | R16: =IF(VLOOKUP(O16,[4]RewardItemConfig!$B:$C,2,FALSE)=0,"",VLOOKUP(O16,[4]RewardItemConfig!$B:$C,2,FALSE)) ->  | S16: 70403#1 | U16: 70403#1|14#140|3#14
A17: 8814 | B17: 401239 | C17: 8814#401239 | E17: 简单-3-5 | F17: 70503#1 | G17: 14#140 | H17: 3#14 | N17: 610503 | Q17: =VLOOKUP(N17,[4]RewardItemConfig!$B:$C,2,FALSE) -> 70503 | R17: =IF(VLOOKUP(O17,[4]RewardItemConfig!$B:$C,2,FALSE)=0,"",VLOOKUP(O17,[4]RewardItemConfig!$B:$C,2,FALSE)) ->  | S17: 70503#1 | U17: 70503#1|14#140|3#14
A18: 8815 | B18: 401240 | C18: 8815#401240 | E18: 简单-4-1 | F18: 70104#1 | G18: 14#160 | H18: 3#16 | N18: 610104 | Q18: =VLOOKUP(N18,[4]RewardItemConfig!$B:$C,2,FALSE) -> 70104 | R18: =IF(VLOOKUP(O18,[4]RewardItemConfig!$B:$C,2,FALSE)=0,"",VLOOKUP(O18,[4]RewardItemConfig!$B:$C,2,FALSE)) ->  | S18: 70104#1 | U18: 70104#1|14#160|3#16
A19: 8816 | B19: 401241 | C19: 8816#401241 | E19: 简单-4-2 | F19: 70204#1 | G19: 14#160 | H19: 3#16 | N19: 610204 | Q19: =VLOOKUP(N19,[4]RewardItemConfig!$B:$C,2,FALSE) -> 70204 | R19: =IF(VLOOKUP(O19,[4]RewardItemConfig!$B:$C,2,FALSE)=0,"",VLOOKUP(O19,[4]RewardItemConfig!$B:$C,2,FALSE)) ->  | S19: 70204#1 | U19: 70204#1|14#160|3#16
A20: 8817 | B20: 401242 | C20: 8817#401242 | E20: 简单-4-3 | F20: 70304#1 | G20: 14#160 | H20: 3#16 | N20: 610304 | Q20: =VLOOKUP(N20,[4]RewardItemConfig!$B:$C,2,FALSE) -> 70304 | R20: =IF(VLOOKUP(O20,[4]RewardItemConfig!$B:$C,2,FALSE)=0,"",VLOOKUP(O20,[4]RewardItemConfig!$B:$C,2,FALSE)) ->  | S20: 70304#1 | U20: 70304#1|14#160|3#16
A21: 8818 | B21: 401243 | C21: 8818#401243 | E21: 简单-4-4 | F21: 70404#1 | G21: 14#160 | H21: 3#16 | N21: 610404 | Q21: =VLOOKUP(N21,[4]RewardItemConfig!$B:$C,2,FALSE) -> 70404 | R21: =IF(VLOOKUP(O21,[4]RewardItemConfig!$B:$C,2,FALSE)=0,"",VLOOKUP(O21,[4]RewardItemConfig!$B:$C,2,FALSE)) ->  | S21: 70404#1 | U21: 70404#1|14#160|3#16
A22: 8819 | B22: 401244 | C22: 8819#401244 | E22: 简单-4-5 | F22: 70504#1 | G22: 14#160 | H22: 3#16 | N22: 610504 | Q22: =VLOOKUP(N22,[4]RewardItemConfig!$B:$C,2,FALSE) -> 70504 | R22: =IF(VLOOKUP(O22,[4]RewardItemConfig!$B:$C,2,FALSE)=0,"",VLOOKUP(O22,[4]RewardItemConfig!$B:$C,2,FALSE)) ->  | S22: 70504#1 | U22: 70504#1|14#160|3#16
A23: 8820 | B23: 401245 | C23: 8820#401245 | E23: 简单-5-1 | F23: 70105#1 | G23: 14#180 | H23: 3#18 | N23: 610105 | Q23: =VLOOKUP(N23,[4]RewardItemConfig!$B:$C,2,FALSE) -> 70105 | R23: =IF(VLOOKUP(O23,[4]RewardItemConfig!$B:$C,2,FALSE)=0,"",VLOOKUP(O23,[4]RewardItemConfig!$B:$C,2,FALSE)) ->  | S23: 70105#1 | U23: 70105#1|14#180|3#18
A24: 8821 | B24: 401246 | C24: 8821#401246 | E24: 简单-5-2 | F24: 70205#1 | G24: 14#180 | H24: 3#18 | N24: 610205 | Q24: =VLOOKUP(N24,[4]RewardItemConfig!$B:$C,2,FALSE) -> 70205 | R24: =IF(VLOOKUP(O24,[4]RewardItemConfig!$B:$C,2,FALSE)=0,"",VLOOKUP(O24,[4]RewardItemConfig!$B:$C,2,FALSE)) ->  | S24: 70205#1 | U24: 70205#1|14#180|3#18
A25: 8822 | B25: 401247 | C25: 8822#401247 | E25: 简单-5-3 | F25: 70305#1 | G25: 14#180 | H25: 3#18 | N25: 610305 | Q25: =VLOOKUP(N25,[4]RewardItemConfig!$B:$C,2,FALSE) -> 70305 | R25: =IF(VLOOKUP(O25,[4]RewardItemConfig!$B:$C,2,FALSE)=0,"",VLOOKUP(O25,[4]RewardItemConfig!$B:$C,2,FALSE)) ->  | S25: 70305#1 | U25: 70305#1|14#180|3#18
A26: 8823 | B26: 401248 | C26: 8823#401248 | E26: 简单-5-4 | F26: 70405#1 | G26: 14#180 | H26: 3#18 | N26: 610405 | Q26: =VLOOKUP(N26,[4]RewardItemConfig!$B:$C,2,FALSE) -> 70405 | R26: =IF(VLOOKUP(O26,[4]RewardItemConfig!$B:$C,2,FALSE)=0,"",VLOOKUP(O26,[4]RewardItemConfig!$B:$C,2,FALSE)) ->  | S26: 70405#1 | U26: 70405#1|14#180|3#18
A27: 8824 | B27: 401249 | C27: 8824#401249 | E27: 简单-5-5 | F27: 70505#1 | G27: 14#180 | H27: 3#18 | N27: 610505 | Q27: =VLOOKUP(N27,[4]RewardItemConfig!$B:$C,2,FALSE) -> 70505 | R27: =IF(VLOOKUP(O27,[4]RewardItemConfig!$B:$C,2,FALSE)=0,"",VLOOKUP(O27,[4]RewardItemConfig!$B:$C,2,FALSE)) ->  | S27: 70505#1 | U27: 70505#1|14#180|3#18
A28: 8825 | B28: 401250 | C28: 8825#401250 | E28: 简单-6-1 | F28: 70106#1 | G28: 14#200 | H28: 3#20 | N28: 610106 | Q28: =VLOOKUP(N28,[4]RewardItemConfig!$B:$C,2,FALSE) -> 70106 | R28: =IF(VLOOKUP(O28,[4]RewardItemConfig!$B:$C,2,FALSE)=0,"",VLOOKUP(O28,[4]RewardItemConfig!$B:$C,2,FALSE)) ->  | S28: 70106#1 | U28: 70106#1|14#200|3#20
A29: 8826 | B29: 401251 | C29: 8826#401251 | E29: 简单-6-2 | F29: 70206#1 | G29: 14#200 | H29: 3#20 | N29: 610206 | Q29: =VLOOKUP(N29,[4]RewardItemConfig!$B:$C,2,FALSE) -> 70206 | R29: =IF(VLOOKUP(O29,[4]RewardItemConfig!$B:$C,2,FALSE)=0,"",VLOOKUP(O29,[4]RewardItemConfig!$B:$C,2,FALSE)) ->  | S29: 70206#1 | U29: 70206#1|14#200|3#20
A30: 8827 | B30: 401252 | C30: 8827#401252 | E30: 简单-6-3 | F30: 70306#1 | G30: 14#200 | H30: 3#20 | N30: 610306 | Q30: =VLOOKUP(N30,[4]RewardItemConfig!$B:$C,2,FALSE) -> 70306 | R30: =IF(VLOOKUP(O30,[4]RewardItemConfig!$B:$C,2,FALSE)=0,"",VLOOKUP(O30,[4]RewardItemConfig!$B:$C,2,FALSE)) ->  | S30: 70306#1 | U30: 70306#1|14#200|3#20
A31: 8828 | B31: 401253 | C31: 8828#401253 | E31: 简单-6-4 | F31: 70406#1 | G31: 14#200 | H31: 3#20 | N31: 610406 | Q31: =VLOOKUP(N31,[4]RewardItemConfig!$B:$C,2,FALSE) -> 70406 | R31: =IF(VLOOKUP(O31,[4]RewardItemConfig!$B:$C,2,FALSE)=0,"",VLOOKUP(O31,[4]RewardItemConfig!$B:$C,2,FALSE)) ->  | S31: 70406#1 | U31: 70406#1|14#200|3#20
A32: 8829 | B32: 401254 | C32: 8829#401254 | E32: 简单-6-5 | F32: 70506#1 | G32: 14#200 | H32: 3#20 | N32: 610506 | Q32: =VLOOKUP(N32,[4]RewardItemConfig!$B:$C,2,FALSE) -> 70506 | R32: =IF(VLOOKUP(O32,[4]RewardItemConfig!$B:$C,2,FALSE)=0,"",VLOOKUP(O32,[4]RewardItemConfig!$B:$C,2,FALSE)) ->  | S32: 70506#1 | U32: =_xlfn.TEXTJOIN("|",TRUE,S32:T32,G32,H32) -> 70506#1|14#200|3#20
A33: 8830 | B33: 401255 | C33: 8830#401255 | E33: 简单-7-1 | F33: 70106#1 | G33: 14#220 | H33: 3#22 | N33: 610106 | O33: 610101 | Q33: =VLOOKUP(N33,[4]RewardItemConfig!$B:$C,2,FALSE) -> 70106 | R33: =IF(VLOOKUP(O33,[4]RewardItemConfig!$B:$C,2,FALSE)=0,"",VLOOKUP(O33,[4]RewardItemConfig!$B:$C,2,FALSE)) -> 70101 | S33: 70106#1 | T33: 70101#1 | U33: 70106#1|70101#1|14#220|3#22
A34: 8831 | B34: 401256 | C34: 8831#401256 | E34: 简单-7-2 | F34: 70206#1 | G34: 14#220 | H34: 3#22 | N34: 610206 | O34: 610201 | Q34: =VLOOKUP(N34,[4]RewardItemConfig!$B:$C,2,FALSE) -> 70206 | R34: =IF(VLOOKUP(O34,[4]RewardItemConfig!$B:$C,2,FALSE)=0,"",VLOOKUP(O34,[4]RewardItemConfig!$B:$C,2,FALSE)) -> 70201 | S34: 70206#1 | T34: 70201#1 | U34: 70206#1|70201#1|14#220|3#22
A35: 8832 | B35: 401257 | C35: 8832#401257 | E35: 简单-7-3 | F35: 70306#1 | G35: 14#220 | H35: 3#22 | N35: 610306 | O35: 610301 | Q35: =VLOOKUP(N35,[4]RewardItemConfig!$B:$C,2,FALSE) -> 70306 | R35: =IF(VLOOKUP(O35,[4]RewardItemConfig!$B:$C,2,FALSE)=0,"",VLOOKUP(O35,[4]RewardItemConfig!$B:$C,2,FALSE)) -> 70301 | S35: 70306#1 | T35: 70301#1 | U35: 70306#1|70301#1|14#220|3#22
A36: 8833 | B36: 401258 | C36: 8833#401258 | E36: 简单-7-4 | F36: 70406#1 | G36: 14#220 | H36: 3#22 | N36: 610406 | O36: 610401 | Q36: =VLOOKUP(N36,[4]RewardItemConfig!$B:$C,2,FALSE) -> 70406 | R36: =IF(VLOOKUP(O36,[4]RewardItemConfig!$B:$C,2,FALSE)=0,"",VLOOKUP(O36,[4]RewardItemConfig!$B:$C,2,FALSE)) -> 70401 | S36: 70406#1 | T36: 70401#1 | U36: 70406#1|70401#1|14#220|3#22
A37: 8834 | B37: 401259 | C37: =A37&"#"&B37 -> 8834#401259 | E37: 简单-7-5 | F37: 70506#1 | G37: 14#220 | H37: 3#22 | N37: 610506 | O37: 610501 | Q37: =VLOOKUP(N37,[4]RewardItemConfig!$B:$C,2,FALSE) -> 70506 | R37: =IF(VLOOKUP(O37,[4]RewardItemConfig!$B:$C,2,FALSE)=0,"",VLOOKUP(O37,[4]RewardItemConfig!$B:$C,2,FALSE)) -> 70501 | S37: 70506#1 | T37: 70501#1 | U37: 70506#1|70501#1|14#220|3#22
A38: 8835 | B38: 401260 | C38: 8835#401260 | E38: 简单-8-1 | F38: 70107#1 | G38: 70101#1 | H38: 14#240 | I38: 3#24 | N38: 610107 | O38: 610102 | Q38: =VLOOKUP(N38,[4]RewardItemConfig!$B:$C,2,FALSE) -> 70107 | R38: =IF(VLOOKUP(O38,[4]RewardItemConfig!$B:$C,2,FALSE)=0,"",VLOOKUP(O38,[4]RewardItemConfig!$B:$C,2,FALSE)) -> 70102 | S38: 70107#1 | T38: 70102#1 | U38: =_xlfn.TEXTJOIN("|",TRUE,S38:T38,H38,I38) -> 70107#1|70102#1|14#240|3#24
A39: 8836 | B39: 401261 | C39: 8836#401261 | E39: 简单-8-2 | F39: 70207#1 | G39: 70201#1 | H39: 14#240 | I39: 3#24 | N39: 610207 | O39: 610202 | Q39: =VLOOKUP(N39,[4]RewardItemConfig!$B:$C,2,FALSE) -> 70207 | R39: =IF(VLOOKUP(O39,[4]RewardItemConfig!$B:$C,2,FALSE)=0,"",VLOOKUP(O39,[4]RewardItemConfig!$B:$C,2,FALSE)) -> 70202 | S39: 70207#1 | T39: 70202#1 | U39: =_xlfn.TEXTJOIN("|",TRUE,S39:T39,H39,I39) -> 70207#1|70202#1|14#240|3#24
A40: 8837 | B40: 401262 | C40: 8837#401262 | E40: 简单-8-3 | F40: 70307#1 | G40: 70301#1 | H40: 14#240 | I40: 3#24 | N40: 610307 | O40: 610302 | Q40: =VLOOKUP(N40,[4]RewardItemConfig!$B:$C,2,FALSE) -> 70307 | R40: =IF(VLOOKUP(O40,[4]RewardItemConfig!$B:$C,2,FALSE)=0,"",VLOOKUP(O40,[4]RewardItemConfig!$B:$C,2,FALSE)) -> 70302 | S40: 70307#1 | T40: 70302#1 | U40: 70307#1|70302#1|14#240|3#24
A41: 8838 | B41: 401263 | C41: 8838#401263 | E41: 简单-8-4 | F41: 70407#1 | G41: 70401#1 | H41: 14#240 | I41: 3#24 | N41: 610407 | O41: 610402 | Q41: =VLOOKUP(N41,[4]RewardItemConfig!$B:$C,2,FALSE) -> 70407 | R41: =IF(VLOOKUP(O41,[4]RewardItemConfig!$B:$C,2,FALSE)=0,"",VLOOKUP(O41,[4]RewardItemConfig!$B:$C,2,FALSE)) -> 70402 | S41: 70407#1 | T41: 70402#1 | U41: 70407#1|70402#1|14#240|3#24
A42: 8839 | B42: 401264 | C42: 8839#401264 | E42: 简单-8-5 | F42: 70507#1 | G42: 70501#1 | H42: 14#240 | I42: 3#24 | N42: 610507 | O42: 610502 | Q42: =VLOOKUP(N42,[4]RewardItemConfig!$B:$C,2,FALSE) -> 70507 | R42: =IF(VLOOKUP(O42,[4]RewardItemConfig!$B:$C,2,FALSE)=0,"",VLOOKUP(O42,[4]RewardItemConfig!$B:$C,2,FALSE)) -> 70502 | S42: 70507#1 | T42: 70502#1 | U42: 70507#1|70502#1|14#240|3#24
A43: 8840 | B43: 401265 | C43: 8840#401265 | E43: 简单-9-1 | F43: 70107#1 | G43: 70102#1 | H43: 14#260 | I43: 3#26 | N43: 610108 | Q43: =VLOOKUP(N43,[4]RewardItemConfig!$B:$C,2,FALSE) -> 70108 | R43: =IF(VLOOKUP(O43,[4]RewardItemConfig!$B:$C,2,FALSE)=0,"",VLOOKUP(O43,[4]RewardItemConfig!$B:$C,2,FALSE)) ->  | S43: 70108#1 | U43: 70108#1|14#260|3#26
A44: 8841 | B44: 401266 | C44: 8841#401266 | E44: 简单-9-2 | F44: 70207#1 | G44: 70202#1 | H44: 14#260 | I44: 3#26 | N44: 610208 | Q44: =VLOOKUP(N44,[4]RewardItemConfig!$B:$C,2,FALSE) -> 70208 | R44: =IF(VLOOKUP(O44,[4]RewardItemConfig!$B:$C,2,FALSE)=0,"",VLOOKUP(O44,[4]RewardItemConfig!$B:$C,2,FALSE)) ->  | S44: 70208#1 | U44: 70208#1|14#260|3#26
A45: 8842 | B45: 401267 | C45: 8842#401267 | E45: 简单-9-3 | F45: 70307#1 | G45: 70302#1 | H45: 14#260 | I45: 3#26 | N45: 610308 | Q45: =VLOOKUP(N45,[4]RewardItemConfig!$B:$C,2,FALSE) -> 70308 | R45: =IF(VLOOKUP(O45,[4]RewardItemConfig!$B:$C,2,FALSE)=0,"",VLOOKUP(O45,[4]RewardItemConfig!$B:$C,2,FALSE)) ->  | S45: 70308#1 | U45: 70308#1|14#260|3#26
A46: 8843 | B46: 401268 | C46: 8843#401268 | E46: 简单-9-4 | F46: 70407#1 | G46: 70402#1 | H46: 14#260 | I46: 3#26 | N46: 610408 | Q46: =VLOOKUP(N46,[4]RewardItemConfig!$B:$C,2,FALSE) -> 70408 | R46: =IF(VLOOKUP(O46,[4]RewardItemConfig!$B:$C,2,FALSE)=0,"",VLOOKUP(O46,[4]RewardItemConfig!$B:$C,2,FALSE)) ->  | S46: 70408#1 | U46: 70408#1|14#260|3#26
A47: 8844 | B47: 401269 | C47: 8844#401269 | E47: 简单-9-5 | F47: 70507#1 | G47: 70502#1 | H47: 14#260 | I47: 3#26 | N47: 610508 | Q47: =VLOOKUP(N47,[4]RewardItemConfig!$B:$C,2,FALSE) -> 70508 | R47: =IF(VLOOKUP(O47,[4]RewardItemConfig!$B:$C,2,FALSE)=0,"",VLOOKUP(O47,[4]RewardItemConfig!$B:$C,2,FALSE)) ->  | S47: 70508#1 | U47: 70508#1|14#260|3#26
A48: 8845 | B48: 401270 | C48: 8845#401270 | E48: 简单-10-1 | F48: 70108#1 | G48: 70103#1 | H48: 14#280 | I48: 3#28 | N48: 610108 | O48: 610101 | Q48: =VLOOKUP(N48,[4]RewardItemConfig!$B:$C,2,FALSE) -> 70108 | R48: =IF(VLOOKUP(O48,[4]RewardItemConfig!$B:$C,2,FALSE)=0,"",VLOOKUP(O48,[4]RewardItemConfig!$B:$C,2,FALSE)) -> 70101 | S48: 70108#1 | T48: 70101#1 | U48: 70108#1|70101#1|14#280|3#28
A49: 8846 | B49: 401271 | C49: 8846#401271 | E49: 简单-10-2 | F49: 70208#1 | G49: 70203#1 | H49: 14#280 | I49: 3#28 | N49: 610208 | O49: 610201 | Q49: =VLOOKUP(N49,[4]RewardItemConfig!$B:$C,2,FALSE) -> 70208 | R49: =IF(VLOOKUP(O49,[4]RewardItemConfig!$B:$C,2,FALSE)=0,"",VLOOKUP(O49,[4]RewardItemConfig!$B:$C,2,FALSE)) -> 70201 | S49: 70208#1 | T49: 70201#1 | U49: 70208#1|70201#1|14#280|3#28
A50: 8847 | B50: 401272 | C50: 8847#401272 | E50: 简单-10-3 | F50: 70308#1 | G50: 70303#1 | H50: 14#280 | I50: 3#28 | N50: 610308 | O50: 610301 | Q50: =VLOOKUP(N50,[4]RewardItemConfig!$B:$C,2,FALSE) -> 70308 | R50: =IF(VLOOKUP(O50,[4]RewardItemConfig!$B:$C,2,FALSE)=0,"",VLOOKUP(O50,[4]RewardItemConfig!$B:$C,2,FALSE)) -> 70301 | S50: 70308#1 | T50: 70301#1 | U50: 70308#1|70301#1|14#280|3#28
A51: 8848 | B51: 401273 | C51: 8848#401273 | E51: 简单-10-4 | F51: 70408#1 | G51: 70403#1 | H51: 14#280 | I51: 3#28 | N51: 610408 | O51: 610401 | Q51: =VLOOKUP(N51,[4]RewardItemConfig!$B:$C,2,FALSE) -> 70408 | R51: =IF(VLOOKUP(O51,[4]RewardItemConfig!$B:$C,2,FALSE)=0,"",VLOOKUP(O51,[4]RewardItemConfig!$B:$C,2,FALSE)) -> 70401 | S51: 70408#1 | T51: 70401#1 | U51: 70408#1|70401#1|14#280|3#28
A52: 8849 | B52: 401274 | C52: 8849#401274 | E52: 简单-10-5 | F52: 70508#1 | G52: 70503#1 | H52: 14#280 | I52: 3#28 | N52: 610508 | O52: 610501 | Q52: =VLOOKUP(N52,[4]RewardItemConfig!$B:$C,2,FALSE) -> 70508 | R52: =IF(VLOOKUP(O52,[4]RewardItemConfig!$B:$C,2,FALSE)=0,"",VLOOKUP(O52,[4]RewardItemConfig!$B:$C,2,FALSE)) -> 70501 | S52: 70508#1 | T52: 70501#1 | U52: 70508#1|70501#1|14#280|3#28
A53: 8850 | B53: 401275 | C53: 8850#401275 | E53: 简单-11-1 | F53: 70108#1 | G53: 70104#1 | H53: 14#300 | I53: 3#30 | N53: 610108 | Q53: =VLOOKUP(N53,[4]RewardItemConfig!$B:$C,2,FALSE) -> 70108 | R53: =IF(VLOOKUP(O53,[4]RewardItemConfig!$B:$C,2,FALSE)=0,"",VLOOKUP(O53,[4]RewardItemConfig!$B:$C,2,FALSE)) ->  | S53: 70108#1 | U53: 70108#1|14#300|3#30
A54: 8851 | B54: 401276 | C54: 8851#401276 | E54: 简单-11-2 | F54: 70208#1 | G54: 70204#1 | H54: 14#300 | I54: 3#30 | N54: 610208 | Q54: =VLOOKUP(N54,[4]RewardItemConfig!$B:$C,2,FALSE) -> 70208 | R54: =IF(VLOOKUP(O54,[4]RewardItemConfig!$B:$C,2,FALSE)=0,"",VLOOKUP(O54,[4]RewardItemConfig!$B:$C,2,FALSE)) ->  | S54: 70208#1 | U54: 70208#1|14#300|3#30
A55: 8852 | B55: 401277 | C55: 8852#401277 | E55: 简单-11-3 | F55: 70308#1 | G55: 70304#1 | H55: 14#300 | I55: 3#30 | N55: 610308 | Q55: =VLOOKUP(N55,[4]RewardItemConfig!$B:$C,2,FALSE) -> 70308 | R55: =IF(VLOOKUP(O55,[4]RewardItemConfig!$B:$C,2,FALSE)=0,"",VLOOKUP(O55,[4]RewardItemConfig!$B:$C,2,FALSE)) ->  | S55: 70308#1 | U55: 70308#1|14#300|3#30
A56: 8853 | B56: 401278 | C56: 8853#401278 | E56: 简单-11-4 | F56: 70408#1 | G56: 70404#1 | H56: 14#300 | I56: 3#30 | N56: 610408 | Q56: =VLOOKUP(N56,[4]RewardItemConfig!$B:$C,2,FALSE) -> 70408 | R56: =IF(VLOOKUP(O56,[4]RewardItemConfig!$B:$C,2,FALSE)=0,"",VLOOKUP(O56,[4]RewardItemConfig!$B:$C,2,FALSE)) ->  | S56: 70408#1 | U56: 70408#1|14#300|3#30
A57: 8854 | B57: 401279 | C57: 8854#401279 | E57: 简单-11-5 | F57: 70508#1 | G57: 70504#1 | H57: 14#300 | I57: 3#30 | N57: 610508 | Q57: =VLOOKUP(N57,[4]RewardItemConfig!$B:$C,2,FALSE) -> 70508 | R57: =IF(VLOOKUP(O57,[4]RewardItemConfig!$B:$C,2,FALSE)=0,"",VLOOKUP(O57,[4]RewardItemConfig!$B:$C,2,FALSE)) ->  | S57: 70508#1 | U57: 70508#1|14#300|3#30
A58: 8855 | B58: 401280 | C58: 8855#401280 | E58: 简单-12-1 | F58: 70109#1 | G58: 70105#1 | H58: 14#320 | I58: 3#32 | N58: 610109 | O58: 610102 | Q58: =VLOOKUP(N58,[4]RewardItemConfig!$B:$C,2,FALSE) -> 70109 | R58: =IF(VLOOKUP(O58,[4]RewardItemConfig!$B:$C,2,FALSE)=0,"",VLOOKUP(O58,[4]RewardItemConfig!$B:$C,2,FALSE)) -> 70102 | S58: 70109#1 | T58: 70102#1 | U58: 70109#1|70102#1|14#320|3#32
A59: 8856 | B59: 401281 | C59: 8856#401281 | E59: 简单-12-2 | F59: 70209#1 | G59: 70205#1 | H59: 14#320 | I59: 3#32 | N59: 610209 | O59: 610202 | Q59: =VLOOKUP(N59,[4]RewardItemConfig!$B:$C,2,FALSE) -> 70209 | R59: =IF(VLOOKUP(O59,[4]RewardItemConfig!$B:$C,2,FALSE)=0,"",VLOOKUP(O59,[4]RewardItemConfig!$B:$C,2,FALSE)) -> 70202 | S59: 70209#1 | T59: 70202#1 | U59: 70209#1|70202#1|14#320|3#32
A60: 8857 | B60: 401282 | C60: 8857#401282 | E60: 简单-12-3 | F60: 70309#1 | G60: 70305#1 | H60: 14#320 | I60: 3#32 | N60: 610309 | O60: 610302 | Q60: =VLOOKUP(N60,[4]RewardItemConfig!$B:$C,2,FALSE) -> 70309 | R60: =IF(VLOOKUP(O60,[4]RewardItemConfig!$B:$C,2,FALSE)=0,"",VLOOKUP(O60,[4]RewardItemConfig!$B:$C,2,FALSE)) -> 70302 | S60: 70309#1 | T60: 70302#1 | U60: 70309#1|70302#1|14#320|3#32
A61: 8858 | B61: 401283 | C61: 8858#401283 | E61: 简单-12-4 | F61: 70409#1 | G61: 70405#1 | H61: 14#320 | I61: 3#32 | N61: 610409 | O61: 610402 | Q61: =VLOOKUP(N61,[4]RewardItemConfig!$B:$C,2,FALSE) -> 70409 | R61: =IF(VLOOKUP(O61,[4]RewardItemConfig!$B:$C,2,FALSE)=0,"",VLOOKUP(O61,[4]RewardItemConfig!$B:$C,2,FALSE)) -> 70402 | S61: 70409#1 | T61: 70402#1 | U61: 70409#1|70402#1|14#320|3#32
A62: 8859 | B62: 401284 | C62: 8859#401284 | E62: 简单-12-5 | F62: 70509#1 | G62: 70505#1 | H62: 14#320 | I62: 3#32 | N62: 610509 | O62: 610502 | Q62: =VLOOKUP(N62,[4]RewardItemConfig!$B:$C,2,FALSE) -> 70509 | R62: =IF(VLOOKUP(O62,[4]RewardItemConfig!$B:$C,2,FALSE)=0,"",VLOOKUP(O62,[4]RewardItemConfig!$B:$C,2,FALSE)) -> 70502 | S62: 70509#1 | T62: 70502#1 | U62: 70509#1|70502#1|14#320|3#32
A63: 8860 | B63: 401285 | C63: 8860#401285 | E63: 简单-13-1 | F63: 70109#1 | G63: 70106#1 | H63: 14#340 | I63: 3#34 | N63: 610109 | Q63: =VLOOKUP(N63,[4]RewardItemConfig!$B:$C,2,FALSE) -> 70109 | R63: =IF(VLOOKUP(O63,[4]RewardItemConfig!$B:$C,2,FALSE)=0,"",VLOOKUP(O63,[4]RewardItemConfig!$B:$C,2,FALSE)) ->  | S63: 70109#1 | U63: 70109#1|14#340|3#34
A64: 8861 | B64: 401286 | C64: 8861#401286 | E64: 简单-13-2 | F64: 70209#1 | G64: 70206#1 | H64: 14#340 | I64: 3#34 | N64: 610209 | Q64: =VLOOKUP(N64,[4]RewardItemConfig!$B:$C,2,FALSE) -> 70209 | R64: =IF(VLOOKUP(O64,[4]RewardItemConfig!$B:$C,2,FALSE)=0,"",VLOOKUP(O64,[4]RewardItemConfig!$B:$C,2,FALSE)) ->  | S64: 70209#1 | U64: 70209#1|14#340|3#34
A65: 8862 | B65: 401287 | C65: 8862#401287 | E65: 简单-13-3 | F65: 70309#1 | G65: 70306#1 | H65: 14#340 | I65: 3#34 | N65: 610309 | Q65: =VLOOKUP(N65,[4]RewardItemConfig!$B:$C,2,FALSE) -> 70309 | R65: =IF(VLOOKUP(O65,[4]RewardItemConfig!$B:$C,2,FALSE)=0,"",VLOOKUP(O65,[4]RewardItemConfig!$B:$C,2,FALSE)) ->  | S65: 70309#1 | U65: 70309#1|14#340|3#34
A66: 8863 | B66: 401288 | C66: 8863#401288 | E66: 简单-13-4 | F66: 70409#1 | G66: 70406#1 | H66: 14#340 | I66: 3#34 | N66: 610409 | Q66: =VLOOKUP(N66,[4]RewardItemConfig!$B:$C,2,FALSE) -> 70409 | R66: =IF(VLOOKUP(O66,[4]RewardItemConfig!$B:$C,2,FALSE)=0,"",VLOOKUP(O66,[4]RewardItemConfig!$B:$C,2,FALSE)) ->  | S66: 70409#1 | U66: 70409#1|14#340|3#34
A67: 8864 | B67: 401289 | C67: 8864#401289 | E67: 简单-13-5 | F67: 70509#1 | G67: 70506#1 | H67: 14#340 | I67: 3#34 | N67: 610509 | Q67: =VLOOKUP(N67,[4]RewardItemConfig!$B:$C,2,FALSE) -> 70509 | R67: =IF(VLOOKUP(O67,[4]RewardItemConfig!$B:$C,2,FALSE)=0,"",VLOOKUP(O67,[4]RewardItemConfig!$B:$C,2,FALSE)) ->  | S67: 70509#1 | U67: 70509#1|14#340|3#34
A68: 8865 | B68: 401290 | C68: 8865#401290 | E68: 简单-14-1 | F68: 70110#1 | G68: 70103#1 | H68: 14#360 | I68: 3#36 | N68: 610110 | O68: 610101 | Q68: =VLOOKUP(N68,[4]RewardItemConfig!$B:$C,2,FALSE) -> 70110 | R68: =IF(VLOOKUP(O68,[4]RewardItemConfig!$B:$C,2,FALSE)=0,"",VLOOKUP(O68,[4]RewardItemConfig!$B:$C,2,FALSE)) -> 70101 | S68: =IF(Q68="","",Q68&$S$2) -> 70110#1 | T68: =IF(R68="","",R68&$S$2) -> 70101#1 | U68: 70110#1|70101#1|14#360|3#36
A69: 8866 | B69: 401291 | C69: 8866#401291 | E69: 简单-14-2 | F69: 70210#1 | G69: 70203#1 | H69: 14#360 | I69: 3#36 | N69: 610210 | O69: 610201 | Q69: =VLOOKUP(N69,[4]RewardItemConfig!$B:$C,2,FALSE) -> 70210 | R69: =IF(VLOOKUP(O69,[4]RewardItemConfig!$B:$C,2,FALSE)=0,"",VLOOKUP(O69,[4]RewardItemConfig!$B:$C,2,FALSE)) -> 70201 | S69: 70210#1 | T69: 70201#1 | U69: 70210#1|70201#1|14#360|3#36
A70: 8867 | B70: 401292 | C70: 8867#401292 | E70: 简单-14-3 | F70: 70310#1 | G70: 70303#1 | H70: 14#360 | I70: 3#36 | N70: 610310 | O70: 610301 | Q70: =VLOOKUP(N70,[4]RewardItemConfig!$B:$C,2,FALSE) -> 70310 | R70: =IF(VLOOKUP(O70,[4]RewardItemConfig!$B:$C,2,FALSE)=0,"",VLOOKUP(O70,[4]RewardItemConfig!$B:$C,2,FALSE)) -> 70301 | S70: 70310#1 | T70: 70301#1 | U70: 70310#1|70301#1|14#360|3#36
A71: 8868 | B71: 401293 | C71: 8868#401293 | E71: 简单-14-4 | F71: 70410#1 | G71: 70403#1 | H71: 14#360 | I71: 3#36 | N71: 610410 | O71: 610401 | Q71: =VLOOKUP(N71,[4]RewardItemConfig!$B:$C,2,FALSE) -> 70410 | R71: =IF(VLOOKUP(O71,[4]RewardItemConfig!$B:$C,2,FALSE)=0,"",VLOOKUP(O71,[4]RewardItemConfig!$B:$C,2,FALSE)) -> 70401 | S71: 70410#1 | T71: 70401#1 | U71: =_xlfn.TEXTJOIN("|",TRUE,S71:T71,H71,I71) -> 70410#1|70401#1|14#360|3#36
A72: 8869 | B72: 401294 | C72: 8869#401294 | E72: 简单-14-5 | F72: 70510#1 | G72: 70503#1 | H72: 14#360 | I72: 3#36 | N72: 610510 | O72: 610501 | Q72: =VLOOKUP(N72,[4]RewardItemConfig!$B:$C,2,FALSE) -> 70510 | R72: =IF(VLOOKUP(O72,[4]RewardItemConfig!$B:$C,2,FALSE)=0,"",VLOOKUP(O72,[4]RewardItemConfig!$B:$C,2,FALSE)) -> 70501 | S72: 70510#1 | T72: 70501#1 | U72: 70510#1|70501#1|14#360|3#36
A73: 8870 | B73: 401295 | C73: 8870#401295 | E73: 简单-15-1 | F73: 70110#1 | G73: 70104#1 | H73: 14#380 | I73: 3#38 | N73: 610110 | O73: 610102 | Q73: =VLOOKUP(N73,[4]RewardItemConfig!$B:$C,2,FALSE) -> 70110 | R73: =IF(VLOOKUP(O73,[4]RewardItemConfig!$B:$C,2,FALSE)=0,"",VLOOKUP(O73,[4]RewardItemConfig!$B:$C,2,FALSE)) -> 70102 | S73: 70110#1 | T73: 70102#1 | U73: 70110#1|70102#1|14#380|3#38
A74: 8871 | B74: 401296 | C74: 8871#401296 | E74: 简单-15-2 | F74: 70210#1 | G74: 70204#1 | H74: 14#380 | I74: 3#38 | N74: 610210 | O74: 610202 | Q74: =VLOOKUP(N74,[4]RewardItemConfig!$B:$C,2,FALSE) -> 70210 | R74: =IF(VLOOKUP(O74,[4]RewardItemConfig!$B:$C,2,FALSE)=0,"",VLOOKUP(O74,[4]RewardItemConfig!$B:$C,2,FALSE)) -> 70202 | S74: 70210#1 | T74: 70202#1 | U74: 70210#1|70202#1|14#380|3#38
A75: 8872 | B75: 401297 | C75: 8872#401297 | E75: 简单-15-3 | F75: 70310#1 | G75: 70304#1 | H75: 14#380 | I75: 3#38 | N75: 610310 | O75: 610302 | Q75: =VLOOKUP(N75,[4]RewardItemConfig!$B:$C,2,FALSE) -> 70310 | R75: =IF(VLOOKUP(O75,[4]RewardItemConfig!$B:$C,2,FALSE)=0,"",VLOOKUP(O75,[4]RewardItemConfig!$B:$C,2,FALSE)) -> 70302 | S75: 70310#1 | T75: 70302#1 | U75: 70310#1|70302#1|14#380|3#38
A76: 8873 | B76: 401298 | C76: 8873#401298 | E76: 简单-15-4 | F76: 70410#1 | G76: 70404#1 | H76: 14#380 | I76: 3#38 | N76: 610410 | O76: 610402 | Q76: =VLOOKUP(N76,[4]RewardItemConfig!$B:$C,2,FALSE) -> 70410 | R76: =IF(VLOOKUP(O76,[4]RewardItemConfig!$B:$C,2,FALSE)=0,"",VLOOKUP(O76,[4]RewardItemConfig!$B:$C,2,FALSE)) -> 70402 | S76: 70410#1 | T76: 70402#1 | U76: 70410#1|70402#1|14#380|3#38
A77: 8874 | B77: 401299 | C77: 8874#401299 | E77: 简单-15-5 | F77: 70510#1 | G77: 70504#1 | H77: 14#380 | I77: 3#38 | N77: 610510 | O77: 610502 | Q77: =VLOOKUP(N77,[4]RewardItemConfig!$B:$C,2,FALSE) -> 70510 | R77: =IF(VLOOKUP(O77,[4]RewardItemConfig!$B:$C,2,FALSE)=0,"",VLOOKUP(O77,[4]RewardItemConfig!$B:$C,2,FALSE)) -> 70502 | S77: 70510#1 | T77: 70502#1 | U77: 70510#1|70502#1|14#380|3#38
A78: 8875 | B78: 401300 | C78: 8875#401300 | E78: 普通-1-1 | F78: 70111#1 | G78: 70107#1 | H78: 14#180 | I78: 3#18 | N78: 610111 | O78: 610103 | Q78: =VLOOKUP(N78,[4]RewardItemConfig!$B:$C,2,FALSE) -> 70111 | R78: =IF(VLOOKUP(O78,[4]RewardItemConfig!$B:$C,2,FALSE)=0,"",VLOOKUP(O78,[4]RewardItemConfig!$B:$C,2,FALSE)) -> 70103 | S78: 70111#1 | T78: 70103#1 | U78: 70111#1|70103#1|14#180|3#18
E79: 普通-1-2 | F79: 70211#1 | G79: 70207#1 | H79: 14#180 | I79: 3#18 | N79: 610211 | O79: 610203 | Q79: =VLOOKUP(N79,[4]RewardItemConfig!$B:$C,2,FALSE) -> 70211 | R79: =IF(VLOOKUP(O79,[4]RewardItemConfig!$B:$C,2,FALSE)=0,"",VLOOKUP(O79,[4]RewardItemConfig!$B:$C,2,FALSE)) -> 70203 | S79: 70211#1 | T79: 70203#1 | U79: 70211#1|70203#1|14#180|3#18
E80: 普通-1-3 | F80: 70311#1 | G80: 70307#1 | H80: 14#180 | I80: 3#18 | N80: 610311 | O80: 610303 | Q80: =VLOOKUP(N80,[4]RewardItemConfig!$B:$C,2,FALSE) -> 70311 | R80: =IF(VLOOKUP(O80,[4]RewardItemConfig!$B:$C,2,FALSE)=0,"",VLOOKUP(O80,[4]RewardItemConfig!$B:$C,2,FALSE)) -> 70303 | S80: 70311#1 | T80: 70303#1 | U80: 70311#1|70303#1|14#180|3#18
E81: 普通-1-4 | F81: 70411#1 | G81: 70407#1 | H81: 14#180 | I81: 3#18 | N81: 610411 | O81: 610403 | Q81: =VLOOKUP(N81,[4]RewardItemConfig!$B:$C,2,FALSE) -> 70411 | R81: =IF(VLOOKUP(O81,[4]RewardItemConfig!$B:$C,2,FALSE)=0,"",VLOOKUP(O81,[4]RewardItemConfig!$B:$C,2,FALSE)) -> 70403 | S81: 70411#1 | T81: 70403#1 | U81: 70411#1|70403#1|14#180|3#18
E82: 普通-1-5 | F82: 70511#1 | G82: 70507#1 | H82: 14#180 | I82: 3#18 | N82: 610511 | O82: 610503 | Q82: =VLOOKUP(N82,[4]RewardItemConfig!$B:$C,2,FALSE) -> 70511 | R82: =IF(VLOOKUP(O82,[4]RewardItemConfig!$B:$C,2,FALSE)=0,"",VLOOKUP(O82,[4]RewardItemConfig!$B:$C,2,FALSE)) -> 70503 | S82: 70511#1 | T82: 70503#1 | U82: 70511#1|70503#1|14#180|3#18
E83: 普通-2-1 | F83: 70111#1 | G83: 70108#1 | H83: 14#200 | I83: 3#20 | N83: 610111 | Q83: =VLOOKUP(N83,[4]RewardItemConfig!$B:$C,2,FALSE) -> 70111 | R83: =IF(VLOOKUP(O83,[4]RewardItemConfig!$B:$C,2,FALSE)=0,"",VLOOKUP(O83,[4]RewardItemConfig!$B:$C,2,FALSE)) ->  | S83: 70111#1 | U83: 70111#1|14#200|3#20
E84: 普通-2-2 | F84: 70211#1 | G84: 70208#1 | H84: 14#200 | I84: 3#20 | N84: 610211 | Q84: =VLOOKUP(N84,[4]RewardItemConfig!$B:$C,2,FALSE) -> 70211 | R84: =IF(VLOOKUP(O84,[4]RewardItemConfig!$B:$C,2,FALSE)=0,"",VLOOKUP(O84,[4]RewardItemConfig!$B:$C,2,FALSE)) ->  | S84: 70211#1 | U84: 70211#1|14#200|3#20
E85: 普通-2-3 | F85: 70311#1 | G85: 70308#1 | H85: 14#200 | I85: 3#20 | N85: 610311 | Q85: =VLOOKUP(N85,[4]RewardItemConfig!$B:$C,2,FALSE) -> 70311 | R85: =IF(VLOOKUP(O85,[4]RewardItemConfig!$B:$C,2,FALSE)=0,"",VLOOKUP(O85,[4]RewardItemConfig!$B:$C,2,FALSE)) ->  | S85: 70311#1 | U85: 70311#1|14#200|3#20
E86: 普通-2-4 | F86: 70411#1 | G86: 70408#1 | H86: 14#200 | I86: 3#20 | N86: 610411 | Q86: =VLOOKUP(N86,[4]RewardItemConfig!$B:$C,2,FALSE) -> 70411 | R86: =IF(VLOOKUP(O86,[4]RewardItemConfig!$B:$C,2,FALSE)=0,"",VLOOKUP(O86,[4]RewardItemConfig!$B:$C,2,FALSE)) ->  | S86: 70411#1 | U86: 70411#1|14#200|3#20
E87: 普通-2-5 | F87: 70511#1 | G87: 70508#1 | H87: 14#200 | I87: 3#20 | N87: 610511 | Q87: =VLOOKUP(N87,[4]RewardItemConfig!$B:$C,2,FALSE) -> 70511 | R87: =IF(VLOOKUP(O87,[4]RewardItemConfig!$B:$C,2,FALSE)=0,"",VLOOKUP(O87,[4]RewardItemConfig!$B:$C,2,FALSE)) ->  | S87: 70511#1 | U87: 70511#1|14#200|3#20
E88: 普通-3-1 | F88: 70111#1 | G88: 70109#1 | H88: 14#220 | I88: 3#22 | N88: 610111 | Q88: =VLOOKUP(N88,[4]RewardItemConfig!$B:$C,2,FALSE) -> 70111 | R88: =IF(VLOOKUP(O88,[4]RewardItemConfig!$B:$C,2,FALSE)=0,"",VLOOKUP(O88,[4]RewardItemConfig!$B:$C,2,FALSE)) ->  | S88: 70111#1 | U88: 70111#1|14#220|3#22
E89: 普通-3-2 | F89: 70211#1 | G89: 70209#1 | H89: 14#220 | I89: 3#22 | N89: 610211 | Q89: =VLOOKUP(N89,[4]RewardItemConfig!$B:$C,2,FALSE) -> 70211 | R89: =IF(VLOOKUP(O89,[4]RewardItemConfig!$B:$C,2,FALSE)=0,"",VLOOKUP(O89,[4]RewardItemConfig!$B:$C,2,FALSE)) ->  | S89: 70211#1 | U89: 70211#1|14#220|3#22
E90: 普通-3-3 | F90: 70311#1 | G90: 70309#1 | H90: 14#220 | I90: 3#22 | N90: 610311 | Q90: =VLOOKUP(N90,[4]RewardItemConfig!$B:$C,2,FALSE) -> 70311 | R90: =IF(VLOOKUP(O90,[4]RewardItemConfig!$B:$C,2,FALSE)=0,"",VLOOKUP(O90,[4]RewardItemConfig!$B:$C,2,FALSE)) ->  | S90: 70311#1 | U90: 70311#1|14#220|3#22
E91: 普通-3-4 | F91: 70411#1 | G91: 70409#1 | H91: 14#220 | I91: 3#22 | N91: 610411 | Q91: =VLOOKUP(N91,[4]RewardItemConfig!$B:$C,2,FALSE) -> 70411 | R91: =IF(VLOOKUP(O91,[4]RewardItemConfig!$B:$C,2,FALSE)=0,"",VLOOKUP(O91,[4]RewardItemConfig!$B:$C,2,FALSE)) ->  | S91: 70411#1 | U91: 70411#1|14#220|3#22
E92: 普通-3-5 | F92: 70511#1 | G92: 70509#1 | H92: 14#220 | I92: 3#22 | N92: 610511 | Q92: =VLOOKUP(N92,[4]RewardItemConfig!$B:$C,2,FALSE) -> 70511 | R92: =IF(VLOOKUP(O92,[4]RewardItemConfig!$B:$C,2,FALSE)=0,"",VLOOKUP(O92,[4]RewardItemConfig!$B:$C,2,FALSE)) ->  | S92: 70511#1 | U92: 70511#1|14#220|3#22
E93: 普通-4-1 | F93: 70112#1 | G93: 70110#1 | H93: 14#240 | I93: 3#24 | N93: 610112 | Q93: =VLOOKUP(N93,[4]RewardItemConfig!$B:$C,2,FALSE) -> 70112 | R93: =IF(VLOOKUP(O93,[4]RewardItemConfig!$B:$C,2,FALSE)=0,"",VLOOKUP(O93,[4]RewardItemConfig!$B:$C,2,FALSE)) ->  | S93: 70112#1 | U93: 70112#1|14#240|3#24
E94: 普通-4-2 | F94: 70212#1 | G94: 70210#1 | H94: 14#240 | I94: 3#24 | N94: 610212 | Q94: =VLOOKUP(N94,[4]RewardItemConfig!$B:$C,2,FALSE) -> 70212 | R94: =IF(VLOOKUP(O94,[4]RewardItemConfig!$B:$C,2,FALSE)=0,"",VLOOKUP(O94,[4]RewardItemConfig!$B:$C,2,FALSE)) ->  | S94: 70212#1 | U94: 70212#1|14#240|3#24
E95: 普通-4-3 | F95: 70312#1 | G95: 70310#1 | H95: 14#240 | I95: 3#24 | N95: 610312 | Q95: =VLOOKUP(N95,[4]RewardItemConfig!$B:$C,2,FALSE) -> 70312 | R95: =IF(VLOOKUP(O95,[4]RewardItemConfig!$B:$C,2,FALSE)=0,"",VLOOKUP(O95,[4]RewardItemConfig!$B:$C,2,FALSE)) ->  | S95: 70312#1 | U95: 70312#1|14#240|3#24
E96: 普通-4-4 | F96: 70412#1 | G96: 70410#1 | H96: 14#240 | I96: 3#24 | N96: 610412 | Q96: =VLOOKUP(N96,[4]RewardItemConfig!$B:$C,2,FALSE) -> 70412 | R96: =IF(VLOOKUP(O96,[4]RewardItemConfig!$B:$C,2,FALSE)=0,"",VLOOKUP(O96,[4]RewardItemConfig!$B:$C,2,FALSE)) ->  | S96: 70412#1 | U96: 70412#1|14#240|3#24
E97: 普通-4-5 | F97: 70512#1 | G97: 70510#1 | H97: 14#240 | I97: 3#24 | N97: 610512 | Q97: =VLOOKUP(N97,[4]RewardItemConfig!$B:$C,2,FALSE) -> 70512 | R97: =IF(VLOOKUP(O97,[4]RewardItemConfig!$B:$C,2,FALSE)=0,"",VLOOKUP(O97,[4]RewardItemConfig!$B:$C,2,FALSE)) ->  | S97: 70512#1 | U97: 70512#1|14#240|3#24
E98: 普通-5-1 | F98: 70112#1 | G98: 70111#1 | H98: 14#260 | I98: 3#26 | N98: 610112 | Q98: =VLOOKUP(N98,[4]RewardItemConfig!$B:$C,2,FALSE) -> 70112 | R98: =IF(VLOOKUP(O98,[4]RewardItemConfig!$B:$C,2,FALSE)=0,"",VLOOKUP(O98,[4]RewardItemConfig!$B:$C,2,FALSE)) ->  | S98: 70112#1 | U98: 70112#1|14#260|3#26
E99: 普通-5-2 | F99: 70212#1 | G99: 70211#1 | H99: 14#260 | I99: 3#26 | N99: 610212 | Q99: =VLOOKUP(N99,[4]RewardItemConfig!$B:$C,2,FALSE) -> 70212 | R99: =IF(VLOOKUP(O99,[4]RewardItemConfig!$B:$C,2,FALSE)=0,"",VLOOKUP(O99,[4]RewardItemConfig!$B:$C,2,FALSE)) ->  | S99: 70212#1 | U99: 70212#1|14#260|3#26
E100: 普通-5-3 | F100: 70312#1 | G100: 70311#1 | H100: 14#260 | I100: 3#26 | N100: 610312 | Q100: =VLOOKUP(N100,[4]RewardItemConfig!$B:$C,2,FALSE) -> 70312 | R100: =IF(VLOOKUP(O100,[4]RewardItemConfig!$B:$C,2,FALSE)=0,"",VLOOKUP(O100,[4]RewardItemConfig!$B:$C,2,FALSE)) ->  | S100: 70312#1 | U100: 70312#1|14#260|3#26
E101: 普通-5-4 | F101: 70412#1 | G101: 70411#1 | H101: 14#260 | I101: 3#26 | N101: 610412 | Q101: =VLOOKUP(N101,[4]RewardItemConfig!$B:$C,2,FALSE) -> 70412 | R101: =IF(VLOOKUP(O101,[4]RewardItemConfig!$B:$C,2,FALSE)=0,"",VLOOKUP(O101,[4]RewardItemConfig!$B:$C,2,FALSE)) ->  | S101: 70412#1 | U101: 70412#1|14#260|3#26
E102: 普通-5-5 | F102: 70512#1 | G102: 70511#1 | H102: 14#260 | I102: 3#26 | N102: 610512 | Q102: =VLOOKUP(N102,[4]RewardItemConfig!$B:$C,2,FALSE) -> 70512 | R102: =IF(VLOOKUP(O102,[4]RewardItemConfig!$B:$C,2,FALSE)=0,"",VLOOKUP(O102,[4]RewardItemConfig!$B:$C,2,FALSE)) ->  | S102: 70512#1 | U102: 70512#1|14#260|3#26
E103: 普通-6-1 | F103: 70112#1 | G103: 70111#1 | H103: 14#280 | I103: 3#28 | N103: 610112 | O103: 610101 | Q103: =VLOOKUP(N103,[4]RewardItemConfig!$B:$C,2,FALSE) -> 70112 | R103: =IF(VLOOKUP(O103,[4]RewardItemConfig!$B:$C,2,FALSE)=0,"",VLOOKUP(O103,[4]RewardItemConfig!$B:$C,2,FALSE)) -> 70101 | S103: 70112#1 | T103: 70101#1 | U103: =_xlfn.TEXTJOIN("|",TRUE,S103:T103,H103,I103) -> 70112#1|70101#1|14#280|3#28
E104: 普通-6-2 | F104: 70212#1 | G104: 70211#1 | H104: 14#280 | I104: 3#28 | N104: 610212 | O104: 610201 | Q104: =VLOOKUP(N104,[4]RewardItemConfig!$B:$C,2,FALSE) -> 70212 | R104: =IF(VLOOKUP(O104,[4]RewardItemConfig!$B:$C,2,FALSE)=0,"",VLOOKUP(O104,[4]RewardItemConfig!$B:$C,2,FALSE)) -> 70201 | S104: 70212#1 | T104: 70201#1 | U104: 70212#1|70201#1|14#280|3#28
E105: 普通-6-3 | F105: 70312#1 | G105: 70311#1 | H105: 14#280 | I105: 3#28 | N105: 610312 | O105: 610301 | Q105: =VLOOKUP(N105,[4]RewardItemConfig!$B:$C,2,FALSE) -> 70312 | R105: =IF(VLOOKUP(O105,[4]RewardItemConfig!$B:$C,2,FALSE)=0,"",VLOOKUP(O105,[4]RewardItemConfig!$B:$C,2,FALSE)) -> 70301 | S105: 70312#1 | T105: 70301#1 | U105: 70312#1|70301#1|14#280|3#28
E106: 普通-6-4 | F106: 70412#1 | G106: 70411#1 | H106: 14#280 | I106: 3#28 | N106: 610412 | O106: 610401 | Q106: =VLOOKUP(N106,[4]RewardItemConfig!$B:$C,2,FALSE) -> 70412 | R106: =IF(VLOOKUP(O106,[4]RewardItemConfig!$B:$C,2,FALSE)=0,"",VLOOKUP(O106,[4]RewardItemConfig!$B:$C,2,FALSE)) -> 70401 | S106: 70412#1 | T106: 70401#1 | U106: 70412#1|70401#1|14#280|3#28
E107: 普通-6-5 | F107: 70512#1 | G107: 70511#1 | H107: 14#280 | I107: 3#28 | N107: 610512 | O107: 610501 | Q107: =VLOOKUP(N107,[4]RewardItemConfig!$B:$C,2,FALSE) -> 70512 | R107: =IF(VLOOKUP(O107,[4]RewardItemConfig!$B:$C,2,FALSE)=0,"",VLOOKUP(O107,[4]RewardItemConfig!$B:$C,2,FALSE)) -> 70501 | S107: 70512#1 | T107: 70501#1 | U107: 70512#1|70501#1|14#280|3#28
E108: 普通-7-1 | F108: 70113#1 | G108: 70106#1 | H108: 14#300 | I108: 3#30 | N108: 610113 | O108: 610102 | Q108: =VLOOKUP(N108,[4]RewardItemConfig!$B:$C,2,FALSE) -> 70113 | R108: =IF(VLOOKUP(O108,[4]RewardItemConfig!$B:$C,2,FALSE)=0,"",VLOOKUP(O108,[4]RewardItemConfig!$B:$C,2,FALSE)) -> 70102 | S108: 70113#1 | T108: 70102#1 | U108: 70113#1|70102#1|14#300|3#30
E109: 普通-7-2 | F109: 70213#1 | G109: 70206#1 | H109: 14#300 | I109: 3#30 | N109: 610213 | O109: 610202 | Q109: =VLOOKUP(N109,[4]RewardItemConfig!$B:$C,2,FALSE) -> 70213 | R109: =IF(VLOOKUP(O109,[4]RewardItemConfig!$B:$C,2,FALSE)=0,"",VLOOKUP(O109,[4]RewardItemConfig!$B:$C,2,FALSE)) -> 70202 | S109: 70213#1 | T109: 70202#1 | U109: 70213#1|70202#1|14#300|3#30
E110: 普通-7-3 | F110: 70313#1 | G110: 70306#1 | H110: 14#300 | I110: 3#30 | N110: 610313 | O110: 610302 | Q110: =VLOOKUP(N110,[4]RewardItemConfig!$B:$C,2,FALSE) -> 70313 | R110: =IF(VLOOKUP(O110,[4]RewardItemConfig!$B:$C,2,FALSE)=0,"",VLOOKUP(O110,[4]RewardItemConfig!$B:$C,2,FALSE)) -> 70302 | S110: 70313#1 | T110: 70302#1 | U110: 70313#1|70302#1|14#300|3#30
E111: 普通-7-4 | F111: 70413#1 | G111: 70406#1 | H111: 14#300 | I111: 3#30 | N111: 610413 | O111: 610402 | Q111: =VLOOKUP(N111,[4]RewardItemConfig!$B:$C,2,FALSE) -> 70413 | R111: =IF(VLOOKUP(O111,[4]RewardItemConfig!$B:$C,2,FALSE)=0,"",VLOOKUP(O111,[4]RewardItemConfig!$B:$C,2,FALSE)) -> 70402 | S111: 70413#1 | T111: 70402#1 | U111: 70413#1|70402#1|14#300|3#30
E112: 普通-7-5 | F112: 70513#1 | G112: 70506#1 | H112: 14#300 | I112: 3#30 | N112: 610513 | O112: 610502 | Q112: =VLOOKUP(N112,[4]RewardItemConfig!$B:$C,2,FALSE) -> 70513 | R112: =IF(VLOOKUP(O112,[4]RewardItemConfig!$B:$C,2,FALSE)=0,"",VLOOKUP(O112,[4]RewardItemConfig!$B:$C,2,FALSE)) -> 70502 | S112: 70513#1 | T112: 70502#1 | U112: 70513#1|70502#1|14#300|3#30
E113: 普通-8-1 | F113: 70113#1 | G113: 70107#1 | H113: 14#320 | I113: 3#32 | N113: 610113 | O113: 610103 | Q113: =VLOOKUP(N113,[4]RewardItemConfig!$B:$C,2,FALSE) -> 70113 | R113: =IF(VLOOKUP(O113,[4]RewardItemConfig!$B:$C,2,FALSE)=0,"",VLOOKUP(O113,[4]RewardItemConfig!$B:$C,2,FALSE)) -> 70103 | S113: 70113#1 | T113: 70103#1 | U113: 70113#1|70103#1|14#320|3#32
E114: 普通-8-2 | F114: 70213#1 | G114: 70207#1 | H114: 14#320 | I114: 3#32 | N114: 610213 | O114: 610203 | Q114: =VLOOKUP(N114,[4]RewardItemConfig!$B:$C,2,FALSE) -> 70213 | R114: =IF(VLOOKUP(O114,[4]RewardItemConfig!$B:$C,2,FALSE)=0,"",VLOOKUP(O114,[4]RewardItemConfig!$B:$C,2,FALSE)) -> 70203 | S114: 70213#1 | T114: 70203#1 | U114: 70213#1|70203#1|14#320|3#32
E115: 普通-8-3 | F115: 70313#1 | G115: 70307#1 | H115: 14#320 | I115: 3#32 | N115: 610313 | O115: 610303 | Q115: =VLOOKUP(N115,[4]RewardItemConfig!$B:$C,2,FALSE) -> 70313 | R115: =IF(VLOOKUP(O115,[4]RewardItemConfig!$B:$C,2,FALSE)=0,"",VLOOKUP(O115,[4]RewardItemConfig!$B:$C,2,FALSE)) -> 70303 | S115: 70313#1 | T115: 70303#1 | U115: 70313#1|70303#1|14#320|3#32
E116: 普通-8-4 | F116: 70413#1 | G116: 70407#1 | H116: 14#320 | I116: 3#32 | N116: 610413 | O116: 610403 | Q116: =VLOOKUP(N116,[4]RewardItemConfig!$B:$C,2,FALSE) -> 70413 | R116: =IF(VLOOKUP(O116,[4]RewardItemConfig!$B:$C,2,FALSE)=0,"",VLOOKUP(O116,[4]RewardItemConfig!$B:$C,2,FALSE)) -> 70403 | S116: 70413#1 | T116: 70403#1 | U116: 70413#1|70403#1|14#320|3#32
E117: 普通-8-5 | F117: 70513#1 | G117: 70507#1 | H117: 14#320 | I117: 3#32 | N117: 610513 | O117: 610503 | Q117: =VLOOKUP(N117,[4]RewardItemConfig!$B:$C,2,FALSE) -> 70513 | R117: =IF(VLOOKUP(O117,[4]RewardItemConfig!$B:$C,2,FALSE)=0,"",VLOOKUP(O117,[4]RewardItemConfig!$B:$C,2,FALSE)) -> 70503 | S117: 70513#1 | T117: 70503#1 | U117: 70513#1|70503#1|14#320|3#32
E118: 普通-9-1 | F118: 70113#1 | G118: 70101#1 | H118: 14#340 | I118: 3#34 | N118: 610113 | Q118: =VLOOKUP(N118,[4]RewardItemConfig!$B:$C,2,FALSE) -> 70113 | R118: =IF(VLOOKUP(O118,[4]RewardItemConfig!$B:$C,2,FALSE)=0,"",VLOOKUP(O118,[4]RewardItemConfig!$B:$C,2,FALSE)) ->  | S118: 70113#1 | U118: 70113#1|14#340|3#34
E119: 普通-9-2 | F119: 70213#1 | G119: 70201#1 | H119: 14#340 | I119: 3#34 | N119: 610213 | Q119: =VLOOKUP(N119,[4]RewardItemConfig!$B:$C,2,FALSE) -> 70213 | R119: =IF(VLOOKUP(O119,[4]RewardItemConfig!$B:$C,2,FALSE)=0,"",VLOOKUP(O119,[4]RewardItemConfig!$B:$C,2,FALSE)) ->  | S119: 70213#1 | U119: 70213#1|14#340|3#34
E120: 普通-9-3 | F120: 70313#1 | G120: 70301#1 | H120: 14#340 | I120: 3#34 | N120: 610313 | Q120: =VLOOKUP(N120,[4]RewardItemConfig!$B:$C,2,FALSE) -> 70313 | R120: =IF(VLOOKUP(O120,[4]RewardItemConfig!$B:$C,2,FALSE)=0,"",VLOOKUP(O120,[4]RewardItemConfig!$B:$C,2,FALSE)) ->  | S120: 70313#1 | U120: 70313#1|14#340|3#34
E121: 普通-9-4 | F121: 70413#1 | G121: 70401#1 | H121: 14#340 | I121: 3#34 | N121: 610413 | Q121: =VLOOKUP(N121,[4]RewardItemConfig!$B:$C,2,FALSE) -> 70413 | R121: =IF(VLOOKUP(O121,[4]RewardItemConfig!$B:$C,2,FALSE)=0,"",VLOOKUP(O121,[4]RewardItemConfig!$B:$C,2,FALSE)) ->  | S121: 70413#1 | U121: 70413#1|14#340|3#34
E122: 普通-9-5 | F122: 70513#1 | G122: 70501#1 | H122: 14#340 | I122: 3#34 | N122: 610513 | Q122: =VLOOKUP(N122,[4]RewardItemConfig!$B:$C,2,FALSE) -> 70513 | R122: =IF(VLOOKUP(O122,[4]RewardItemConfig!$B:$C,2,FALSE)=0,"",VLOOKUP(O122,[4]RewardItemConfig!$B:$C,2,FALSE)) ->  | S122: 70513#1 | U122: 70513#1|14#340|3#34
E123: 普通-10-1 | F123: 70114#1 | G123: 70102#1 | H123: 14#360 | I123: 3#36 | N123: 610114 | Q123: =VLOOKUP(N123,[4]RewardItemConfig!$B:$C,2,FALSE) -> 70114 | R123: =IF(VLOOKUP(O123,[4]RewardItemConfig!$B:$C,2,FALSE)=0,"",VLOOKUP(O123,[4]RewardItemConfig!$B:$C,2,FALSE)) ->  | S123: 70114#1 | U123: 70114#1|14#360|3#36
E124: 普通-10-2 | F124: 70214#1 | G124: 70202#1 | H124: 14#360 | I124: 3#36 | N124: 610214 | Q124: =VLOOKUP(N124,[4]RewardItemConfig!$B:$C,2,FALSE) -> 70214 | R124: =IF(VLOOKUP(O124,[4]RewardItemConfig!$B:$C,2,FALSE)=0,"",VLOOKUP(O124,[4]RewardItemConfig!$B:$C,2,FALSE)) ->  | S124: 70214#1 | U124: 70214#1|14#360|3#36
E125: 普通-10-3 | F125: 70314#1 | G125: 70302#1 | H125: 14#360 | I125: 3#36 | N125: 610314 | Q125: =VLOOKUP(N125,[4]RewardItemConfig!$B:$C,2,FALSE) -> 70314 | R125: =IF(VLOOKUP(O125,[4]RewardItemConfig!$B:$C,2,FALSE)=0,"",VLOOKUP(O125,[4]RewardItemConfig!$B:$C,2,FALSE)) ->  | S125: 70314#1 | U125: 70314#1|14#360|3#36
E126: 普通-10-4 | F126: 70414#1 | G126: 70402#1 | H126: 14#360 | I126: 3#36 | N126: 610414 | Q126: =VLOOKUP(N126,[4]RewardItemConfig!$B:$C,2,FALSE) -> 70414 | R126: =IF(VLOOKUP(O126,[4]RewardItemConfig!$B:$C,2,FALSE)=0,"",VLOOKUP(O126,[4]RewardItemConfig!$B:$C,2,FALSE)) ->  | S126: 70414#1 | U126: 70414#1|14#360|3#36
E127: 普通-10-5 | F127: 70514#1 | G127: 70502#1 | H127: 14#360 | I127: 3#36 | N127: 610514 | Q127: =VLOOKUP(N127,[4]RewardItemConfig!$B:$C,2,FALSE) -> 70514 | R127: =IF(VLOOKUP(O127,[4]RewardItemConfig!$B:$C,2,FALSE)=0,"",VLOOKUP(O127,[4]RewardItemConfig!$B:$C,2,FALSE)) ->  | S127: 70514#1 | U127: 70514#1|14#360|3#36
E128: 普通-11-1 | F128: 70114#1 | G128: 70103#1 | H128: 14#380 | I128: 3#38 | N128: 610114 | Q128: =VLOOKUP(N128,[4]RewardItemConfig!$B:$C,2,FALSE) -> 70114 | R128: =IF(VLOOKUP(O128,[4]RewardItemConfig!$B:$C,2,FALSE)=0,"",VLOOKUP(O128,[4]RewardItemConfig!$B:$C,2,FALSE)) ->  | S128: 70114#1 | U128: 70114#1|14#380|3#38
E129: 普通-11-2 | F129: 70214#1 | G129: 70203#1 | H129: 14#380 | I129: 3#38 | N129: 610214 | Q129: =VLOOKUP(N129,[4]RewardItemConfig!$B:$C,2,FALSE) -> 70214 | R129: =IF(VLOOKUP(O129,[4]RewardItemConfig!$B:$C,2,FALSE)=0,"",VLOOKUP(O129,[4]RewardItemConfig!$B:$C,2,FALSE)) ->  | S129: 70214#1 | U129: 70214#1|14#380|3#38
E130: 普通-11-3 | F130: 70314#1 | G130: 70303#1 | H130: 14#380 | I130: 3#38 | N130: 610314 | Q130: =VLOOKUP(N130,[4]RewardItemConfig!$B:$C,2,FALSE) -> 70314 | R130: =IF(VLOOKUP(O130,[4]RewardItemConfig!$B:$C,2,FALSE)=0,"",VLOOKUP(O130,[4]RewardItemConfig!$B:$C,2,FALSE)) ->  | S130: 70314#1 | U130: 70314#1|14#380|3#38
E131: 普通-11-4 | F131: 70414#1 | G131: 70403#1 | H131: 14#380 | I131: 3#38 | N131: 610414 | Q131: =VLOOKUP(N131,[4]RewardItemConfig!$B:$C,2,FALSE) -> 70414 | R131: =IF(VLOOKUP(O131,[4]RewardItemConfig!$B:$C,2,FALSE)=0,"",VLOOKUP(O131,[4]RewardItemConfig!$B:$C,2,FALSE)) ->  | S131: 70414#1 | U131: 70414#1|14#380|3#38
E132: 普通-11-5 | F132: 70514#1 | G132: 70503#1 | H132: 14#380 | I132: 3#38 | N132: 610514 | Q132: =VLOOKUP(N132,[4]RewardItemConfig!$B:$C,2,FALSE) -> 70514 | R132: =IF(VLOOKUP(O132,[4]RewardItemConfig!$B:$C,2,FALSE)=0,"",VLOOKUP(O132,[4]RewardItemConfig!$B:$C,2,FALSE)) ->  | S132: =IF(Q132="","",Q132&$S$2) -> 70514#1 | T132: =IF(R132="","",R132&$S$2) ->  | U132: 70514#1|14#380|3#38
E133: 普通-12-1 | F133: 70114#1 | G133: 70104#1 | H133: 14#400 | I133: 3#40 | N133: 610114 | Q133: =VLOOKUP(N133,[4]RewardItemConfig!$B:$C,2,FALSE) -> 70114 | R133: =IF(VLOOKUP(O133,[4]RewardItemConfig!$B:$C,2,FALSE)=0,"",VLOOKUP(O133,[4]RewardItemConfig!$B:$C,2,FALSE)) ->  | S133: 70114#1 | U133: 70114#1|14#400|3#40
E134: 普通-12-2 | F134: 70214#1 | G134: 70204#1 | H134: 14#400 | I134: 3#40 | N134: 610214 | Q134: =VLOOKUP(N134,[4]RewardItemConfig!$B:$C,2,FALSE) -> 70214 | R134: =IF(VLOOKUP(O134,[4]RewardItemConfig!$B:$C,2,FALSE)=0,"",VLOOKUP(O134,[4]RewardItemConfig!$B:$C,2,FALSE)) ->  | S134: 70214#1 | U134: 70214#1|14#400|3#40
E135: 普通-12-3 | F135: 70314#1 | G135: 70304#1 | H135: 14#400 | I135: 3#40 | N135: 610314 | Q135: =VLOOKUP(N135,[4]RewardItemConfig!$B:$C,2,FALSE) -> 70314 | R135: =IF(VLOOKUP(O135,[4]RewardItemConfig!$B:$C,2,FALSE)=0,"",VLOOKUP(O135,[4]RewardItemConfig!$B:$C,2,FALSE)) ->  | S135: 70314#1 | U135: =_xlfn.TEXTJOIN("|",TRUE,S135:T135,H135,I135) -> 70314#1|14#400|3#40
E136: 普通-12-4 | F136: 70414#1 | G136: 70404#1 | H136: 14#400 | I136: 3#40 | N136: 610414 | Q136: =VLOOKUP(N136,[4]RewardItemConfig!$B:$C,2,FALSE) -> 70414 | R136: =IF(VLOOKUP(O136,[4]RewardItemConfig!$B:$C,2,FALSE)=0,"",VLOOKUP(O136,[4]RewardItemConfig!$B:$C,2,FALSE)) ->  | S136: 70414#1 | U136: 70414#1|14#400|3#40
E137: 普通-12-5 | F137: 70514#1 | G137: 70504#1 | H137: 14#400 | I137: 3#40 | N137: 610514 | Q137: =VLOOKUP(N137,[4]RewardItemConfig!$B:$C,2,FALSE) -> 70514 | R137: =IF(VLOOKUP(O137,[4]RewardItemConfig!$B:$C,2,FALSE)=0,"",VLOOKUP(O137,[4]RewardItemConfig!$B:$C,2,FALSE)) ->  | S137: 70514#1 | U137: 70514#1|14#400|3#40
E138: 普通-13-1 | F138: 70115#1 | G138: 70105#1 | H138: 14#420 | I138: 3#42 | N138: 610115 | Q138: =VLOOKUP(N138,[4]RewardItemConfig!$B:$C,2,FALSE) -> 70115 | R138: =IF(VLOOKUP(O138,[4]RewardItemConfig!$B:$C,2,FALSE)=0,"",VLOOKUP(O138,[4]RewardItemConfig!$B:$C,2,FALSE)) ->  | S138: 70115#1 | U138: 70115#1|14#420|3#42
E139: 普通-13-2 | F139: 70215#1 | G139: 70205#1 | H139: 14#420 | I139: 3#42 | N139: 610215 | Q139: =VLOOKUP(N139,[4]RewardItemConfig!$B:$C,2,FALSE) -> 70215 | R139: =IF(VLOOKUP(O139,[4]RewardItemConfig!$B:$C,2,FALSE)=0,"",VLOOKUP(O139,[4]RewardItemConfig!$B:$C,2,FALSE)) ->  | S139: 70215#1 | U139: 70215#1|14#420|3#42
E140: 普通-13-3 | F140: 70315#1 | G140: 70305#1 | H140: 14#420 | I140: 3#42 | N140: 610315 | Q140: =VLOOKUP(N140,[4]RewardItemConfig!$B:$C,2,FALSE) -> 70315 | R140: =IF(VLOOKUP(O140,[4]RewardItemConfig!$B:$C,2,FALSE)=0,"",VLOOKUP(O140,[4]RewardItemConfig!$B:$C,2,FALSE)) ->  | S140: 70315#1 | U140: 70315#1|14#420|3#42
E141: 普通-13-4 | F141: 70415#1 | G141: 70405#1 | H141: 14#420 | I141: 3#42 | N141: 610415 | Q141: =VLOOKUP(N141,[4]RewardItemConfig!$B:$C,2,FALSE) -> 70415 | R141: =IF(VLOOKUP(O141,[4]RewardItemConfig!$B:$C,2,FALSE)=0,"",VLOOKUP(O141,[4]RewardItemConfig!$B:$C,2,FALSE)) ->  | S141: 70415#1 | U141: 70415#1|14#420|3#42
E142: 普通-13-5 | F142: 70515#1 | G142: 70505#1 | H142: 14#420 | I142: 3#42 | N142: 610515 | Q142: =VLOOKUP(N142,[4]RewardItemConfig!$B:$C,2,FALSE) -> 70515 | R142: =IF(VLOOKUP(O142,[4]RewardItemConfig!$B:$C,2,FALSE)=0,"",VLOOKUP(O142,[4]RewardItemConfig!$B:$C,2,FALSE)) ->  | S142: 70515#1 | U142: 70515#1|14#420|3#42
E143: 普通-14-1 | F143: 70115#1 | G143: 70106#1 | H143: 14#440 | I143: 3#44 | N143: 610115 | Q143: =VLOOKUP(N143,[4]RewardItemConfig!$B:$C,2,FALSE) -> 70115 | R143: =IF(VLOOKUP(O143,[4]RewardItemConfig!$B:$C,2,FALSE)=0,"",VLOOKUP(O143,[4]RewardItemConfig!$B:$C,2,FALSE)) ->  | S143: 70115#1 | U143: 70115#1|14#440|3#44
E144: 普通-14-2 | F144: 70215#1 | G144: 70206#1 | H144: 14#440 | I144: 3#44 | N144: 610215 | Q144: =VLOOKUP(N144,[4]RewardItemConfig!$B:$C,2,FALSE) -> 70215 | R144: =IF(VLOOKUP(O144,[4]RewardItemConfig!$B:$C,2,FALSE)=0,"",VLOOKUP(O144,[4]RewardItemConfig!$B:$C,2,FALSE)) ->  | S144: 70215#1 | U144: 70215#1|14#440|3#44
E145: 普通-14-3 | F145: 70315#1 | G145: 70306#1 | H145: 14#440 | I145: 3#44 | N145: 610315 | Q145: =VLOOKUP(N145,[4]RewardItemConfig!$B:$C,2,FALSE) -> 70315 | R145: =IF(VLOOKUP(O145,[4]RewardItemConfig!$B:$C,2,FALSE)=0,"",VLOOKUP(O145,[4]RewardItemConfig!$B:$C,2,FALSE)) ->  | S145: 70315#1 | U145: 70315#1|14#440|3#44
E146: 普通-14-4 | F146: 70415#1 | G146: 70406#1 | H146: 14#440 | I146: 3#44 | N146: 610415 | Q146: =VLOOKUP(N146,[4]RewardItemConfig!$B:$C,2,FALSE) -> 70415 | R146: =IF(VLOOKUP(O146,[4]RewardItemConfig!$B:$C,2,FALSE)=0,"",VLOOKUP(O146,[4]RewardItemConfig!$B:$C,2,FALSE)) ->  | S146: 70415#1 | U146: 70415#1|14#440|3#44
E147: 普通-14-5 | F147: 70515#1 | G147: 70506#1 | H147: 14#440 | I147: 3#44 | N147: 610515 | Q147: =VLOOKUP(N147,[4]RewardItemConfig!$B:$C,2,FALSE) -> 70515 | R147: =IF(VLOOKUP(O147,[4]RewardItemConfig!$B:$C,2,FALSE)=0,"",VLOOKUP(O147,[4]RewardItemConfig!$B:$C,2,FALSE)) ->  | S147: 70515#1 | U147: 70515#1|14#440|3#44
E148: 普通-15-1 | F148: 70115#1 | G148: 70107#1 | H148: 14#460 | I148: 3#46 | N148: 610115 | Q148: =VLOOKUP(N148,[4]RewardItemConfig!$B:$C,2,FALSE) -> 70115 | R148: =IF(VLOOKUP(O148,[4]RewardItemConfig!$B:$C,2,FALSE)=0,"",VLOOKUP(O148,[4]RewardItemConfig!$B:$C,2,FALSE)) ->  | S148: 70115#1 | U148: 70115#1|14#460|3#46
E149: 普通-15-2 | F149: 70215#1 | G149: 70207#1 | H149: 14#460 | I149: 3#46 | N149: 610215 | Q149: =VLOOKUP(N149,[4]RewardItemConfig!$B:$C,2,FALSE) -> 70215 | R149: =IF(VLOOKUP(O149,[4]RewardItemConfig!$B:$C,2,FALSE)=0,"",VLOOKUP(O149,[4]RewardItemConfig!$B:$C,2,FALSE)) ->  | S149: 70215#1 | U149: 70215#1|14#460|3#46
E150: 普通-15-3 | F150: 70315#1 | G150: 70307#1 | H150: 14#460 | I150: 3#46 | N150: 610315 | Q150: =VLOOKUP(N150,[4]RewardItemConfig!$B:$C,2,FALSE) -> 70315 | R150: =IF(VLOOKUP(O150,[4]RewardItemConfig!$B:$C,2,FALSE)=0,"",VLOOKUP(O150,[4]RewardItemConfig!$B:$C,2,FALSE)) ->  | S150: 70315#1 | U150: 70315#1|14#460|3#46
E151: 普通-15-4 | F151: 70415#1 | G151: 70407#1 | H151: 14#460 | I151: 3#46 | N151: 610415 | Q151: =VLOOKUP(N151,[4]RewardItemConfig!$B:$C,2,FALSE) -> 70415 | R151: =IF(VLOOKUP(O151,[4]RewardItemConfig!$B:$C,2,FALSE)=0,"",VLOOKUP(O151,[4]RewardItemConfig!$B:$C,2,FALSE)) ->  | S151: 70415#1 | U151: 70415#1|14#460|3#46
E152: 普通-15-5 | F152: 70515#1 | G152: 70507#1 | H152: 14#460 | I152: 3#46 | N152: 610515 | Q152: =VLOOKUP(N152,[4]RewardItemConfig!$B:$C,2,FALSE) -> 70515 | R152: =IF(VLOOKUP(O152,[4]RewardItemConfig!$B:$C,2,FALSE)=0,"",VLOOKUP(O152,[4]RewardItemConfig!$B:$C,2,FALSE)) ->  | S152: 70515#1 | U152: 70515#1|14#460|3#46
E153: 困难-1-1 | F153: 70115#1 | G153: 70108#1 | H153: 14#220 | I153: 3#22 | N153: 610116 | Q153: =VLOOKUP(N153,[4]RewardItemConfig!$B:$C,2,FALSE) -> 70116 | R153: =IF(VLOOKUP(O153,[4]RewardItemConfig!$B:$C,2,FALSE)=0,"",VLOOKUP(O153,[4]RewardItemConfig!$B:$C,2,FALSE)) ->  | S153: 70116#1 | U153: 70116#1|14#220|3#22
E154: 困难-1-2 | F154: 70215#1 | G154: 70208#1 | H154: 14#220 | I154: 3#22 | N154: 610216 | Q154: =VLOOKUP(N154,[4]RewardItemConfig!$B:$C,2,FALSE) -> 70216 | R154: =IF(VLOOKUP(O154,[4]RewardItemConfig!$B:$C,2,FALSE)=0,"",VLOOKUP(O154,[4]RewardItemConfig!$B:$C,2,FALSE)) ->  | S154: 70216#1 | U154: 70216#1|14#220|3#22
E155: 困难-1-3 | F155: 70315#1 | G155: 70308#1 | H155: 14#220 | I155: 3#22 | N155: 610316 | Q155: =VLOOKUP(N155,[4]RewardItemConfig!$B:$C,2,FALSE) -> 70316 | R155: =IF(VLOOKUP(O155,[4]RewardItemConfig!$B:$C,2,FALSE)=0,"",VLOOKUP(O155,[4]RewardItemConfig!$B:$C,2,FALSE)) ->  | S155: 70316#1 | U155: 70316#1|14#220|3#22
E156: 困难-1-4 | F156: 70415#1 | G156: 70408#1 | H156: 14#220 | I156: 3#22 | N156: 610416 | Q156: =VLOOKUP(N156,[4]RewardItemConfig!$B:$C,2,FALSE) -> 70416 | R156: =IF(VLOOKUP(O156,[4]RewardItemConfig!$B:$C,2,FALSE)=0,"",VLOOKUP(O156,[4]RewardItemConfig!$B:$C,2,FALSE)) ->  | S156: 70416#1 | U156: 70416#1|14#220|3#22
E157: 困难-1-5 | F157: 70515#1 | G157: 70508#1 | H157: 14#220 | I157: 3#22 | N157: 610516 | Q157: =VLOOKUP(N157,[4]RewardItemConfig!$B:$C,2,FALSE) -> 70516 | R157: =IF(VLOOKUP(O157,[4]RewardItemConfig!$B:$C,2,FALSE)=0,"",VLOOKUP(O157,[4]RewardItemConfig!$B:$C,2,FALSE)) ->  | S157: 70516#1 | U157: 70516#1|14#220|3#22
E158: 困难-2-1 | F158: 70116#1 | G158: 70109#1 | H158: 14#240 | I158: 3#24 | N158: 610116 | Q158: =VLOOKUP(N158,[4]RewardItemConfig!$B:$C,2,FALSE) -> 70116 | R158: =IF(VLOOKUP(O158,[4]RewardItemConfig!$B:$C,2,FALSE)=0,"",VLOOKUP(O158,[4]RewardItemConfig!$B:$C,2,FALSE)) ->  | S158: 70116#1 | U158: 70116#1|14#240|3#24
E159: 困难-2-2 | F159: 70216#1 | G159: 70209#1 | H159: 14#240 | I159: 3#24 | N159: 610216 | Q159: =VLOOKUP(N159,[4]RewardItemConfig!$B:$C,2,FALSE) -> 70216 | R159: =IF(VLOOKUP(O159,[4]RewardItemConfig!$B:$C,2,FALSE)=0,"",VLOOKUP(O159,[4]RewardItemConfig!$B:$C,2,FALSE)) ->  | S159: 70216#1 | U159: 70216#1|14#240|3#24
E160: 困难-2-3 | F160: 70316#1 | G160: 70309#1 | H160: 14#240 | I160: 3#24 | N160: 610316 | Q160: =VLOOKUP(N160,[4]RewardItemConfig!$B:$C,2,FALSE) -> 70316 | R160: =IF(VLOOKUP(O160,[4]RewardItemConfig!$B:$C,2,FALSE)=0,"",VLOOKUP(O160,[4]RewardItemConfig!$B:$C,2,FALSE)) ->  | S160: 70316#1 | U160: 70316#1|14#240|3#24
E161: 困难-2-4 | F161: 70416#1 | G161: 70409#1 | H161: 14#240 | I161: 3#24 | N161: 610416 | Q161: =VLOOKUP(N161,[4]RewardItemConfig!$B:$C,2,FALSE) -> 70416 | R161: =IF(VLOOKUP(O161,[4]RewardItemConfig!$B:$C,2,FALSE)=0,"",VLOOKUP(O161,[4]RewardItemConfig!$B:$C,2,FALSE)) ->  | S161: 70416#1 | U161: 70416#1|14#240|3#24
E162: 困难-2-5 | F162: 70516#1 | G162: 70509#1 | H162: 14#240 | I162: 3#24 | N162: 610516 | Q162: =VLOOKUP(N162,[4]RewardItemConfig!$B:$C,2,FALSE) -> 70516 | R162: =IF(VLOOKUP(O162,[4]RewardItemConfig!$B:$C,2,FALSE)=0,"",VLOOKUP(O162,[4]RewardItemConfig!$B:$C,2,FALSE)) ->  | S162: 70516#1 | U162: 70516#1|14#240|3#24
E163: 困难-3-1 | F163: 70116#1 | G163: 70110#1 | H163: 14#260 | I163: 3#26 | N163: 610116 | Q163: =VLOOKUP(N163,[4]RewardItemConfig!$B:$C,2,FALSE) -> 70116 | R163: =IF(VLOOKUP(O163,[4]RewardItemConfig!$B:$C,2,FALSE)=0,"",VLOOKUP(O163,[4]RewardItemConfig!$B:$C,2,FALSE)) ->  | S163: 70116#1 | U163: 70116#1|14#260|3#26
E164: 困难-3-2 | F164: 70216#1 | G164: 70210#1 | H164: 14#260 | I164: 3#26 | N164: 610216 | Q164: =VLOOKUP(N164,[4]RewardItemConfig!$B:$C,2,FALSE) -> 70216 | R164: =IF(VLOOKUP(O164,[4]RewardItemConfig!$B:$C,2,FALSE)=0,"",VLOOKUP(O164,[4]RewardItemConfig!$B:$C,2,FALSE)) ->  | S164: 70216#1 | U164: 70216#1|14#260|3#26
E165: 困难-3-3 | F165: 70316#1 | G165: 70310#1 | H165: 14#260 | I165: 3#26 | N165: 610316 | Q165: =VLOOKUP(N165,[4]RewardItemConfig!$B:$C,2,FALSE) -> 70316 | R165: =IF(VLOOKUP(O165,[4]RewardItemConfig!$B:$C,2,FALSE)=0,"",VLOOKUP(O165,[4]RewardItemConfig!$B:$C,2,FALSE)) ->  | S165: 70316#1 | U165: 70316#1|14#260|3#26
E166: 困难-3-4 | F166: 70416#1 | G166: 70410#1 | H166: 14#260 | I166: 3#26 | N166: 610416 | Q166: =VLOOKUP(N166,[4]RewardItemConfig!$B:$C,2,FALSE) -> 70416 | R166: =IF(VLOOKUP(O166,[4]RewardItemConfig!$B:$C,2,FALSE)=0,"",VLOOKUP(O166,[4]RewardItemConfig!$B:$C,2,FALSE)) ->  | S166: 70416#1 | U166: 70416#1|14#260|3#26
E167: 困难-3-5 | F167: 70516#1 | G167: 70510#1 | H167: 14#260 | I167: 3#26 | N167: 610516 | Q167: =VLOOKUP(N167,[4]RewardItemConfig!$B:$C,2,FALSE) -> 70516 | R167: =IF(VLOOKUP(O167,[4]RewardItemConfig!$B:$C,2,FALSE)=0,"",VLOOKUP(O167,[4]RewardItemConfig!$B:$C,2,FALSE)) ->  | S167: 70516#1 | U167: =_xlfn.TEXTJOIN("|",TRUE,S167:T167,H167,I167) -> 70516#1|14#260|3#26
E168: 困难-4-1 | F168: 70116#1 | G168: 70111#1 | H168: 14#280 | I168: 3#28 | N168: 610117 | Q168: =VLOOKUP(N168,[4]RewardItemConfig!$B:$C,2,FALSE) -> 70117 | R168: =IF(VLOOKUP(O168,[4]RewardItemConfig!$B:$C,2,FALSE)=0,"",VLOOKUP(O168,[4]RewardItemConfig!$B:$C,2,FALSE)) ->  | S168: 70117#1 | U168: 70117#1|14#280|3#28
E169: 困难-4-2 | F169: 70216#1 | G169: 70211#1 | H169: 14#280 | I169: 3#28 | N169: 610217 | Q169: =VLOOKUP(N169,[4]RewardItemConfig!$B:$C,2,FALSE) -> 70217 | R169: =IF(VLOOKUP(O169,[4]RewardItemConfig!$B:$C,2,FALSE)=0,"",VLOOKUP(O169,[4]RewardItemConfig!$B:$C,2,FALSE)) ->  | S169: 70217#1 | U169: 70217#1|14#280|3#28
E170: 困难-4-3 | F170: 70316#1 | G170: 70311#1 | H170: 14#280 | I170: 3#28 | N170: 610317 | Q170: =VLOOKUP(N170,[4]RewardItemConfig!$B:$C,2,FALSE) -> 70317 | R170: =IF(VLOOKUP(O170,[4]RewardItemConfig!$B:$C,2,FALSE)=0,"",VLOOKUP(O170,[4]RewardItemConfig!$B:$C,2,FALSE)) ->  | S170: 70317#1 | U170: 70317#1|14#280|3#28
E171: 困难-4-4 | F171: 70416#1 | G171: 70411#1 | H171: 14#280 | I171: 3#28 | N171: 610417 | Q171: =VLOOKUP(N171,[4]RewardItemConfig!$B:$C,2,FALSE) -> 70417 | R171: =IF(VLOOKUP(O171,[4]RewardItemConfig!$B:$C,2,FALSE)=0,"",VLOOKUP(O171,[4]RewardItemConfig!$B:$C,2,FALSE)) ->  | S171: 70417#1 | U171: 70417#1|14#280|3#28
E172: 困难-4-5 | F172: 70516#1 | G172: 70511#1 | H172: 14#280 | I172: 3#28 | N172: 610517 | Q172: =VLOOKUP(N172,[4]RewardItemConfig!$B:$C,2,FALSE) -> 70517 | R172: =IF(VLOOKUP(O172,[4]RewardItemConfig!$B:$C,2,FALSE)=0,"",VLOOKUP(O172,[4]RewardItemConfig!$B:$C,2,FALSE)) ->  | S172: 70517#1 | U172: 70517#1|14#280|3#28
E173: 困难-5-1 | F173: 70116#1 | G173: 70112#1 | H173: 14#300 | I173: 3#30 | N173: 610117 | Q173: =VLOOKUP(N173,[4]RewardItemConfig!$B:$C,2,FALSE) -> 70117 | R173: =IF(VLOOKUP(O173,[4]RewardItemConfig!$B:$C,2,FALSE)=0,"",VLOOKUP(O173,[4]RewardItemConfig!$B:$C,2,FALSE)) ->  | S173: 70117#1 | U173: 70117#1|14#300|3#30
E174: 困难-5-2 | F174: 70216#1 | G174: 70212#1 | H174: 14#300 | I174: 3#30 | N174: 610217 | Q174: =VLOOKUP(N174,[4]RewardItemConfig!$B:$C,2,FALSE) -> 70217 | R174: =IF(VLOOKUP(O174,[4]RewardItemConfig!$B:$C,2,FALSE)=0,"",VLOOKUP(O174,[4]RewardItemConfig!$B:$C,2,FALSE)) ->  | S174: 70217#1 | U174: 70217#1|14#300|3#30
E175: 困难-5-3 | F175: 70316#1 | G175: 70312#1 | H175: 14#300 | I175: 3#30 | N175: 610317 | Q175: =VLOOKUP(N175,[4]RewardItemConfig!$B:$C,2,FALSE) -> 70317 | R175: =IF(VLOOKUP(O175,[4]RewardItemConfig!$B:$C,2,FALSE)=0,"",VLOOKUP(O175,[4]RewardItemConfig!$B:$C,2,FALSE)) ->  | S175: 70317#1 | U175: 70317#1|14#300|3#30
E176: 困难-5-4 | F176: 70416#1 | G176: 70412#1 | H176: 14#300 | I176: 3#30 | N176: 610417 | Q176: =VLOOKUP(N176,[4]RewardItemConfig!$B:$C,2,FALSE) -> 70417 | R176: =IF(VLOOKUP(O176,[4]RewardItemConfig!$B:$C,2,FALSE)=0,"",VLOOKUP(O176,[4]RewardItemConfig!$B:$C,2,FALSE)) ->  | S176: 70417#1 | U176: 70417#1|14#300|3#30
E177: 困难-5-5 | F177: 70516#1 | G177: 70512#1 | H177: 14#300 | I177: 3#30 | N177: 610517 | Q177: =VLOOKUP(N177,[4]RewardItemConfig!$B:$C,2,FALSE) -> 70517 | R177: =IF(VLOOKUP(O177,[4]RewardItemConfig!$B:$C,2,FALSE)=0,"",VLOOKUP(O177,[4]RewardItemConfig!$B:$C,2,FALSE)) ->  | S177: 70517#1 | U177: 70517#1|14#300|3#30
E178: 困难-6-1 | F178: 70117#1 | G178: 70113#1 | H178: 14#320 | I178: 3#32 | N178: 610117 | Q178: =VLOOKUP(N178,[4]RewardItemConfig!$B:$C,2,FALSE) -> 70117 | R178: =IF(VLOOKUP(O178,[4]RewardItemConfig!$B:$C,2,FALSE)=0,"",VLOOKUP(O178,[4]RewardItemConfig!$B:$C,2,FALSE)) ->  | S178: 70117#1 | U178: 70117#1|14#320|3#32
E179: 困难-6-2 | F179: 70217#1 | G179: 70213#1 | H179: 14#320 | I179: 3#32 | N179: 610217 | Q179: =VLOOKUP(N179,[4]RewardItemConfig!$B:$C,2,FALSE) -> 70217 | R179: =IF(VLOOKUP(O179,[4]RewardItemConfig!$B:$C,2,FALSE)=0,"",VLOOKUP(O179,[4]RewardItemConfig!$B:$C,2,FALSE)) ->  | S179: 70217#1 | U179: 70217#1|14#320|3#32
E180: 困难-6-3 | F180: 70317#1 | G180: 70313#1 | H180: 14#320 | I180: 3#32 | N180: 610317 | Q180: =VLOOKUP(N180,[4]RewardItemConfig!$B:$C,2,FALSE) -> 70317 | R180: =IF(VLOOKUP(O180,[4]RewardItemConfig!$B:$C,2,FALSE)=0,"",VLOOKUP(O180,[4]RewardItemConfig!$B:$C,2,FALSE)) ->  | S180: 70317#1 | U180: 70317#1|14#320|3#32
E181: 困难-6-4 | F181: 70417#1 | G181: 70413#1 | H181: 14#320 | I181: 3#32 | N181: 610417 | Q181: =VLOOKUP(N181,[4]RewardItemConfig!$B:$C,2,FALSE) -> 70417 | R181: =IF(VLOOKUP(O181,[4]RewardItemConfig!$B:$C,2,FALSE)=0,"",VLOOKUP(O181,[4]RewardItemConfig!$B:$C,2,FALSE)) ->  | S181: 70417#1 | U181: 70417#1|14#320|3#32
E182: 困难-6-5 | F182: 70517#1 | G182: 70513#1 | H182: 14#320 | I182: 3#32 | N182: 610517 | Q182: =VLOOKUP(N182,[4]RewardItemConfig!$B:$C,2,FALSE) -> 70517 | R182: =IF(VLOOKUP(O182,[4]RewardItemConfig!$B:$C,2,FALSE)=0,"",VLOOKUP(O182,[4]RewardItemConfig!$B:$C,2,FALSE)) ->  | S182: 70517#1 | U182: 70517#1|14#320|3#32
E183: 困难-7-1 | F183: 70117#1 | G183: 70114#1 | H183: 14#340 | I183: 3#34 | N183: 610118 | Q183: =VLOOKUP(N183,[4]RewardItemConfig!$B:$C,2,FALSE) -> 70118 | R183: =IF(VLOOKUP(O183,[4]RewardItemConfig!$B:$C,2,FALSE)=0,"",VLOOKUP(O183,[4]RewardItemConfig!$B:$C,2,FALSE)) ->  | S183: 70118#1 | U183: 70118#1|14#340|3#34
E184: 困难-7-2 | F184: 70217#1 | G184: 70214#1 | H184: 14#340 | I184: 3#34 | N184: 610218 | Q184: =VLOOKUP(N184,[4]RewardItemConfig!$B:$C,2,FALSE) -> 70218 | R184: =IF(VLOOKUP(O184,[4]RewardItemConfig!$B:$C,2,FALSE)=0,"",VLOOKUP(O184,[4]RewardItemConfig!$B:$C,2,FALSE)) ->  | S184: 70218#1 | U184: 70218#1|14#340|3#34
E185: 困难-7-3 | F185: 70317#1 | G185: 70314#1 | H185: 14#340 | I185: 3#34 | N185: 610318 | Q185: =VLOOKUP(N185,[4]RewardItemConfig!$B:$C,2,FALSE) -> 70318 | R185: =IF(VLOOKUP(O185,[4]RewardItemConfig!$B:$C,2,FALSE)=0,"",VLOOKUP(O185,[4]RewardItemConfig!$B:$C,2,FALSE)) ->  | S185: 70318#1 | U185: 70318#1|14#340|3#34
E186: 困难-7-4 | F186: 70417#1 | G186: 70414#1 | H186: 14#340 | I186: 3#34 | N186: 610418 | Q186: =VLOOKUP(N186,[4]RewardItemConfig!$B:$C,2,FALSE) -> 70418 | R186: =IF(VLOOKUP(O186,[4]RewardItemConfig!$B:$C,2,FALSE)=0,"",VLOOKUP(O186,[4]RewardItemConfig!$B:$C,2,FALSE)) ->  | S186: 70418#1 | U186: 70418#1|14#340|3#34
E187: 困难-7-5 | F187: 70517#1 | G187: 70514#1 | H187: 14#340 | I187: 3#34 | N187: 610518 | Q187: =VLOOKUP(N187,[4]RewardItemConfig!$B:$C,2,FALSE) -> 70518 | R187: =IF(VLOOKUP(O187,[4]RewardItemConfig!$B:$C,2,FALSE)=0,"",VLOOKUP(O187,[4]RewardItemConfig!$B:$C,2,FALSE)) ->  | S187: 70518#1 | U187: 70518#1|14#340|3#34
E188: 困难-8-1 | F188: 70117#1 | G188: 70115#1 | H188: 14#360 | I188: 3#36 | N188: 610118 | Q188: =VLOOKUP(N188,[4]RewardItemConfig!$B:$C,2,FALSE) -> 70118 | R188: =IF(VLOOKUP(O188,[4]RewardItemConfig!$B:$C,2,FALSE)=0,"",VLOOKUP(O188,[4]RewardItemConfig!$B:$C,2,FALSE)) ->  | S188: 70118#1 | U188: 70118#1|14#360|3#36
E189: 困难-8-2 | F189: 70217#1 | G189: 70215#1 | H189: 14#360 | I189: 3#36 | N189: 610218 | Q189: =VLOOKUP(N189,[4]RewardItemConfig!$B:$C,2,FALSE) -> 70218 | R189: =IF(VLOOKUP(O189,[4]RewardItemConfig!$B:$C,2,FALSE)=0,"",VLOOKUP(O189,[4]RewardItemConfig!$B:$C,2,FALSE)) ->  | S189: 70218#1 | U189: 70218#1|14#360|3#36
E190: 困难-8-3 | F190: 70317#1 | G190: 70315#1 | H190: 14#360 | I190: 3#36 | N190: 610318 | Q190: =VLOOKUP(N190,[4]RewardItemConfig!$B:$C,2,FALSE) -> 70318 | R190: =IF(VLOOKUP(O190,[4]RewardItemConfig!$B:$C,2,FALSE)=0,"",VLOOKUP(O190,[4]RewardItemConfig!$B:$C,2,FALSE)) ->  | S190: 70318#1 | U190: 70318#1|14#360|3#36
E191: 困难-8-4 | F191: 70417#1 | G191: 70415#1 | H191: 14#360 | I191: 3#36 | N191: 610418 | Q191: =VLOOKUP(N191,[4]RewardItemConfig!$B:$C,2,FALSE) -> 70418 | R191: =IF(VLOOKUP(O191,[4]RewardItemConfig!$B:$C,2,FALSE)=0,"",VLOOKUP(O191,[4]RewardItemConfig!$B:$C,2,FALSE)) ->  | S191: 70418#1 | U191: 70418#1|14#360|3#36
E192: 困难-8-5 | F192: 70517#1 | G192: 70515#1 | H192: 14#360 | I192: 3#36 | N192: 610518 | Q192: =VLOOKUP(N192,[4]RewardItemConfig!$B:$C,2,FALSE) -> 70518 | R192: =IF(VLOOKUP(O192,[4]RewardItemConfig!$B:$C,2,FALSE)=0,"",VLOOKUP(O192,[4]RewardItemConfig!$B:$C,2,FALSE)) ->  | S192: 70518#1 | U192: 70518#1|14#360|3#36
E193: 困难-9-1 | F193: 70117#1 | G193: 70116#1 | H193: 14#380 | I193: 3#38 | N193: =N188+1 -> 610119 | Q193: =VLOOKUP(N193,[4]RewardItemConfig!$B:$C,2,FALSE) -> 70119 | R193: =IF(VLOOKUP(O193,[4]RewardItemConfig!$B:$C,2,FALSE)=0,"",VLOOKUP(O193,[4]RewardItemConfig!$B:$C,2,FALSE)) ->  | S193: 70119#1 | U193: 70119#1|14#380|3#38
E194: 困难-9-2 | F194: 70217#1 | G194: 70216#1 | H194: 14#380 | I194: 3#38 | N194: =N189+1 -> 610219 | Q194: =VLOOKUP(N194,[4]RewardItemConfig!$B:$C,2,FALSE) -> 70219 | R194: =IF(VLOOKUP(O194,[4]RewardItemConfig!$B:$C,2,FALSE)=0,"",VLOOKUP(O194,[4]RewardItemConfig!$B:$C,2,FALSE)) ->  | S194: 70219#1 | U194: 70219#1|14#380|3#38
E195: 困难-9-3 | F195: 70317#1 | G195: 70316#1 | H195: 14#380 | I195: 3#38 | N195: =N190+1 -> 610319 | Q195: =VLOOKUP(N195,[4]RewardItemConfig!$B:$C,2,FALSE) -> 70319 | R195: =IF(VLOOKUP(O195,[4]RewardItemConfig!$B:$C,2,FALSE)=0,"",VLOOKUP(O195,[4]RewardItemConfig!$B:$C,2,FALSE)) ->  | S195: 70319#1 | U195: 70319#1|14#380|3#38
E196: 困难-9-4 | F196: 70417#1 | G196: 70416#1 | H196: 14#380 | I196: 3#38 | N196: =N191+1 -> 610419 | Q196: =VLOOKUP(N196,[4]RewardItemConfig!$B:$C,2,FALSE) -> 70419 | R196: =IF(VLOOKUP(O196,[4]RewardItemConfig!$B:$C,2,FALSE)=0,"",VLOOKUP(O196,[4]RewardItemConfig!$B:$C,2,FALSE)) ->  | S196: =IF(Q196="","",Q196&$S$2) -> 70419#1 | T196: =IF(R196="","",R196&$S$2) ->  | U196: 70419#1|14#380|3#38
E197: 困难-9-5 | F197: 70517#1 | G197: 70516#1 | H197: 14#380 | I197: 3#38 | N197: =N192+1 -> 610519 | Q197: =VLOOKUP(N197,[4]RewardItemConfig!$B:$C,2,FALSE) -> 70519 | R197: =IF(VLOOKUP(O197,[4]RewardItemConfig!$B:$C,2,FALSE)=0,"",VLOOKUP(O197,[4]RewardItemConfig!$B:$C,2,FALSE)) ->  | S197: 70519#1 | U197: 70519#1|14#380|3#38
E198: 困难-10-1 | F198: 70118#1 | G198: 70117#1 | H198: 14#400 | I198: 3#40 | N198: 610119 | Q198: =VLOOKUP(N198,[4]RewardItemConfig!$B:$C,2,FALSE) -> 70119 | R198: =IF(VLOOKUP(O198,[4]RewardItemConfig!$B:$C,2,FALSE)=0,"",VLOOKUP(O198,[4]RewardItemConfig!$B:$C,2,FALSE)) ->  | S198: 70119#1 | U198: 70119#1|14#400|3#40
E199: 困难-10-2 | F199: 70218#1 | G199: 70217#1 | H199: 14#400 | I199: 3#40 | N199: 610219 | Q199: =VLOOKUP(N199,[4]RewardItemConfig!$B:$C,2,FALSE) -> 70219 | R199: =IF(VLOOKUP(O199,[4]RewardItemConfig!$B:$C,2,FALSE)=0,"",VLOOKUP(O199,[4]RewardItemConfig!$B:$C,2,FALSE)) ->  | S199: 70219#1 | U199: 70219#1|14#400|3#40
E200: 困难-10-3 | F200: 70318#1 | G200: 70317#1 | H200: 14#400 | I200: 3#40 | N200: 610319 | Q200: =VLOOKUP(N200,[4]RewardItemConfig!$B:$C,2,FALSE) -> 70319 | R200: =IF(VLOOKUP(O200,[4]RewardItemConfig!$B:$C,2,FALSE)=0,"",VLOOKUP(O200,[4]RewardItemConfig!$B:$C,2,FALSE)) ->  | S200: 70319#1 | U200: 70319#1|14#400|3#40
E201: 困难-10-4 | F201: 70418#1 | G201: 70417#1 | H201: 14#400 | I201: 3#40 | N201: 610419 | Q201: =VLOOKUP(N201,[4]RewardItemConfig!$B:$C,2,FALSE) -> 70419 | R201: =IF(VLOOKUP(O201,[4]RewardItemConfig!$B:$C,2,FALSE)=0,"",VLOOKUP(O201,[4]RewardItemConfig!$B:$C,2,FALSE)) ->  | S201: 70419#1 | U201: 70419#1|14#400|3#40
... 101 more rows
